{"text_format":"1","workbook":"xlsx","n_sheets":5,"sheets":["Lists","Settings","Risk Analysis Tool","Risk Mitigation Strategy","Risk Register"],"not_rendered":{"charts":2,"images":1,"macros":1,"external_links":0,"defined_names":50,"comments":0,"pivot_tables":0},"unopened":[],"bounds":{"document_bytes":16777216,"sheet_cells":100000,"rows_first":2000,"rows_last":500,"rows_between":2000,"halvings":0,"cell_chars":16384,"cell_head_chars":4096},"cells_cut":0,"cells_raw":0,"read":"whole","date_system":"1900"}

{"sheet":"Lists","index":0,"n_rows":274,"n_cols":89,"rows_kept":274,"cut":false,"hidden":true,"merged":[[0,16,0,18],[0,62,0,64],[0,26,0,30],[0,39,0,44]]}
["A2. Organization Type:",null,null,null,null,null,null,null,"B2. Risk Type:",null,null,null,null,null,null,null,"B3. Risk Category",null,null,null,null,null,null,null,null,null,"B4. Risk Sub-Category",null,null,null,null,null,null,null,null,null,null,null,null,"B5. Risk Sub-Category Type",null,null,null,null,null,null,null,null,null,null,null,null,null,"C1. Cluster (affected)",null,null,null,null,null,null,null,null,"C2. Cluster Activity:",null,null,null,null,null,null,null,null,null,"D2. Impact",null,null,null,null,null,null,null,"D3. Likelihood",null,null,null,null,null,null,null,"D4. Risk Driver"]
[]
["A2. Organization Type:",null,null,null,null,null,null,null,"B2. Risk Type:",null,null,null,null,null,null,null,"B3. Risk Type:","B3. Risk Category","B3. Risk Category/Index",null,null,null,null,null,null,null,"B4. Risk Type:","B4. Risk Category","B4. Risk Type/Category","B4. Risk Sub-Category","B4. Risk Sub-Category/Index",null,null,null,null,null,null,null,null,"B5. Risk Type:","B5. Risk Category","B5. Risk Sub-Category","B5. Risk Type/Category/Sub-Category","B5. Risk Sub-Category Type","B5. Risk Sub-Category Type/Index",null,null,null,null,null,null,null,null,"C1. Cluster (affected):",null,null,null,null,null,null,null,null,"C2. Cluster (affected):","C2. Cluster Activity:","C2. Cluster Activity/Index",null,null,null,null,null,null,null,"D2. Impact:",null,null,null,null,null,null,null,"D3. Likelihood:",null,null,null,null,null,null,null,"D4. Risk Driver:"]
["Coordination Body (network, forum, platform, cluster)",null,null,null,null,null,null,null,"External",null,null,null,null,null,null,null,"External","Access",{"$f":"B3_Risk_Category_Table[[#This Row],[B3. Risk Type:]]&\"/\"&B3_Risk_Category_Table[[#This Row],[B3. Risk Category]]","v":"External/Access"},null,null,null,null,null,null,null,"External","Access",{"$f":"B4_Risk_Sub_Category_Table[[#This Row],[B4. Risk Type:]]&\"/\"&B4_Risk_Sub_Category_Table[[#This Row],[B4. Risk Category]]","v":"External/Access"},"Denial of Access",{"$f":"B4_Risk_Sub_Category_Table[[#This Row],[B4. Risk Type:]]&\"/\"&B4_Risk_Sub_Category_Table[[#This Row],[B4. Risk Category]]&\"/\"&B4_Risk_Sub_Category_Table[[#This Row],[B4. Risk Sub-Category]]","v":"External/Access/Denial of Access"},null,null,null,null,null,null,null,null,"External","Access","Denial of Access",{"$f":"B5_Risk_Sub_Category_Type_Table[[#This Row],[B5. Risk Type:]]&\"/\"&B5_Risk_Sub_Category_Type_Table[[#This Row],[B5. Risk Category]]&\"/\"&B5_Risk_Sub_Category_Type_Table[[#This Row],[B5. Risk Sub-Category]]","v":"External/Access/Denial of Access"},"Affected populations' access to humanitarian services/assistance",{"$f":"B5_Risk_Sub_Category_Type_Table[[#This Row],[B5. Risk Type:]]&\"/\"&B5_Risk_Sub_Category_Type_Table[[#This Row],[B5. Risk Category]]&\"/\"&B5_Risk_Sub_Category_Type_Table[[#This Row],[B5. Risk Sub-Category]]&\"/\"&B5_Risk_Sub_Category_Type_Table[[#This Row],[B5. Risk Sub-Category Type]]","v":"External/Access/Denial of Access/Affected populations' access to humanitarian services/assistance"},null,null,null,null,null,null,null,null,"Camp_Coordination_Management_CCCM",null,null,null,null,null,null,null,null,"Camp_Coordination_Management_CCCM","Closure of IDP sites, particularly collective centers that were schools",{"$f":"CC2_Cluster_Activity_Table[[#This Row],[C2. Cluster (affected):]]&\"/\"&CC2_Cluster_Activity_Table[[#This Row],[C2. Cluster Activity:]]","v":"Camp_Coordination_Management_CCCM/Closure of IDP sites, particularly collective centers that were schools"},null,null,null,null,null,null,null,"1: Very Low",null,null,null,null,null,null,null,"1: Very unlikely",null,null,null,null,null,null,null,"Border Management at Bab Al Hawa - Syrian Side"]
["Donor",null,null,null,null,null,null,null,"Internal",null,null,null,null,null,null,null,"External","Aid Diversion",{"$f":"B3_Risk_Category_Table[[#This Row],[B3. Risk Type:]]&\"/\"&B3_Risk_Category_Table[[#This Row],[B3. Risk Category]]","v":"External/Aid Diversion"},null,null,null,null,null,null,null,"External","Access",{"$f":"B4_Risk_Sub_Category_Table[[#This Row],[B4. Risk Type:]]&\"/\"&B4_Risk_Sub_Category_Table[[#This Row],[B4. Risk Category]]","v":"External/Access"},"Poor Infrastructure",{"$f":"B4_Risk_Sub_Category_Table[[#This Row],[B4. Risk Type:]]&\"/\"&B4_Risk_Sub_Category_Table[[#This Row],[B4. Risk Category]]&\"/\"&B4_Risk_Sub_Category_Table[[#This Row],[B4. Risk Sub-Category]]","v":"External/Access/Poor Infrastructure"},null,null,null,null,null,null,null,null,"External","Access","Denial of Access",{"$f":"B5_Risk_Sub_Category_Type_Table[[#This Row],[B5. Risk Type:]]&\"/\"&B5_Risk_Sub_Category_Type_Table[[#This Row],[B5. Risk Category]]&\"/\"&B5_Risk_Sub_Category_Type_Table[[#This Row],[B5. Risk Sub-Category]]","v":"External/Access/Denial of Access"},"Denial of population movement to location of assistance",{"$f":"B5_Risk_Sub_Category_Type_Table[[#This Row],[B5. Risk Type:]]&\"/\"&B5_Risk_Sub_Category_Type_Table[[#This Row],[B5. Risk Category]]&\"/\"&B5_Risk_Sub_Category_Type_Table[[#This Row],[B5. Risk Sub-Category]]&\"/\"&B5_Risk_Sub_Category_Type_Table[[#This Row],[B5. Risk Sub-Category Type]]","v":"External/Access/Denial of Access/Denial of population movement to location of assistance"},null,null,null,null,null,null,null,null,"Coordination_Common_Services_CCS",null,null,null,null,null,null,null,null,"Camp_Coordination_Management_CCCM","IDP tracking",{"$f":"CC2_Cluster_Activity_Table[[#This Row],[C2. Cluster (affected):]]&\"/\"&CC2_Cluster_Activity_Table[[#This Row],[C2. Cluster Activity:]]","v":"Camp_Coordination_Management_CCCM/IDP tracking"},null,null,null,null,null,null,null,"2: Low",null,null,null,null,null,null,null,"2: Unlikely",null,null,null,null,null,null,null,"Border Management at Bab Alsalam - Syrian Side"]
["International Non-Government Organization",null,null,null,null,null,null,null,"Strategic",null,null,null,null,null,null,null,"External","Environment",{"$f":"B3_Risk_Category_Table[[#This Row],[B3. Risk Type:]]&\"/\"&B3_Risk_Category_Table[[#This Row],[B3. Risk Category]]","v":"External/Environment"},null,null,null,null,null,null,null,"External","Access",{"$f":"B4_Risk_Sub_Category_Table[[#This Row],[B4. Risk Type:]]&\"/\"&B4_Risk_Sub_Category_Table[[#This Row],[B4. Risk Category]]","v":"External/Access"},"Restriction of Movement",{"$f":"B4_Risk_Sub_Category_Table[[#This Row],[B4. Risk Type:]]&\"/\"&B4_Risk_Sub_Category_Table[[#This Row],[B4. Risk Category]]&\"/\"&B4_Risk_Sub_Category_Table[[#This Row],[B4. Risk Sub-Category]]","v":"External/Access/Restriction of Movement"},null,null,null,null,null,null,null,null,"External","Access","Denial of Access",{"$f":"B5_Risk_Sub_Category_Type_Table[[#This Row],[B5. Risk Type:]]&\"/\"&B5_Risk_Sub_Category_Type_Table[[#This Row],[B5. Risk Category]]&\"/\"&B5_Risk_Sub_Category_Type_Table[[#This Row],[B5. Risk Sub-Category]]","v":"External/Access/Denial of Access"},"Denied of assistance to certain population groups",{"$f":"B5_Risk_Sub_Category_Type_Table[[#This Row],[B5. Risk Type:]]&\"/\"&B5_Risk_Sub_Category_Type_Table[[#This Row],[B5. Risk Category]]&\"/\"&B5_Risk_Sub_Category_Type_Table[[#This Row],[B5. Risk Sub-Category]]&\"/\"&B5_Risk_Sub_Category_Type_Table[[#This Row],[B5. Risk Sub-Category Type]]","v":"External/Access/Denial of Access/Denied of assistance to certain population groups"},null,null,null,null,null,null,null,null,"Early_Recovery",null,null,null,null,null,null,null,null,"Camp_Coordination_Management_CCCM","Livelihood activities",{"$f":"CC2_Cluster_Activity_Table[[#This Row],[C2. Cluster (affected):]]&\"/\"&CC2_Cluster_Activity_Table[[#This Row],[C2. Cluster Activity:]]","v":"Camp_Coordination_Management_CCCM/Livelihood activities"},null,null,null,null,null,null,null,"3: Medium",null,null,null,null,null,null,null,"3: Moderately likely",null,null,null,null,null,null,null,"Clusters"]
["National or local Non-Government Organization",null,null,null,null,null,null,null,"Other",null,null,null,null,null,null,null,"External","Quality, Accountability and AAP",{"$f":"B3_Risk_Category_Table[[#This Row],[B3. Risk Type:]]&\"/\"&B3_Risk_Category_Table[[#This Row],[B3. Risk Category]]","v":"External/Quality, Accountability and AAP"},null,null,null,null,null,null,null,"External","Access",{"$f":"B4_Risk_Sub_Category_Table[[#This Row],[B4. Risk Type:]]&\"/\"&B4_Risk_Sub_Category_Table[[#This Row],[B4. Risk Category]]","v":"External/Access"},"Other",{"$f":"B4_Risk_Sub_Category_Table[[#This Row],[B4. Risk Type:]]&\"/\"&B4_Risk_Sub_Category_Table[[#This Row],[B4. Risk Category]]&\"/\"&B4_Risk_Sub_Category_Table[[#This Row],[B4. Risk Sub-Category]]","v":"External/Access/Other"},null,null,null,null,null,null,null,null,"External","Access","Denial of Access",{"$f":"B5_Risk_Sub_Category_Type_Table[[#This Row],[B5. Risk Type:]]&\"/\"&B5_Risk_Sub_Category_Type_Table[[#This Row],[B5. Risk Category]]&\"/\"&B5_Risk_Sub_Category_Type_Table[[#This Row],[B5. Risk Sub-Category]]","v":"External/Access/Denial of Access"},"Forced movement of population away from location of assistance",{"$f":"B5_Risk_Sub_Category_Type_Table[[#This Row],[B5. Risk Type:]]&\"/\"&B5_Risk_Sub_Category_Type_Table[[#This Row],[B5. Risk Category]]&\"/\"&B5_Risk_Sub_Category_Type_Table[[#This Row],[B5. Risk Sub-Category]]&\"/\"&B5_Risk_Sub_Category_Type_Table[[#This Row],[B5. Risk Sub-Category Type]]","v":"External/Access/Denial of Access/Forced movement of population away from location of assistance"},null,null,null,null,null,null,null,null,"Education",null,null,null,null,null,null,null,null,"Camp_Coordination_Management_CCCM","Multi-sector response in IDP site",{"$f":"CC2_Cluster_Activity_Table[[#This Row],[C2. Cluster (affected):]]&\"/\"&CC2_Cluster_Activity_Table[[#This Row],[C2. Cluster Activity:]]","v":"Camp_Coordination_Management_CCCM/Multi-sector response in IDP site"},null,null,null,null,null,null,null,"4: High",null,null,null,null,null,null,null,"4: Likely",null,null,null,null,null,null,null,"Contractors/Vendors"]
["Red Cross/Red Crescent Movement",null,null,null,null,null,null,null,null,null,null,null,null,null,null,null,"External","Safety & Security",{"$f":"B3_Risk_Category_Table[[#This Row],[B3. Risk Type:]]&\"/\"&B3_Risk_Category_Table[[#This Row],[B3. Risk Category]]","v":"External/Safety & Security"},null,null,null,null,null,null,null,"External","Aid Diversion",{"$f":"B4_Risk_Sub_Category_Table[[#This Row],[B4. Risk Type:]]&\"/\"&B4_Risk_Sub_Category_Table[[#This Row],[B4. Risk Category]]","v":"External/Aid Diversion"},"Denial of Humanitarian Needs",{"$f":"B4_Risk_Sub_Category_Table[[#This Row],[B4. Risk Type:]]&\"/\"&B4_Risk_Sub_Category_Table[[#This Row],[B4. Risk Category]]&\"/\"&B4_Risk_Sub_Category_Table[[#This Row],[B4. Risk Sub-Category]]","v":"External/Aid Diversion/Denial of Humanitarian Needs"},null,null,null,null,null,null,null,null,"External","Access","Denial of Access",{"$f":"B5_Risk_Sub_Category_Type_Table[[#This Row],[B5. Risk Type:]]&\"/\"&B5_Risk_Sub_Category_Type_Table[[#This Row],[B5. Risk Category]]&\"/\"&B5_Risk_Sub_Category_Type_Table[[#This Row],[B5. Risk Sub-Category]]","v":"External/Access/Denial of Access"},"General restriction on population movement",{"$f":"B5_Risk_Sub_Category_Type_Table[[#This Row],[B5. Risk Type:]]&\"/\"&B5_Risk_Sub_Category_Type_Table[[#This Row],[B5. Risk Category]]&\"/\"&B5_Risk_Sub_Category_Type_Table[[#This Row],[B5. Risk Sub-Category]]&\"/\"&B5_Risk_Sub_Category_Type_Table[[#This Row],[B5. Risk Sub-Category Type]]","v":"External/Access/Denial of Access/General restriction on population movement"},null,null,null,null,null,null,null,null,"Emergency_Shelter_NFI",null,null,null,null,null,null,null,null,"Camp_Coordination_Management_CCCM","Needs assessment in camps",{"$f":"CC2_Cluster_Activity_Table[[#This Row],[C2. Cluster (affected):]]&\"/\"&CC2_Cluster_Activity_Table[[#This Row],[C2. Cluster Activity:]]","v":"Camp_Coordination_Management_CCCM/Needs assessment in camps"},null,null,null,null,null,null,null,"5: Very High",null,null,null,null,null,null,null,"5: Very likely",null,null,null,null,null,null,null,"Donors"]
["UN System Agency",null,null,null,null,null,null,null,null,null,null,null,null,null,null,null,"External","Other",{"$f":"B3_Risk_Category_Table[[#This Row],[B3. Risk Type:]]&\"/\"&B3_Risk_Category_Table[[#This Row],[B3. Risk Category]]","v":"External/Other"},null,null,null,null,null,null,null,"External","Aid Diversion",{"$f":"B4_Risk_Sub_Category_Table[[#This Row],[B4. Risk Type:]]&\"/\"&B4_Risk_Sub_Category_Table[[#This Row],[B4. Risk Category]]","v":"External/Aid Diversion"},"Diversion of Aid",{"$f":"B4_Risk_Sub_Category_Table[[#This Row],[B4. Risk Type:]]&\"/\"&B4_Risk_Sub_Category_Table[[#This Row],[B4. Risk Category]]&\"/\"&B4_Risk_Sub_Category_Table[[#This Row],[B4. Risk Sub-Category]]","v":"External/Aid Diversion/Diversion of Aid"},null,null,null,null,null,null,null,null,"External","Access","Denial of Access",{"$f":"B5_Risk_Sub_Category_Type_Table[[#This Row],[B5. Risk Type:]]&\"/\"&B5_Risk_Sub_Category_Type_Table[[#This Row],[B5. Risk Category]]&\"/\"&B5_Risk_Sub_Category_Type_Table[[#This Row],[B5. Risk Sub-Category]]","v":"External/Access/Denial of Access"},"Humanitarian workers' access to affected area",{"$f":"B5_Risk_Sub_Category_Type_Table[[#This Row],[B5. Risk Type:]]&\"/\"&B5_Risk_Sub_Category_Type_Table[[#This Row],[B5. Risk Category]]&\"/\"&B5_Risk_Sub_Category_Type_Table[[#This Row],[B5. Risk Sub-Category]]&\"/\"&B5_Risk_Sub_Category_Type_Table[[#This Row],[B5. Risk Sub-Category Type]]","v":"External/Access/Denial of Access/Humanitarian workers' access to affected area"},null,null,null,null,null,null,null,null,"Food_Security_Livelihoods_FSL",null,null,null,null,null,null,null,null,"Camp_Coordination_Management_CCCM","Promotion of equal access to services",{"$f":"CC2_Cluster_Activity_Table[[#This Row],[C2. Cluster (affected):]]&\"/\"&CC2_Cluster_Activity_Table[[#This Row],[C2. Cluster Activity:]]","v":"Camp_Coordination_Management_CCCM/Promotion of equal access to services"},null,null,null,null,null,null,null,null,null,null,null,null,null,null,null,null,null,null,null,null,null,null,null,"Government of Syria"]
["Other",null,null,null,null,null,null,null,null,null,null,null,null,null,null,null,"Internal","Administrative",{"$f":"B3_Risk_Category_Table[[#This Row],[B3. Risk Type:]]&\"/\"&B3_Risk_Category_Table[[#This Row],[B3. Risk Category]]","v":"Internal/Administrative"},null,null,null,null,null,null,null,"External","Aid Diversion",{"$f":"B4_Risk_Sub_Category_Table[[#This Row],[B4. Risk Type:]]&\"/\"&B4_Risk_Sub_Category_Table[[#This Row],[B4. Risk Category]]","v":"External/Aid Diversion"},"Interference in Implementation",{"$f":"B4_Risk_Sub_Category_Table[[#This Row],[B4. Risk Type:]]&\"/\"&B4_Risk_Sub_Category_Table[[#This Row],[B4. Risk Category]]&\"/\"&B4_Risk_Sub_Category_Table[[#This Row],[B4. Risk Sub-Category]]","v":"External/Aid Diversion/Interference in Implementation"},null,null,null,null,null,null,null,null,"External","Access","Denial of Access",{"$f":"B5_Risk_Sub_Category_Type_Table[[#This Row],[B5. Risk Type:]]&\"/\"&B5_Risk_Sub_Category_Type_Table[[#This Row],[B5. Risk Category]]&\"/\"&B5_Risk_Sub_Category_Type_Table[[#This Row],[B5. Risk Sub-Category]]","v":"External/Access/Denial of Access"},"Humanitarian workers' access to affected communities",{"$f":"B5_Risk_Sub_Category_Type_Table[[#This Row],[B5. Risk Type:]]&\"/\"&B5_Risk_Sub_Category_Type_Table[[#This Row],[B5. Risk Category]]&\"/\"&B5_Risk_Sub_Category_Type_Table[[#This Row],[B5. Risk Sub-Category]]&\"/\"&B5_Risk_Sub_Category_Type_Table[[#This Row],[B5. Risk Sub-Category Type]]","v":"External/Access/Denial of Access/Humanitarian workers' access to affected communities"},null,null,null,null,null,null,null,null,"Health",null,null,null,null,null,null,null,null,"Camp_Coordination_Management_CCCM","Promotion of participatory management structures",{"$f":"CC2_Cluster_Activity_Table[[#This Row],[C2. Cluster (affected):]]&\"/\"&CC2_Cluster_Activity_Table[[#This Row],[C2. Cluster Activity:]]","v":"Camp_Coordination_Management_CCCM/Promotion of participatory management structures"},null,null,null,null,null,null,null,null,null,null,null,null,null,null,null,null,null,null,null,null,null,null,null,"Hayat Tahrir Al Sham"]
[null,null,null,null,null,null,null,null,null,null,null,null,null,null,null,null,"Internal","Financial",{"$f":"B3_Risk_Category_Table[[#This Row],[B3. Risk Type:]]&\"/\"&B3_Risk_Category_Table[[#This Row],[B3. Risk Category]]","v":"Internal/Financial"},null,null,null,null,null,null,null,"External","Aid Diversion",{"$f":"B4_Risk_Sub_Category_Table[[#This Row],[B4. Risk Type:]]&\"/\"&B4_Risk_Sub_Category_Table[[#This Row],[B4. Risk Category]]","v":"External/Aid Diversion"},"Other",{"$f":"B4_Risk_Sub_Category_Table[[#This Row],[B4. Risk Type:]]&\"/\"&B4_Risk_Sub_Category_Table[[#This Row],[B4. Risk Category]]&\"/\"&B4_Risk_Sub_Category_Table[[#This Row],[B4. Risk Sub-Category]]","v":"External/Aid Diversion/Other"},null,null,null,null,null,null,null,null,"External","Access","Denial of Access",{"$f":"B5_Risk_Sub_Category_Type_Table[[#This Row],[B5. Risk Type:]]&\"/\"&B5_Risk_Sub_Category_Type_Table[[#This Row],[B5. Risk Category]]&\"/\"&B5_Risk_Sub_Category_Type_Table[[#This Row],[B5. Risk Sub-Category]]","v":"External/Access/Denial of Access"},"Humanitarian workers' access to affected infrastructure",{"$f":"B5_Risk_Sub_Category_Type_Table[[#This Row],[B5. Risk Type:]]&\"/\"&B5_Risk_Sub_Category_Type_Table[[#This Row],[B5. Risk Category]]&\"/\"&B5_Risk_Sub_Category_Type_Table[[#This Row],[B5. Risk Sub-Category]]&\"/\"&B5_Risk_Sub_Category_Type_Table[[#This Row],[B5. Risk Sub-Category Type]]","v":"External/Access/Denial of Access/Humanitarian workers' access to affected infrastructure"},null,null,null,null,null,null,null,null,"Logistics",null,null,null,null,null,null,null,null,"Camp_Coordination_Management_CCCM","Site renovations/infrastructure improvements",{"$f":"CC2_Cluster_Activity_Table[[#This Row],[C2. Cluster (affected):]]&\"/\"&CC2_Cluster_Activity_Table[[#This Row],[C2. Cluster Activity:]]","v":"Camp_Coordination_Management_CCCM/Site renovations/infrastructure improvements"},null,null,null,null,null,null,null,null,null,null,null,null,null,null,null,null,null,null,null,null,null,null,null,"ICCG"]
[null,null,null,null,null,null,null,null,null,null,null,null,null,null,null,null,"Internal","Human Resources",{"$f":"B3_Risk_Category_Table[[#This Row],[B3. Risk Type:]]&\"/\"&B3_Risk_Category_Table[[#This Row],[B3. Risk Category]]","v":"Internal/Human Resources"},null,null,null,null,null,null,null,"External","Environment",{"$f":"B4_Risk_Sub_Category_Table[[#This Row],[B4. Risk Type:]]&\"/\"&B4_Risk_Sub_Category_Table[[#This Row],[B4. Risk Category]]","v":"External/Environment"},"Climatic Conditions",{"$f":"B4_Risk_Sub_Category_Table[[#This Row],[B4. Risk Type:]]&\"/\"&B4_Risk_Sub_Category_Table[[#This Row],[B4. Risk Category]]&\"/\"&B4_Risk_Sub_Category_Table[[#This Row],[B4. Risk Sub-Category]]","v":"External/Environment/Climatic Conditions"},null,null,null,null,null,null,null,null,"External","Access","Denial of Access",{"$f":"B5_Risk_Sub_Category_Type_Table[[#This Row],[B5. Risk Type:]]&\"/\"&B5_Risk_Sub_Category_Type_Table[[#This Row],[B5. Risk Category]]&\"/\"&B5_Risk_Sub_Category_Type_Table[[#This Row],[B5. Risk Sub-Category]]","v":"External/Access/Denial of Access"},"Humanitarian workers' access to government officials",{"$f":"B5_Risk_Sub_Category_Type_Table[[#This Row],[B5. Risk Type:]]&\"/\"&B5_Risk_Sub_Category_Type_Table[[#This Row],[B5. Risk Category]]&\"/\"&B5_Risk_Sub_Category_Type_Table[[#This Row],[B5. Risk Sub-Category]]&\"/\"&B5_Risk_Sub_Category_Type_Table[[#This Row],[B5. Risk Sub-Category Type]]","v":"External/Access/Denial of Access/Humanitarian workers' access to government officials"},null,null,null,null,null,null,null,null,"Nutrition",null,null,null,null,null,null,null,null,"Camp_Coordination_Management_CCCM","Train emergency responders and IDP committees",{"$f":"CC2_Cluster_Activity_Table[[#This Row],[C2. Cluster (affected):]]&\"/\"&CC2_Cluster_Activity_Table[[#This Row],[C2. Cluster Activity:]]","v":"Camp_Coordination_Management_CCCM/Train emergency responders and IDP committees"},null,null,null,null,null,null,null,null,null,null,null,null,null,null,null,null,null,null,null,null,null,null,null,"IDPs Affairs Committee"]
[null,null,null,null,null,null,null,null,null,null,null,null,null,null,null,null,"Internal","Logistics Procurement",{"$f":"B3_Risk_Category_Table[[#This Row],[B3. Risk Type:]]&\"/\"&B3_Risk_Category_Table[[#This Row],[B3. Risk Category]]","v":"Internal/Logistics Procurement"},null,null,null,null,null,null,null,"External","Environment",{"$f":"B4_Risk_Sub_Category_Table[[#This Row],[B4. Risk Type:]]&\"/\"&B4_Risk_Sub_Category_Table[[#This Row],[B4. Risk Category]]","v":"External/Environment"},"Environmental Constraint",{"$f":"B4_Risk_Sub_Category_Table[[#This Row],[B4. Risk Type:]]&\"/\"&B4_Risk_Sub_Category_Table[[#This Row],[B4. Risk Category]]&\"/\"&B4_Risk_Sub_Category_Table[[#This Row],[B4. Risk Sub-Category]]","v":"External/Environment/Environmental Constraint"},null,null,null,null,null,null,null,null,"External","Access","Denial of Access",{"$f":"B5_Risk_Sub_Category_Type_Table[[#This Row],[B5. Risk Type:]]&\"/\"&B5_Risk_Sub_Category_Type_Table[[#This Row],[B5. Risk Category]]&\"/\"&B5_Risk_Sub_Category_Type_Table[[#This Row],[B5. Risk Sub-Category]]","v":"External/Access/Denial of Access"},"Humanitarian workers' access to information/data/reports",{"$f":"B5_Risk_Sub_Category_Type_Table[[#This Row],[B5. Risk Type:]]&\"/\"&B5_Risk_Sub_Category_Type_Table[[#This Row],[B5. Risk Category]]&\"/\"&B5_Risk_Sub_Category_Type_Table[[#This Row],[B5. Risk Sub-Category]]&\"/\"&B5_Risk_Sub_Category_Type_Table[[#This Row],[B5. Risk Sub-Category Type]]","v":"External/Access/Denial of Access/Humanitarian workers' access to information/data/reports"},null,null,null,null,null,null,null,null,"Protection",null,null,null,null,null,null,null,null,"Camp_Coordination_Management_CCCM","Training on camp governance or protection mainstreaming",{"$f":"CC2_Cluster_Activity_Table[[#This Row],[C2. Cluster (affected):]]&\"/\"&CC2_Cluster_Activity_Table[[#This Row],[C2. Cluster Activity:]]","v":"Camp_Coordination_Management_CCCM/Training on camp governance or protection mainstreaming"},null,null,null,null,null,null,null,null,null,null,null,null,null,null,null,null,null,null,null,null,null,null,null,"Implementing Partner(s)"]
[null,null,null,null,null,null,null,null,null,null,null,null,null,null,null,null,"Internal","Operational",{"$f":"B3_Risk_Category_Table[[#This Row],[B3. Risk Type:]]&\"/\"&B3_Risk_Category_Table[[#This Row],[B3. Risk Category]]","v":"Internal/Operational"},null,null,null,null,null,null,null,"External","Environment",{"$f":"B4_Risk_Sub_Category_Table[[#This Row],[B4. Risk Type:]]&\"/\"&B4_Risk_Sub_Category_Table[[#This Row],[B4. Risk Category]]","v":"External/Environment"},"Other",{"$f":"B4_Risk_Sub_Category_Table[[#This Row],[B4. Risk Type:]]&\"/\"&B4_Risk_Sub_Category_Table[[#This Row],[B4. Risk Category]]&\"/\"&B4_Risk_Sub_Category_Table[[#This Row],[B4. Risk Sub-Category]]","v":"External/Environment/Other"},null,null,null,null,null,null,null,null,"External","Access","Denial of Access",{"$f":"B5_Risk_Sub_Category_Type_Table[[#This Row],[B5. Risk Type:]]&\"/\"&B5_Risk_Sub_Category_Type_Table[[#This Row],[B5. Risk Category]]&\"/\"&B5_Risk_Sub_Category_Type_Table[[#This Row],[B5. Risk Sub-Category]]","v":"External/Access/Denial of Access"},"Manipulating community's perceptions regarding their actual needs",{"$f":"B5_Risk_Sub_Category_Type_Table[[#This Row],[B5. Risk Type:]]&\"/\"&B5_Risk_Sub_Category_Type_Table[[#This Row],[B5. Risk Category]]&\"/\"&B5_Risk_Sub_Category_Type_Table[[#This Row],[B5. Risk Sub-Category]]&\"/\"&B5_Risk_Sub_Category_Type_Table[[#This Row],[B5. Risk Sub-Category Type]]","v":"External/Access/Denial of Access/Manipulating community's perceptions regarding their actual needs"},null,null,null,null,null,null,null,null,"Protection_Housing_Land_Property",null,null,null,null,null,null,null,null,"Camp_Coordination_Management_CCCM","Other",{"$f":"CC2_Cluster_Activity_Table[[#This Row],[C2. Cluster (affected):]]&\"/\"&CC2_Cluster_Activity_Table[[#This Row],[C2. Cluster Activity:]]","v":"Camp_Coordination_Management_CCCM/Other"},null,null,null,null,null,null,null,null,null,null,null,null,null,null,null,null,null,null,null,null,null,null,null,"Local Camp Management"]
[null,null,null,null,null,null,null,null,null,null,null,null,null,null,null,null,"Internal","Programmatic",{"$f":"B3_Risk_Category_Table[[#This Row],[B3. Risk Type:]]&\"/\"&B3_Risk_Category_Table[[#This Row],[B3. Risk Category]]","v":"Internal/Programmatic"},null,null,null,null,null,null,null,"External","Quality, Accountability and AAP",{"$f":"B4_Risk_Sub_Category_Table[[#This Row],[B4. Risk Type:]]&\"/\"&B4_Risk_Sub_Category_Table[[#This Row],[B4. Risk Category]]","v":"External/Quality, Accountability and AAP"},"Accountability System and Practices",{"$f":"B4_Risk_Sub_Category_Table[[#This Row],[B4. Risk Type:]]&\"/\"&B4_Risk_Sub_Category_Table[[#This Row],[B4. Risk Category]]&\"/\"&B4_Risk_Sub_Category_Table[[#This Row],[B4. Risk Sub-Category]]","v":"External/Quality, Accountability and AAP/Accountability System and Practices"},null,null,null,null,null,null,null,null,"External","Access","Denial of Access",{"$f":"B5_Risk_Sub_Category_Type_Table[[#This Row],[B5. Risk Type:]]&\"/\"&B5_Risk_Sub_Category_Type_Table[[#This Row],[B5. Risk Category]]&\"/\"&B5_Risk_Sub_Category_Type_Table[[#This Row],[B5. Risk Sub-Category]]","v":"External/Access/Denial of Access"},"Prevention of use of services/assistance",{"$f":"B5_Risk_Sub_Category_Type_Table[[#This Row],[B5. Risk Type:]]&\"/\"&B5_Risk_Sub_Category_Type_Table[[#This Row],[B5. Risk Category]]&\"/\"&B5_Risk_Sub_Category_Type_Table[[#This Row],[B5. Risk Sub-Category]]&\"/\"&B5_Risk_Sub_Category_Type_Table[[#This Row],[B5. Risk Sub-Category Type]]","v":"External/Access/Denial of Access/Prevention of use of services/assistance"},null,null,null,null,null,null,null,null,"Protection_Child_Protection",null,null,null,null,null,null,null,null,"Coordination_Common_Services_CCS","Capacity building on coordination/humanitarian system",{"$f":"CC2_Cluster_Activity_Table[[#This Row],[C2. Cluster (affected):]]&\"/\"&CC2_Cluster_Activity_Table[[#This Row],[C2. Cluster Activity:]]","v":"Coordination_Common_Services_CCS/Capacity building on coordination/humanitarian system"},null,null,null,null,null,null,null,null,null,null,null,null,null,null,null,null,null,null,null,null,null,null,null,"Local Council"]
[null,null,null,null,null,null,null,null,null,null,null,null,null,null,null,null,"Internal","Other",{"$f":"B3_Risk_Category_Table[[#This Row],[B3. Risk Type:]]&\"/\"&B3_Risk_Category_Table[[#This Row],[B3. Risk Category]]","v":"Internal/Other"},null,null,null,null,null,null,null,"External","Quality, Accountability and AAP",{"$f":"B4_Risk_Sub_Category_Table[[#This Row],[B4. Risk Type:]]&\"/\"&B4_Risk_Sub_Category_Table[[#This Row],[B4. Risk Category]]","v":"External/Quality, Accountability and AAP"},"Accountability to Affected Populations",{"$f":"B4_Risk_Sub_Category_Table[[#This Row],[B4. Risk Type:]]&\"/\"&B4_Risk_Sub_Category_Table[[#This Row],[B4. Risk Category]]&\"/\"&B4_Risk_Sub_Category_Table[[#This Row],[B4. Risk Sub-Category]]","v":"External/Quality, Accountability and AAP/Accountability to Affected Populations"},null,null,null,null,null,null,null,null,"External","Access","Denial of Access",{"$f":"B5_Risk_Sub_Category_Type_Table[[#This Row],[B5. Risk Type:]]&\"/\"&B5_Risk_Sub_Category_Type_Table[[#This Row],[B5. Risk Category]]&\"/\"&B5_Risk_Sub_Category_Type_Table[[#This Row],[B5. Risk Sub-Category]]","v":"External/Access/Denial of Access"},"Other",{"$f":"B5_Risk_Sub_Category_Type_Table[[#This Row],[B5. Risk Type:]]&\"/\"&B5_Risk_Sub_Category_Type_Table[[#This Row],[B5. Risk Category]]&\"/\"&B5_Risk_Sub_Category_Type_Table[[#This Row],[B5. Risk Sub-Category]]&\"/\"&B5_Risk_Sub_Category_Type_Table[[#This Row],[B5. Risk Sub-Category Type]]","v":"External/Access/Denial of Access/Other"},null,null,null,null,null,null,null,null,"Protection_Gender_Based_Violence",null,null,null,null,null,null,null,null,"Coordination_Common_Services_CCS","Coordination of Humanitarian Response",{"$f":"CC2_Cluster_Activity_Table[[#This Row],[C2. Cluster (affected):]]&\"/\"&CC2_Cluster_Activity_Table[[#This Row],[C2. Cluster Activity:]]","v":"Coordination_Common_Services_CCS/Coordination of Humanitarian Response"},null,null,null,null,null,null,null,null,null,null,null,null,null,null,null,null,null,null,null,null,null,null,null,"National Army – FSA"]
[null,null,null,null,null,null,null,null,null,null,null,null,null,null,null,null,"Strategic","Change in Government Policy(s)",{"$f":"B3_Risk_Category_Table[[#This Row],[B3. Risk Type:]]&\"/\"&B3_Risk_Category_Table[[#This Row],[B3. Risk Category]]","v":"Strategic/Change in Government Policy(s)"},null,null,null,null,null,null,null,"External","Quality, Accountability and AAP",{"$f":"B4_Risk_Sub_Category_Table[[#This Row],[B4. Risk Type:]]&\"/\"&B4_Risk_Sub_Category_Table[[#This Row],[B4. Risk Category]]","v":"External/Quality, Accountability and AAP"},"Coordination Partnership",{"$f":"B4_Risk_Sub_Category_Table[[#This Row],[B4. Risk Type:]]&\"/\"&B4_Risk_Sub_Category_Table[[#This Row],[B4. Risk Category]]&\"/\"&B4_Risk_Sub_Category_Table[[#This Row],[B4. Risk Sub-Category]]","v":"External/Quality, Accountability and AAP/Coordination Partnership"},null,null,null,null,null,null,null,null,"External","Access","Poor Infrastructure",{"$f":"B5_Risk_Sub_Category_Type_Table[[#This Row],[B5. Risk Type:]]&\"/\"&B5_Risk_Sub_Category_Type_Table[[#This Row],[B5. Risk Category]]&\"/\"&B5_Risk_Sub_Category_Type_Table[[#This Row],[B5. Risk Sub-Category]]","v":"External/Access/Poor Infrastructure"},"Non-functional state of infrastructure",{"$f":"B5_Risk_Sub_Category_Type_Table[[#This Row],[B5. Risk Type:]]&\"/\"&B5_Risk_Sub_Category_Type_Table[[#This Row],[B5. Risk Category]]&\"/\"&B5_Risk_Sub_Category_Type_Table[[#This Row],[B5. Risk Sub-Category]]&\"/\"&B5_Risk_Sub_Category_Type_Table[[#This Row],[B5. Risk Sub-Category Type]]","v":"External/Access/Poor Infrastructure/Non-functional state of infrastructure"},null,null,null,null,null,null,null,null,"Protection_Mine_Action",null,null,null,null,null,null,null,null,"Coordination_Common_Services_CCS","General/inter-sector needs assessments and information gathering",{"$f":"CC2_Cluster_Activity_Table[[#This Row],[C2. Cluster (affected):]]&\"/\"&CC2_Cluster_Activity_Table[[#This Row],[C2. Cluster Activity:]]","v":"Coordination_Common_Services_CCS/General/inter-sector needs assessments and information gathering"},null,null,null,null,null,null,null,null,null,null,null,null,null,null,null,null,null,null,null,null,null,null,null,"National Liberation Front"]
[null,null,null,null,null,null,null,null,null,null,null,null,null,null,null,null,"Strategic","Demographic Change(s)",{"$f":"B3_Risk_Category_Table[[#This Row],[B3. Risk Type:]]&\"/\"&B3_Risk_Category_Table[[#This Row],[B3. Risk Category]]","v":"Strategic/Demographic Change(s)"},null,null,null,null,null,null,null,"External","Quality, Accountability and AAP",{"$f":"B4_Risk_Sub_Category_Table[[#This Row],[B4. Risk Type:]]&\"/\"&B4_Risk_Sub_Category_Table[[#This Row],[B4. Risk Category]]","v":"External/Quality, Accountability and AAP"},"Quality of Service Delivery",{"$f":"B4_Risk_Sub_Category_Table[[#This Row],[B4. Risk Type:]]&\"/\"&B4_Risk_Sub_Category_Table[[#This Row],[B4. Risk Category]]&\"/\"&B4_Risk_Sub_Category_Table[[#This Row],[B4. Risk Sub-Category]]","v":"External/Quality, Accountability and AAP/Quality of Service Delivery"},null,null,null,null,null,null,null,null,"External","Access","Poor Infrastructure",{"$f":"B5_Risk_Sub_Category_Type_Table[[#This Row],[B5. Risk Type:]]&\"/\"&B5_Risk_Sub_Category_Type_Table[[#This Row],[B5. Risk Category]]&\"/\"&B5_Risk_Sub_Category_Type_Table[[#This Row],[B5. Risk Sub-Category]]","v":"External/Access/Poor Infrastructure"},"Other",{"$f":"B5_Risk_Sub_Category_Type_Table[[#This Row],[B5. Risk Type:]]&\"/\"&B5_Risk_Sub_Category_Type_Table[[#This Row],[B5. Risk Category]]&\"/\"&B5_Risk_Sub_Category_Type_Table[[#This Row],[B5. Risk Sub-Category]]&\"/\"&B5_Risk_Sub_Category_Type_Table[[#This Row],[B5. Risk Sub-Category Type]]","v":"External/Access/Poor Infrastructure/Other"},null,null,null,null,null,null,null,null,"Refugee_Multi_Sector_RMS",null,null,null,null,null,null,null,null,"Coordination_Common_Services_CCS","Provision of security services for humanitarians",{"$f":"CC2_Cluster_Activity_Table[[#This Row],[C2. Cluster (affected):]]&\"/\"&CC2_Cluster_Activity_Table[[#This Row],[C2. Cluster Activity:]]","v":"Coordination_Common_Services_CCS/Provision of security services for humanitarians"},null,null,null,null,null,null,null,null,null,null,null,null,null,null,null,null,null,null,null,null,null,null,null,"NGOs Affairs Office"]
[null,null,null,null,null,null,null,null,null,null,null,null,null,null,null,null,"Strategic","Duty of Care",{"$f":"B3_Risk_Category_Table[[#This Row],[B3. Risk Type:]]&\"/\"&B3_Risk_Category_Table[[#This Row],[B3. Risk Category]]","v":"Strategic/Duty of Care"},null,null,null,null,null,null,null,"External","Quality, Accountability and AAP",{"$f":"B4_Risk_Sub_Category_Table[[#This Row],[B4. Risk Type:]]&\"/\"&B4_Risk_Sub_Category_Table[[#This Row],[B4. Risk Category]]","v":"External/Quality, Accountability and AAP"},"Other",{"$f":"B4_Risk_Sub_Category_Table[[#This Row],[B4. Risk Type:]]&\"/\"&B4_Risk_Sub_Category_Table[[#This Row],[B4. Risk Category]]&\"/\"&B4_Risk_Sub_Category_Table[[#This Row],[B4. Risk Sub-Category]]","v":"External/Quality, Accountability and AAP/Other"},null,null,null,null,null,null,null,null,"External","Access","Restriction of Movement",{"$f":"B5_Risk_Sub_Category_Type_Table[[#This Row],[B5. Risk Type:]]&\"/\"&B5_Risk_Sub_Category_Type_Table[[#This Row],[B5. Risk Category]]&\"/\"&B5_Risk_Sub_Category_Type_Table[[#This Row],[B5. Risk Sub-Category]]","v":"External/Access/Restriction of Movement"},"Bureaucratic impediments from local civilian authorities e.g. MoU",{"$f":"B5_Risk_Sub_Category_Type_Table[[#This Row],[B5. Risk Type:]]&\"/\"&B5_Risk_Sub_Category_Type_Table[[#This Row],[B5. Risk Category]]&\"/\"&B5_Risk_Sub_Category_Type_Table[[#This Row],[B5. Risk Sub-Category]]&\"/\"&B5_Risk_Sub_Category_Type_Table[[#This Row],[B5. Risk Sub-Category Type]]","v":"External/Access/Restriction of Movement/Bureaucratic impediments from local civilian authorities e.g. MoU"},null,null,null,null,null,null,null,null,"Return_Reintegration_Recovery_RRR",null,null,null,null,null,null,null,null,"Coordination_Common_Services_CCS","Strengthening/establishment of PSEA mechanisms",{"$f":"CC2_Cluster_Activity_Table[[#This Row],[C2. Cluster (affected):]]&\"/\"&CC2_Cluster_Activity_Table[[#This Row],[C2. Cluster Activity:]]","v":"Coordination_Common_Services_CCS/Strengthening/establishment of PSEA mechanisms"},null,null,null,null,null,null,null,null,null,null,null,null,null,null,null,null,null,null,null,null,null,null,null,"Syrian Interim Government"]
[null,null,null,null,null,null,null,null,null,null,null,null,null,null,null,null,"Strategic","Fluctuation of Exchange Rates",{"$f":"B3_Risk_Category_Table[[#This Row],[B3. Risk Type:]]&\"/\"&B3_Risk_Category_Table[[#This Row],[B3. Risk Category]]","v":"Strategic/Fluctuation of Exchange Rates"},null,null,null,null,null,null,null,"External","Safety & Security",{"$f":"B4_Risk_Sub_Category_Table[[#This Row],[B4. Risk Type:]]&\"/\"&B4_Risk_Sub_Category_Table[[#This Row],[B4. Risk Category]]","v":"External/Safety & Security"},"Safety Security of Affected Populations",{"$f":"B4_Risk_Sub_Category_Table[[#This Row],[B4. Risk Type:]]&\"/\"&B4_Risk_Sub_Category_Table[[#This Row],[B4. Risk Category]]&\"/\"&B4_Risk_Sub_Category_Table[[#This Row],[B4. Risk Sub-Category]]","v":"External/Safety & Security/Safety Security of Affected Populations"},null,null,null,null,null,null,null,null,"External","Access","Restriction of Movement",{"$f":"B5_Risk_Sub_Category_Type_Table[[#This Row],[B5. Risk Type:]]&\"/\"&B5_Risk_Sub_Category_Type_Table[[#This Row],[B5. Risk Category]]&\"/\"&B5_Risk_Sub_Category_Type_Table[[#This Row],[B5. Risk Sub-Category]]","v":"External/Access/Restriction of Movement"},"Checkpoints prohibiting/affecting movement",{"$f":"B5_Risk_Sub_Category_Type_Table[[#This Row],[B5. Risk Type:]]&\"/\"&B5_Risk_Sub_Category_Type_Table[[#This Row],[B5. Risk Category]]&\"/\"&B5_Risk_Sub_Category_Type_Table[[#This Row],[B5. Risk Sub-Category]]&\"/\"&B5_Risk_Sub_Category_Type_Table[[#This Row],[B5. Risk Sub-Category Type]]","v":"External/Access/Restriction of Movement/Checkpoints prohibiting/affecting movement"},null,null,null,null,null,null,null,null,"Water_Sanitation_Hygiene_WASH",null,null,null,null,null,null,null,null,"Coordination_Common_Services_CCS","Tracking of IDPs",{"$f":"CC2_Cluster_Activity_Table[[#This Row],[C2. Cluster (affected):]]&\"/\"&CC2_Cluster_Activity_Table[[#This Row],[C2. Cluster Activity:]]","v":"Coordination_Common_Services_CCS/Tracking of IDPs"},null,null,null,null,null,null,null,null,null,null,null,null,null,null,null,null,null,null,null,null,null,null,null,"Syrian Salvation Government"]
[null,null,null,null,null,null,null,null,null,null,null,null,null,null,null,null,"Strategic","GBV",{"$f":"B3_Risk_Category_Table[[#This Row],[B3. Risk Type:]]&\"/\"&B3_Risk_Category_Table[[#This Row],[B3. Risk Category]]","v":"Strategic/GBV"},null,null,null,null,null,null,null,"External","Safety & Security",{"$f":"B4_Risk_Sub_Category_Table[[#This Row],[B4. Risk Type:]]&\"/\"&B4_Risk_Sub_Category_Table[[#This Row],[B4. Risk Category]]","v":"External/Safety & Security"},"Safety Security of NGOs Personnel Assets Infrastructure Facilities",{"$f":"B4_Risk_Sub_Category_Table[[#This Row],[B4. Risk Type:]]&\"/\"&B4_Risk_Sub_Category_Table[[#This Row],[B4. Risk Category]]&\"/\"&B4_Risk_Sub_Category_Table[[#This Row],[B4. Risk Sub-Category]]","v":"External/Safety & Security/Safety Security of NGOs Personnel Assets Infrastructure Facilities"},null,null,null,null,null,null,null,null,"External","Access","Restriction of Movement",{"$f":"B5_Risk_Sub_Category_Type_Table[[#This Row],[B5. Risk Type:]]&\"/\"&B5_Risk_Sub_Category_Type_Table[[#This Row],[B5. Risk Category]]&\"/\"&B5_Risk_Sub_Category_Type_Table[[#This Row],[B5. Risk Sub-Category]]","v":"External/Access/Restriction of Movement"},"Curfew(s) imposed  by government or local civilian authorities",{"$f":"B5_Risk_Sub_Category_Type_Table[[#This Row],[B5. Risk Type:]]&\"/\"&B5_Risk_Sub_Category_Type_Table[[#This Row],[B5. Risk Category]]&\"/\"&B5_Risk_Sub_Category_Type_Table[[#This Row],[B5. Risk Sub-Category]]&\"/\"&B5_Risk_Sub_Category_Type_Table[[#This Row],[B5. Risk Sub-Category Type]]","v":"External/Access/Restriction of Movement/Curfew(s) imposed  by government or local civilian authorities"},null,null,null,null,null,null,null,null,"Multi_Cluster",null,null,null,null,null,null,null,null,"Coordination_Common_Services_CCS","Other",{"$f":"CC2_Cluster_Activity_Table[[#This Row],[C2. Cluster (affected):]]&\"/\"&CC2_Cluster_Activity_Table[[#This Row],[C2. Cluster Activity:]]","v":"Coordination_Common_Services_CCS/Other"},null,null,null,null,null,null,null,null,null,null,null,null,null,null,null,null,null,null,null,null,null,null,null,"Turkish Entities"]
[null,null,null,null,null,null,null,null,null,null,null,null,null,null,null,null,"Strategic","Human Rights Violations",{"$f":"B3_Risk_Category_Table[[#This Row],[B3. Risk Type:]]&\"/\"&B3_Risk_Category_Table[[#This Row],[B3. Risk Category]]","v":"Strategic/Human Rights Violations"},null,null,null,null,null,null,null,"External","Safety & Security",{"$f":"B4_Risk_Sub_Category_Table[[#This Row],[B4. Risk Type:]]&\"/\"&B4_Risk_Sub_Category_Table[[#This Row],[B4. Risk Category]]","v":"External/Safety & Security"},"Other",{"$f":"B4_Risk_Sub_Category_Table[[#This Row],[B4. Risk Type:]]&\"/\"&B4_Risk_Sub_Category_Table[[#This Row],[B4. Risk Category]]&\"/\"&B4_Risk_Sub_Category_Table[[#This Row],[B4. Risk Sub-Category]]","v":"External/Safety & Security/Other"},null,null,null,null,null,null,null,null,"External","Access","Restriction of Movement",{"$f":"B5_Risk_Sub_Category_Type_Table[[#This Row],[B5. Risk Type:]]&\"/\"&B5_Risk_Sub_Category_Type_Table[[#This Row],[B5. Risk Category]]&\"/\"&B5_Risk_Sub_Category_Type_Table[[#This Row],[B5. Risk Sub-Category]]","v":"External/Access/Restriction of Movement"},"Delay/denial for staff crossing list at border crossings",{"$f":"B5_Risk_Sub_Category_Type_Table[[#This Row],[B5. Risk Type:]]&\"/\"&B5_Risk_Sub_Category_Type_Table[[#This Row],[B5. Risk Category]]&\"/\"&B5_Risk_Sub_Category_Type_Table[[#This Row],[B5. Risk Sub-Category]]&\"/\"&B5_Risk_Sub_Category_Type_Table[[#This Row],[B5. Risk Sub-Category Type]]","v":"External/Access/Restriction of Movement/Delay/denial for staff crossing list at border crossings"},null,null,null,null,null,null,null,null,null,null,null,null,null,null,null,null,null,"Early_Recovery","Basic housing repair",{"$f":"CC2_Cluster_Activity_Table[[#This Row],[C2. Cluster (affected):]]&\"/\"&CC2_Cluster_Activity_Table[[#This Row],[C2. Cluster Activity:]]","v":"Early_Recovery/Basic housing repair"},null,null,null,null,null,null,null,null,null,null,null,null,null,null,null,null,null,null,null,null,null,null,null,"Unknown"]
[null,null,null,null,null,null,null,null,null,null,null,null,null,null,null,null,"Strategic","Laws/Regulations Imposed Requirements",{"$f":"B3_Risk_Category_Table[[#This Row],[B3. Risk Type:]]&\"/\"&B3_Risk_Category_Table[[#This Row],[B3. Risk Category]]","v":"Strategic/Laws/Regulations Imposed Requirements"},null,null,null,null,null,null,null,"External","Other",{"$f":"B4_Risk_Sub_Category_Table[[#This Row],[B4. Risk Type:]]&\"/\"&B4_Risk_Sub_Category_Table[[#This Row],[B4. Risk Category]]","v":"External/Other"},"Other",{"$f":"B4_Risk_Sub_Category_Table[[#This Row],[B4. Risk Type:]]&\"/\"&B4_Risk_Sub_Category_Table[[#This Row],[B4. Risk Category]]&\"/\"&B4_Risk_Sub_Category_Table[[#This Row],[B4. Risk Sub-Category]]","v":"External/Other/Other"},null,null,null,null,null,null,null,null,"External","Access","Restriction of Movement",{"$f":"B5_Risk_Sub_Category_Type_Table[[#This Row],[B5. Risk Type:]]&\"/\"&B5_Risk_Sub_Category_Type_Table[[#This Row],[B5. Risk Category]]&\"/\"&B5_Risk_Sub_Category_Type_Table[[#This Row],[B5. Risk Sub-Category]]","v":"External/Access/Restriction of Movement"},"Delay/denial in official registration of a humanitarian organization in Turkey",{"$f":"B5_Risk_Sub_Category_Type_Table[[#This Row],[B5. Risk Type:]]&\"/\"&B5_Risk_Sub_Category_Type_Table[[#This Row],[B5. Risk Category]]&\"/\"&B5_Risk_Sub_Category_Type_Table[[#This Row],[B5. Risk Sub-Category]]&\"/\"&B5_Risk_Sub_Category_Type_Table[[#This Row],[B5. Risk Sub-Category Type]]","v":"External/Access/Restriction of Movement/Delay/denial in official registration of a humanitarian organization in Turkey"},null,null,null,null,null,null,null,null,null,null,null,null,null,null,null,null,null,"Early_Recovery","Basic needs support",{"$f":"CC2_Cluster_Activity_Table[[#This Row],[C2. Cluster (affected):]]&\"/\"&CC2_Cluster_Activity_Table[[#This Row],[C2. Cluster Activity:]]","v":"Early_Recovery/Basic needs support"},null,null,null,null,null,null,null,null,null,null,null,null,null,null,null,null,null,null,null,null,null,null,null,"Other"]
[null,null,null,null,null,null,null,null,null,null,null,null,null,null,null,null,"Strategic","Major Macroeconomic Shifts",{"$f":"B3_Risk_Category_Table[[#This Row],[B3. Risk Type:]]&\"/\"&B3_Risk_Category_Table[[#This Row],[B3. Risk Category]]","v":"Strategic/Major Macroeconomic Shifts"},null,null,null,null,null,null,null,"Internal","Administrative",{"$f":"B4_Risk_Sub_Category_Table[[#This Row],[B4. Risk Type:]]&\"/\"&B4_Risk_Sub_Category_Table[[#This Row],[B4. Risk Category]]","v":"Internal/Administrative"},"Absence of Code of Conduct",{"$f":"B4_Risk_Sub_Category_Table[[#This Row],[B4. Risk Type:]]&\"/\"&B4_Risk_Sub_Category_Table[[#This Row],[B4. Risk Category]]&\"/\"&B4_Risk_Sub_Category_Table[[#This Row],[B4. Risk Sub-Category]]","v":"Internal/Administrative/Absence of Code of Conduct"},null,null,null,null,null,null,null,null,"External","Access","Restriction of Movement",{"$f":"B5_Risk_Sub_Category_Type_Table[[#This Row],[B5. Risk Type:]]&\"/\"&B5_Risk_Sub_Category_Type_Table[[#This Row],[B5. Risk Category]]&\"/\"&B5_Risk_Sub_Category_Type_Table[[#This Row],[B5. Risk Sub-Category]]","v":"External/Access/Restriction of Movement"},"Delay/denial of permission to operate in NW Syria",{"$f":"B5_Risk_Sub_Category_Type_Table[[#This Row],[B5. Risk Type:]]&\"/\"&B5_Risk_Sub_Category_Type_Table[[#This Row],[B5. Risk Category]]&\"/\"&B5_Risk_Sub_Category_Type_Table[[#This Row],[B5. Risk Sub-Category]]&\"/\"&B5_Risk_Sub_Category_Type_Table[[#This Row],[B5. Risk Sub-Category Type]]","v":"External/Access/Restriction of Movement/Delay/denial of permission to operate in NW Syria"},null,null,null,null,null,null,null,null,null,null,null,null,null,null,null,null,null,"Early_Recovery","Capacity and equipment support to public service providers",{"$f":"CC2_Cluster_Activity_Table[[#This Row],[C2. Cluster (affected):]]&\"/\"&CC2_Cluster_Activity_Table[[#This Row],[C2. Cluster Activity:]]","v":"Early_Recovery/Capacity and equipment support to public service providers"}]
[null,null,null,null,null,null,null,null,null,null,null,null,null,null,null,null,"Strategic","Major Shift in Power",{"$f":"B3_Risk_Category_Table[[#This Row],[B3. Risk Type:]]&\"/\"&B3_Risk_Category_Table[[#This Row],[B3. Risk Category]]","v":"Strategic/Major Shift in Power"},null,null,null,null,null,null,null,"Internal","Administrative",{"$f":"B4_Risk_Sub_Category_Table[[#This Row],[B4. Risk Type:]]&\"/\"&B4_Risk_Sub_Category_Table[[#This Row],[B4. Risk Category]]","v":"Internal/Administrative"},"Lack of Proper and/or Insufficient Policies/Systems",{"$f":"B4_Risk_Sub_Category_Table[[#This Row],[B4. Risk Type:]]&\"/\"&B4_Risk_Sub_Category_Table[[#This Row],[B4. Risk Category]]&\"/\"&B4_Risk_Sub_Category_Table[[#This Row],[B4. Risk Sub-Category]]","v":"Internal/Administrative/Lack of Proper and/or Insufficient Policies/Systems"},null,null,null,null,null,null,null,null,"External","Access","Restriction of Movement",{"$f":"B5_Risk_Sub_Category_Type_Table[[#This Row],[B5. Risk Type:]]&\"/\"&B5_Risk_Sub_Category_Type_Table[[#This Row],[B5. Risk Category]]&\"/\"&B5_Risk_Sub_Category_Type_Table[[#This Row],[B5. Risk Sub-Category]]","v":"External/Access/Restriction of Movement"},"Demonstrations by local communities",{"$f":"B5_Risk_Sub_Category_Type_Table[[#This Row],[B5. Risk Type:]]&\"/\"&B5_Risk_Sub_Category_Type_Table[[#This Row],[B5. Risk Category]]&\"/\"&B5_Risk_Sub_Category_Type_Table[[#This Row],[B5. Risk Sub-Category]]&\"/\"&B5_Risk_Sub_Category_Type_Table[[#This Row],[B5. Risk Sub-Category Type]]","v":"External/Access/Restriction of Movement/Demonstrations by local communities"},null,null,null,null,null,null,null,null,null,null,null,null,null,null,null,null,null,"Early_Recovery","Cash assistance",{"$f":"CC2_Cluster_Activity_Table[[#This Row],[C2. Cluster (affected):]]&\"/\"&CC2_Cluster_Activity_Table[[#This Row],[C2. Cluster Activity:]]","v":"Early_Recovery/Cash assistance"}]
[null,null,null,null,null,null,null,null,null,null,null,null,null,null,null,null,"Strategic","Manmade Disasters/Crisis",{"$f":"B3_Risk_Category_Table[[#This Row],[B3. Risk Type:]]&\"/\"&B3_Risk_Category_Table[[#This Row],[B3. Risk Category]]","v":"Strategic/Manmade Disasters/Crisis"},null,null,null,null,null,null,null,"Internal","Administrative",{"$f":"B4_Risk_Sub_Category_Table[[#This Row],[B4. Risk Type:]]&\"/\"&B4_Risk_Sub_Category_Table[[#This Row],[B4. Risk Category]]","v":"Internal/Administrative"},"Lack of Proper and/or Insufficient Standard Operating Procedures",{"$f":"B4_Risk_Sub_Category_Table[[#This Row],[B4. Risk Type:]]&\"/\"&B4_Risk_Sub_Category_Table[[#This Row],[B4. Risk Category]]&\"/\"&B4_Risk_Sub_Category_Table[[#This Row],[B4. Risk Sub-Category]]","v":"Internal/Administrative/Lack of Proper and/or Insufficient Standard Operating Procedures"},null,null,null,null,null,null,null,null,"External","Access","Restriction of Movement",{"$f":"B5_Risk_Sub_Category_Type_Table[[#This Row],[B5. Risk Type:]]&\"/\"&B5_Risk_Sub_Category_Type_Table[[#This Row],[B5. Risk Category]]&\"/\"&B5_Risk_Sub_Category_Type_Table[[#This Row],[B5. Risk Sub-Category]]","v":"External/Access/Restriction of Movement"},"Fear of/presence of IEDs/UXOs/mines in the area",{"$f":"B5_Risk_Sub_Category_Type_Table[[#This Row],[B5. Risk Type:]]&\"/\"&B5_Risk_Sub_Category_Type_Table[[#This Row],[B5. Risk Category]]&\"/\"&B5_Risk_Sub_Category_Type_Table[[#This Row],[B5. Risk Sub-Category]]&\"/\"&B5_Risk_Sub_Category_Type_Table[[#This Row],[B5. Risk Sub-Category Type]]","v":"External/Access/Restriction of Movement/Fear of/presence of IEDs/UXOs/mines in the area"},null,null,null,null,null,null,null,null,null,null,null,null,null,null,null,null,null,"Early_Recovery","Civic engagement initiatives",{"$f":"CC2_Cluster_Activity_Table[[#This Row],[C2. Cluster (affected):]]&\"/\"&CC2_Cluster_Activity_Table[[#This Row],[C2. Cluster Activity:]]","v":"Early_Recovery/Civic engagement initiatives"}]
[null,null,null,null,null,null,null,null,null,null,null,null,null,null,null,null,"Strategic","Natural Disasters",{"$f":"B3_Risk_Category_Table[[#This Row],[B3. Risk Type:]]&\"/\"&B3_Risk_Category_Table[[#This Row],[B3. Risk Category]]","v":"Strategic/Natural Disasters"},null,null,null,null,null,null,null,"Internal","Administrative",{"$f":"B4_Risk_Sub_Category_Table[[#This Row],[B4. Risk Type:]]&\"/\"&B4_Risk_Sub_Category_Table[[#This Row],[B4. Risk Category]]","v":"Internal/Administrative"},"Lack of Proper Reporting and Documentation Systems",{"$f":"B4_Risk_Sub_Category_Table[[#This Row],[B4. Risk Type:]]&\"/\"&B4_Risk_Sub_Category_Table[[#This Row],[B4. Risk Category]]&\"/\"&B4_Risk_Sub_Category_Table[[#This Row],[B4. Risk Sub-Category]]","v":"Internal/Administrative/Lack of Proper Reporting and Documentation Systems"},null,null,null,null,null,null,null,null,"External","Access","Restriction of Movement",{"$f":"B5_Risk_Sub_Category_Type_Table[[#This Row],[B5. Risk Type:]]&\"/\"&B5_Risk_Sub_Category_Type_Table[[#This Row],[B5. Risk Category]]&\"/\"&B5_Risk_Sub_Category_Type_Table[[#This Row],[B5. Risk Sub-Category]]","v":"External/Access/Restriction of Movement"},"Military Operations",{"$f":"B5_Risk_Sub_Category_Type_Table[[#This Row],[B5. Risk Type:]]&\"/\"&B5_Risk_Sub_Category_Type_Table[[#This Row],[B5. Risk Category]]&\"/\"&B5_Risk_Sub_Category_Type_Table[[#This Row],[B5. Risk Sub-Category]]&\"/\"&B5_Risk_Sub_Category_Type_Table[[#This Row],[B5. Risk Sub-Category Type]]","v":"External/Access/Restriction of Movement/Military Operations"},null,null,null,null,null,null,null,null,null,null,null,null,null,null,null,null,null,"Early_Recovery","Creation of short-term work",{"$f":"CC2_Cluster_Activity_Table[[#This Row],[C2. Cluster (affected):]]&\"/\"&CC2_Cluster_Activity_Table[[#This Row],[C2. Cluster Activity:]]","v":"Early_Recovery/Creation of short-term work"}]
[null,null,null,null,null,null,null,null,null,null,null,null,null,null,null,null,"Strategic","Obsolescence of Current Systems",{"$f":"B3_Risk_Category_Table[[#This Row],[B3. Risk Type:]]&\"/\"&B3_Risk_Category_Table[[#This Row],[B3. Risk Category]]","v":"Strategic/Obsolescence of Current Systems"},null,null,null,null,null,null,null,"Internal","Administrative",{"$f":"B4_Risk_Sub_Category_Table[[#This Row],[B4. Risk Type:]]&\"/\"&B4_Risk_Sub_Category_Table[[#This Row],[B4. Risk Category]]","v":"Internal/Administrative"},"Poor Administrative Efficiency including Resource Management",{"$f":"B4_Risk_Sub_Category_Table[[#This Row],[B4. Risk Type:]]&\"/\"&B4_Risk_Sub_Category_Table[[#This Row],[B4. Risk Category]]&\"/\"&B4_Risk_Sub_Category_Table[[#This Row],[B4. Risk Sub-Category]]","v":"Internal/Administrative/Poor Administrative Efficiency including Resource Management"},null,null,null,null,null,null,null,null,"External","Access","Restriction of Movement",{"$f":"B5_Risk_Sub_Category_Type_Table[[#This Row],[B5. Risk Type:]]&\"/\"&B5_Risk_Sub_Category_Type_Table[[#This Row],[B5. Risk Category]]&\"/\"&B5_Risk_Sub_Category_Type_Table[[#This Row],[B5. Risk Sub-Category]]","v":"External/Access/Restriction of Movement"},"New regulation for vehicle registration",{"$f":"B5_Risk_Sub_Category_Type_Table[[#This Row],[B5. Risk Type:]]&\"/\"&B5_Risk_Sub_Category_Type_Table[[#This Row],[B5. Risk Category]]&\"/\"&B5_Risk_Sub_Category_Type_Table[[#This Row],[B5. Risk Sub-Category]]&\"/\"&B5_Risk_Sub_Category_Type_Table[[#This Row],[B5. Risk Sub-Category Type]]","v":"External/Access/Restriction of Movement/New regulation for vehicle registration"},null,null,null,null,null,null,null,null,null,null,null,null,null,null,null,null,null,"Early_Recovery","IDP integration",{"$f":"CC2_Cluster_Activity_Table[[#This Row],[C2. Cluster (affected):]]&\"/\"&CC2_Cluster_Activity_Table[[#This Row],[C2. Cluster Activity:]]","v":"Early_Recovery/IDP integration"}]
[null,null,null,null,null,null,null,null,null,null,null,null,null,null,null,null,"Strategic","Political Disaster/Crisis",{"$f":"B3_Risk_Category_Table[[#This Row],[B3. Risk Type:]]&\"/\"&B3_Risk_Category_Table[[#This Row],[B3. Risk Category]]","v":"Strategic/Political Disaster/Crisis"},null,null,null,null,null,null,null,"Internal","Administrative",{"$f":"B4_Risk_Sub_Category_Table[[#This Row],[B4. Risk Type:]]&\"/\"&B4_Risk_Sub_Category_Table[[#This Row],[B4. Risk Category]]","v":"Internal/Administrative"},"Poor Inventory Handling",{"$f":"B4_Risk_Sub_Category_Table[[#This Row],[B4. Risk Type:]]&\"/\"&B4_Risk_Sub_Category_Table[[#This Row],[B4. Risk Category]]&\"/\"&B4_Risk_Sub_Category_Table[[#This Row],[B4. Risk Sub-Category]]","v":"Internal/Administrative/Poor Inventory Handling"},null,null,null,null,null,null,null,null,"External","Access","Restriction of Movement",{"$f":"B5_Risk_Sub_Category_Type_Table[[#This Row],[B5. Risk Type:]]&\"/\"&B5_Risk_Sub_Category_Type_Table[[#This Row],[B5. Risk Category]]&\"/\"&B5_Risk_Sub_Category_Type_Table[[#This Row],[B5. Risk Sub-Category]]","v":"External/Access/Restriction of Movement"},"Ongoing Hostilities",{"$f":"B5_Risk_Sub_Category_Type_Table[[#This Row],[B5. Risk Type:]]&\"/\"&B5_Risk_Sub_Category_Type_Table[[#This Row],[B5. Risk Category]]&\"/\"&B5_Risk_Sub_Category_Type_Table[[#This Row],[B5. Risk Sub-Category]]&\"/\"&B5_Risk_Sub_Category_Type_Table[[#This Row],[B5. Risk Sub-Category Type]]","v":"External/Access/Restriction of Movement/Ongoing Hostilities"},null,null,null,null,null,null,null,null,null,null,null,null,null,null,null,null,null,"Early_Recovery","Entrepreneurship support",{"$f":"CC2_Cluster_Activity_Table[[#This Row],[C2. Cluster (affected):]]&\"/\"&CC2_Cluster_Activity_Table[[#This Row],[C2. Cluster Activity:]]","v":"Early_Recovery/Entrepreneurship support"}]
[null,null,null,null,null,null,null,null,null,null,null,null,null,null,null,null,"Strategic","Political Instability",{"$f":"B3_Risk_Category_Table[[#This Row],[B3. Risk Type:]]&\"/\"&B3_Risk_Category_Table[[#This Row],[B3. Risk Category]]","v":"Strategic/Political Instability"},null,null,null,null,null,null,null,"Internal","Administrative",{"$f":"B4_Risk_Sub_Category_Table[[#This Row],[B4. Risk Type:]]&\"/\"&B4_Risk_Sub_Category_Table[[#This Row],[B4. Risk Category]]","v":"Internal/Administrative"},"Quality, Accountability and AAP",{"$f":"B4_Risk_Sub_Category_Table[[#This Row],[B4. Risk Type:]]&\"/\"&B4_Risk_Sub_Category_Table[[#This Row],[B4. Risk Category]]&\"/\"&B4_Risk_Sub_Category_Table[[#This Row],[B4. Risk Sub-Category]]","v":"Internal/Administrative/Quality, Accountability and AAP"},null,null,null,null,null,null,null,null,"External","Access","Restriction of Movement",{"$f":"B5_Risk_Sub_Category_Type_Table[[#This Row],[B5. Risk Type:]]&\"/\"&B5_Risk_Sub_Category_Type_Table[[#This Row],[B5. Risk Category]]&\"/\"&B5_Risk_Sub_Category_Type_Table[[#This Row],[B5. Risk Sub-Category]]","v":"External/Access/Restriction of Movement"},"Restriction of Movement (cross border)",{"$f":"B5_Risk_Sub_Category_Type_Table[[#This Row],[B5. Risk Type:]]&\"/\"&B5_Risk_Sub_Category_Type_Table[[#This Row],[B5. Risk Category]]&\"/\"&B5_Risk_Sub_Category_Type_Table[[#This Row],[B5. Risk Sub-Category]]&\"/\"&B5_Risk_Sub_Category_Type_Table[[#This Row],[B5. Risk Sub-Category Type]]","v":"External/Access/Restriction of Movement/Restriction of Movement (cross border)"},null,null,null,null,null,null,null,null,null,null,null,null,null,null,null,null,null,"Early_Recovery","Rehabilitation of basic utilities",{"$f":"CC2_Cluster_Activity_Table[[#This Row],[C2. Cluster (affected):]]&\"/\"&CC2_Cluster_Activity_Table[[#This Row],[C2. Cluster Activity:]]","v":"Early_Recovery/Rehabilitation of basic utilities"}]
[null,null,null,null,null,null,null,null,null,null,null,null,null,null,null,null,"Strategic","PSEA",{"$f":"B3_Risk_Category_Table[[#This Row],[B3. Risk Type:]]&\"/\"&B3_Risk_Category_Table[[#This Row],[B3. Risk Category]]","v":"Strategic/PSEA"},null,null,null,null,null,null,null,"Internal","Administrative",{"$f":"B4_Risk_Sub_Category_Table[[#This Row],[B4. Risk Type:]]&\"/\"&B4_Risk_Sub_Category_Table[[#This Row],[B4. Risk Category]]","v":"Internal/Administrative"},"Other",{"$f":"B4_Risk_Sub_Category_Table[[#This Row],[B4. Risk Type:]]&\"/\"&B4_Risk_Sub_Category_Table[[#This Row],[B4. Risk Category]]&\"/\"&B4_Risk_Sub_Category_Table[[#This Row],[B4. Risk Sub-Category]]","v":"Internal/Administrative/Other"},null,null,null,null,null,null,null,null,"External","Access","Restriction of Movement",{"$f":"B5_Risk_Sub_Category_Type_Table[[#This Row],[B5. Risk Type:]]&\"/\"&B5_Risk_Sub_Category_Type_Table[[#This Row],[B5. Risk Category]]&\"/\"&B5_Risk_Sub_Category_Type_Table[[#This Row],[B5. Risk Sub-Category]]","v":"External/Access/Restriction of Movement"},"Restriction of Movement (within NW Syria)",{"$f":"B5_Risk_Sub_Category_Type_Table[[#This Row],[B5. Risk Type:]]&\"/\"&B5_Risk_Sub_Category_Type_Table[[#This Row],[B5. Risk Category]]&\"/\"&B5_Risk_Sub_Category_Type_Table[[#This Row],[B5. Risk Sub-Category]]&\"/\"&B5_Risk_Sub_Category_Type_Table[[#This Row],[B5. Risk Sub-Category Type]]","v":"External/Access/Restriction of Movement/Restriction of Movement (within NW Syria)"},null,null,null,null,null,null,null,null,null,null,null,null,null,null,null,null,null,"Early_Recovery","Rehabilitation of education/health facilities or other social infrastructure",{"$f":"CC2_Cluster_Activity_Table[[#This Row],[C2. Cluster (affected):]]&\"/\"&CC2_Cluster_Activity_Table[[#This Row],[C2. Cluster Activity:]]","v":"Early_Recovery/Rehabilitation of education/health facilities or other social infrastructure"}]
[null,null,null,null,null,null,null,null,null,null,null,null,null,null,null,null,"Strategic","Sudden Onset of Large Scale Emergency",{"$f":"B3_Risk_Category_Table[[#This Row],[B3. Risk Type:]]&\"/\"&B3_Risk_Category_Table[[#This Row],[B3. Risk Category]]","v":"Strategic/Sudden Onset of Large Scale Emergency"},null,null,null,null,null,null,null,"Internal","Financial",{"$f":"B4_Risk_Sub_Category_Table[[#This Row],[B4. Risk Type:]]&\"/\"&B4_Risk_Sub_Category_Table[[#This Row],[B4. Risk Category]]","v":"Internal/Financial"},"Absence of/Improper Segregation of Duties",{"$f":"B4_Risk_Sub_Category_Table[[#This Row],[B4. Risk Type:]]&\"/\"&B4_Risk_Sub_Category_Table[[#This Row],[B4. Risk Category]]&\"/\"&B4_Risk_Sub_Category_Table[[#This Row],[B4. Risk Sub-Category]]","v":"Internal/Financial/Absence of/Improper Segregation of Duties"},null,null,null,null,null,null,null,null,"External","Access","Restriction of Movement",{"$f":"B5_Risk_Sub_Category_Type_Table[[#This Row],[B5. Risk Type:]]&\"/\"&B5_Risk_Sub_Category_Type_Table[[#This Row],[B5. Risk Category]]&\"/\"&B5_Risk_Sub_Category_Type_Table[[#This Row],[B5. Risk Sub-Category]]","v":"External/Access/Restriction of Movement"},"Restriction on movement of female staff, and access to affected females in the population",{"$f":"B5_Risk_Sub_Category_Type_Table[[#This Row],[B5. Risk Type:]]&\"/\"&B5_Risk_Sub_Category_Type_Table[[#This Row],[B5. Risk Category]]&\"/\"&B5_Risk_Sub_Category_Type_Table[[#This Row],[B5. Risk Sub-Category]]&\"/\"&B5_Risk_Sub_Category_Type_Table[[#This Row],[B5. Risk Sub-Category Type]]","v":"External/Access/Restriction of Movement/Restriction on movement of female staff, and access to affected females in the population"},null,null,null,null,null,null,null,null,null,null,null,null,null,null,null,null,null,"Early_Recovery","Rehabilitation/repair of economic infrastructure",{"$f":"CC2_Cluster_Activity_Table[[#This Row],[C2. Cluster (affected):]]&\"/\"&CC2_Cluster_Activity_Table[[#This Row],[C2. Cluster Activity:]]","v":"Early_Recovery/Rehabilitation/repair of economic infrastructure"}]
[null,null,null,null,null,null,null,null,null,null,null,null,null,null,null,null,"Strategic","Under Engagement with Government due to Lack of Understanding of the Cross-border Operation",{"$f":"B3_Risk_Category_Table[[#This Row],[B3. Risk Type:]]&\"/\"&B3_Risk_Category_Table[[#This Row],[B3. Risk Category]]","v":"Strategic/Under Engagement with Government due to Lack of Understanding of the Cross-border Operation"},null,null,null,null,null,null,null,"Internal","Financial",{"$f":"B4_Risk_Sub_Category_Table[[#This Row],[B4. Risk Type:]]&\"/\"&B4_Risk_Sub_Category_Table[[#This Row],[B4. Risk Category]]","v":"Internal/Financial"},"Audit Quality of Reports Not Optimal and to Expected Standards",{"$f":"B4_Risk_Sub_Category_Table[[#This Row],[B4. Risk Type:]]&\"/\"&B4_Risk_Sub_Category_Table[[#This Row],[B4. Risk Category]]&\"/\"&B4_Risk_Sub_Category_Table[[#This Row],[B4. Risk Sub-Category]]","v":"Internal/Financial/Audit Quality of Reports Not Optimal and to Expected Standards"},null,null,null,null,null,null,null,null,"External","Access","Restriction of Movement",{"$f":"B5_Risk_Sub_Category_Type_Table[[#This Row],[B5. Risk Type:]]&\"/\"&B5_Risk_Sub_Category_Type_Table[[#This Row],[B5. Risk Category]]&\"/\"&B5_Risk_Sub_Category_Type_Table[[#This Row],[B5. Risk Sub-Category]]","v":"External/Access/Restriction of Movement"},"Other",{"$f":"B5_Risk_Sub_Category_Type_Table[[#This Row],[B5. Risk Type:]]&\"/\"&B5_Risk_Sub_Category_Type_Table[[#This Row],[B5. Risk Category]]&\"/\"&B5_Risk_Sub_Category_Type_Table[[#This Row],[B5. Risk Sub-Category]]&\"/\"&B5_Risk_Sub_Category_Type_Table[[#This Row],[B5. Risk Sub-Category Type]]","v":"External/Access/Restriction of Movement/Other"},null,null,null,null,null,null,null,null,null,null,null,null,null,null,null,null,null,"Early_Recovery","Removal of debris and waste",{"$f":"CC2_Cluster_Activity_Table[[#This Row],[C2. Cluster (affected):]]&\"/\"&CC2_Cluster_Activity_Table[[#This Row],[C2. Cluster Activity:]]","v":"Early_Recovery/Removal of debris and waste"}]
[null,null,null,null,null,null,null,null,null,null,null,null,null,null,null,null,"Strategic","Other",{"$f":"B3_Risk_Category_Table[[#This Row],[B3. Risk Type:]]&\"/\"&B3_Risk_Category_Table[[#This Row],[B3. Risk Category]]","v":"Strategic/Other"},null,null,null,null,null,null,null,"Internal","Financial",{"$f":"B4_Risk_Sub_Category_Table[[#This Row],[B4. Risk Type:]]&\"/\"&B4_Risk_Sub_Category_Table[[#This Row],[B4. Risk Category]]","v":"Internal/Financial"},"Delays of Disbursement/Liquidation of Funds due to poor/improper Internal Payment Procedures",{"$f":"B4_Risk_Sub_Category_Table[[#This Row],[B4. Risk Type:]]&\"/\"&B4_Risk_Sub_Category_Table[[#This Row],[B4. Risk Category]]&\"/\"&B4_Risk_Sub_Category_Table[[#This Row],[B4. Risk Sub-Category]]","v":"Internal/Financial/Delays of Disbursement/Liquidation of Funds due to poor/improper Internal Payment Procedures"},null,null,null,null,null,null,null,null,"External","Access","Other",{"$f":"B5_Risk_Sub_Category_Type_Table[[#This Row],[B5. Risk Type:]]&\"/\"&B5_Risk_Sub_Category_Type_Table[[#This Row],[B5. Risk Category]]&\"/\"&B5_Risk_Sub_Category_Type_Table[[#This Row],[B5. Risk Sub-Category]]","v":"External/Access/Other"},"Other",{"$f":"B5_Risk_Sub_Category_Type_Table[[#This Row],[B5. Risk Type:]]&\"/\"&B5_Risk_Sub_Category_Type_Table[[#This Row],[B5. Risk Category]]&\"/\"&B5_Risk_Sub_Category_Type_Table[[#This Row],[B5. Risk Sub-Category]]&\"/\"&B5_Risk_Sub_Category_Type_Table[[#This Row],[B5. Risk Sub-Category Type]]","v":"External/Access/Other/Other"},null,null,null,null,null,null,null,null,null,null,null,null,null,null,null,null,null,"Early_Recovery","Support to access to regular employment",{"$f":"CC2_Cluster_Activity_Table[[#This Row],[C2. Cluster (affected):]]&\"/\"&CC2_Cluster_Activity_Table[[#This Row],[C2. Cluster Activity:]]","v":"Early_Recovery/Support to access to regular employment"}]
[null,null,null,null,null,null,null,null,null,null,null,null,null,null,null,null,"Other","Access",{"$f":"B3_Risk_Category_Table[[#This Row],[B3. Risk Type:]]&\"/\"&B3_Risk_Category_Table[[#This Row],[B3. Risk Category]]","v":"Other/Access"},null,null,null,null,null,null,null,"Internal","Financial",{"$f":"B4_Risk_Sub_Category_Table[[#This Row],[B4. Risk Type:]]&\"/\"&B4_Risk_Sub_Category_Table[[#This Row],[B4. Risk Category]]","v":"Internal/Financial"},"Donor Fatigue and Lack of Interest in Funding",{"$f":"B4_Risk_Sub_Category_Table[[#This Row],[B4. Risk Type:]]&\"/\"&B4_Risk_Sub_Category_Table[[#This Row],[B4. Risk Category]]&\"/\"&B4_Risk_Sub_Category_Table[[#This Row],[B4. Risk Sub-Category]]","v":"Internal/Financial/Donor Fatigue and Lack of Interest in Funding"},null,null,null,null,null,null,null,null,"External","Aid Diversion","Denial of Humanitarian Needs",{"$f":"B5_Risk_Sub_Category_Type_Table[[#This Row],[B5. Risk Type:]]&\"/\"&B5_Risk_Sub_Category_Type_Table[[#This Row],[B5. Risk Category]]&\"/\"&B5_Risk_Sub_Category_Type_Table[[#This Row],[B5. Risk Sub-Category]]","v":"External/Aid Diversion/Denial of Humanitarian Needs"},"Affected communities' entitlement to humanitarian assistance",{"$f":"B5_Risk_Sub_Category_Type_Table[[#This Row],[B5. Risk Type:]]&\"/\"&B5_Risk_Sub_Category_Type_Table[[#This Row],[B5. Risk Category]]&\"/\"&B5_Risk_Sub_Category_Type_Table[[#This Row],[B5. Risk Sub-Category]]&\"/\"&B5_Risk_Sub_Category_Type_Table[[#This Row],[B5. Risk Sub-Category Type]]","v":"External/Aid Diversion/Denial of Humanitarian Needs/Affected communities' entitlement to humanitarian assistance"},null,null,null,null,null,null,null,null,null,null,null,null,null,null,null,null,null,"Early_Recovery","Support to community initiatives",{"$f":"CC2_Cluster_Activity_Table[[#This Row],[C2. Cluster (affected):]]&\"/\"&CC2_Cluster_Activity_Table[[#This Row],[C2. Cluster Activity:]]","v":"Early_Recovery/Support to community initiatives"}]
[null,null,null,null,null,null,null,null,null,null,null,null,null,null,null,null,"Other","Administrative",{"$f":"B3_Risk_Category_Table[[#This Row],[B3. Risk Type:]]&\"/\"&B3_Risk_Category_Table[[#This Row],[B3. Risk Category]]","v":"Other/Administrative"},null,null,null,null,null,null,null,"Internal","Financial",{"$f":"B4_Risk_Sub_Category_Table[[#This Row],[B4. Risk Type:]]&\"/\"&B4_Risk_Sub_Category_Table[[#This Row],[B4. Risk Category]]","v":"Internal/Financial"},"Fraud/Corruption, and Theft or Diversion of Goods/Services",{"$f":"B4_Risk_Sub_Category_Table[[#This Row],[B4. Risk Type:]]&\"/\"&B4_Risk_Sub_Category_Table[[#This Row],[B4. Risk Category]]&\"/\"&B4_Risk_Sub_Category_Table[[#This Row],[B4. Risk Sub-Category]]","v":"Internal/Financial/Fraud/Corruption, and Theft or Diversion of Goods/Services"},null,null,null,null,null,null,null,null,"External","Aid Diversion","Denial of Humanitarian Needs",{"$f":"B5_Risk_Sub_Category_Type_Table[[#This Row],[B5. Risk Type:]]&\"/\"&B5_Risk_Sub_Category_Type_Table[[#This Row],[B5. Risk Category]]&\"/\"&B5_Risk_Sub_Category_Type_Table[[#This Row],[B5. Risk Sub-Category]]","v":"External/Aid Diversion/Denial of Humanitarian Needs"},"Anticipated humanitarian needs (due to sudden displacement)",{"$f":"B5_Risk_Sub_Category_Type_Table[[#This Row],[B5. Risk Type:]]&\"/\"&B5_Risk_Sub_Category_Type_Table[[#This Row],[B5. Risk Category]]&\"/\"&B5_Risk_Sub_Category_Type_Table[[#This Row],[B5. Risk Sub-Category]]&\"/\"&B5_Risk_Sub_Category_Type_Table[[#This Row],[B5. Risk Sub-Category Type]]","v":"External/Aid Diversion/Denial of Humanitarian Needs/Anticipated humanitarian needs (due to sudden displacement)"},null,null,null,null,null,null,null,null,null,null,null,null,null,null,null,null,null,"Early_Recovery","Support to local public service delivery initiatives",{"$f":"CC2_Cluster_Activity_Table[[#This Row],[C2. Cluster (affected):]]&\"/\"&CC2_Cluster_Activity_Table[[#This Row],[C2. Cluster Activity:]]","v":"Early_Recovery/Support to local public service delivery initiatives"}]
[null,null,null,null,null,null,null,null,null,null,null,null,null,null,null,null,"Other","Aid Diversion",{"$f":"B3_Risk_Category_Table[[#This Row],[B3. Risk Type:]]&\"/\"&B3_Risk_Category_Table[[#This Row],[B3. Risk Category]]","v":"Other/Aid Diversion"},null,null,null,null,null,null,null,"Internal","Financial",{"$f":"B4_Risk_Sub_Category_Table[[#This Row],[B4. Risk Type:]]&\"/\"&B4_Risk_Sub_Category_Table[[#This Row],[B4. Risk Category]]","v":"Internal/Financial"},"Lack of Proper and/or Insufficient Internal Controls",{"$f":"B4_Risk_Sub_Category_Table[[#This Row],[B4. Risk Type:]]&\"/\"&B4_Risk_Sub_Category_Table[[#This Row],[B4. Risk Category]]&\"/\"&B4_Risk_Sub_Category_Table[[#This Row],[B4. Risk Sub-Category]]","v":"Internal/Financial/Lack of Proper and/or Insufficient Internal Controls"},null,null,null,null,null,null,null,null,"External","Aid Diversion","Denial of Humanitarian Needs",{"$f":"B5_Risk_Sub_Category_Type_Table[[#This Row],[B5. Risk Type:]]&\"/\"&B5_Risk_Sub_Category_Type_Table[[#This Row],[B5. Risk Category]]&\"/\"&B5_Risk_Sub_Category_Type_Table[[#This Row],[B5. Risk Sub-Category]]","v":"External/Aid Diversion/Denial of Humanitarian Needs"},"Cultural challenges, such as language issues or belief systems that inhibit receiving aid",{"$f":"B5_Risk_Sub_Category_Type_Table[[#This Row],[B5. Risk Type:]]&\"/\"&B5_Risk_Sub_Category_Type_Table[[#This Row],[B5. Risk Category]]&\"/\"&B5_Risk_Sub_Category_Type_Table[[#This Row],[B5. Risk Sub-Category]]&\"/\"&B5_Risk_Sub_Category_Type_Table[[#This Row],[B5. Risk Sub-Category Type]]","v":"External/Aid Diversion/Denial of Humanitarian Needs/Cultural challenges, such as language issues or belief systems that inhibit receiving aid"},null,null,null,null,null,null,null,null,null,null,null,null,null,null,null,null,null,"Early_Recovery","Support to small farmers, livestock owners, and fisherfolk",{"$f":"CC2_Cluster_Activity_Table[[#This Row],[C2. Cluster (affected):]]&\"/\"&CC2_Cluster_Activity_Table[[#This Row],[C2. Cluster Activity:]]","v":"Early_Recovery/Support to small farmers, livestock owners, and fisherfolk"}]
[null,null,null,null,null,null,null,null,null,null,null,null,null,null,null,null,"Other","Change in Government Policy(s)",{"$f":"B3_Risk_Category_Table[[#This Row],[B3. Risk Type:]]&\"/\"&B3_Risk_Category_Table[[#This Row],[B3. Risk Category]]","v":"Other/Change in Government Policy(s)"},null,null,null,null,null,null,null,"Internal","Financial",{"$f":"B4_Risk_Sub_Category_Table[[#This Row],[B4. Risk Type:]]&\"/\"&B4_Risk_Sub_Category_Table[[#This Row],[B4. Risk Category]]","v":"Internal/Financial"},"Poor and/or Insufficient Financial Controlling and Reporting Mechanisms",{"$f":"B4_Risk_Sub_Category_Table[[#This Row],[B4. Risk Type:]]&\"/\"&B4_Risk_Sub_Category_Table[[#This Row],[B4. Risk Category]]&\"/\"&B4_Risk_Sub_Category_Table[[#This Row],[B4. Risk Sub-Category]]","v":"Internal/Financial/Poor and/or Insufficient Financial Controlling and Reporting Mechanisms"},null,null,null,null,null,null,null,null,"External","Aid Diversion","Denial of Humanitarian Needs",{"$f":"B5_Risk_Sub_Category_Type_Table[[#This Row],[B5. Risk Type:]]&\"/\"&B5_Risk_Sub_Category_Type_Table[[#This Row],[B5. Risk Category]]&\"/\"&B5_Risk_Sub_Category_Type_Table[[#This Row],[B5. Risk Sub-Category]]","v":"External/Aid Diversion/Denial of Humanitarian Needs"},"Data collection for assessments",{"$f":"B5_Risk_Sub_Category_Type_Table[[#This Row],[B5. Risk Type:]]&\"/\"&B5_Risk_Sub_Category_Type_Table[[#This Row],[B5. Risk Category]]&\"/\"&B5_Risk_Sub_Category_Type_Table[[#This Row],[B5. Risk Sub-Category]]&\"/\"&B5_Risk_Sub_Category_Type_Table[[#This Row],[B5. Risk Sub-Category Type]]","v":"External/Aid Diversion/Denial of Humanitarian Needs/Data collection for assessments"},null,null,null,null,null,null,null,null,null,null,null,null,null,null,null,null,null,"Early_Recovery","Vocational skills training",{"$f":"CC2_Cluster_Activity_Table[[#This Row],[C2. Cluster (affected):]]&\"/\"&CC2_Cluster_Activity_Table[[#This Row],[C2. Cluster Activity:]]","v":"Early_Recovery/Vocational skills training"}]
[null,null,null,null,null,null,null,null,null,null,null,null,null,null,null,null,"Other","Demographic Change(s)",{"$f":"B3_Risk_Category_Table[[#This Row],[B3. Risk Type:]]&\"/\"&B3_Risk_Category_Table[[#This Row],[B3. Risk Category]]","v":"Other/Demographic Change(s)"},null,null,null,null,null,null,null,"Internal","Financial",{"$f":"B4_Risk_Sub_Category_Table[[#This Row],[B4. Risk Type:]]&\"/\"&B4_Risk_Sub_Category_Table[[#This Row],[B4. Risk Category]]","v":"Internal/Financial"},"Poor Financial Information and Data Quality",{"$f":"B4_Risk_Sub_Category_Table[[#This Row],[B4. Risk Type:]]&\"/\"&B4_Risk_Sub_Category_Table[[#This Row],[B4. Risk Category]]&\"/\"&B4_Risk_Sub_Category_Table[[#This Row],[B4. Risk Sub-Category]]","v":"Internal/Financial/Poor Financial Information and Data Quality"},null,null,null,null,null,null,null,null,"External","Aid Diversion","Denial of Humanitarian Needs",{"$f":"B5_Risk_Sub_Category_Type_Table[[#This Row],[B5. Risk Type:]]&\"/\"&B5_Risk_Sub_Category_Type_Table[[#This Row],[B5. Risk Category]]&\"/\"&B5_Risk_Sub_Category_Type_Table[[#This Row],[B5. Risk Sub-Category]]","v":"External/Aid Diversion/Denial of Humanitarian Needs"},"Existing humanitarian needs",{"$f":"B5_Risk_Sub_Category_Type_Table[[#This Row],[B5. Risk Type:]]&\"/\"&B5_Risk_Sub_Category_Type_Table[[#This Row],[B5. Risk Category]]&\"/\"&B5_Risk_Sub_Category_Type_Table[[#This Row],[B5. Risk Sub-Category]]&\"/\"&B5_Risk_Sub_Category_Type_Table[[#This Row],[B5. Risk Sub-Category Type]]","v":"External/Aid Diversion/Denial of Humanitarian Needs/Existing humanitarian needs"},null,null,null,null,null,null,null,null,null,null,null,null,null,null,null,null,null,"Early_Recovery","Other",{"$f":"CC2_Cluster_Activity_Table[[#This Row],[C2. Cluster (affected):]]&\"/\"&CC2_Cluster_Activity_Table[[#This Row],[C2. Cluster Activity:]]","v":"Early_Recovery/Other"}]
[null,null,null,null,null,null,null,null,null,null,null,null,null,null,null,null,"Other","Duty of Care",{"$f":"B3_Risk_Category_Table[[#This Row],[B3. Risk Type:]]&\"/\"&B3_Risk_Category_Table[[#This Row],[B3. Risk Category]]","v":"Other/Duty of Care"},null,null,null,null,null,null,null,"Internal","Financial",{"$f":"B4_Risk_Sub_Category_Table[[#This Row],[B4. Risk Type:]]&\"/\"&B4_Risk_Sub_Category_Table[[#This Row],[B4. Risk Category]]","v":"Internal/Financial"},"Poor Financial Management",{"$f":"B4_Risk_Sub_Category_Table[[#This Row],[B4. Risk Type:]]&\"/\"&B4_Risk_Sub_Category_Table[[#This Row],[B4. Risk Category]]&\"/\"&B4_Risk_Sub_Category_Table[[#This Row],[B4. Risk Sub-Category]]","v":"Internal/Financial/Poor Financial Management"},null,null,null,null,null,null,null,null,"External","Aid Diversion","Denial of Humanitarian Needs",{"$f":"B5_Risk_Sub_Category_Type_Table[[#This Row],[B5. Risk Type:]]&\"/\"&B5_Risk_Sub_Category_Type_Table[[#This Row],[B5. Risk Category]]&\"/\"&B5_Risk_Sub_Category_Type_Table[[#This Row],[B5. Risk Sub-Category]]","v":"External/Aid Diversion/Denial of Humanitarian Needs"},"Influence to change/manipulate the needs of affected communities",{"$f":"B5_Risk_Sub_Category_Type_Table[[#This Row],[B5. Risk Type:]]&\"/\"&B5_Risk_Sub_Category_Type_Table[[#This Row],[B5. Risk Category]]&\"/\"&B5_Risk_Sub_Category_Type_Table[[#This Row],[B5. Risk Sub-Category]]&\"/\"&B5_Risk_Sub_Category_Type_Table[[#This Row],[B5. Risk Sub-Category Type]]","v":"External/Aid Diversion/Denial of Humanitarian Needs/Influence to change/manipulate the needs of affected communities"},null,null,null,null,null,null,null,null,null,null,null,null,null,null,null,null,null,"Education","Establishment, expansion or rehabilitation of classrooms",{"$f":"CC2_Cluster_Activity_Table[[#This Row],[C2. Cluster (affected):]]&\"/\"&CC2_Cluster_Activity_Table[[#This Row],[C2. Cluster Activity:]]","v":"Education/Establishment, expansion or rehabilitation of classrooms"}]
[null,null,null,null,null,null,null,null,null,null,null,null,null,null,null,null,"Other","Environment",{"$f":"B3_Risk_Category_Table[[#This Row],[B3. Risk Type:]]&\"/\"&B3_Risk_Category_Table[[#This Row],[B3. Risk Category]]","v":"Other/Environment"},null,null,null,null,null,null,null,"Internal","Financial",{"$f":"B4_Risk_Sub_Category_Table[[#This Row],[B4. Risk Type:]]&\"/\"&B4_Risk_Sub_Category_Table[[#This Row],[B4. Risk Category]]","v":"Internal/Financial"},"Quality, Accountability and AAP",{"$f":"B4_Risk_Sub_Category_Table[[#This Row],[B4. Risk Type:]]&\"/\"&B4_Risk_Sub_Category_Table[[#This Row],[B4. Risk Category]]&\"/\"&B4_Risk_Sub_Category_Table[[#This Row],[B4. Risk Sub-Category]]","v":"Internal/Financial/Quality, Accountability and AAP"},null,null,null,null,null,null,null,null,"External","Aid Diversion","Denial of Humanitarian Needs",{"$f":"B5_Risk_Sub_Category_Type_Table[[#This Row],[B5. Risk Type:]]&\"/\"&B5_Risk_Sub_Category_Type_Table[[#This Row],[B5. Risk Category]]&\"/\"&B5_Risk_Sub_Category_Type_Table[[#This Row],[B5. Risk Sub-Category]]","v":"External/Aid Diversion/Denial of Humanitarian Needs"},"People involuntarily forced/encouraged into an area in order to receive assistance",{"$f":"B5_Risk_Sub_Category_Type_Table[[#This Row],[B5. Risk Type:]]&\"/\"&B5_Risk_Sub_Category_Type_Table[[#This Row],[B5. Risk Category]]&\"/\"&B5_Risk_Sub_Category_Type_Table[[#This Row],[B5. Risk Sub-Category]]&\"/\"&B5_Risk_Sub_Category_Type_Table[[#This Row],[B5. Risk Sub-Category Type]]","v":"External/Aid Diversion/Denial of Humanitarian Needs/People involuntarily forced/encouraged into an area in order to receive assistance"},null,null,null,null,null,null,null,null,null,null,null,null,null,null,null,null,null,"Education","Incentives for education personnel",{"$f":"CC2_Cluster_Activity_Table[[#This Row],[C2. Cluster (affected):]]&\"/\"&CC2_Cluster_Activity_Table[[#This Row],[C2. Cluster Activity:]]","v":"Education/Incentives for education personnel"}]
[null,null,null,null,null,null,null,null,null,null,null,null,null,null,null,null,"Other","Financial",{"$f":"B3_Risk_Category_Table[[#This Row],[B3. Risk Type:]]&\"/\"&B3_Risk_Category_Table[[#This Row],[B3. Risk Category]]","v":"Other/Financial"},null,null,null,null,null,null,null,"Internal","Financial",{"$f":"B4_Risk_Sub_Category_Table[[#This Row],[B4. Risk Type:]]&\"/\"&B4_Risk_Sub_Category_Table[[#This Row],[B4. Risk Category]]","v":"Internal/Financial"},"Significant Delay in Compilation of Financial Report or Refunding Unspent Balances",{"$f":"B4_Risk_Sub_Category_Table[[#This Row],[B4. Risk Type:]]&\"/\"&B4_Risk_Sub_Category_Table[[#This Row],[B4. Risk Category]]&\"/\"&B4_Risk_Sub_Category_Table[[#This Row],[B4. Risk Sub-Category]]","v":"Internal/Financial/Significant Delay in Compilation of Financial Report or Refunding Unspent Balances"},null,null,null,null,null,null,null,null,"External","Aid Diversion","Denial of Humanitarian Needs",{"$f":"B5_Risk_Sub_Category_Type_Table[[#This Row],[B5. Risk Type:]]&\"/\"&B5_Risk_Sub_Category_Type_Table[[#This Row],[B5. Risk Category]]&\"/\"&B5_Risk_Sub_Category_Type_Table[[#This Row],[B5. Risk Sub-Category]]","v":"External/Aid Diversion/Denial of Humanitarian Needs"},"Other",{"$f":"B5_Risk_Sub_Category_Type_Table[[#This Row],[B5. Risk Type:]]&\"/\"&B5_Risk_Sub_Category_Type_Table[[#This Row],[B5. Risk Category]]&\"/\"&B5_Risk_Sub_Category_Type_Table[[#This Row],[B5. Risk Sub-Category]]&\"/\"&B5_Risk_Sub_Category_Type_Table[[#This Row],[B5. Risk Sub-Category Type]]","v":"External/Aid Diversion/Denial of Humanitarian Needs/Other"},null,null,null,null,null,null,null,null,null,null,null,null,null,null,null,null,null,"Education","Non-formal education programs",{"$f":"CC2_Cluster_Activity_Table[[#This Row],[C2. Cluster (affected):]]&\"/\"&CC2_Cluster_Activity_Table[[#This Row],[C2. Cluster Activity:]]","v":"Education/Non-formal education programs"}]
[null,null,null,null,null,null,null,null,null,null,null,null,null,null,null,null,"Other","Fluctuation of Exchange Rates",{"$f":"B3_Risk_Category_Table[[#This Row],[B3. Risk Type:]]&\"/\"&B3_Risk_Category_Table[[#This Row],[B3. Risk Category]]","v":"Other/Fluctuation of Exchange Rates"},null,null,null,null,null,null,null,"Internal","Financial",{"$f":"B4_Risk_Sub_Category_Table[[#This Row],[B4. Risk Type:]]&\"/\"&B4_Risk_Sub_Category_Table[[#This Row],[B4. Risk Category]]","v":"Internal/Financial"},"Other",{"$f":"B4_Risk_Sub_Category_Table[[#This Row],[B4. Risk Type:]]&\"/\"&B4_Risk_Sub_Category_Table[[#This Row],[B4. Risk Category]]&\"/\"&B4_Risk_Sub_Category_Table[[#This Row],[B4. Risk Sub-Category]]","v":"Internal/Financial/Other"},null,null,null,null,null,null,null,null,"External","Aid Diversion","Diversion of Aid",{"$f":"B5_Risk_Sub_Category_Type_Table[[#This Row],[B5. Risk Type:]]&\"/\"&B5_Risk_Sub_Category_Type_Table[[#This Row],[B5. Risk Category]]&\"/\"&B5_Risk_Sub_Category_Type_Table[[#This Row],[B5. Risk Sub-Category]]","v":"External/Aid Diversion/Diversion of Aid"},"Asking a portion or %age of humanitarian assistance",{"$f":"B5_Risk_Sub_Category_Type_Table[[#This Row],[B5. Risk Type:]]&\"/\"&B5_Risk_Sub_Category_Type_Table[[#This Row],[B5. Risk Category]]&\"/\"&B5_Risk_Sub_Category_Type_Table[[#This Row],[B5. Risk Sub-Category]]&\"/\"&B5_Risk_Sub_Category_Type_Table[[#This Row],[B5. Risk Sub-Category Type]]","v":"External/Aid Diversion/Diversion of Aid/Asking a portion or %age of humanitarian assistance"},null,null,null,null,null,null,null,null,null,null,null,null,null,null,null,null,null,"Education","Provision of learning materials",{"$f":"CC2_Cluster_Activity_Table[[#This Row],[C2. Cluster (affected):]]&\"/\"&CC2_Cluster_Activity_Table[[#This Row],[C2. Cluster Activity:]]","v":"Education/Provision of learning materials"}]
[null,null,null,null,null,null,null,null,null,null,null,null,null,null,null,null,"Other","GBV",{"$f":"B3_Risk_Category_Table[[#This Row],[B3. Risk Type:]]&\"/\"&B3_Risk_Category_Table[[#This Row],[B3. Risk Category]]","v":"Other/GBV"},null,null,null,null,null,null,null,"Internal","Human Resources",{"$f":"B4_Risk_Sub_Category_Table[[#This Row],[B4. Risk Type:]]&\"/\"&B4_Risk_Sub_Category_Table[[#This Row],[B4. Risk Category]]","v":"Internal/Human Resources"},"Absence of Code of Conduct",{"$f":"B4_Risk_Sub_Category_Table[[#This Row],[B4. Risk Type:]]&\"/\"&B4_Risk_Sub_Category_Table[[#This Row],[B4. Risk Category]]&\"/\"&B4_Risk_Sub_Category_Table[[#This Row],[B4. Risk Sub-Category]]","v":"Internal/Human Resources/Absence of Code of Conduct"},null,null,null,null,null,null,null,null,"External","Aid Diversion","Diversion of Aid",{"$f":"B5_Risk_Sub_Category_Type_Table[[#This Row],[B5. Risk Type:]]&\"/\"&B5_Risk_Sub_Category_Type_Table[[#This Row],[B5. Risk Category]]&\"/\"&B5_Risk_Sub_Category_Type_Table[[#This Row],[B5. Risk Sub-Category]]","v":"External/Aid Diversion/Diversion of Aid"},"Diverting assistance to certain community",{"$f":"B5_Risk_Sub_Category_Type_Table[[#This Row],[B5. Risk Type:]]&\"/\"&B5_Risk_Sub_Category_Type_Table[[#This Row],[B5. Risk Category]]&\"/\"&B5_Risk_Sub_Category_Type_Table[[#This Row],[B5. Risk Sub-Category]]&\"/\"&B5_Risk_Sub_Category_Type_Table[[#This Row],[B5. Risk Sub-Category Type]]","v":"External/Aid Diversion/Diversion of Aid/Diverting assistance to certain community"},null,null,null,null,null,null,null,null,null,null,null,null,null,null,null,null,null,"Education","Training of education personnel",{"$f":"CC2_Cluster_Activity_Table[[#This Row],[C2. Cluster (affected):]]&\"/\"&CC2_Cluster_Activity_Table[[#This Row],[C2. Cluster Activity:]]","v":"Education/Training of education personnel"}]
[null,null,null,null,null,null,null,null,null,null,null,null,null,null,null,null,"Other","Human Resources",{"$f":"B3_Risk_Category_Table[[#This Row],[B3. Risk Type:]]&\"/\"&B3_Risk_Category_Table[[#This Row],[B3. Risk Category]]","v":"Other/Human Resources"},null,null,null,null,null,null,null,"Internal","Human Resources",{"$f":"B4_Risk_Sub_Category_Table[[#This Row],[B4. Risk Type:]]&\"/\"&B4_Risk_Sub_Category_Table[[#This Row],[B4. Risk Category]]","v":"Internal/Human Resources"},"Duty of Care",{"$f":"B4_Risk_Sub_Category_Table[[#This Row],[B4. Risk Type:]]&\"/\"&B4_Risk_Sub_Category_Table[[#This Row],[B4. Risk Category]]&\"/\"&B4_Risk_Sub_Category_Table[[#This Row],[B4. Risk Sub-Category]]","v":"Internal/Human Resources/Duty of Care"},null,null,null,null,null,null,null,null,"External","Aid Diversion","Diversion of Aid",{"$f":"B5_Risk_Sub_Category_Type_Table[[#This Row],[B5. Risk Type:]]&\"/\"&B5_Risk_Sub_Category_Type_Table[[#This Row],[B5. Risk Category]]&\"/\"&B5_Risk_Sub_Category_Type_Table[[#This Row],[B5. Risk Sub-Category]]","v":"External/Aid Diversion/Diversion of Aid"},"Diverting assistance to certain geographic area",{"$f":"B5_Risk_Sub_Category_Type_Table[[#This Row],[B5. Risk Type:]]&\"/\"&B5_Risk_Sub_Category_Type_Table[[#This Row],[B5. Risk Category]]&\"/\"&B5_Risk_Sub_Category_Type_Table[[#This Row],[B5. Risk Sub-Category]]&\"/\"&B5_Risk_Sub_Category_Type_Table[[#This Row],[B5. Risk Sub-Category Type]]","v":"External/Aid Diversion/Diversion of Aid/Diverting assistance to certain geographic area"},null,null,null,null,null,null,null,null,null,null,null,null,null,null,null,null,null,"Education","Other",{"$f":"CC2_Cluster_Activity_Table[[#This Row],[C2. Cluster (affected):]]&\"/\"&CC2_Cluster_Activity_Table[[#This Row],[C2. Cluster Activity:]]","v":"Education/Other"}]
[null,null,null,null,null,null,null,null,null,null,null,null,null,null,null,null,"Other","Human Rights Violations",{"$f":"B3_Risk_Category_Table[[#This Row],[B3. Risk Type:]]&\"/\"&B3_Risk_Category_Table[[#This Row],[B3. Risk Category]]","v":"Other/Human Rights Violations"},null,null,null,null,null,null,null,"Internal","Human Resources",{"$f":"B4_Risk_Sub_Category_Table[[#This Row],[B4. Risk Type:]]&\"/\"&B4_Risk_Sub_Category_Table[[#This Row],[B4. Risk Category]]","v":"Internal/Human Resources"},"Ghost Employees",{"$f":"B4_Risk_Sub_Category_Table[[#This Row],[B4. Risk Type:]]&\"/\"&B4_Risk_Sub_Category_Table[[#This Row],[B4. Risk Category]]&\"/\"&B4_Risk_Sub_Category_Table[[#This Row],[B4. Risk Sub-Category]]","v":"Internal/Human Resources/Ghost Employees"},null,null,null,null,null,null,null,null,"External","Aid Diversion","Diversion of Aid",{"$f":"B5_Risk_Sub_Category_Type_Table[[#This Row],[B5. Risk Type:]]&\"/\"&B5_Risk_Sub_Category_Type_Table[[#This Row],[B5. Risk Category]]&\"/\"&B5_Risk_Sub_Category_Type_Table[[#This Row],[B5. Risk Sub-Category]]","v":"External/Aid Diversion/Diversion of Aid"},"Diverting assistance to certain thematic area",{"$f":"B5_Risk_Sub_Category_Type_Table[[#This Row],[B5. Risk Type:]]&\"/\"&B5_Risk_Sub_Category_Type_Table[[#This Row],[B5. Risk Category]]&\"/\"&B5_Risk_Sub_Category_Type_Table[[#This Row],[B5. Risk Sub-Category]]&\"/\"&B5_Risk_Sub_Category_Type_Table[[#This Row],[B5. Risk Sub-Category Type]]","v":"External/Aid Diversion/Diversion of Aid/Diverting assistance to certain thematic area"},null,null,null,null,null,null,null,null,null,null,null,null,null,null,null,null,null,"Emergency_Shelter_NFI","Advice or referral in relation to HLP and shelter",{"$f":"CC2_Cluster_Activity_Table[[#This Row],[C2. Cluster (affected):]]&\"/\"&CC2_Cluster_Activity_Table[[#This Row],[C2. Cluster Activity:]]","v":"Emergency_Shelter_NFI/Advice or referral in relation to HLP and shelter"}]
[null,null,null,null,null,null,null,null,null,null,null,null,null,null,null,null,"Other","Laws/Regulations Imposed Requirements",{"$f":"B3_Risk_Category_Table[[#This Row],[B3. Risk Type:]]&\"/\"&B3_Risk_Category_Table[[#This Row],[B3. Risk Category]]","v":"Other/Laws/Regulations Imposed Requirements"},null,null,null,null,null,null,null,"Internal","Human Resources",{"$f":"B4_Risk_Sub_Category_Table[[#This Row],[B4. Risk Type:]]&\"/\"&B4_Risk_Sub_Category_Table[[#This Row],[B4. Risk Category]]","v":"Internal/Human Resources"},"Lack of Proper and/or Insufficient Policies/Systems",{"$f":"B4_Risk_Sub_Category_Table[[#This Row],[B4. Risk Type:]]&\"/\"&B4_Risk_Sub_Category_Table[[#This Row],[B4. Risk Category]]&\"/\"&B4_Risk_Sub_Category_Table[[#This Row],[B4. Risk Sub-Category]]","v":"Internal/Human Resources/Lack of Proper and/or Insufficient Policies/Systems"},null,null,null,null,null,null,null,null,"External","Aid Diversion","Diversion of Aid",{"$f":"B5_Risk_Sub_Category_Type_Table[[#This Row],[B5. Risk Type:]]&\"/\"&B5_Risk_Sub_Category_Type_Table[[#This Row],[B5. Risk Category]]&\"/\"&B5_Risk_Sub_Category_Type_Table[[#This Row],[B5. Risk Sub-Category]]","v":"External/Aid Diversion/Diversion of Aid"},"Other",{"$f":"B5_Risk_Sub_Category_Type_Table[[#This Row],[B5. Risk Type:]]&\"/\"&B5_Risk_Sub_Category_Type_Table[[#This Row],[B5. Risk Category]]&\"/\"&B5_Risk_Sub_Category_Type_Table[[#This Row],[B5. Risk Sub-Category]]&\"/\"&B5_Risk_Sub_Category_Type_Table[[#This Row],[B5. Risk Sub-Category Type]]","v":"External/Aid Diversion/Diversion of Aid/Other"},null,null,null,null,null,null,null,null,null,null,null,null,null,null,null,null,null,"Emergency_Shelter_NFI","NFI distribution",{"$f":"CC2_Cluster_Activity_Table[[#This Row],[C2. Cluster (affected):]]&\"/\"&CC2_Cluster_Activity_Table[[#This Row],[C2. Cluster Activity:]]","v":"Emergency_Shelter_NFI/NFI distribution"}]
[null,null,null,null,null,null,null,null,null,null,null,null,null,null,null,null,"Other","Logistics Procurement",{"$f":"B3_Risk_Category_Table[[#This Row],[B3. Risk Type:]]&\"/\"&B3_Risk_Category_Table[[#This Row],[B3. Risk Category]]","v":"Other/Logistics Procurement"},null,null,null,null,null,null,null,"Internal","Human Resources",{"$f":"B4_Risk_Sub_Category_Table[[#This Row],[B4. Risk Type:]]&\"/\"&B4_Risk_Sub_Category_Table[[#This Row],[B4. Risk Category]]","v":"Internal/Human Resources"},"Lack of Proper and/or Insufficient Standard Operating Procedures",{"$f":"B4_Risk_Sub_Category_Table[[#This Row],[B4. Risk Type:]]&\"/\"&B4_Risk_Sub_Category_Table[[#This Row],[B4. Risk Category]]&\"/\"&B4_Risk_Sub_Category_Table[[#This Row],[B4. Risk Sub-Category]]","v":"Internal/Human Resources/Lack of Proper and/or Insufficient Standard Operating Procedures"},null,null,null,null,null,null,null,null,"External","Aid Diversion","Interference in Implementation",{"$f":"B5_Risk_Sub_Category_Type_Table[[#This Row],[B5. Risk Type:]]&\"/\"&B5_Risk_Sub_Category_Type_Table[[#This Row],[B5. Risk Category]]&\"/\"&B5_Risk_Sub_Category_Type_Table[[#This Row],[B5. Risk Sub-Category]]","v":"External/Aid Diversion/Interference in Implementation"},"Contracting and outsourcing",{"$f":"B5_Risk_Sub_Category_Type_Table[[#This Row],[B5. Risk Type:]]&\"/\"&B5_Risk_Sub_Category_Type_Table[[#This Row],[B5. Risk Category]]&\"/\"&B5_Risk_Sub_Category_Type_Table[[#This Row],[B5. Risk Sub-Category]]&\"/\"&B5_Risk_Sub_Category_Type_Table[[#This Row],[B5. Risk Sub-Category Type]]","v":"External/Aid Diversion/Interference in Implementation/Contracting and outsourcing"},null,null,null,null,null,null,null,null,null,null,null,null,null,null,null,null,null,"Emergency_Shelter_NFI","Rehabilitation of shelter",{"$f":"CC2_Cluster_Activity_Table[[#This Row],[C2. Cluster (affected):]]&\"/\"&CC2_Cluster_Activity_Table[[#This Row],[C2. Cluster Activity:]]","v":"Emergency_Shelter_NFI/Rehabilitation of shelter"}]
[null,null,null,null,null,null,null,null,null,null,null,null,null,null,null,null,"Other","Major Macroeconomic Shifts",{"$f":"B3_Risk_Category_Table[[#This Row],[B3. Risk Type:]]&\"/\"&B3_Risk_Category_Table[[#This Row],[B3. Risk Category]]","v":"Other/Major Macroeconomic Shifts"},null,null,null,null,null,null,null,"Internal","Human Resources",{"$f":"B4_Risk_Sub_Category_Table[[#This Row],[B4. Risk Type:]]&\"/\"&B4_Risk_Sub_Category_Table[[#This Row],[B4. Risk Category]]","v":"Internal/Human Resources"},"Obscure Hiring System",{"$f":"B4_Risk_Sub_Category_Table[[#This Row],[B4. Risk Type:]]&\"/\"&B4_Risk_Sub_Category_Table[[#This Row],[B4. Risk Category]]&\"/\"&B4_Risk_Sub_Category_Table[[#This Row],[B4. Risk Sub-Category]]","v":"Internal/Human Resources/Obscure Hiring System"},null,null,null,null,null,null,null,null,"External","Aid Diversion","Interference in Implementation",{"$f":"B5_Risk_Sub_Category_Type_Table[[#This Row],[B5. Risk Type:]]&\"/\"&B5_Risk_Sub_Category_Type_Table[[#This Row],[B5. Risk Category]]&\"/\"&B5_Risk_Sub_Category_Type_Table[[#This Row],[B5. Risk Sub-Category]]","v":"External/Aid Diversion/Interference in Implementation"},"Delay/denial for import of goods through border crossing",{"$f":"B5_Risk_Sub_Category_Type_Table[[#This Row],[B5. Risk Type:]]&\"/\"&B5_Risk_Sub_Category_Type_Table[[#This Row],[B5. Risk Category]]&\"/\"&B5_Risk_Sub_Category_Type_Table[[#This Row],[B5. Risk Sub-Category]]&\"/\"&B5_Risk_Sub_Category_Type_Table[[#This Row],[B5. Risk Sub-Category Type]]","v":"External/Aid Diversion/Interference in Implementation/Delay/denial for import of goods through border crossing"},null,null,null,null,null,null,null,null,null,null,null,null,null,null,null,null,null,"Emergency_Shelter_NFI","Shelter provision",{"$f":"CC2_Cluster_Activity_Table[[#This Row],[C2. Cluster (affected):]]&\"/\"&CC2_Cluster_Activity_Table[[#This Row],[C2. Cluster Activity:]]","v":"Emergency_Shelter_NFI/Shelter provision"}]
[null,null,null,null,null,null,null,null,null,null,null,null,null,null,null,null,"Other","Major Shift in Power",{"$f":"B3_Risk_Category_Table[[#This Row],[B3. Risk Type:]]&\"/\"&B3_Risk_Category_Table[[#This Row],[B3. Risk Category]]","v":"Other/Major Shift in Power"},null,null,null,null,null,null,null,"Internal","Human Resources",{"$f":"B4_Risk_Sub_Category_Table[[#This Row],[B4. Risk Type:]]&\"/\"&B4_Risk_Sub_Category_Table[[#This Row],[B4. Risk Category]]","v":"Internal/Human Resources"},"Poor Administrative Efficiency of Human Resource Management",{"$f":"B4_Risk_Sub_Category_Table[[#This Row],[B4. Risk Type:]]&\"/\"&B4_Risk_Sub_Category_Table[[#This Row],[B4. Risk Category]]&\"/\"&B4_Risk_Sub_Category_Table[[#This Row],[B4. Risk Sub-Category]]","v":"Internal/Human Resources/Poor Administrative Efficiency of Human Resource Management"},null,null,null,null,null,null,null,null,"External","Aid Diversion","Interference in Implementation",{"$f":"B5_Risk_Sub_Category_Type_Table[[#This Row],[B5. Risk Type:]]&\"/\"&B5_Risk_Sub_Category_Type_Table[[#This Row],[B5. Risk Category]]&\"/\"&B5_Risk_Sub_Category_Type_Table[[#This Row],[B5. Risk Sub-Category]]","v":"External/Aid Diversion/Interference in Implementation"},"Inappropriate taxation on humanitarian goods or services",{"$f":"B5_Risk_Sub_Category_Type_Table[[#This Row],[B5. Risk Type:]]&\"/\"&B5_Risk_Sub_Category_Type_Table[[#This Row],[B5. Risk Category]]&\"/\"&B5_Risk_Sub_Category_Type_Table[[#This Row],[B5. Risk Sub-Category]]&\"/\"&B5_Risk_Sub_Category_Type_Table[[#This Row],[B5. Risk Sub-Category Type]]","v":"External/Aid Diversion/Interference in Implementation/Inappropriate taxation on humanitarian goods or services"},null,null,null,null,null,null,null,null,null,null,null,null,null,null,null,null,null,"Emergency_Shelter_NFI","Voucher provision",{"$f":"CC2_Cluster_Activity_Table[[#This Row],[C2. Cluster (affected):]]&\"/\"&CC2_Cluster_Activity_Table[[#This Row],[C2. Cluster Activity:]]","v":"Emergency_Shelter_NFI/Voucher provision"}]
[null,null,null,null,null,null,null,null,null,null,null,null,null,null,null,null,"Other","Manmade Disasters/Crisis",{"$f":"B3_Risk_Category_Table[[#This Row],[B3. Risk Type:]]&\"/\"&B3_Risk_Category_Table[[#This Row],[B3. Risk Category]]","v":"Other/Manmade Disasters/Crisis"},null,null,null,null,null,null,null,"Internal","Human Resources",{"$f":"B4_Risk_Sub_Category_Table[[#This Row],[B4. Risk Type:]]&\"/\"&B4_Risk_Sub_Category_Table[[#This Row],[B4. Risk Category]]","v":"Internal/Human Resources"},"Quality, Accountability and AAP",{"$f":"B4_Risk_Sub_Category_Table[[#This Row],[B4. Risk Type:]]&\"/\"&B4_Risk_Sub_Category_Table[[#This Row],[B4. Risk Category]]&\"/\"&B4_Risk_Sub_Category_Table[[#This Row],[B4. Risk Sub-Category]]","v":"Internal/Human Resources/Quality, Accountability and AAP"},null,null,null,null,null,null,null,null,"External","Aid Diversion","Interference in Implementation",{"$f":"B5_Risk_Sub_Category_Type_Table[[#This Row],[B5. Risk Type:]]&\"/\"&B5_Risk_Sub_Category_Type_Table[[#This Row],[B5. Risk Category]]&\"/\"&B5_Risk_Sub_Category_Type_Table[[#This Row],[B5. Risk Sub-Category]]","v":"External/Aid Diversion/Interference in Implementation"},"Information Sharing and Reporting",{"$f":"B5_Risk_Sub_Category_Type_Table[[#This Row],[B5. Risk Type:]]&\"/\"&B5_Risk_Sub_Category_Type_Table[[#This Row],[B5. Risk Category]]&\"/\"&B5_Risk_Sub_Category_Type_Table[[#This Row],[B5. Risk Sub-Category]]&\"/\"&B5_Risk_Sub_Category_Type_Table[[#This Row],[B5. Risk Sub-Category Type]]","v":"External/Aid Diversion/Interference in Implementation/Information Sharing and Reporting"},null,null,null,null,null,null,null,null,null,null,null,null,null,null,null,null,null,"Emergency_Shelter_NFI","Other",{"$f":"CC2_Cluster_Activity_Table[[#This Row],[C2. Cluster (affected):]]&\"/\"&CC2_Cluster_Activity_Table[[#This Row],[C2. Cluster Activity:]]","v":"Emergency_Shelter_NFI/Other"}]
[null,null,null,null,null,null,null,null,null,null,null,null,null,null,null,null,"Other","Natural Disasters",{"$f":"B3_Risk_Category_Table[[#This Row],[B3. Risk Type:]]&\"/\"&B3_Risk_Category_Table[[#This Row],[B3. Risk Category]]","v":"Other/Natural Disasters"},null,null,null,null,null,null,null,"Internal","Human Resources",{"$f":"B4_Risk_Sub_Category_Table[[#This Row],[B4. Risk Type:]]&\"/\"&B4_Risk_Sub_Category_Table[[#This Row],[B4. Risk Category]]","v":"Internal/Human Resources"},"Other",{"$f":"B4_Risk_Sub_Category_Table[[#This Row],[B4. Risk Type:]]&\"/\"&B4_Risk_Sub_Category_Table[[#This Row],[B4. Risk Category]]&\"/\"&B4_Risk_Sub_Category_Table[[#This Row],[B4. Risk Sub-Category]]","v":"Internal/Human Resources/Other"},null,null,null,null,null,null,null,null,"External","Aid Diversion","Interference in Implementation",{"$f":"B5_Risk_Sub_Category_Type_Table[[#This Row],[B5. Risk Type:]]&\"/\"&B5_Risk_Sub_Category_Type_Table[[#This Row],[B5. Risk Category]]&\"/\"&B5_Risk_Sub_Category_Type_Table[[#This Row],[B5. Risk Sub-Category]]","v":"External/Aid Diversion/Interference in Implementation"},"Lack of documentation preventing people from receiving assistance (ID cards)",{"$f":"B5_Risk_Sub_Category_Type_Table[[#This Row],[B5. Risk Type:]]&\"/\"&B5_Risk_Sub_Category_Type_Table[[#This Row],[B5. Risk Category]]&\"/\"&B5_Risk_Sub_Category_Type_Table[[#This Row],[B5. Risk Sub-Category]]&\"/\"&B5_Risk_Sub_Category_Type_Table[[#This Row],[B5. Risk Sub-Category Type]]","v":"External/Aid Diversion/Interference in Implementation/Lack of documentation preventing people from receiving assistance (ID cards)"},null,null,null,null,null,null,null,null,null,null,null,null,null,null,null,null,null,"Food_Security_Livelihoods_FSL","Distribution of agricultural inputs",{"$f":"CC2_Cluster_Activity_Table[[#This Row],[C2. Cluster (affected):]]&\"/\"&CC2_Cluster_Activity_Table[[#This Row],[C2. Cluster Activity:]]","v":"Food_Security_Livelihoods_FSL/Distribution of agricultural inputs"}]
[null,null,null,null,null,null,null,null,null,null,null,null,null,null,null,null,"Other","Obsolescence of Current Systems",{"$f":"B3_Risk_Category_Table[[#This Row],[B3. Risk Type:]]&\"/\"&B3_Risk_Category_Table[[#This Row],[B3. Risk Category]]","v":"Other/Obsolescence of Current Systems"},null,null,null,null,null,null,null,"Internal","Logistics Procurement",{"$f":"B4_Risk_Sub_Category_Table[[#This Row],[B4. Risk Type:]]&\"/\"&B4_Risk_Sub_Category_Table[[#This Row],[B4. Risk Category]]","v":"Internal/Logistics Procurement"},"Absence of Code of Conduct",{"$f":"B4_Risk_Sub_Category_Table[[#This Row],[B4. Risk Type:]]&\"/\"&B4_Risk_Sub_Category_Table[[#This Row],[B4. Risk Category]]&\"/\"&B4_Risk_Sub_Category_Table[[#This Row],[B4. Risk Sub-Category]]","v":"Internal/Logistics Procurement/Absence of Code of Conduct"},null,null,null,null,null,null,null,null,"External","Aid Diversion","Interference in Implementation",{"$f":"B5_Risk_Sub_Category_Type_Table[[#This Row],[B5. Risk Type:]]&\"/\"&B5_Risk_Sub_Category_Type_Table[[#This Row],[B5. Risk Category]]&\"/\"&B5_Risk_Sub_Category_Type_Table[[#This Row],[B5. Risk Sub-Category]]","v":"External/Aid Diversion/Interference in Implementation"},"Manipulation of beneficiaries' list (directly or indirectly)",{"$f":"B5_Risk_Sub_Category_Type_Table[[#This Row],[B5. Risk Type:]]&\"/\"&B5_Risk_Sub_Category_Type_Table[[#This Row],[B5. Risk Category]]&\"/\"&B5_Risk_Sub_Category_Type_Table[[#This Row],[B5. Risk Sub-Category]]&\"/\"&B5_Risk_Sub_Category_Type_Table[[#This Row],[B5. Risk Sub-Category Type]]","v":"External/Aid Diversion/Interference in Implementation/Manipulation of beneficiaries' list (directly or indirectly)"},null,null,null,null,null,null,null,null,null,null,null,null,null,null,null,null,null,"Food_Security_Livelihoods_FSL","Early warning/DDR systems",{"$f":"CC2_Cluster_Activity_Table[[#This Row],[C2. Cluster (affected):]]&\"/\"&CC2_Cluster_Activity_Table[[#This Row],[C2. Cluster Activity:]]","v":"Food_Security_Livelihoods_FSL/Early warning/DDR systems"}]
[null,null,null,null,null,null,null,null,null,null,null,null,null,null,null,null,"Other","Operational",{"$f":"B3_Risk_Category_Table[[#This Row],[B3. Risk Type:]]&\"/\"&B3_Risk_Category_Table[[#This Row],[B3. Risk Category]]","v":"Other/Operational"},null,null,null,null,null,null,null,"Internal","Logistics Procurement",{"$f":"B4_Risk_Sub_Category_Table[[#This Row],[B4. Risk Type:]]&\"/\"&B4_Risk_Sub_Category_Table[[#This Row],[B4. Risk Category]]","v":"Internal/Logistics Procurement"},"Donors' Strict Adherence to 'Zero Tolerance' and Compliance Policies",{"$f":"B4_Risk_Sub_Category_Table[[#This Row],[B4. Risk Type:]]&\"/\"&B4_Risk_Sub_Category_Table[[#This Row],[B4. Risk Category]]&\"/\"&B4_Risk_Sub_Category_Table[[#This Row],[B4. Risk Sub-Category]]","v":"Internal/Logistics Procurement/Donors' Strict Adherence to 'Zero Tolerance' and Compliance Policies"},null,null,null,null,null,null,null,null,"External","Aid Diversion","Interference in Implementation",{"$f":"B5_Risk_Sub_Category_Type_Table[[#This Row],[B5. Risk Type:]]&\"/\"&B5_Risk_Sub_Category_Type_Table[[#This Row],[B5. Risk Category]]&\"/\"&B5_Risk_Sub_Category_Type_Table[[#This Row],[B5. Risk Sub-Category]]","v":"External/Aid Diversion/Interference in Implementation"},"Organization's internal operations/processes",{"$f":"B5_Risk_Sub_Category_Type_Table[[#This Row],[B5. Risk Type:]]&\"/\"&B5_Risk_Sub_Category_Type_Table[[#This Row],[B5. Risk Category]]&\"/\"&B5_Risk_Sub_Category_Type_Table[[#This Row],[B5. Risk Sub-Category]]&\"/\"&B5_Risk_Sub_Category_Type_Table[[#This Row],[B5. Risk Sub-Category Type]]","v":"External/Aid Diversion/Interference in Implementation/Organization's internal operations/processes"},null,null,null,null,null,null,null,null,null,null,null,null,null,null,null,null,null,"Food_Security_Livelihoods_FSL","Emergency livestock treatment/training for veterinary services",{"$f":"CC2_Cluster_Activity_Table[[#This Row],[C2. Cluster (affected):]]&\"/\"&CC2_Cluster_Activity_Table[[#This Row],[C2. Cluster Activity:]]","v":"Food_Security_Livelihoods_FSL/Emergency livestock treatment/training for veterinary services"}]
[null,null,null,null,null,null,null,null,null,null,null,null,null,null,null,null,"Other","Political Disaster/Crisis",{"$f":"B3_Risk_Category_Table[[#This Row],[B3. Risk Type:]]&\"/\"&B3_Risk_Category_Table[[#This Row],[B3. Risk Category]]","v":"Other/Political Disaster/Crisis"},null,null,null,null,null,null,null,"Internal","Logistics Procurement",{"$f":"B4_Risk_Sub_Category_Table[[#This Row],[B4. Risk Type:]]&\"/\"&B4_Risk_Sub_Category_Table[[#This Row],[B4. Risk Category]]","v":"Internal/Logistics Procurement"},"Improper Management of Storage Facilities and/or Warehousing",{"$f":"B4_Risk_Sub_Category_Table[[#This Row],[B4. Risk Type:]]&\"/\"&B4_Risk_Sub_Category_Table[[#This Row],[B4. Risk Category]]&\"/\"&B4_Risk_Sub_Category_Table[[#This Row],[B4. Risk Sub-Category]]","v":"Internal/Logistics Procurement/Improper Management of Storage Facilities and/or Warehousing"},null,null,null,null,null,null,null,null,"External","Aid Diversion","Interference in Implementation",{"$f":"B5_Risk_Sub_Category_Type_Table[[#This Row],[B5. Risk Type:]]&\"/\"&B5_Risk_Sub_Category_Type_Table[[#This Row],[B5. Risk Category]]&\"/\"&B5_Risk_Sub_Category_Type_Table[[#This Row],[B5. Risk Sub-Category]]","v":"External/Aid Diversion/Interference in Implementation"},"Procurement/logistics processes",{"$f":"B5_Risk_Sub_Category_Type_Table[[#This Row],[B5. Risk Type:]]&\"/\"&B5_Risk_Sub_Category_Type_Table[[#This Row],[B5. Risk Category]]&\"/\"&B5_Risk_Sub_Category_Type_Table[[#This Row],[B5. Risk Sub-Category]]&\"/\"&B5_Risk_Sub_Category_Type_Table[[#This Row],[B5. Risk Sub-Category Type]]","v":"External/Aid Diversion/Interference in Implementation/Procurement/logistics processes"},null,null,null,null,null,null,null,null,null,null,null,null,null,null,null,null,null,"Food_Security_Livelihoods_FSL","Food distribution",{"$f":"CC2_Cluster_Activity_Table[[#This Row],[C2. Cluster (affected):]]&\"/\"&CC2_Cluster_Activity_Table[[#This Row],[C2. Cluster Activity:]]","v":"Food_Security_Livelihoods_FSL/Food distribution"}]
[null,null,null,null,null,null,null,null,null,null,null,null,null,null,null,null,"Other","Political Instability",{"$f":"B3_Risk_Category_Table[[#This Row],[B3. Risk Type:]]&\"/\"&B3_Risk_Category_Table[[#This Row],[B3. Risk Category]]","v":"Other/Political Instability"},null,null,null,null,null,null,null,"Internal","Logistics Procurement",{"$f":"B4_Risk_Sub_Category_Table[[#This Row],[B4. Risk Type:]]&\"/\"&B4_Risk_Sub_Category_Table[[#This Row],[B4. Risk Category]]","v":"Internal/Logistics Procurement"},"Insufficient Understanding of OFAC General License ",{"$f":"B4_Risk_Sub_Category_Table[[#This Row],[B4. Risk Type:]]&\"/\"&B4_Risk_Sub_Category_Table[[#This Row],[B4. Risk Category]]&\"/\"&B4_Risk_Sub_Category_Table[[#This Row],[B4. Risk Sub-Category]]","v":"Internal/Logistics Procurement/Insufficient Understanding of OFAC General License "},null,null,null,null,null,null,null,null,"External","Aid Diversion","Interference in Implementation",{"$f":"B5_Risk_Sub_Category_Type_Table[[#This Row],[B5. Risk Type:]]&\"/\"&B5_Risk_Sub_Category_Type_Table[[#This Row],[B5. Risk Category]]&\"/\"&B5_Risk_Sub_Category_Type_Table[[#This Row],[B5. Risk Sub-Category]]","v":"External/Aid Diversion/Interference in Implementation"},"Prohibition of utilization of certain electronic equipment e.g. notepads for assessments and M&E",{"$f":"B5_Risk_Sub_Category_Type_Table[[#This Row],[B5. Risk Type:]]&\"/\"&B5_Risk_Sub_Category_Type_Table[[#This Row],[B5. Risk Category]]&\"/\"&B5_Risk_Sub_Category_Type_Table[[#This Row],[B5. Risk Sub-Category]]&\"/\"&B5_Risk_Sub_Category_Type_Table[[#This Row],[B5. Risk Sub-Category Type]]","v":"External/Aid Diversion/Interference in Implementation/Prohibition of utilization of certain electronic equipment e.g. notepads for assessments and M&E"},null,null,null,null,null,null,null,null,null,null,null,null,null,null,null,null,null,"Food_Security_Livelihoods_FSL","Rehabilitation of economic infrastructure",{"$f":"CC2_Cluster_Activity_Table[[#This Row],[C2. Cluster (affected):]]&\"/\"&CC2_Cluster_Activity_Table[[#This Row],[C2. Cluster Activity:]]","v":"Food_Security_Livelihoods_FSL/Rehabilitation of economic infrastructure"}]
[null,null,null,null,null,null,null,null,null,null,null,null,null,null,null,null,"Other","Programmatic",{"$f":"B3_Risk_Category_Table[[#This Row],[B3. Risk Type:]]&\"/\"&B3_Risk_Category_Table[[#This Row],[B3. Risk Category]]","v":"Other/Programmatic"},null,null,null,null,null,null,null,"Internal","Logistics Procurement",{"$f":"B4_Risk_Sub_Category_Table[[#This Row],[B4. Risk Type:]]&\"/\"&B4_Risk_Sub_Category_Table[[#This Row],[B4. Risk Category]]","v":"Internal/Logistics Procurement"},"Lack of Proper and/or Insufficient Policies/Systems",{"$f":"B4_Risk_Sub_Category_Table[[#This Row],[B4. Risk Type:]]&\"/\"&B4_Risk_Sub_Category_Table[[#This Row],[B4. Risk Category]]&\"/\"&B4_Risk_Sub_Category_Table[[#This Row],[B4. Risk Sub-Category]]","v":"Internal/Logistics Procurement/Lack of Proper and/or Insufficient Policies/Systems"},null,null,null,null,null,null,null,null,"External","Aid Diversion","Interference in Implementation",{"$f":"B5_Risk_Sub_Category_Type_Table[[#This Row],[B5. Risk Type:]]&\"/\"&B5_Risk_Sub_Category_Type_Table[[#This Row],[B5. Risk Category]]&\"/\"&B5_Risk_Sub_Category_Type_Table[[#This Row],[B5. Risk Sub-Category]]","v":"External/Aid Diversion/Interference in Implementation"},"Project/program planned implementation ",{"$f":"B5_Risk_Sub_Category_Type_Table[[#This Row],[B5. Risk Type:]]&\"/\"&B5_Risk_Sub_Category_Type_Table[[#This Row],[B5. Risk Category]]&\"/\"&B5_Risk_Sub_Category_Type_Table[[#This Row],[B5. Risk Sub-Category]]&\"/\"&B5_Risk_Sub_Category_Type_Table[[#This Row],[B5. Risk Sub-Category Type]]","v":"External/Aid Diversion/Interference in Implementation/Project/program planned implementation "},null,null,null,null,null,null,null,null,null,null,null,null,null,null,null,null,null,"Food_Security_Livelihoods_FSL","Supplementary food assistance",{"$f":"CC2_Cluster_Activity_Table[[#This Row],[C2. Cluster (affected):]]&\"/\"&CC2_Cluster_Activity_Table[[#This Row],[C2. Cluster Activity:]]","v":"Food_Security_Livelihoods_FSL/Supplementary food assistance"}]
[null,null,null,null,null,null,null,null,null,null,null,null,null,null,null,null,"Other","PSEA",{"$f":"B3_Risk_Category_Table[[#This Row],[B3. Risk Type:]]&\"/\"&B3_Risk_Category_Table[[#This Row],[B3. Risk Category]]","v":"Other/PSEA"},null,null,null,null,null,null,null,"Internal","Logistics Procurement",{"$f":"B4_Risk_Sub_Category_Table[[#This Row],[B4. Risk Type:]]&\"/\"&B4_Risk_Sub_Category_Table[[#This Row],[B4. Risk Category]]","v":"Internal/Logistics Procurement"},"Lack of Proper and/or Insufficient Standard Operating Procedures",{"$f":"B4_Risk_Sub_Category_Table[[#This Row],[B4. Risk Type:]]&\"/\"&B4_Risk_Sub_Category_Table[[#This Row],[B4. Risk Category]]&\"/\"&B4_Risk_Sub_Category_Table[[#This Row],[B4. Risk Sub-Category]]","v":"Internal/Logistics Procurement/Lack of Proper and/or Insufficient Standard Operating Procedures"},null,null,null,null,null,null,null,null,"External","Aid Diversion","Interference in Implementation",{"$f":"B5_Risk_Sub_Category_Type_Table[[#This Row],[B5. Risk Type:]]&\"/\"&B5_Risk_Sub_Category_Type_Table[[#This Row],[B5. Risk Category]]&\"/\"&B5_Risk_Sub_Category_Type_Table[[#This Row],[B5. Risk Sub-Category]]","v":"External/Aid Diversion/Interference in Implementation"},"Publicizing/claiming NGO activities through social media",{"$f":"B5_Risk_Sub_Category_Type_Table[[#This Row],[B5. Risk Type:]]&\"/\"&B5_Risk_Sub_Category_Type_Table[[#This Row],[B5. Risk Category]]&\"/\"&B5_Risk_Sub_Category_Type_Table[[#This Row],[B5. Risk Sub-Category]]&\"/\"&B5_Risk_Sub_Category_Type_Table[[#This Row],[B5. Risk Sub-Category Type]]","v":"External/Aid Diversion/Interference in Implementation/Publicizing/claiming NGO activities through social media"},null,null,null,null,null,null,null,null,null,null,null,null,null,null,null,null,null,"Food_Security_Livelihoods_FSL","Support to asset building/protection",{"$f":"CC2_Cluster_Activity_Table[[#This Row],[C2. Cluster (affected):]]&\"/\"&CC2_Cluster_Activity_Table[[#This Row],[C2. Cluster Activity:]]","v":"Food_Security_Livelihoods_FSL/Support to asset building/protection"}]
[null,null,null,null,null,null,null,null,null,null,null,null,null,null,null,null,"Other","Quality, Accountability and AAP",{"$f":"B3_Risk_Category_Table[[#This Row],[B3. Risk Type:]]&\"/\"&B3_Risk_Category_Table[[#This Row],[B3. Risk Category]]","v":"Other/Quality, Accountability and AAP"},null,null,null,null,null,null,null,"Internal","Logistics Procurement",{"$f":"B4_Risk_Sub_Category_Table[[#This Row],[B4. Risk Type:]]&\"/\"&B4_Risk_Sub_Category_Table[[#This Row],[B4. Risk Category]]","v":"Internal/Logistics Procurement"},"Obscure System for Outsourcing and/or Contracting",{"$f":"B4_Risk_Sub_Category_Table[[#This Row],[B4. Risk Type:]]&\"/\"&B4_Risk_Sub_Category_Table[[#This Row],[B4. Risk Category]]&\"/\"&B4_Risk_Sub_Category_Table[[#This Row],[B4. Risk Sub-Category]]","v":"Internal/Logistics Procurement/Obscure System for Outsourcing and/or Contracting"},null,null,null,null,null,null,null,null,"External","Aid Diversion","Interference in Implementation",{"$f":"B5_Risk_Sub_Category_Type_Table[[#This Row],[B5. Risk Type:]]&\"/\"&B5_Risk_Sub_Category_Type_Table[[#This Row],[B5. Risk Category]]&\"/\"&B5_Risk_Sub_Category_Type_Table[[#This Row],[B5. Risk Sub-Category]]","v":"External/Aid Diversion/Interference in Implementation"},"Staff recruitment process",{"$f":"B5_Risk_Sub_Category_Type_Table[[#This Row],[B5. Risk Type:]]&\"/\"&B5_Risk_Sub_Category_Type_Table[[#This Row],[B5. Risk Category]]&\"/\"&B5_Risk_Sub_Category_Type_Table[[#This Row],[B5. Risk Sub-Category]]&\"/\"&B5_Risk_Sub_Category_Type_Table[[#This Row],[B5. Risk Sub-Category Type]]","v":"External/Aid Diversion/Interference in Implementation/Staff recruitment process"},null,null,null,null,null,null,null,null,null,null,null,null,null,null,null,null,null,"Food_Security_Livelihoods_FSL","Support to bakeries",{"$f":"CC2_Cluster_Activity_Table[[#This Row],[C2. Cluster (affected):]]&\"/\"&CC2_Cluster_Activity_Table[[#This Row],[C2. Cluster Activity:]]","v":"Food_Security_Livelihoods_FSL/Support to bakeries"}]
[null,null,null,null,null,null,null,null,null,null,null,null,null,null,null,null,"Other","Safety & Security",{"$f":"B3_Risk_Category_Table[[#This Row],[B3. Risk Type:]]&\"/\"&B3_Risk_Category_Table[[#This Row],[B3. Risk Category]]","v":"Other/Safety & Security"},null,null,null,null,null,null,null,"Internal","Logistics Procurement",{"$f":"B4_Risk_Sub_Category_Table[[#This Row],[B4. Risk Type:]]&\"/\"&B4_Risk_Sub_Category_Table[[#This Row],[B4. Risk Category]]","v":"Internal/Logistics Procurement"},"Obscure System for Vendors' Vetting and Selection",{"$f":"B4_Risk_Sub_Category_Table[[#This Row],[B4. Risk Type:]]&\"/\"&B4_Risk_Sub_Category_Table[[#This Row],[B4. Risk Category]]&\"/\"&B4_Risk_Sub_Category_Table[[#This Row],[B4. Risk Sub-Category]]","v":"Internal/Logistics Procurement/Obscure System for Vendors' Vetting and Selection"},null,null,null,null,null,null,null,null,"External","Aid Diversion","Interference in Implementation",{"$f":"B5_Risk_Sub_Category_Type_Table[[#This Row],[B5. Risk Type:]]&\"/\"&B5_Risk_Sub_Category_Type_Table[[#This Row],[B5. Risk Category]]&\"/\"&B5_Risk_Sub_Category_Type_Table[[#This Row],[B5. Risk Sub-Category]]","v":"External/Aid Diversion/Interference in Implementation"},"Other",{"$f":"B5_Risk_Sub_Category_Type_Table[[#This Row],[B5. Risk Type:]]&\"/\"&B5_Risk_Sub_Category_Type_Table[[#This Row],[B5. Risk Category]]&\"/\"&B5_Risk_Sub_Category_Type_Table[[#This Row],[B5. Risk Sub-Category]]&\"/\"&B5_Risk_Sub_Category_Type_Table[[#This Row],[B5. Risk Sub-Category Type]]","v":"External/Aid Diversion/Interference in Implementation/Other"},null,null,null,null,null,null,null,null,null,null,null,null,null,null,null,null,null,"Food_Security_Livelihoods_FSL","Support to income-generating activities such as vocational training",{"$f":"CC2_Cluster_Activity_Table[[#This Row],[C2. Cluster (affected):]]&\"/\"&CC2_Cluster_Activity_Table[[#This Row],[C2. Cluster Activity:]]","v":"Food_Security_Livelihoods_FSL/Support to income-generating activities such as vocational training"}]
[null,null,null,null,null,null,null,null,null,null,null,null,null,null,null,null,"Other","Sudden Onset of Large Scale Emergency",{"$f":"B3_Risk_Category_Table[[#This Row],[B3. Risk Type:]]&\"/\"&B3_Risk_Category_Table[[#This Row],[B3. Risk Category]]","v":"Other/Sudden Onset of Large Scale Emergency"},null,null,null,null,null,null,null,"Internal","Logistics Procurement",{"$f":"B4_Risk_Sub_Category_Table[[#This Row],[B4. Risk Type:]]&\"/\"&B4_Risk_Sub_Category_Table[[#This Row],[B4. Risk Category]]","v":"Internal/Logistics Procurement"},"Quality, Accountability and AAP",{"$f":"B4_Risk_Sub_Category_Table[[#This Row],[B4. Risk Type:]]&\"/\"&B4_Risk_Sub_Category_Table[[#This Row],[B4. Risk Category]]&\"/\"&B4_Risk_Sub_Category_Table[[#This Row],[B4. Risk Sub-Category]]","v":"Internal/Logistics Procurement/Quality, Accountability and AAP"},null,null,null,null,null,null,null,null,"External","Aid Diversion","Other",{"$f":"B5_Risk_Sub_Category_Type_Table[[#This Row],[B5. Risk Type:]]&\"/\"&B5_Risk_Sub_Category_Type_Table[[#This Row],[B5. Risk Category]]&\"/\"&B5_Risk_Sub_Category_Type_Table[[#This Row],[B5. Risk Sub-Category]]","v":"External/Aid Diversion/Other"},"Other",{"$f":"B5_Risk_Sub_Category_Type_Table[[#This Row],[B5. Risk Type:]]&\"/\"&B5_Risk_Sub_Category_Type_Table[[#This Row],[B5. Risk Category]]&\"/\"&B5_Risk_Sub_Category_Type_Table[[#This Row],[B5. Risk Sub-Category]]&\"/\"&B5_Risk_Sub_Category_Type_Table[[#This Row],[B5. Risk Sub-Category Type]]","v":"External/Aid Diversion/Other/Other"},null,null,null,null,null,null,null,null,null,null,null,null,null,null,null,null,null,"Food_Security_Livelihoods_FSL","Support to small scale food production",{"$f":"CC2_Cluster_Activity_Table[[#This Row],[C2. Cluster (affected):]]&\"/\"&CC2_Cluster_Activity_Table[[#This Row],[C2. Cluster Activity:]]","v":"Food_Security_Livelihoods_FSL/Support to small scale food production"}]
[null,null,null,null,null,null,null,null,null,null,null,null,null,null,null,null,"Other","Under Engagement with Government due to Lack of Understanding of the Cross-border Operation",{"$f":"B3_Risk_Category_Table[[#This Row],[B3. Risk Type:]]&\"/\"&B3_Risk_Category_Table[[#This Row],[B3. Risk Category]]","v":"Other/Under Engagement with Government due to Lack of Understanding of the Cross-border Operation"},null,null,null,null,null,null,null,"Internal","Logistics Procurement",{"$f":"B4_Risk_Sub_Category_Table[[#This Row],[B4. Risk Type:]]&\"/\"&B4_Risk_Sub_Category_Table[[#This Row],[B4. Risk Category]]","v":"Internal/Logistics Procurement"},"Other",{"$f":"B4_Risk_Sub_Category_Table[[#This Row],[B4. Risk Type:]]&\"/\"&B4_Risk_Sub_Category_Table[[#This Row],[B4. Risk Category]]&\"/\"&B4_Risk_Sub_Category_Table[[#This Row],[B4. Risk Sub-Category]]","v":"Internal/Logistics Procurement/Other"},null,null,null,null,null,null,null,null,"External","Environment","Climatic Conditions",{"$f":"B5_Risk_Sub_Category_Type_Table[[#This Row],[B5. Risk Type:]]&\"/\"&B5_Risk_Sub_Category_Type_Table[[#This Row],[B5. Risk Category]]&\"/\"&B5_Risk_Sub_Category_Type_Table[[#This Row],[B5. Risk Sub-Category]]","v":"External/Environment/Climatic Conditions"},"Extreme climatic conditions",{"$f":"B5_Risk_Sub_Category_Type_Table[[#This Row],[B5. Risk Type:]]&\"/\"&B5_Risk_Sub_Category_Type_Table[[#This Row],[B5. Risk Category]]&\"/\"&B5_Risk_Sub_Category_Type_Table[[#This Row],[B5. Risk Sub-Category]]&\"/\"&B5_Risk_Sub_Category_Type_Table[[#This Row],[B5. Risk Sub-Category Type]]","v":"External/Environment/Climatic Conditions/Extreme climatic conditions"},null,null,null,null,null,null,null,null,null,null,null,null,null,null,null,null,null,"Food_Security_Livelihoods_FSL","Other",{"$f":"CC2_Cluster_Activity_Table[[#This Row],[C2. Cluster (affected):]]&\"/\"&CC2_Cluster_Activity_Table[[#This Row],[C2. Cluster Activity:]]","v":"Food_Security_Livelihoods_FSL/Other"}]
[null,null,null,null,null,null,null,null,null,null,null,null,null,null,null,null,"Other","Other",{"$f":"B3_Risk_Category_Table[[#This Row],[B3. Risk Type:]]&\"/\"&B3_Risk_Category_Table[[#This Row],[B3. Risk Category]]","v":"Other/Other"},null,null,null,null,null,null,null,"Internal","Operational",{"$f":"B4_Risk_Sub_Category_Table[[#This Row],[B4. Risk Type:]]&\"/\"&B4_Risk_Sub_Category_Table[[#This Row],[B4. Risk Category]]","v":"Internal/Operational"},"Absence of Code of Conduct",{"$f":"B4_Risk_Sub_Category_Table[[#This Row],[B4. Risk Type:]]&\"/\"&B4_Risk_Sub_Category_Table[[#This Row],[B4. Risk Category]]&\"/\"&B4_Risk_Sub_Category_Table[[#This Row],[B4. Risk Sub-Category]]","v":"Internal/Operational/Absence of Code of Conduct"},null,null,null,null,null,null,null,null,"External","Environment","Climatic Conditions",{"$f":"B5_Risk_Sub_Category_Type_Table[[#This Row],[B5. Risk Type:]]&\"/\"&B5_Risk_Sub_Category_Type_Table[[#This Row],[B5. Risk Category]]&\"/\"&B5_Risk_Sub_Category_Type_Table[[#This Row],[B5. Risk Sub-Category]]","v":"External/Environment/Climatic Conditions"},"Flooding",{"$f":"B5_Risk_Sub_Category_Type_Table[[#This Row],[B5. Risk Type:]]&\"/\"&B5_Risk_Sub_Category_Type_Table[[#This Row],[B5. Risk Category]]&\"/\"&B5_Risk_Sub_Category_Type_Table[[#This Row],[B5. Risk Sub-Category]]&\"/\"&B5_Risk_Sub_Category_Type_Table[[#This Row],[B5. Risk Sub-Category Type]]","v":"External/Environment/Climatic Conditions/Flooding"},null,null,null,null,null,null,null,null,null,null,null,null,null,null,null,null,null,"Health","Capacity building of health care providers and community health workers",{"$f":"CC2_Cluster_Activity_Table[[#This Row],[C2. Cluster (affected):]]&\"/\"&CC2_Cluster_Activity_Table[[#This Row],[C2. Cluster Activity:]]","v":"Health/Capacity building of health care providers and community health workers"}]
[null,null,null,null,null,null,null,null,null,null,null,null,null,null,null,null,null,null,null,null,null,null,null,null,null,null,"Internal","Operational",{"$f":"B4_Risk_Sub_Category_Table[[#This Row],[B4. Risk Type:]]&\"/\"&B4_Risk_Sub_Category_Table[[#This Row],[B4. Risk Category]]","v":"Internal/Operational"},"Excessive use of cash transactions at the operational level",{"$f":"B4_Risk_Sub_Category_Table[[#This Row],[B4. Risk Type:]]&\"/\"&B4_Risk_Sub_Category_Table[[#This Row],[B4. Risk Category]]&\"/\"&B4_Risk_Sub_Category_Table[[#This Row],[B4. Risk Sub-Category]]","v":"Internal/Operational/Excessive use of cash transactions at the operational level"},null,null,null,null,null,null,null,null,"External","Environment","Climatic Conditions",{"$f":"B5_Risk_Sub_Category_Type_Table[[#This Row],[B5. Risk Type:]]&\"/\"&B5_Risk_Sub_Category_Type_Table[[#This Row],[B5. Risk Category]]&\"/\"&B5_Risk_Sub_Category_Type_Table[[#This Row],[B5. Risk Sub-Category]]","v":"External/Environment/Climatic Conditions"},"Other",{"$f":"B5_Risk_Sub_Category_Type_Table[[#This Row],[B5. Risk Type:]]&\"/\"&B5_Risk_Sub_Category_Type_Table[[#This Row],[B5. Risk Category]]&\"/\"&B5_Risk_Sub_Category_Type_Table[[#This Row],[B5. Risk Sub-Category]]&\"/\"&B5_Risk_Sub_Category_Type_Table[[#This Row],[B5. Risk Sub-Category Type]]","v":"External/Environment/Climatic Conditions/Other"},null,null,null,null,null,null,null,null,null,null,null,null,null,null,null,null,null,"Health","Immunization",{"$f":"CC2_Cluster_Activity_Table[[#This Row],[C2. Cluster (affected):]]&\"/\"&CC2_Cluster_Activity_Table[[#This Row],[C2. Cluster Activity:]]","v":"Health/Immunization"}]
[null,null,null,null,null,null,null,null,null,null,null,null,null,null,null,null,null,null,null,null,null,null,null,null,null,null,"Internal","Operational",{"$f":"B4_Risk_Sub_Category_Table[[#This Row],[B4. Risk Type:]]&\"/\"&B4_Risk_Sub_Category_Table[[#This Row],[B4. Risk Category]]","v":"Internal/Operational"},"Lack of interest for Support Staff Capacity Building",{"$f":"B4_Risk_Sub_Category_Table[[#This Row],[B4. Risk Type:]]&\"/\"&B4_Risk_Sub_Category_Table[[#This Row],[B4. Risk Category]]&\"/\"&B4_Risk_Sub_Category_Table[[#This Row],[B4. Risk Sub-Category]]","v":"Internal/Operational/Lack of interest for Support Staff Capacity Building"},null,null,null,null,null,null,null,null,"External","Environment","Environmental Constraint",{"$f":"B5_Risk_Sub_Category_Type_Table[[#This Row],[B5. Risk Type:]]&\"/\"&B5_Risk_Sub_Category_Type_Table[[#This Row],[B5. Risk Category]]&\"/\"&B5_Risk_Sub_Category_Type_Table[[#This Row],[B5. Risk Sub-Category]]","v":"External/Environment/Environmental Constraint"},"Improper waste disposal",{"$f":"B5_Risk_Sub_Category_Type_Table[[#This Row],[B5. Risk Type:]]&\"/\"&B5_Risk_Sub_Category_Type_Table[[#This Row],[B5. Risk Category]]&\"/\"&B5_Risk_Sub_Category_Type_Table[[#This Row],[B5. Risk Sub-Category]]&\"/\"&B5_Risk_Sub_Category_Type_Table[[#This Row],[B5. Risk Sub-Category Type]]","v":"External/Environment/Environmental Constraint/Improper waste disposal"},null,null,null,null,null,null,null,null,null,null,null,null,null,null,null,null,null,"Health","Mental health services",{"$f":"CC2_Cluster_Activity_Table[[#This Row],[C2. Cluster (affected):]]&\"/\"&CC2_Cluster_Activity_Table[[#This Row],[C2. Cluster Activity:]]","v":"Health/Mental health services"}]
[null,null,null,null,null,null,null,null,null,null,null,null,null,null,null,null,null,null,null,null,null,null,null,null,null,null,"Internal","Operational",{"$f":"B4_Risk_Sub_Category_Table[[#This Row],[B4. Risk Type:]]&\"/\"&B4_Risk_Sub_Category_Table[[#This Row],[B4. Risk Category]]","v":"Internal/Operational"},"Lack of Proper and/or Insufficient Policies/Systems",{"$f":"B4_Risk_Sub_Category_Table[[#This Row],[B4. Risk Type:]]&\"/\"&B4_Risk_Sub_Category_Table[[#This Row],[B4. Risk Category]]&\"/\"&B4_Risk_Sub_Category_Table[[#This Row],[B4. Risk Sub-Category]]","v":"Internal/Operational/Lack of Proper and/or Insufficient Policies/Systems"},null,null,null,null,null,null,null,null,"External","Environment","Environmental Constraint",{"$f":"B5_Risk_Sub_Category_Type_Table[[#This Row],[B5. Risk Type:]]&\"/\"&B5_Risk_Sub_Category_Type_Table[[#This Row],[B5. Risk Category]]&\"/\"&B5_Risk_Sub_Category_Type_Table[[#This Row],[B5. Risk Sub-Category]]","v":"External/Environment/Environmental Constraint"},"Poor Water Safety Planning",{"$f":"B5_Risk_Sub_Category_Type_Table[[#This Row],[B5. Risk Type:]]&\"/\"&B5_Risk_Sub_Category_Type_Table[[#This Row],[B5. Risk Category]]&\"/\"&B5_Risk_Sub_Category_Type_Table[[#This Row],[B5. Risk Sub-Category]]&\"/\"&B5_Risk_Sub_Category_Type_Table[[#This Row],[B5. Risk Sub-Category Type]]","v":"External/Environment/Environmental Constraint/Poor Water Safety Planning"},null,null,null,null,null,null,null,null,null,null,null,null,null,null,null,null,null,"Health","Mobile medical units",{"$f":"CC2_Cluster_Activity_Table[[#This Row],[C2. Cluster (affected):]]&\"/\"&CC2_Cluster_Activity_Table[[#This Row],[C2. Cluster Activity:]]","v":"Health/Mobile medical units"}]
[null,null,null,null,null,null,null,null,null,null,null,null,null,null,null,null,null,null,null,null,null,null,null,null,null,null,"Internal","Operational",{"$f":"B4_Risk_Sub_Category_Table[[#This Row],[B4. Risk Type:]]&\"/\"&B4_Risk_Sub_Category_Table[[#This Row],[B4. Risk Category]]","v":"Internal/Operational"},"Lack of Proper and/or Insufficient Standard Operating Procedures",{"$f":"B4_Risk_Sub_Category_Table[[#This Row],[B4. Risk Type:]]&\"/\"&B4_Risk_Sub_Category_Table[[#This Row],[B4. Risk Category]]&\"/\"&B4_Risk_Sub_Category_Table[[#This Row],[B4. Risk Sub-Category]]","v":"Internal/Operational/Lack of Proper and/or Insufficient Standard Operating Procedures"},null,null,null,null,null,null,null,null,"External","Environment","Environmental Constraint",{"$f":"B5_Risk_Sub_Category_Type_Table[[#This Row],[B5. Risk Type:]]&\"/\"&B5_Risk_Sub_Category_Type_Table[[#This Row],[B5. Risk Category]]&\"/\"&B5_Risk_Sub_Category_Type_Table[[#This Row],[B5. Risk Sub-Category]]","v":"External/Environment/Environmental Constraint"},"Other",{"$f":"B5_Risk_Sub_Category_Type_Table[[#This Row],[B5. Risk Type:]]&\"/\"&B5_Risk_Sub_Category_Type_Table[[#This Row],[B5. Risk Category]]&\"/\"&B5_Risk_Sub_Category_Type_Table[[#This Row],[B5. Risk Sub-Category]]&\"/\"&B5_Risk_Sub_Category_Type_Table[[#This Row],[B5. Risk Sub-Category Type]]","v":"External/Environment/Environmental Constraint/Other"},null,null,null,null,null,null,null,null,null,null,null,null,null,null,null,null,null,"Health","Provision of medicine and medical supplies",{"$f":"CC2_Cluster_Activity_Table[[#This Row],[C2. Cluster (affected):]]&\"/\"&CC2_Cluster_Activity_Table[[#This Row],[C2. Cluster Activity:]]","v":"Health/Provision of medicine and medical supplies"}]
[null,null,null,null,null,null,null,null,null,null,null,null,null,null,null,null,null,null,null,null,null,null,null,null,null,null,"Internal","Operational",{"$f":"B4_Risk_Sub_Category_Table[[#This Row],[B4. Risk Type:]]&\"/\"&B4_Risk_Sub_Category_Table[[#This Row],[B4. Risk Category]]","v":"Internal/Operational"},"Poor Capacity of Support Staff on Safety & Security Management",{"$f":"B4_Risk_Sub_Category_Table[[#This Row],[B4. Risk Type:]]&\"/\"&B4_Risk_Sub_Category_Table[[#This Row],[B4. Risk Category]]&\"/\"&B4_Risk_Sub_Category_Table[[#This Row],[B4. Risk Sub-Category]]","v":"Internal/Operational/Poor Capacity of Support Staff on Safety & Security Management"},null,null,null,null,null,null,null,null,"External","Environment","Other",{"$f":"B5_Risk_Sub_Category_Type_Table[[#This Row],[B5. Risk Type:]]&\"/\"&B5_Risk_Sub_Category_Type_Table[[#This Row],[B5. Risk Category]]&\"/\"&B5_Risk_Sub_Category_Type_Table[[#This Row],[B5. Risk Sub-Category]]","v":"External/Environment/Other"},"Other",{"$f":"B5_Risk_Sub_Category_Type_Table[[#This Row],[B5. Risk Type:]]&\"/\"&B5_Risk_Sub_Category_Type_Table[[#This Row],[B5. Risk Category]]&\"/\"&B5_Risk_Sub_Category_Type_Table[[#This Row],[B5. Risk Sub-Category]]&\"/\"&B5_Risk_Sub_Category_Type_Table[[#This Row],[B5. Risk Sub-Category Type]]","v":"External/Environment/Other/Other"},null,null,null,null,null,null,null,null,null,null,null,null,null,null,null,null,null,"Health","Provision of primary and secondary health care services",{"$f":"CC2_Cluster_Activity_Table[[#This Row],[C2. Cluster (affected):]]&\"/\"&CC2_Cluster_Activity_Table[[#This Row],[C2. Cluster Activity:]]","v":"Health/Provision of primary and secondary health care services"}]
[null,null,null,null,null,null,null,null,null,null,null,null,null,null,null,null,null,null,null,null,null,null,null,null,null,null,"Internal","Operational",{"$f":"B4_Risk_Sub_Category_Table[[#This Row],[B4. Risk Type:]]&\"/\"&B4_Risk_Sub_Category_Table[[#This Row],[B4. Risk Category]]","v":"Internal/Operational"},"Quality, Accountability and AAP",{"$f":"B4_Risk_Sub_Category_Table[[#This Row],[B4. Risk Type:]]&\"/\"&B4_Risk_Sub_Category_Table[[#This Row],[B4. Risk Category]]&\"/\"&B4_Risk_Sub_Category_Table[[#This Row],[B4. Risk Sub-Category]]","v":"Internal/Operational/Quality, Accountability and AAP"},null,null,null,null,null,null,null,null,"External","Quality, Accountability and AAP","Accountability to Affected Populations",{"$f":"B5_Risk_Sub_Category_Type_Table[[#This Row],[B5. Risk Type:]]&\"/\"&B5_Risk_Sub_Category_Type_Table[[#This Row],[B5. Risk Category]]&\"/\"&B5_Risk_Sub_Category_Type_Table[[#This Row],[B5. Risk Sub-Category]]","v":"External/Quality, Accountability and AAP/Accountability to Affected Populations"},"AAP Commitments",{"$f":"B5_Risk_Sub_Category_Type_Table[[#This Row],[B5. Risk Type:]]&\"/\"&B5_Risk_Sub_Category_Type_Table[[#This Row],[B5. Risk Category]]&\"/\"&B5_Risk_Sub_Category_Type_Table[[#This Row],[B5. Risk Sub-Category]]&\"/\"&B5_Risk_Sub_Category_Type_Table[[#This Row],[B5. Risk Sub-Category Type]]","v":"External/Quality, Accountability and AAP/Accountability to Affected Populations/AAP Commitments"},null,null,null,null,null,null,null,null,null,null,null,null,null,null,null,null,null,"Health","Rehabilitation of health facilities",{"$f":"CC2_Cluster_Activity_Table[[#This Row],[C2. Cluster (affected):]]&\"/\"&CC2_Cluster_Activity_Table[[#This Row],[C2. Cluster Activity:]]","v":"Health/Rehabilitation of health facilities"}]
[null,null,null,null,null,null,null,null,null,null,null,null,null,null,null,null,null,null,null,null,null,null,null,null,null,null,"Internal","Operational",{"$f":"B4_Risk_Sub_Category_Table[[#This Row],[B4. Risk Type:]]&\"/\"&B4_Risk_Sub_Category_Table[[#This Row],[B4. Risk Category]]","v":"Internal/Operational"},"Other",{"$f":"B4_Risk_Sub_Category_Table[[#This Row],[B4. Risk Type:]]&\"/\"&B4_Risk_Sub_Category_Table[[#This Row],[B4. Risk Category]]&\"/\"&B4_Risk_Sub_Category_Table[[#This Row],[B4. Risk Sub-Category]]","v":"Internal/Operational/Other"},null,null,null,null,null,null,null,null,"External","Quality, Accountability and AAP","Accountability to Affected Populations",{"$f":"B5_Risk_Sub_Category_Type_Table[[#This Row],[B5. Risk Type:]]&\"/\"&B5_Risk_Sub_Category_Type_Table[[#This Row],[B5. Risk Category]]&\"/\"&B5_Risk_Sub_Category_Type_Table[[#This Row],[B5. Risk Sub-Category]]","v":"External/Quality, Accountability and AAP/Accountability to Affected Populations"},"Other",{"$f":"B5_Risk_Sub_Category_Type_Table[[#This Row],[B5. Risk Type:]]&\"/\"&B5_Risk_Sub_Category_Type_Table[[#This Row],[B5. Risk Category]]&\"/\"&B5_Risk_Sub_Category_Type_Table[[#This Row],[B5. Risk Sub-Category]]&\"/\"&B5_Risk_Sub_Category_Type_Table[[#This Row],[B5. Risk Sub-Category Type]]","v":"External/Quality, Accountability and AAP/Accountability to Affected Populations/Other"},null,null,null,null,null,null,null,null,null,null,null,null,null,null,null,null,null,"Health","Trauma management and disability and rehabilitation services",{"$f":"CC2_Cluster_Activity_Table[[#This Row],[C2. Cluster (affected):]]&\"/\"&CC2_Cluster_Activity_Table[[#This Row],[C2. Cluster Activity:]]","v":"Health/Trauma management and disability and rehabilitation services"}]
[null,null,null,null,null,null,null,null,null,null,null,null,null,null,null,null,null,null,null,null,null,null,null,null,null,null,"Internal","Programmatic",{"$f":"B4_Risk_Sub_Category_Table[[#This Row],[B4. Risk Type:]]&\"/\"&B4_Risk_Sub_Category_Table[[#This Row],[B4. Risk Category]]","v":"Internal/Programmatic"},"Insufficient Coherence Between Identification, prioritization of needs and Program Design",{"$f":"B4_Risk_Sub_Category_Table[[#This Row],[B4. Risk Type:]]&\"/\"&B4_Risk_Sub_Category_Table[[#This Row],[B4. Risk Category]]&\"/\"&B4_Risk_Sub_Category_Table[[#This Row],[B4. Risk Sub-Category]]","v":"Internal/Programmatic/Insufficient Coherence Between Identification, prioritization of needs and Program Design"},null,null,null,null,null,null,null,null,"External","Quality, Accountability and AAP","Coordination Partnership",{"$f":"B5_Risk_Sub_Category_Type_Table[[#This Row],[B5. Risk Type:]]&\"/\"&B5_Risk_Sub_Category_Type_Table[[#This Row],[B5. Risk Category]]&\"/\"&B5_Risk_Sub_Category_Type_Table[[#This Row],[B5. Risk Sub-Category]]","v":"External/Quality, Accountability and AAP/Coordination Partnership"},"Coordination with donors",{"$f":"B5_Risk_Sub_Category_Type_Table[[#This Row],[B5. Risk Type:]]&\"/\"&B5_Risk_Sub_Category_Type_Table[[#This Row],[B5. Risk Category]]&\"/\"&B5_Risk_Sub_Category_Type_Table[[#This Row],[B5. Risk Sub-Category]]&\"/\"&B5_Risk_Sub_Category_Type_Table[[#This Row],[B5. Risk Sub-Category Type]]","v":"External/Quality, Accountability and AAP/Coordination Partnership/Coordination with donors"},null,null,null,null,null,null,null,null,null,null,null,null,null,null,null,null,null,"Health","Other",{"$f":"CC2_Cluster_Activity_Table[[#This Row],[C2. Cluster (affected):]]&\"/\"&CC2_Cluster_Activity_Table[[#This Row],[C2. Cluster Activity:]]","v":"Health/Other"}]
[null,null,null,null,null,null,null,null,null,null,null,null,null,null,null,null,null,null,null,null,null,null,null,null,null,null,"Internal","Programmatic",{"$f":"B4_Risk_Sub_Category_Table[[#This Row],[B4. Risk Type:]]&\"/\"&B4_Risk_Sub_Category_Table[[#This Row],[B4. Risk Category]]","v":"Internal/Programmatic"},"Lack Humanitarian Program Cycle and/or Project Management Cycle",{"$f":"B4_Risk_Sub_Category_Table[[#This Row],[B4. Risk Type:]]&\"/\"&B4_Risk_Sub_Category_Table[[#This Row],[B4. Risk Category]]&\"/\"&B4_Risk_Sub_Category_Table[[#This Row],[B4. Risk Sub-Category]]","v":"Internal/Programmatic/Lack Humanitarian Program Cycle and/or Project Management Cycle"},null,null,null,null,null,null,null,null,"External","Quality, Accountability and AAP","Coordination Partnership",{"$f":"B5_Risk_Sub_Category_Type_Table[[#This Row],[B5. Risk Type:]]&\"/\"&B5_Risk_Sub_Category_Type_Table[[#This Row],[B5. Risk Category]]&\"/\"&B5_Risk_Sub_Category_Type_Table[[#This Row],[B5. Risk Sub-Category]]","v":"External/Quality, Accountability and AAP/Coordination Partnership"},"Coordination with line ministries",{"$f":"B5_Risk_Sub_Category_Type_Table[[#This Row],[B5. Risk Type:]]&\"/\"&B5_Risk_Sub_Category_Type_Table[[#This Row],[B5. Risk Category]]&\"/\"&B5_Risk_Sub_Category_Type_Table[[#This Row],[B5. Risk Sub-Category]]&\"/\"&B5_Risk_Sub_Category_Type_Table[[#This Row],[B5. Risk Sub-Category Type]]","v":"External/Quality, Accountability and AAP/Coordination Partnership/Coordination with line ministries"},null,null,null,null,null,null,null,null,null,null,null,null,null,null,null,null,null,"Logistics","Maintain common logistics services",{"$f":"CC2_Cluster_Activity_Table[[#This Row],[C2. Cluster (affected):]]&\"/\"&CC2_Cluster_Activity_Table[[#This Row],[C2. Cluster Activity:]]","v":"Logistics/Maintain common logistics services"}]
[null,null,null,null,null,null,null,null,null,null,null,null,null,null,null,null,null,null,null,null,null,null,null,null,null,null,"Internal","Programmatic",{"$f":"B4_Risk_Sub_Category_Table[[#This Row],[B4. Risk Type:]]&\"/\"&B4_Risk_Sub_Category_Table[[#This Row],[B4. Risk Category]]","v":"Internal/Programmatic"},"Lack of Appropriate Compliance to Donor Policies/Requirements ",{"$f":"B4_Risk_Sub_Category_Table[[#This Row],[B4. Risk Type:]]&\"/\"&B4_Risk_Sub_Category_Table[[#This Row],[B4. Risk Category]]&\"/\"&B4_Risk_Sub_Category_Table[[#This Row],[B4. Risk Sub-Category]]","v":"Internal/Programmatic/Lack of Appropriate Compliance to Donor Policies/Requirements "},null,null,null,null,null,null,null,null,"External","Quality, Accountability and AAP","Coordination Partnership",{"$f":"B5_Risk_Sub_Category_Type_Table[[#This Row],[B5. Risk Type:]]&\"/\"&B5_Risk_Sub_Category_Type_Table[[#This Row],[B5. Risk Category]]&\"/\"&B5_Risk_Sub_Category_Type_Table[[#This Row],[B5. Risk Sub-Category]]","v":"External/Quality, Accountability and AAP/Coordination Partnership"},"Coordination with local authorities",{"$f":"B5_Risk_Sub_Category_Type_Table[[#This Row],[B5. Risk Type:]]&\"/\"&B5_Risk_Sub_Category_Type_Table[[#This Row],[B5. Risk Category]]&\"/\"&B5_Risk_Sub_Category_Type_Table[[#This Row],[B5. Risk Sub-Category]]&\"/\"&B5_Risk_Sub_Category_Type_Table[[#This Row],[B5. Risk Sub-Category Type]]","v":"External/Quality, Accountability and AAP/Coordination Partnership/Coordination with local authorities"},null,null,null,null,null,null,null,null,null,null,null,null,null,null,null,null,null,"Logistics","Trainings on logistics",{"$f":"CC2_Cluster_Activity_Table[[#This Row],[C2. Cluster (affected):]]&\"/\"&CC2_Cluster_Activity_Table[[#This Row],[C2. Cluster Activity:]]","v":"Logistics/Trainings on logistics"}]
[null,null,null,null,null,null,null,null,null,null,null,null,null,null,null,null,null,null,null,null,null,null,null,null,null,null,"Internal","Programmatic",{"$f":"B4_Risk_Sub_Category_Table[[#This Row],[B4. Risk Type:]]&\"/\"&B4_Risk_Sub_Category_Table[[#This Row],[B4. Risk Category]]","v":"Internal/Programmatic"},"Lack of Appropriate Reporting to the Relevant Bodies/Donors",{"$f":"B4_Risk_Sub_Category_Table[[#This Row],[B4. Risk Type:]]&\"/\"&B4_Risk_Sub_Category_Table[[#This Row],[B4. Risk Category]]&\"/\"&B4_Risk_Sub_Category_Table[[#This Row],[B4. Risk Sub-Category]]","v":"Internal/Programmatic/Lack of Appropriate Reporting to the Relevant Bodies/Donors"},null,null,null,null,null,null,null,null,"External","Quality, Accountability and AAP","Coordination Partnership",{"$f":"B5_Risk_Sub_Category_Type_Table[[#This Row],[B5. Risk Type:]]&\"/\"&B5_Risk_Sub_Category_Type_Table[[#This Row],[B5. Risk Category]]&\"/\"&B5_Risk_Sub_Category_Type_Table[[#This Row],[B5. Risk Sub-Category]]","v":"External/Quality, Accountability and AAP/Coordination Partnership"},"Coordination with NGO network(s)",{"$f":"B5_Risk_Sub_Category_Type_Table[[#This Row],[B5. Risk Type:]]&\"/\"&B5_Risk_Sub_Category_Type_Table[[#This Row],[B5. Risk Category]]&\"/\"&B5_Risk_Sub_Category_Type_Table[[#This Row],[B5. Risk Sub-Category]]&\"/\"&B5_Risk_Sub_Category_Type_Table[[#This Row],[B5. Risk Sub-Category Type]]","v":"External/Quality, Accountability and AAP/Coordination Partnership/Coordination with NGO network(s)"},null,null,null,null,null,null,null,null,null,null,null,null,null,null,null,null,null,"Logistics","Transshipment",{"$f":"CC2_Cluster_Activity_Table[[#This Row],[C2. Cluster (affected):]]&\"/\"&CC2_Cluster_Activity_Table[[#This Row],[C2. Cluster Activity:]]","v":"Logistics/Transshipment"}]
[null,null,null,null,null,null,null,null,null,null,null,null,null,null,null,null,null,null,null,null,null,null,null,null,null,null,"Internal","Programmatic",{"$f":"B4_Risk_Sub_Category_Table[[#This Row],[B4. Risk Type:]]&\"/\"&B4_Risk_Sub_Category_Table[[#This Row],[B4. Risk Category]]","v":"Internal/Programmatic"},"Lack of Effectiveness of the Humanitarian Coordination System",{"$f":"B4_Risk_Sub_Category_Table[[#This Row],[B4. Risk Type:]]&\"/\"&B4_Risk_Sub_Category_Table[[#This Row],[B4. Risk Category]]&\"/\"&B4_Risk_Sub_Category_Table[[#This Row],[B4. Risk Sub-Category]]","v":"Internal/Programmatic/Lack of Effectiveness of the Humanitarian Coordination System"},null,null,null,null,null,null,null,null,"External","Quality, Accountability and AAP","Coordination Partnership",{"$f":"B5_Risk_Sub_Category_Type_Table[[#This Row],[B5. Risk Type:]]&\"/\"&B5_Risk_Sub_Category_Type_Table[[#This Row],[B5. Risk Category]]&\"/\"&B5_Risk_Sub_Category_Type_Table[[#This Row],[B5. Risk Sub-Category]]","v":"External/Quality, Accountability and AAP/Coordination Partnership"},"Coordination with other INGOs",{"$f":"B5_Risk_Sub_Category_Type_Table[[#This Row],[B5. Risk Type:]]&\"/\"&B5_Risk_Sub_Category_Type_Table[[#This Row],[B5. Risk Category]]&\"/\"&B5_Risk_Sub_Category_Type_Table[[#This Row],[B5. Risk Sub-Category]]&\"/\"&B5_Risk_Sub_Category_Type_Table[[#This Row],[B5. Risk Sub-Category Type]]","v":"External/Quality, Accountability and AAP/Coordination Partnership/Coordination with other INGOs"},null,null,null,null,null,null,null,null,null,null,null,null,null,null,null,null,null,"Logistics","Other",{"$f":"CC2_Cluster_Activity_Table[[#This Row],[C2. Cluster (affected):]]&\"/\"&CC2_Cluster_Activity_Table[[#This Row],[C2. Cluster Activity:]]","v":"Logistics/Other"}]
[null,null,null,null,null,null,null,null,null,null,null,null,null,null,null,null,null,null,null,null,null,null,null,null,null,null,"Internal","Programmatic",{"$f":"B4_Risk_Sub_Category_Table[[#This Row],[B4. Risk Type:]]&\"/\"&B4_Risk_Sub_Category_Table[[#This Row],[B4. Risk Category]]","v":"Internal/Programmatic"},"Lack of Proper Risk Management System",{"$f":"B4_Risk_Sub_Category_Table[[#This Row],[B4. Risk Type:]]&\"/\"&B4_Risk_Sub_Category_Table[[#This Row],[B4. Risk Category]]&\"/\"&B4_Risk_Sub_Category_Table[[#This Row],[B4. Risk Sub-Category]]","v":"Internal/Programmatic/Lack of Proper Risk Management System"},null,null,null,null,null,null,null,null,"External","Quality, Accountability and AAP","Coordination Partnership",{"$f":"B5_Risk_Sub_Category_Type_Table[[#This Row],[B5. Risk Type:]]&\"/\"&B5_Risk_Sub_Category_Type_Table[[#This Row],[B5. Risk Category]]&\"/\"&B5_Risk_Sub_Category_Type_Table[[#This Row],[B5. Risk Sub-Category]]","v":"External/Quality, Accountability and AAP/Coordination Partnership"},"Coordination with other NGOs",{"$f":"B5_Risk_Sub_Category_Type_Table[[#This Row],[B5. Risk Type:]]&\"/\"&B5_Risk_Sub_Category_Type_Table[[#This Row],[B5. Risk Category]]&\"/\"&B5_Risk_Sub_Category_Type_Table[[#This Row],[B5. Risk Sub-Category]]&\"/\"&B5_Risk_Sub_Category_Type_Table[[#This Row],[B5. Risk Sub-Category Type]]","v":"External/Quality, Accountability and AAP/Coordination Partnership/Coordination with other NGOs"},null,null,null,null,null,null,null,null,null,null,null,null,null,null,null,null,null,"Nutrition","Capacity building of partners",{"$f":"CC2_Cluster_Activity_Table[[#This Row],[C2. Cluster (affected):]]&\"/\"&CC2_Cluster_Activity_Table[[#This Row],[C2. Cluster Activity:]]","v":"Nutrition/Capacity building of partners"}]
[null,null,null,null,null,null,null,null,null,null,null,null,null,null,null,null,null,null,null,null,null,null,null,null,null,null,"Internal","Programmatic",{"$f":"B4_Risk_Sub_Category_Table[[#This Row],[B4. Risk Type:]]&\"/\"&B4_Risk_Sub_Category_Table[[#This Row],[B4. Risk Category]]","v":"Internal/Programmatic"},"Poor Information and Data Quality and/or Poor Needs Assessment",{"$f":"B4_Risk_Sub_Category_Table[[#This Row],[B4. Risk Type:]]&\"/\"&B4_Risk_Sub_Category_Table[[#This Row],[B4. Risk Category]]&\"/\"&B4_Risk_Sub_Category_Table[[#This Row],[B4. Risk Sub-Category]]","v":"Internal/Programmatic/Poor Information and Data Quality and/or Poor Needs Assessment"},null,null,null,null,null,null,null,null,"External","Quality, Accountability and AAP","Coordination Partnership",{"$f":"B5_Risk_Sub_Category_Type_Table[[#This Row],[B5. Risk Type:]]&\"/\"&B5_Risk_Sub_Category_Type_Table[[#This Row],[B5. Risk Category]]&\"/\"&B5_Risk_Sub_Category_Type_Table[[#This Row],[B5. Risk Sub-Category]]","v":"External/Quality, Accountability and AAP/Coordination Partnership"},"Coordination with UN agencies",{"$f":"B5_Risk_Sub_Category_Type_Table[[#This Row],[B5. Risk Type:]]&\"/\"&B5_Risk_Sub_Category_Type_Table[[#This Row],[B5. Risk Category]]&\"/\"&B5_Risk_Sub_Category_Type_Table[[#This Row],[B5. Risk Sub-Category]]&\"/\"&B5_Risk_Sub_Category_Type_Table[[#This Row],[B5. Risk Sub-Category Type]]","v":"External/Quality, Accountability and AAP/Coordination Partnership/Coordination with UN agencies"},null,null,null,null,null,null,null,null,null,null,null,null,null,null,null,null,null,"Nutrition","Capacity building of public health staff on reporting and rapid/SMART assessments",{"$f":"CC2_Cluster_Activity_Table[[#This Row],[C2. Cluster (affected):]]&\"/\"&CC2_Cluster_Activity_Table[[#This Row],[C2. Cluster Activity:]]","v":"Nutrition/Capacity building of public health staff on reporting and rapid/SMART assessments"}]
[null,null,null,null,null,null,null,null,null,null,null,null,null,null,null,null,null,null,null,null,null,null,null,null,null,null,"Internal","Programmatic",{"$f":"B4_Risk_Sub_Category_Table[[#This Row],[B4. Risk Type:]]&\"/\"&B4_Risk_Sub_Category_Table[[#This Row],[B4. Risk Category]]","v":"Internal/Programmatic"},"Poor or Insufficient Capacity on Program Design and Development  ",{"$f":"B4_Risk_Sub_Category_Table[[#This Row],[B4. Risk Type:]]&\"/\"&B4_Risk_Sub_Category_Table[[#This Row],[B4. Risk Category]]&\"/\"&B4_Risk_Sub_Category_Table[[#This Row],[B4. Risk Sub-Category]]","v":"Internal/Programmatic/Poor or Insufficient Capacity on Program Design and Development  "},null,null,null,null,null,null,null,null,"External","Quality, Accountability and AAP","Coordination Partnership",{"$f":"B5_Risk_Sub_Category_Type_Table[[#This Row],[B5. Risk Type:]]&\"/\"&B5_Risk_Sub_Category_Type_Table[[#This Row],[B5. Risk Category]]&\"/\"&B5_Risk_Sub_Category_Type_Table[[#This Row],[B5. Risk Sub-Category]]","v":"External/Quality, Accountability and AAP/Coordination Partnership"},"Partnership with donors",{"$f":"B5_Risk_Sub_Category_Type_Table[[#This Row],[B5. Risk Type:]]&\"/\"&B5_Risk_Sub_Category_Type_Table[[#This Row],[B5. Risk Category]]&\"/\"&B5_Risk_Sub_Category_Type_Table[[#This Row],[B5. Risk Sub-Category]]&\"/\"&B5_Risk_Sub_Category_Type_Table[[#This Row],[B5. Risk Sub-Category Type]]","v":"External/Quality, Accountability and AAP/Coordination Partnership/Partnership with donors"},null,null,null,null,null,null,null,null,null,null,null,null,null,null,null,null,null,"Nutrition","Capacity development on nutrition-sensitive agriculture",{"$f":"CC2_Cluster_Activity_Table[[#This Row],[C2. Cluster (affected):]]&\"/\"&CC2_Cluster_Activity_Table[[#This Row],[C2. Cluster Activity:]]","v":"Nutrition/Capacity development on nutrition-sensitive agriculture"}]
[null,null,null,null,null,null,null,null,null,null,null,null,null,null,null,null,null,null,null,null,null,null,null,null,null,null,"Internal","Programmatic",{"$f":"B4_Risk_Sub_Category_Table[[#This Row],[B4. Risk Type:]]&\"/\"&B4_Risk_Sub_Category_Table[[#This Row],[B4. Risk Category]]","v":"Internal/Programmatic"},"Poor or Insufficient Monitoring, Reporting and Documentation of both Program and Financial Resources and Controlling Mechanisms",{"$f":"B4_Risk_Sub_Category_Table[[#This Row],[B4. Risk Type:]]&\"/\"&B4_Risk_Sub_Category_Table[[#This Row],[B4. Risk Category]]&\"/\"&B4_Risk_Sub_Category_Table[[#This Row],[B4. Risk Sub-Category]]","v":"Internal/Programmatic/Poor or Insufficient Monitoring, Reporting and Documentation of both Program and Financial Resources and Controlling Mechanisms"},null,null,null,null,null,null,null,null,"External","Quality, Accountability and AAP","Coordination Partnership",{"$f":"B5_Risk_Sub_Category_Type_Table[[#This Row],[B5. Risk Type:]]&\"/\"&B5_Risk_Sub_Category_Type_Table[[#This Row],[B5. Risk Category]]&\"/\"&B5_Risk_Sub_Category_Type_Table[[#This Row],[B5. Risk Sub-Category]]","v":"External/Quality, Accountability and AAP/Coordination Partnership"},"Partnership with other INGOs",{"$f":"B5_Risk_Sub_Category_Type_Table[[#This Row],[B5. Risk Type:]]&\"/\"&B5_Risk_Sub_Category_Type_Table[[#This Row],[B5. Risk Category]]&\"/\"&B5_Risk_Sub_Category_Type_Table[[#This Row],[B5. Risk Sub-Category]]&\"/\"&B5_Risk_Sub_Category_Type_Table[[#This Row],[B5. Risk Sub-Category Type]]","v":"External/Quality, Accountability and AAP/Coordination Partnership/Partnership with other INGOs"},null,null,null,null,null,null,null,null,null,null,null,null,null,null,null,null,null,"Nutrition","Facility and community-based counselling and awareness raising on IYCF-E and maternal nutrition",{"$f":"CC2_Cluster_Activity_Table[[#This Row],[C2. Cluster (affected):]]&\"/\"&CC2_Cluster_Activity_Table[[#This Row],[C2. Cluster Activity:]]","v":"Nutrition/Facility and community-based counselling and awareness raising on IYCF-E and maternal nutrition"}]
[null,null,null,null,null,null,null,null,null,null,null,null,null,null,null,null,null,null,null,null,null,null,null,null,null,null,"Internal","Programmatic",{"$f":"B4_Risk_Sub_Category_Table[[#This Row],[B4. Risk Type:]]&\"/\"&B4_Risk_Sub_Category_Table[[#This Row],[B4. Risk Category]]","v":"Internal/Programmatic"},"Poor Program Management",{"$f":"B4_Risk_Sub_Category_Table[[#This Row],[B4. Risk Type:]]&\"/\"&B4_Risk_Sub_Category_Table[[#This Row],[B4. Risk Category]]&\"/\"&B4_Risk_Sub_Category_Table[[#This Row],[B4. Risk Sub-Category]]","v":"Internal/Programmatic/Poor Program Management"},null,null,null,null,null,null,null,null,"External","Quality, Accountability and AAP","Coordination Partnership",{"$f":"B5_Risk_Sub_Category_Type_Table[[#This Row],[B5. Risk Type:]]&\"/\"&B5_Risk_Sub_Category_Type_Table[[#This Row],[B5. Risk Category]]&\"/\"&B5_Risk_Sub_Category_Type_Table[[#This Row],[B5. Risk Sub-Category]]","v":"External/Quality, Accountability and AAP/Coordination Partnership"},"Partnership with other NGOs",{"$f":"B5_Risk_Sub_Category_Type_Table[[#This Row],[B5. Risk Type:]]&\"/\"&B5_Risk_Sub_Category_Type_Table[[#This Row],[B5. Risk Category]]&\"/\"&B5_Risk_Sub_Category_Type_Table[[#This Row],[B5. Risk Sub-Category]]&\"/\"&B5_Risk_Sub_Category_Type_Table[[#This Row],[B5. Risk Sub-Category Type]]","v":"External/Quality, Accountability and AAP/Coordination Partnership/Partnership with other NGOs"},null,null,null,null,null,null,null,null,null,null,null,null,null,null,null,null,null,"Nutrition","Implementation of SOPs for breast milk substitutes",{"$f":"CC2_Cluster_Activity_Table[[#This Row],[C2. Cluster (affected):]]&\"/\"&CC2_Cluster_Activity_Table[[#This Row],[C2. Cluster Activity:]]","v":"Nutrition/Implementation of SOPs for breast milk substitutes"}]
[null,null,null,null,null,null,null,null,null,null,null,null,null,null,null,null,null,null,null,null,null,null,null,null,null,null,"Internal","Programmatic",{"$f":"B4_Risk_Sub_Category_Table[[#This Row],[B4. Risk Type:]]&\"/\"&B4_Risk_Sub_Category_Table[[#This Row],[B4. Risk Category]]","v":"Internal/Programmatic"},"Quality, Accountability and AAP",{"$f":"B4_Risk_Sub_Category_Table[[#This Row],[B4. Risk Type:]]&\"/\"&B4_Risk_Sub_Category_Table[[#This Row],[B4. Risk Category]]&\"/\"&B4_Risk_Sub_Category_Table[[#This Row],[B4. Risk Sub-Category]]","v":"Internal/Programmatic/Quality, Accountability and AAP"},null,null,null,null,null,null,null,null,"External","Quality, Accountability and AAP","Coordination Partnership",{"$f":"B5_Risk_Sub_Category_Type_Table[[#This Row],[B5. Risk Type:]]&\"/\"&B5_Risk_Sub_Category_Type_Table[[#This Row],[B5. Risk Category]]&\"/\"&B5_Risk_Sub_Category_Type_Table[[#This Row],[B5. Risk Sub-Category]]","v":"External/Quality, Accountability and AAP/Coordination Partnership"},"Partnership with UN agencies",{"$f":"B5_Risk_Sub_Category_Type_Table[[#This Row],[B5. Risk Type:]]&\"/\"&B5_Risk_Sub_Category_Type_Table[[#This Row],[B5. Risk Category]]&\"/\"&B5_Risk_Sub_Category_Type_Table[[#This Row],[B5. Risk Sub-Category]]&\"/\"&B5_Risk_Sub_Category_Type_Table[[#This Row],[B5. Risk Sub-Category Type]]","v":"External/Quality, Accountability and AAP/Coordination Partnership/Partnership with UN agencies"},null,null,null,null,null,null,null,null,null,null,null,null,null,null,null,null,null,"Nutrition","IYCF strategy development",{"$f":"CC2_Cluster_Activity_Table[[#This Row],[C2. Cluster (affected):]]&\"/\"&CC2_Cluster_Activity_Table[[#This Row],[C2. Cluster Activity:]]","v":"Nutrition/IYCF strategy development"}]
[null,null,null,null,null,null,null,null,null,null,null,null,null,null,null,null,null,null,null,null,null,null,null,null,null,null,"Internal","Programmatic",{"$f":"B4_Risk_Sub_Category_Table[[#This Row],[B4. Risk Type:]]&\"/\"&B4_Risk_Sub_Category_Table[[#This Row],[B4. Risk Category]]","v":"Internal/Programmatic"},"Other",{"$f":"B4_Risk_Sub_Category_Table[[#This Row],[B4. Risk Type:]]&\"/\"&B4_Risk_Sub_Category_Table[[#This Row],[B4. Risk Category]]&\"/\"&B4_Risk_Sub_Category_Table[[#This Row],[B4. Risk Sub-Category]]","v":"Internal/Programmatic/Other"},null,null,null,null,null,null,null,null,"External","Quality, Accountability and AAP","Coordination Partnership",{"$f":"B5_Risk_Sub_Category_Type_Table[[#This Row],[B5. Risk Type:]]&\"/\"&B5_Risk_Sub_Category_Type_Table[[#This Row],[B5. Risk Category]]&\"/\"&B5_Risk_Sub_Category_Type_Table[[#This Row],[B5. Risk Sub-Category]]","v":"External/Quality, Accountability and AAP/Coordination Partnership"},"Other",{"$f":"B5_Risk_Sub_Category_Type_Table[[#This Row],[B5. Risk Type:]]&\"/\"&B5_Risk_Sub_Category_Type_Table[[#This Row],[B5. Risk Category]]&\"/\"&B5_Risk_Sub_Category_Type_Table[[#This Row],[B5. Risk Sub-Category]]&\"/\"&B5_Risk_Sub_Category_Type_Table[[#This Row],[B5. Risk Sub-Category Type]]","v":"External/Quality, Accountability and AAP/Coordination Partnership/Other"},null,null,null,null,null,null,null,null,null,null,null,null,null,null,null,null,null,"Nutrition","Provision of micro-nutrient or vitamin A supplementation",{"$f":"CC2_Cluster_Activity_Table[[#This Row],[C2. Cluster (affected):]]&\"/\"&CC2_Cluster_Activity_Table[[#This Row],[C2. Cluster Activity:]]","v":"Nutrition/Provision of micro-nutrient or vitamin A supplementation"}]
[null,null,null,null,null,null,null,null,null,null,null,null,null,null,null,null,null,null,null,null,null,null,null,null,null,null,"Internal","Other",{"$f":"B4_Risk_Sub_Category_Table[[#This Row],[B4. Risk Type:]]&\"/\"&B4_Risk_Sub_Category_Table[[#This Row],[B4. Risk Category]]","v":"Internal/Other"},"Other",{"$f":"B4_Risk_Sub_Category_Table[[#This Row],[B4. Risk Type:]]&\"/\"&B4_Risk_Sub_Category_Table[[#This Row],[B4. Risk Category]]&\"/\"&B4_Risk_Sub_Category_Table[[#This Row],[B4. Risk Sub-Category]]","v":"Internal/Other/Other"},null,null,null,null,null,null,null,null,"External","Quality, Accountability and AAP","Other",{"$f":"B5_Risk_Sub_Category_Type_Table[[#This Row],[B5. Risk Type:]]&\"/\"&B5_Risk_Sub_Category_Type_Table[[#This Row],[B5. Risk Category]]&\"/\"&B5_Risk_Sub_Category_Type_Table[[#This Row],[B5. Risk Sub-Category]]","v":"External/Quality, Accountability and AAP/Other"},"Other",{"$f":"B5_Risk_Sub_Category_Type_Table[[#This Row],[B5. Risk Type:]]&\"/\"&B5_Risk_Sub_Category_Type_Table[[#This Row],[B5. Risk Category]]&\"/\"&B5_Risk_Sub_Category_Type_Table[[#This Row],[B5. Risk Sub-Category]]&\"/\"&B5_Risk_Sub_Category_Type_Table[[#This Row],[B5. Risk Sub-Category Type]]","v":"External/Quality, Accountability and AAP/Other/Other"},null,null,null,null,null,null,null,null,null,null,null,null,null,null,null,null,null,"Nutrition","Provision of specialized nutritious food for children for prevention of malnutrition Promotion of dietary diversity",{"$f":"CC2_Cluster_Activity_Table[[#This Row],[C2. Cluster (affected):]]&\"/\"&CC2_Cluster_Activity_Table[[#This Row],[C2. Cluster Activity:]]","v":"Nutrition/Provision of specialized nutritious food for children for prevention of malnutrition Promotion of dietary diversity"}]
[null,null,null,null,null,null,null,null,null,null,null,null,null,null,null,null,null,null,null,null,null,null,null,null,null,null,"Strategic","Change in Government Policy(s)",{"$f":"B4_Risk_Sub_Category_Table[[#This Row],[B4. Risk Type:]]&\"/\"&B4_Risk_Sub_Category_Table[[#This Row],[B4. Risk Category]]","v":"Strategic/Change in Government Policy(s)"},"Other",{"$f":"B4_Risk_Sub_Category_Table[[#This Row],[B4. Risk Type:]]&\"/\"&B4_Risk_Sub_Category_Table[[#This Row],[B4. Risk Category]]&\"/\"&B4_Risk_Sub_Category_Table[[#This Row],[B4. Risk Sub-Category]]","v":"Strategic/Change in Government Policy(s)/Other"},null,null,null,null,null,null,null,null,"External","Safety & Security","Safety Security of Affected Populations",{"$f":"B5_Risk_Sub_Category_Type_Table[[#This Row],[B5. Risk Type:]]&\"/\"&B5_Risk_Sub_Category_Type_Table[[#This Row],[B5. Risk Category]]&\"/\"&B5_Risk_Sub_Category_Type_Table[[#This Row],[B5. Risk Sub-Category]]","v":"External/Safety & Security/Safety Security of Affected Populations"},"Involuntary return to place of origin",{"$f":"B5_Risk_Sub_Category_Type_Table[[#This Row],[B5. Risk Type:]]&\"/\"&B5_Risk_Sub_Category_Type_Table[[#This Row],[B5. Risk Category]]&\"/\"&B5_Risk_Sub_Category_Type_Table[[#This Row],[B5. Risk Sub-Category]]&\"/\"&B5_Risk_Sub_Category_Type_Table[[#This Row],[B5. Risk Sub-Category Type]]","v":"External/Safety & Security/Safety Security of Affected Populations/Involuntary return to place of origin"},null,null,null,null,null,null,null,null,null,null,null,null,null,null,null,null,null,"Nutrition","Rapid/SMART assessments",{"$f":"CC2_Cluster_Activity_Table[[#This Row],[C2. Cluster (affected):]]&\"/\"&CC2_Cluster_Activity_Table[[#This Row],[C2. Cluster Activity:]]","v":"Nutrition/Rapid/SMART assessments"}]
[null,null,null,null,null,null,null,null,null,null,null,null,null,null,null,null,null,null,null,null,null,null,null,null,null,null,"Strategic","Demographic Change(s)",{"$f":"B4_Risk_Sub_Category_Table[[#This Row],[B4. Risk Type:]]&\"/\"&B4_Risk_Sub_Category_Table[[#This Row],[B4. Risk Category]]","v":"Strategic/Demographic Change(s)"},"Other",{"$f":"B4_Risk_Sub_Category_Table[[#This Row],[B4. Risk Type:]]&\"/\"&B4_Risk_Sub_Category_Table[[#This Row],[B4. Risk Category]]&\"/\"&B4_Risk_Sub_Category_Table[[#This Row],[B4. Risk Sub-Category]]","v":"Strategic/Demographic Change(s)/Other"},null,null,null,null,null,null,null,null,"External","Safety & Security","Safety Security of Affected Populations",{"$f":"B5_Risk_Sub_Category_Type_Table[[#This Row],[B5. Risk Type:]]&\"/\"&B5_Risk_Sub_Category_Type_Table[[#This Row],[B5. Risk Category]]&\"/\"&B5_Risk_Sub_Category_Type_Table[[#This Row],[B5. Risk Sub-Category]]","v":"External/Safety & Security/Safety Security of Affected Populations"},"People involuntarily forced/encouraged into an area in order to receive assistance",{"$f":"B5_Risk_Sub_Category_Type_Table[[#This Row],[B5. Risk Type:]]&\"/\"&B5_Risk_Sub_Category_Type_Table[[#This Row],[B5. Risk Category]]&\"/\"&B5_Risk_Sub_Category_Type_Table[[#This Row],[B5. Risk Sub-Category]]&\"/\"&B5_Risk_Sub_Category_Type_Table[[#This Row],[B5. Risk Sub-Category Type]]","v":"External/Safety & Security/Safety Security of Affected Populations/People involuntarily forced/encouraged into an area in order to receive assistance"},null,null,null,null,null,null,null,null,null,null,null,null,null,null,null,null,null,"Nutrition","Screening for acute malnutrition",{"$f":"CC2_Cluster_Activity_Table[[#This Row],[C2. Cluster (affected):]]&\"/\"&CC2_Cluster_Activity_Table[[#This Row],[C2. Cluster Activity:]]","v":"Nutrition/Screening for acute malnutrition"}]
[null,null,null,null,null,null,null,null,null,null,null,null,null,null,null,null,null,null,null,null,null,null,null,null,null,null,"Strategic","Duty of Care",{"$f":"B4_Risk_Sub_Category_Table[[#This Row],[B4. Risk Type:]]&\"/\"&B4_Risk_Sub_Category_Table[[#This Row],[B4. Risk Category]]","v":"Strategic/Duty of Care"},"Other",{"$f":"B4_Risk_Sub_Category_Table[[#This Row],[B4. Risk Type:]]&\"/\"&B4_Risk_Sub_Category_Table[[#This Row],[B4. Risk Category]]&\"/\"&B4_Risk_Sub_Category_Table[[#This Row],[B4. Risk Sub-Category]]","v":"Strategic/Duty of Care/Other"},null,null,null,null,null,null,null,null,"External","Safety & Security","Safety Security of Affected Populations",{"$f":"B5_Risk_Sub_Category_Type_Table[[#This Row],[B5. Risk Type:]]&\"/\"&B5_Risk_Sub_Category_Type_Table[[#This Row],[B5. Risk Category]]&\"/\"&B5_Risk_Sub_Category_Type_Table[[#This Row],[B5. Risk Sub-Category]]","v":"External/Safety & Security/Safety Security of Affected Populations"},"Presence of IEDs/UXOs/mines in the area",{"$f":"B5_Risk_Sub_Category_Type_Table[[#This Row],[B5. Risk Type:]]&\"/\"&B5_Risk_Sub_Category_Type_Table[[#This Row],[B5. Risk Category]]&\"/\"&B5_Risk_Sub_Category_Type_Table[[#This Row],[B5. Risk Sub-Category]]&\"/\"&B5_Risk_Sub_Category_Type_Table[[#This Row],[B5. Risk Sub-Category Type]]","v":"External/Safety & Security/Safety Security of Affected Populations/Presence of IEDs/UXOs/mines in the area"},null,null,null,null,null,null,null,null,null,null,null,null,null,null,null,null,null,"Nutrition","Strengthening/establishing nutrition surveillance system",{"$f":"CC2_Cluster_Activity_Table[[#This Row],[C2. Cluster (affected):]]&\"/\"&CC2_Cluster_Activity_Table[[#This Row],[C2. Cluster Activity:]]","v":"Nutrition/Strengthening/establishing nutrition surveillance system"}]
[null,null,null,null,null,null,null,null,null,null,null,null,null,null,null,null,null,null,null,null,null,null,null,null,null,null,"Strategic","Fluctuation of Exchange Rates",{"$f":"B4_Risk_Sub_Category_Table[[#This Row],[B4. Risk Type:]]&\"/\"&B4_Risk_Sub_Category_Table[[#This Row],[B4. Risk Category]]","v":"Strategic/Fluctuation of Exchange Rates"},"Other",{"$f":"B4_Risk_Sub_Category_Table[[#This Row],[B4. Risk Type:]]&\"/\"&B4_Risk_Sub_Category_Table[[#This Row],[B4. Risk Category]]&\"/\"&B4_Risk_Sub_Category_Table[[#This Row],[B4. Risk Sub-Category]]","v":"Strategic/Fluctuation of Exchange Rates/Other"},null,null,null,null,null,null,null,null,"External","Safety & Security","Safety Security of Affected Populations",{"$f":"B5_Risk_Sub_Category_Type_Table[[#This Row],[B5. Risk Type:]]&\"/\"&B5_Risk_Sub_Category_Type_Table[[#This Row],[B5. Risk Category]]&\"/\"&B5_Risk_Sub_Category_Type_Table[[#This Row],[B5. Risk Sub-Category]]","v":"External/Safety & Security/Safety Security of Affected Populations"},"Other",{"$f":"B5_Risk_Sub_Category_Type_Table[[#This Row],[B5. Risk Type:]]&\"/\"&B5_Risk_Sub_Category_Type_Table[[#This Row],[B5. Risk Category]]&\"/\"&B5_Risk_Sub_Category_Type_Table[[#This Row],[B5. Risk Sub-Category]]&\"/\"&B5_Risk_Sub_Category_Type_Table[[#This Row],[B5. Risk Sub-Category Type]]","v":"External/Safety & Security/Safety Security of Affected Populations/Other"},null,null,null,null,null,null,null,null,null,null,null,null,null,null,null,null,null,"Nutrition","Treatment of acute malnutrition",{"$f":"CC2_Cluster_Activity_Table[[#This Row],[C2. Cluster (affected):]]&\"/\"&CC2_Cluster_Activity_Table[[#This Row],[C2. Cluster Activity:]]","v":"Nutrition/Treatment of acute malnutrition"}]
[null,null,null,null,null,null,null,null,null,null,null,null,null,null,null,null,null,null,null,null,null,null,null,null,null,null,"Strategic","GBV",{"$f":"B4_Risk_Sub_Category_Table[[#This Row],[B4. Risk Type:]]&\"/\"&B4_Risk_Sub_Category_Table[[#This Row],[B4. Risk Category]]","v":"Strategic/GBV"},"Other",{"$f":"B4_Risk_Sub_Category_Table[[#This Row],[B4. Risk Type:]]&\"/\"&B4_Risk_Sub_Category_Table[[#This Row],[B4. Risk Category]]&\"/\"&B4_Risk_Sub_Category_Table[[#This Row],[B4. Risk Sub-Category]]","v":"Strategic/GBV/Other"},null,null,null,null,null,null,null,null,"External","Safety & Security","Safety Security of NGOs Personnel Assets Infrastructure Facilities",{"$f":"B5_Risk_Sub_Category_Type_Table[[#This Row],[B5. Risk Type:]]&\"/\"&B5_Risk_Sub_Category_Type_Table[[#This Row],[B5. Risk Category]]&\"/\"&B5_Risk_Sub_Category_Type_Table[[#This Row],[B5. Risk Sub-Category]]","v":"External/Safety & Security/Safety Security of NGOs Personnel Assets Infrastructure Facilities"},"Confiscation/theft/looting of goods",{"$f":"B5_Risk_Sub_Category_Type_Table[[#This Row],[B5. Risk Type:]]&\"/\"&B5_Risk_Sub_Category_Type_Table[[#This Row],[B5. Risk Category]]&\"/\"&B5_Risk_Sub_Category_Type_Table[[#This Row],[B5. Risk Sub-Category]]&\"/\"&B5_Risk_Sub_Category_Type_Table[[#This Row],[B5. Risk Sub-Category Type]]","v":"External/Safety & Security/Safety Security of NGOs Personnel Assets Infrastructure Facilities/Confiscation/theft/looting of goods"},null,null,null,null,null,null,null,null,null,null,null,null,null,null,null,null,null,"Nutrition","Other",{"$f":"CC2_Cluster_Activity_Table[[#This Row],[C2. Cluster (affected):]]&\"/\"&CC2_Cluster_Activity_Table[[#This Row],[C2. Cluster Activity:]]","v":"Nutrition/Other"}]
[null,null,null,null,null,null,null,null,null,null,null,null,null,null,null,null,null,null,null,null,null,null,null,null,null,null,"Strategic","Human Rights Violations",{"$f":"B4_Risk_Sub_Category_Table[[#This Row],[B4. Risk Type:]]&\"/\"&B4_Risk_Sub_Category_Table[[#This Row],[B4. Risk Category]]","v":"Strategic/Human Rights Violations"},"Other",{"$f":"B4_Risk_Sub_Category_Table[[#This Row],[B4. Risk Type:]]&\"/\"&B4_Risk_Sub_Category_Table[[#This Row],[B4. Risk Category]]&\"/\"&B4_Risk_Sub_Category_Table[[#This Row],[B4. Risk Sub-Category]]","v":"Strategic/Human Rights Violations/Other"},null,null,null,null,null,null,null,null,"External","Safety & Security","Safety Security of NGOs Personnel Assets Infrastructure Facilities",{"$f":"B5_Risk_Sub_Category_Type_Table[[#This Row],[B5. Risk Type:]]&\"/\"&B5_Risk_Sub_Category_Type_Table[[#This Row],[B5. Risk Category]]&\"/\"&B5_Risk_Sub_Category_Type_Table[[#This Row],[B5. Risk Sub-Category]]","v":"External/Safety & Security/Safety Security of NGOs Personnel Assets Infrastructure Facilities"},"Detention or arrest of humanitarian staff",{"$f":"B5_Risk_Sub_Category_Type_Table[[#This Row],[B5. Risk Type:]]&\"/\"&B5_Risk_Sub_Category_Type_Table[[#This Row],[B5. Risk Category]]&\"/\"&B5_Risk_Sub_Category_Type_Table[[#This Row],[B5. Risk Sub-Category]]&\"/\"&B5_Risk_Sub_Category_Type_Table[[#This Row],[B5. Risk Sub-Category Type]]","v":"External/Safety & Security/Safety Security of NGOs Personnel Assets Infrastructure Facilities/Detention or arrest of humanitarian staff"},null,null,null,null,null,null,null,null,null,null,null,null,null,null,null,null,null,"Protection","Advocacy with stakeholders",{"$f":"CC2_Cluster_Activity_Table[[#This Row],[C2. Cluster (affected):]]&\"/\"&CC2_Cluster_Activity_Table[[#This Row],[C2. Cluster Activity:]]","v":"Protection/Advocacy with stakeholders"}]
[null,null,null,null,null,null,null,null,null,null,null,null,null,null,null,null,null,null,null,null,null,null,null,null,null,null,"Strategic","Laws/Regulations Imposed Requirements",{"$f":"B4_Risk_Sub_Category_Table[[#This Row],[B4. Risk Type:]]&\"/\"&B4_Risk_Sub_Category_Table[[#This Row],[B4. Risk Category]]","v":"Strategic/Laws/Regulations Imposed Requirements"},"Other",{"$f":"B4_Risk_Sub_Category_Table[[#This Row],[B4. Risk Type:]]&\"/\"&B4_Risk_Sub_Category_Table[[#This Row],[B4. Risk Category]]&\"/\"&B4_Risk_Sub_Category_Table[[#This Row],[B4. Risk Sub-Category]]","v":"Strategic/Laws/Regulations Imposed Requirements/Other"},null,null,null,null,null,null,null,null,"External","Safety & Security","Safety Security of NGOs Personnel Assets Infrastructure Facilities",{"$f":"B5_Risk_Sub_Category_Type_Table[[#This Row],[B5. Risk Type:]]&\"/\"&B5_Risk_Sub_Category_Type_Table[[#This Row],[B5. Risk Category]]&\"/\"&B5_Risk_Sub_Category_Type_Table[[#This Row],[B5. Risk Sub-Category]]","v":"External/Safety & Security/Safety Security of NGOs Personnel Assets Infrastructure Facilities"},"IED attacks against infrastructure and staff",{"$f":"B5_Risk_Sub_Category_Type_Table[[#This Row],[B5. Risk Type:]]&\"/\"&B5_Risk_Sub_Category_Type_Table[[#This Row],[B5. Risk Category]]&\"/\"&B5_Risk_Sub_Category_Type_Table[[#This Row],[B5. Risk Sub-Category]]&\"/\"&B5_Risk_Sub_Category_Type_Table[[#This Row],[B5. Risk Sub-Category Type]]","v":"External/Safety & Security/Safety Security of NGOs Personnel Assets Infrastructure Facilities/IED attacks against infrastructure and staff"},null,null,null,null,null,null,null,null,null,null,null,null,null,null,null,null,null,"Protection","Capacity building of humanitarians or local authorities",{"$f":"CC2_Cluster_Activity_Table[[#This Row],[C2. Cluster (affected):]]&\"/\"&CC2_Cluster_Activity_Table[[#This Row],[C2. Cluster Activity:]]","v":"Protection/Capacity building of humanitarians or local authorities"}]
[null,null,null,null,null,null,null,null,null,null,null,null,null,null,null,null,null,null,null,null,null,null,null,null,null,null,"Strategic","Major Macroeconomic Shifts",{"$f":"B4_Risk_Sub_Category_Table[[#This Row],[B4. Risk Type:]]&\"/\"&B4_Risk_Sub_Category_Table[[#This Row],[B4. Risk Category]]","v":"Strategic/Major Macroeconomic Shifts"},"Other",{"$f":"B4_Risk_Sub_Category_Table[[#This Row],[B4. Risk Type:]]&\"/\"&B4_Risk_Sub_Category_Table[[#This Row],[B4. Risk Category]]&\"/\"&B4_Risk_Sub_Category_Table[[#This Row],[B4. Risk Sub-Category]]","v":"Strategic/Major Macroeconomic Shifts/Other"},null,null,null,null,null,null,null,null,"External","Safety & Security","Safety Security of NGOs Personnel Assets Infrastructure Facilities",{"$f":"B5_Risk_Sub_Category_Type_Table[[#This Row],[B5. Risk Type:]]&\"/\"&B5_Risk_Sub_Category_Type_Table[[#This Row],[B5. Risk Category]]&\"/\"&B5_Risk_Sub_Category_Type_Table[[#This Row],[B5. Risk Sub-Category]]","v":"External/Safety & Security/Safety Security of NGOs Personnel Assets Infrastructure Facilities"},"Intimidation of/or threats to staff",{"$f":"B5_Risk_Sub_Category_Type_Table[[#This Row],[B5. Risk Type:]]&\"/\"&B5_Risk_Sub_Category_Type_Table[[#This Row],[B5. Risk Category]]&\"/\"&B5_Risk_Sub_Category_Type_Table[[#This Row],[B5. Risk Sub-Category]]&\"/\"&B5_Risk_Sub_Category_Type_Table[[#This Row],[B5. Risk Sub-Category Type]]","v":"External/Safety & Security/Safety Security of NGOs Personnel Assets Infrastructure Facilities/Intimidation of/or threats to staff"},null,null,null,null,null,null,null,null,null,null,null,null,null,null,null,null,null,"Protection","Integrated protection services",{"$f":"CC2_Cluster_Activity_Table[[#This Row],[C2. Cluster (affected):]]&\"/\"&CC2_Cluster_Activity_Table[[#This Row],[C2. Cluster Activity:]]","v":"Protection/Integrated protection services"}]
[null,null,null,null,null,null,null,null,null,null,null,null,null,null,null,null,null,null,null,null,null,null,null,null,null,null,"Strategic","Major Shift in Power",{"$f":"B4_Risk_Sub_Category_Table[[#This Row],[B4. Risk Type:]]&\"/\"&B4_Risk_Sub_Category_Table[[#This Row],[B4. Risk Category]]","v":"Strategic/Major Shift in Power"},"Other",{"$f":"B4_Risk_Sub_Category_Table[[#This Row],[B4. Risk Type:]]&\"/\"&B4_Risk_Sub_Category_Table[[#This Row],[B4. Risk Category]]&\"/\"&B4_Risk_Sub_Category_Table[[#This Row],[B4. Risk Sub-Category]]","v":"Strategic/Major Shift in Power/Other"},null,null,null,null,null,null,null,null,"External","Safety & Security","Safety Security of NGOs Personnel Assets Infrastructure Facilities",{"$f":"B5_Risk_Sub_Category_Type_Table[[#This Row],[B5. Risk Type:]]&\"/\"&B5_Risk_Sub_Category_Type_Table[[#This Row],[B5. Risk Category]]&\"/\"&B5_Risk_Sub_Category_Type_Table[[#This Row],[B5. Risk Sub-Category]]","v":"External/Safety & Security/Safety Security of NGOs Personnel Assets Infrastructure Facilities"},"Kidnapping/detention of staff or their family members",{"$f":"B5_Risk_Sub_Category_Type_Table[[#This Row],[B5. Risk Type:]]&\"/\"&B5_Risk_Sub_Category_Type_Table[[#This Row],[B5. Risk Category]]&\"/\"&B5_Risk_Sub_Category_Type_Table[[#This Row],[B5. Risk Sub-Category]]&\"/\"&B5_Risk_Sub_Category_Type_Table[[#This Row],[B5. Risk Sub-Category Type]]","v":"External/Safety & Security/Safety Security of NGOs Personnel Assets Infrastructure Facilities/Kidnapping/detention of staff or their family members"},null,null,null,null,null,null,null,null,null,null,null,null,null,null,null,null,null,"Protection","Legal advice/counselling/representation on civil documentation/HLP",{"$f":"CC2_Cluster_Activity_Table[[#This Row],[C2. Cluster (affected):]]&\"/\"&CC2_Cluster_Activity_Table[[#This Row],[C2. Cluster Activity:]]","v":"Protection/Legal advice/counselling/representation on civil documentation/HLP"}]
[null,null,null,null,null,null,null,null,null,null,null,null,null,null,null,null,null,null,null,null,null,null,null,null,null,null,"Strategic","Manmade Disasters/Crisis",{"$f":"B4_Risk_Sub_Category_Table[[#This Row],[B4. Risk Type:]]&\"/\"&B4_Risk_Sub_Category_Table[[#This Row],[B4. Risk Category]]","v":"Strategic/Manmade Disasters/Crisis"},"Other",{"$f":"B4_Risk_Sub_Category_Table[[#This Row],[B4. Risk Type:]]&\"/\"&B4_Risk_Sub_Category_Table[[#This Row],[B4. Risk Category]]&\"/\"&B4_Risk_Sub_Category_Table[[#This Row],[B4. Risk Sub-Category]]","v":"Strategic/Manmade Disasters/Crisis/Other"},null,null,null,null,null,null,null,null,"External","Safety & Security","Safety Security of NGOs Personnel Assets Infrastructure Facilities",{"$f":"B5_Risk_Sub_Category_Type_Table[[#This Row],[B5. Risk Type:]]&\"/\"&B5_Risk_Sub_Category_Type_Table[[#This Row],[B5. Risk Category]]&\"/\"&B5_Risk_Sub_Category_Type_Table[[#This Row],[B5. Risk Sub-Category]]","v":"External/Safety & Security/Safety Security of NGOs Personnel Assets Infrastructure Facilities"},"Killing or physical injury of staff",{"$f":"B5_Risk_Sub_Category_Type_Table[[#This Row],[B5. Risk Type:]]&\"/\"&B5_Risk_Sub_Category_Type_Table[[#This Row],[B5. Risk Category]]&\"/\"&B5_Risk_Sub_Category_Type_Table[[#This Row],[B5. Risk Sub-Category]]&\"/\"&B5_Risk_Sub_Category_Type_Table[[#This Row],[B5. Risk Sub-Category Type]]","v":"External/Safety & Security/Safety Security of NGOs Personnel Assets Infrastructure Facilities/Killing or physical injury of staff"},null,null,null,null,null,null,null,null,null,null,null,null,null,null,null,null,null,"Protection","Protection monitoring and/or needs/risk identification",{"$f":"CC2_Cluster_Activity_Table[[#This Row],[C2. Cluster (affected):]]&\"/\"&CC2_Cluster_Activity_Table[[#This Row],[C2. Cluster Activity:]]","v":"Protection/Protection monitoring and/or needs/risk identification"}]
[null,null,null,null,null,null,null,null,null,null,null,null,null,null,null,null,null,null,null,null,null,null,null,null,null,null,"Strategic","Natural Disasters",{"$f":"B4_Risk_Sub_Category_Table[[#This Row],[B4. Risk Type:]]&\"/\"&B4_Risk_Sub_Category_Table[[#This Row],[B4. Risk Category]]","v":"Strategic/Natural Disasters"},"Other",{"$f":"B4_Risk_Sub_Category_Table[[#This Row],[B4. Risk Type:]]&\"/\"&B4_Risk_Sub_Category_Table[[#This Row],[B4. Risk Category]]&\"/\"&B4_Risk_Sub_Category_Table[[#This Row],[B4. Risk Sub-Category]]","v":"Strategic/Natural Disasters/Other"},null,null,null,null,null,null,null,null,"External","Safety & Security","Safety Security of NGOs Personnel Assets Infrastructure Facilities",{"$f":"B5_Risk_Sub_Category_Type_Table[[#This Row],[B5. Risk Type:]]&\"/\"&B5_Risk_Sub_Category_Type_Table[[#This Row],[B5. Risk Category]]&\"/\"&B5_Risk_Sub_Category_Type_Table[[#This Row],[B5. Risk Sub-Category]]","v":"External/Safety & Security/Safety Security of NGOs Personnel Assets Infrastructure Facilities"},"Occupation of humanitarian facilities",{"$f":"B5_Risk_Sub_Category_Type_Table[[#This Row],[B5. Risk Type:]]&\"/\"&B5_Risk_Sub_Category_Type_Table[[#This Row],[B5. Risk Category]]&\"/\"&B5_Risk_Sub_Category_Type_Table[[#This Row],[B5. Risk Sub-Category]]&\"/\"&B5_Risk_Sub_Category_Type_Table[[#This Row],[B5. Risk Sub-Category Type]]","v":"External/Safety & Security/Safety Security of NGOs Personnel Assets Infrastructure Facilities/Occupation of humanitarian facilities"},null,null,null,null,null,null,null,null,null,null,null,null,null,null,null,null,null,"Protection","Other",{"$f":"CC2_Cluster_Activity_Table[[#This Row],[C2. Cluster (affected):]]&\"/\"&CC2_Cluster_Activity_Table[[#This Row],[C2. Cluster Activity:]]","v":"Protection/Other"}]
[null,null,null,null,null,null,null,null,null,null,null,null,null,null,null,null,null,null,null,null,null,null,null,null,null,null,"Strategic","Obsolescence of Current Systems",{"$f":"B4_Risk_Sub_Category_Table[[#This Row],[B4. Risk Type:]]&\"/\"&B4_Risk_Sub_Category_Table[[#This Row],[B4. Risk Category]]","v":"Strategic/Obsolescence of Current Systems"},"Other",{"$f":"B4_Risk_Sub_Category_Table[[#This Row],[B4. Risk Type:]]&\"/\"&B4_Risk_Sub_Category_Table[[#This Row],[B4. Risk Category]]&\"/\"&B4_Risk_Sub_Category_Table[[#This Row],[B4. Risk Sub-Category]]","v":"Strategic/Obsolescence of Current Systems/Other"},null,null,null,null,null,null,null,null,"External","Safety & Security","Safety Security of NGOs Personnel Assets Infrastructure Facilities",{"$f":"B5_Risk_Sub_Category_Type_Table[[#This Row],[B5. Risk Type:]]&\"/\"&B5_Risk_Sub_Category_Type_Table[[#This Row],[B5. Risk Category]]&\"/\"&B5_Risk_Sub_Category_Type_Table[[#This Row],[B5. Risk Sub-Category]]","v":"External/Safety & Security/Safety Security of NGOs Personnel Assets Infrastructure Facilities"},"Post-distribution looting or confiscation of aid/relief items",{"$f":"B5_Risk_Sub_Category_Type_Table[[#This Row],[B5. Risk Type:]]&\"/\"&B5_Risk_Sub_Category_Type_Table[[#This Row],[B5. Risk Category]]&\"/\"&B5_Risk_Sub_Category_Type_Table[[#This Row],[B5. Risk Sub-Category]]&\"/\"&B5_Risk_Sub_Category_Type_Table[[#This Row],[B5. Risk Sub-Category Type]]","v":"External/Safety & Security/Safety Security of NGOs Personnel Assets Infrastructure Facilities/Post-distribution looting or confiscation of aid/relief items"},null,null,null,null,null,null,null,null,null,null,null,null,null,null,null,null,null,"Protection_Housing_Land_Property","Ownership and legal status of agreements of land donated for infrastructure.",{"$f":"CC2_Cluster_Activity_Table[[#This Row],[C2. Cluster (affected):]]&\"/\"&CC2_Cluster_Activity_Table[[#This Row],[C2. Cluster Activity:]]","v":"Protection_Housing_Land_Property/Ownership and legal status of agreements of land donated for infrastructure."}]
[null,null,null,null,null,null,null,null,null,null,null,null,null,null,null,null,null,null,null,null,null,null,null,null,null,null,"Strategic","Political Disaster/Crisis",{"$f":"B4_Risk_Sub_Category_Table[[#This Row],[B4. Risk Type:]]&\"/\"&B4_Risk_Sub_Category_Table[[#This Row],[B4. Risk Category]]","v":"Strategic/Political Disaster/Crisis"},"Other",{"$f":"B4_Risk_Sub_Category_Table[[#This Row],[B4. Risk Type:]]&\"/\"&B4_Risk_Sub_Category_Table[[#This Row],[B4. Risk Category]]&\"/\"&B4_Risk_Sub_Category_Table[[#This Row],[B4. Risk Sub-Category]]","v":"Strategic/Political Disaster/Crisis/Other"},null,null,null,null,null,null,null,null,"External","Safety & Security","Safety Security of NGOs Personnel Assets Infrastructure Facilities",{"$f":"B5_Risk_Sub_Category_Type_Table[[#This Row],[B5. Risk Type:]]&\"/\"&B5_Risk_Sub_Category_Type_Table[[#This Row],[B5. Risk Category]]&\"/\"&B5_Risk_Sub_Category_Type_Table[[#This Row],[B5. Risk Sub-Category]]","v":"External/Safety & Security/Safety Security of NGOs Personnel Assets Infrastructure Facilities"},"Requesting staff list and demands to share personal details (contact details, salary etc.)",{"$f":"B5_Risk_Sub_Category_Type_Table[[#This Row],[B5. Risk Type:]]&\"/\"&B5_Risk_Sub_Category_Type_Table[[#This Row],[B5. Risk Category]]&\"/\"&B5_Risk_Sub_Category_Type_Table[[#This Row],[B5. Risk Sub-Category]]&\"/\"&B5_Risk_Sub_Category_Type_Table[[#This Row],[B5. Risk Sub-Category Type]]","v":"External/Safety & Security/Safety Security of NGOs Personnel Assets Infrastructure Facilities/Requesting staff list and demands to share personal details (contact details, salary etc.)"},null,null,null,null,null,null,null,null,null,null,null,null,null,null,null,null,null,"Protection_Housing_Land_Property","Other (please specify);",{"$f":"CC2_Cluster_Activity_Table[[#This Row],[C2. Cluster (affected):]]&\"/\"&CC2_Cluster_Activity_Table[[#This Row],[C2. Cluster Activity:]]","v":"Protection_Housing_Land_Property/Other (please specify);"}]
[null,null,null,null,null,null,null,null,null,null,null,null,null,null,null,null,null,null,null,null,null,null,null,null,null,null,"Strategic","Political Instability",{"$f":"B4_Risk_Sub_Category_Table[[#This Row],[B4. Risk Type:]]&\"/\"&B4_Risk_Sub_Category_Table[[#This Row],[B4. Risk Category]]","v":"Strategic/Political Instability"},"Other",{"$f":"B4_Risk_Sub_Category_Table[[#This Row],[B4. Risk Type:]]&\"/\"&B4_Risk_Sub_Category_Table[[#This Row],[B4. Risk Category]]&\"/\"&B4_Risk_Sub_Category_Table[[#This Row],[B4. Risk Sub-Category]]","v":"Strategic/Political Instability/Other"},null,null,null,null,null,null,null,null,"External","Safety & Security","Safety Security of NGOs Personnel Assets Infrastructure Facilities",{"$f":"B5_Risk_Sub_Category_Type_Table[[#This Row],[B5. Risk Type:]]&\"/\"&B5_Risk_Sub_Category_Type_Table[[#This Row],[B5. Risk Category]]&\"/\"&B5_Risk_Sub_Category_Type_Table[[#This Row],[B5. Risk Sub-Category]]","v":"External/Safety & Security/Safety Security of NGOs Personnel Assets Infrastructure Facilities"},"Violence against personnel, assets and facilities",{"$f":"B5_Risk_Sub_Category_Type_Table[[#This Row],[B5. Risk Type:]]&\"/\"&B5_Risk_Sub_Category_Type_Table[[#This Row],[B5. Risk Category]]&\"/\"&B5_Risk_Sub_Category_Type_Table[[#This Row],[B5. Risk Sub-Category]]&\"/\"&B5_Risk_Sub_Category_Type_Table[[#This Row],[B5. Risk Sub-Category Type]]","v":"External/Safety & Security/Safety Security of NGOs Personnel Assets Infrastructure Facilities/Violence against personnel, assets and facilities"},null,null,null,null,null,null,null,null,null,null,null,null,null,null,null,null,null,"Protection_Child_Protection","Capacity building on child protection",{"$f":"CC2_Cluster_Activity_Table[[#This Row],[C2. Cluster (affected):]]&\"/\"&CC2_Cluster_Activity_Table[[#This Row],[C2. Cluster Activity:]]","v":"Protection_Child_Protection/Capacity building on child protection"}]
[null,null,null,null,null,null,null,null,null,null,null,null,null,null,null,null,null,null,null,null,null,null,null,null,null,null,"Strategic","PSEA",{"$f":"B4_Risk_Sub_Category_Table[[#This Row],[B4. Risk Type:]]&\"/\"&B4_Risk_Sub_Category_Table[[#This Row],[B4. Risk Category]]","v":"Strategic/PSEA"},"Other",{"$f":"B4_Risk_Sub_Category_Table[[#This Row],[B4. Risk Type:]]&\"/\"&B4_Risk_Sub_Category_Table[[#This Row],[B4. Risk Category]]&\"/\"&B4_Risk_Sub_Category_Table[[#This Row],[B4. Risk Sub-Category]]","v":"Strategic/PSEA/Other"},null,null,null,null,null,null,null,null,"External","Safety & Security","Safety Security of NGOs Personnel Assets Infrastructure Facilities",{"$f":"B5_Risk_Sub_Category_Type_Table[[#This Row],[B5. Risk Type:]]&\"/\"&B5_Risk_Sub_Category_Type_Table[[#This Row],[B5. Risk Category]]&\"/\"&B5_Risk_Sub_Category_Type_Table[[#This Row],[B5. Risk Sub-Category]]","v":"External/Safety & Security/Safety Security of NGOs Personnel Assets Infrastructure Facilities"},"Other",{"$f":"B5_Risk_Sub_Category_Type_Table[[#This Row],[B5. Risk Type:]]&\"/\"&B5_Risk_Sub_Category_Type_Table[[#This Row],[B5. Risk Category]]&\"/\"&B5_Risk_Sub_Category_Type_Table[[#This Row],[B5. Risk Sub-Category]]&\"/\"&B5_Risk_Sub_Category_Type_Table[[#This Row],[B5. Risk Sub-Category Type]]","v":"External/Safety & Security/Safety Security of NGOs Personnel Assets Infrastructure Facilities/Other"},null,null,null,null,null,null,null,null,null,null,null,null,null,null,null,null,null,"Protection_Child_Protection","Community-based child protection",{"$f":"CC2_Cluster_Activity_Table[[#This Row],[C2. Cluster (affected):]]&\"/\"&CC2_Cluster_Activity_Table[[#This Row],[C2. Cluster Activity:]]","v":"Protection_Child_Protection/Community-based child protection"}]
[null,null,null,null,null,null,null,null,null,null,null,null,null,null,null,null,null,null,null,null,null,null,null,null,null,null,"Strategic","Sudden Onset of Large Scale Emergency",{"$f":"B4_Risk_Sub_Category_Table[[#This Row],[B4. Risk Type:]]&\"/\"&B4_Risk_Sub_Category_Table[[#This Row],[B4. Risk Category]]","v":"Strategic/Sudden Onset of Large Scale Emergency"},"Other",{"$f":"B4_Risk_Sub_Category_Table[[#This Row],[B4. Risk Type:]]&\"/\"&B4_Risk_Sub_Category_Table[[#This Row],[B4. Risk Category]]&\"/\"&B4_Risk_Sub_Category_Table[[#This Row],[B4. Risk Sub-Category]]","v":"Strategic/Sudden Onset of Large Scale Emergency/Other"},null,null,null,null,null,null,null,null,"External","Safety & Security","Other",{"$f":"B5_Risk_Sub_Category_Type_Table[[#This Row],[B5. Risk Type:]]&\"/\"&B5_Risk_Sub_Category_Type_Table[[#This Row],[B5. Risk Category]]&\"/\"&B5_Risk_Sub_Category_Type_Table[[#This Row],[B5. Risk Sub-Category]]","v":"External/Safety & Security/Other"},"Other",{"$f":"B5_Risk_Sub_Category_Type_Table[[#This Row],[B5. Risk Type:]]&\"/\"&B5_Risk_Sub_Category_Type_Table[[#This Row],[B5. Risk Category]]&\"/\"&B5_Risk_Sub_Category_Type_Table[[#This Row],[B5. Risk Sub-Category]]&\"/\"&B5_Risk_Sub_Category_Type_Table[[#This Row],[B5. Risk Sub-Category Type]]","v":"External/Safety & Security/Other/Other"},null,null,null,null,null,null,null,null,null,null,null,null,null,null,null,null,null,"Protection_Child_Protection","Specialized child protection services such as case management",{"$f":"CC2_Cluster_Activity_Table[[#This Row],[C2. Cluster (affected):]]&\"/\"&CC2_Cluster_Activity_Table[[#This Row],[C2. Cluster Activity:]]","v":"Protection_Child_Protection/Specialized child protection services such as case management"}]
[null,null,null,null,null,null,null,null,null,null,null,null,null,null,null,null,null,null,null,null,null,null,null,null,null,null,"Strategic","Under Engagement with Government due to Lack of Understanding of the Cross-border Operation",{"$f":"B4_Risk_Sub_Category_Table[[#This Row],[B4. Risk Type:]]&\"/\"&B4_Risk_Sub_Category_Table[[#This Row],[B4. Risk Category]]","v":"Strategic/Under Engagement with Government due to Lack of Understanding of the Cross-border Operation"},"Other",{"$f":"B4_Risk_Sub_Category_Table[[#This Row],[B4. Risk Type:]]&\"/\"&B4_Risk_Sub_Category_Table[[#This Row],[B4. Risk Category]]&\"/\"&B4_Risk_Sub_Category_Table[[#This Row],[B4. Risk Sub-Category]]","v":"Strategic/Under Engagement with Government due to Lack of Understanding of the Cross-border Operation/Other"},null,null,null,null,null,null,null,null,"External","Other","Other",{"$f":"B5_Risk_Sub_Category_Type_Table[[#This Row],[B5. Risk Type:]]&\"/\"&B5_Risk_Sub_Category_Type_Table[[#This Row],[B5. Risk Category]]&\"/\"&B5_Risk_Sub_Category_Type_Table[[#This Row],[B5. Risk Sub-Category]]","v":"External/Other/Other"},"Other",{"$f":"B5_Risk_Sub_Category_Type_Table[[#This Row],[B5. Risk Type:]]&\"/\"&B5_Risk_Sub_Category_Type_Table[[#This Row],[B5. Risk Category]]&\"/\"&B5_Risk_Sub_Category_Type_Table[[#This Row],[B5. Risk Sub-Category]]&\"/\"&B5_Risk_Sub_Category_Type_Table[[#This Row],[B5. Risk Sub-Category Type]]","v":"External/Other/Other/Other"},null,null,null,null,null,null,null,null,null,null,null,null,null,null,null,null,null,"Protection_Child_Protection","Other",{"$f":"CC2_Cluster_Activity_Table[[#This Row],[C2. Cluster (affected):]]&\"/\"&CC2_Cluster_Activity_Table[[#This Row],[C2. Cluster Activity:]]","v":"Protection_Child_Protection/Other"}]
[null,null,null,null,null,null,null,null,null,null,null,null,null,null,null,null,null,null,null,null,null,null,null,null,null,null,"Strategic","Other",{"$f":"B4_Risk_Sub_Category_Table[[#This Row],[B4. Risk Type:]]&\"/\"&B4_Risk_Sub_Category_Table[[#This Row],[B4. Risk Category]]","v":"Strategic/Other"},"Other",{"$f":"B4_Risk_Sub_Category_Table[[#This Row],[B4. Risk Type:]]&\"/\"&B4_Risk_Sub_Category_Table[[#This Row],[B4. Risk Category]]&\"/\"&B4_Risk_Sub_Category_Table[[#This Row],[B4. Risk Sub-Category]]","v":"Strategic/Other/Other"},null,null,null,null,null,null,null,null,"Internal","Administrative","Absence of Code of Conduct",{"$f":"B5_Risk_Sub_Category_Type_Table[[#This Row],[B5. Risk Type:]]&\"/\"&B5_Risk_Sub_Category_Type_Table[[#This Row],[B5. Risk Category]]&\"/\"&B5_Risk_Sub_Category_Type_Table[[#This Row],[B5. Risk Sub-Category]]","v":"Internal/Administrative/Absence of Code of Conduct"},"Other",{"$f":"B5_Risk_Sub_Category_Type_Table[[#This Row],[B5. Risk Type:]]&\"/\"&B5_Risk_Sub_Category_Type_Table[[#This Row],[B5. Risk Category]]&\"/\"&B5_Risk_Sub_Category_Type_Table[[#This Row],[B5. Risk Sub-Category]]&\"/\"&B5_Risk_Sub_Category_Type_Table[[#This Row],[B5. Risk Sub-Category Type]]","v":"Internal/Administrative/Absence of Code of Conduct/Other"},null,null,null,null,null,null,null,null,null,null,null,null,null,null,null,null,null,"Protection_Gender_Based_Violence","GBV prevention",{"$f":"CC2_Cluster_Activity_Table[[#This Row],[C2. Cluster (affected):]]&\"/\"&CC2_Cluster_Activity_Table[[#This Row],[C2. Cluster Activity:]]","v":"Protection_Gender_Based_Violence/GBV prevention"}]
[null,null,null,null,null,null,null,null,null,null,null,null,null,null,null,null,null,null,null,null,null,null,null,null,null,null,"Other","Access",{"$f":"B4_Risk_Sub_Category_Table[[#This Row],[B4. Risk Type:]]&\"/\"&B4_Risk_Sub_Category_Table[[#This Row],[B4. Risk Category]]","v":"Other/Access"},"Denial of Access",{"$f":"B4_Risk_Sub_Category_Table[[#This Row],[B4. Risk Type:]]&\"/\"&B4_Risk_Sub_Category_Table[[#This Row],[B4. Risk Category]]&\"/\"&B4_Risk_Sub_Category_Table[[#This Row],[B4. Risk Sub-Category]]","v":"Other/Access/Denial of Access"},null,null,null,null,null,null,null,null,"Internal","Administrative","Lack of Proper and/or Insufficient Policies/Systems",{"$f":"B5_Risk_Sub_Category_Type_Table[[#This Row],[B5. Risk Type:]]&\"/\"&B5_Risk_Sub_Category_Type_Table[[#This Row],[B5. Risk Category]]&\"/\"&B5_Risk_Sub_Category_Type_Table[[#This Row],[B5. Risk Sub-Category]]","v":"Internal/Administrative/Lack of Proper and/or Insufficient Policies/Systems"},"Other",{"$f":"B5_Risk_Sub_Category_Type_Table[[#This Row],[B5. Risk Type:]]&\"/\"&B5_Risk_Sub_Category_Type_Table[[#This Row],[B5. Risk Category]]&\"/\"&B5_Risk_Sub_Category_Type_Table[[#This Row],[B5. Risk Sub-Category]]&\"/\"&B5_Risk_Sub_Category_Type_Table[[#This Row],[B5. Risk Sub-Category Type]]","v":"Internal/Administrative/Lack of Proper and/or Insufficient Policies/Systems/Other"},null,null,null,null,null,null,null,null,null,null,null,null,null,null,null,null,null,"Protection_Gender_Based_Violence","GBV risk mitigation in humanitarian response",{"$f":"CC2_Cluster_Activity_Table[[#This Row],[C2. Cluster (affected):]]&\"/\"&CC2_Cluster_Activity_Table[[#This Row],[C2. Cluster Activity:]]","v":"Protection_Gender_Based_Violence/GBV risk mitigation in humanitarian response"}]
[null,null,null,null,null,null,null,null,null,null,null,null,null,null,null,null,null,null,null,null,null,null,null,null,null,null,"Other","Access",{"$f":"B4_Risk_Sub_Category_Table[[#This Row],[B4. Risk Type:]]&\"/\"&B4_Risk_Sub_Category_Table[[#This Row],[B4. Risk Category]]","v":"Other/Access"},"Poor Infrastructure",{"$f":"B4_Risk_Sub_Category_Table[[#This Row],[B4. Risk Type:]]&\"/\"&B4_Risk_Sub_Category_Table[[#This Row],[B4. Risk Category]]&\"/\"&B4_Risk_Sub_Category_Table[[#This Row],[B4. Risk Sub-Category]]","v":"Other/Access/Poor Infrastructure"},null,null,null,null,null,null,null,null,"Internal","Administrative","Lack of Proper and/or Insufficient Standard Operating Procedures",{"$f":"B5_Risk_Sub_Category_Type_Table[[#This Row],[B5. Risk Type:]]&\"/\"&B5_Risk_Sub_Category_Type_Table[[#This Row],[B5. Risk Category]]&\"/\"&B5_Risk_Sub_Category_Type_Table[[#This Row],[B5. Risk Sub-Category]]","v":"Internal/Administrative/Lack of Proper and/or Insufficient Standard Operating Procedures"},"Other",{"$f":"B5_Risk_Sub_Category_Type_Table[[#This Row],[B5. Risk Type:]]&\"/\"&B5_Risk_Sub_Category_Type_Table[[#This Row],[B5. Risk Category]]&\"/\"&B5_Risk_Sub_Category_Type_Table[[#This Row],[B5. Risk Sub-Category]]&\"/\"&B5_Risk_Sub_Category_Type_Table[[#This Row],[B5. Risk Sub-Category Type]]","v":"Internal/Administrative/Lack of Proper and/or Insufficient Standard Operating Procedures/Other"},null,null,null,null,null,null,null,null,null,null,null,null,null,null,null,null,null,"Protection_Gender_Based_Violence","GBV services including case management etc.",{"$f":"CC2_Cluster_Activity_Table[[#This Row],[C2. Cluster (affected):]]&\"/\"&CC2_Cluster_Activity_Table[[#This Row],[C2. Cluster Activity:]]","v":"Protection_Gender_Based_Violence/GBV services including case management etc."}]
[null,null,null,null,null,null,null,null,null,null,null,null,null,null,null,null,null,null,null,null,null,null,null,null,null,null,"Other","Access",{"$f":"B4_Risk_Sub_Category_Table[[#This Row],[B4. Risk Type:]]&\"/\"&B4_Risk_Sub_Category_Table[[#This Row],[B4. Risk Category]]","v":"Other/Access"},"Restriction of Movement",{"$f":"B4_Risk_Sub_Category_Table[[#This Row],[B4. Risk Type:]]&\"/\"&B4_Risk_Sub_Category_Table[[#This Row],[B4. Risk Category]]&\"/\"&B4_Risk_Sub_Category_Table[[#This Row],[B4. Risk Sub-Category]]","v":"Other/Access/Restriction of Movement"},null,null,null,null,null,null,null,null,"Internal","Administrative","Lack of Proper Reporting and Documentation Systems",{"$f":"B5_Risk_Sub_Category_Type_Table[[#This Row],[B5. Risk Type:]]&\"/\"&B5_Risk_Sub_Category_Type_Table[[#This Row],[B5. Risk Category]]&\"/\"&B5_Risk_Sub_Category_Type_Table[[#This Row],[B5. Risk Sub-Category]]","v":"Internal/Administrative/Lack of Proper Reporting and Documentation Systems"},"Other",{"$f":"B5_Risk_Sub_Category_Type_Table[[#This Row],[B5. Risk Type:]]&\"/\"&B5_Risk_Sub_Category_Type_Table[[#This Row],[B5. Risk Category]]&\"/\"&B5_Risk_Sub_Category_Type_Table[[#This Row],[B5. Risk Sub-Category]]&\"/\"&B5_Risk_Sub_Category_Type_Table[[#This Row],[B5. Risk Sub-Category Type]]","v":"Internal/Administrative/Lack of Proper Reporting and Documentation Systems/Other"},null,null,null,null,null,null,null,null,null,null,null,null,null,null,null,null,null,"Protection_Gender_Based_Violence","Other",{"$f":"CC2_Cluster_Activity_Table[[#This Row],[C2. Cluster (affected):]]&\"/\"&CC2_Cluster_Activity_Table[[#This Row],[C2. Cluster Activity:]]","v":"Protection_Gender_Based_Violence/Other"}]
[null,null,null,null,null,null,null,null,null,null,null,null,null,null,null,null,null,null,null,null,null,null,null,null,null,null,"Other","Access",{"$f":"B4_Risk_Sub_Category_Table[[#This Row],[B4. Risk Type:]]&\"/\"&B4_Risk_Sub_Category_Table[[#This Row],[B4. Risk Category]]","v":"Other/Access"},"Other",{"$f":"B4_Risk_Sub_Category_Table[[#This Row],[B4. Risk Type:]]&\"/\"&B4_Risk_Sub_Category_Table[[#This Row],[B4. Risk Category]]&\"/\"&B4_Risk_Sub_Category_Table[[#This Row],[B4. Risk Sub-Category]]","v":"Other/Access/Other"},null,null,null,null,null,null,null,null,"Internal","Administrative","Poor Administrative Efficiency including Resource Management",{"$f":"B5_Risk_Sub_Category_Type_Table[[#This Row],[B5. Risk Type:]]&\"/\"&B5_Risk_Sub_Category_Type_Table[[#This Row],[B5. Risk Category]]&\"/\"&B5_Risk_Sub_Category_Type_Table[[#This Row],[B5. Risk Sub-Category]]","v":"Internal/Administrative/Poor Administrative Efficiency including Resource Management"},"Other",{"$f":"B5_Risk_Sub_Category_Type_Table[[#This Row],[B5. Risk Type:]]&\"/\"&B5_Risk_Sub_Category_Type_Table[[#This Row],[B5. Risk Category]]&\"/\"&B5_Risk_Sub_Category_Type_Table[[#This Row],[B5. Risk Sub-Category]]&\"/\"&B5_Risk_Sub_Category_Type_Table[[#This Row],[B5. Risk Sub-Category Type]]","v":"Internal/Administrative/Poor Administrative Efficiency including Resource Management/Other"},null,null,null,null,null,null,null,null,null,null,null,null,null,null,null,null,null,"Protection_Mine_Action","Mine risk education",{"$f":"CC2_Cluster_Activity_Table[[#This Row],[C2. Cluster (affected):]]&\"/\"&CC2_Cluster_Activity_Table[[#This Row],[C2. Cluster Activity:]]","v":"Protection_Mine_Action/Mine risk education"}]
[null,null,null,null,null,null,null,null,null,null,null,null,null,null,null,null,null,null,null,null,null,null,null,null,null,null,"Other","Administrative",{"$f":"B4_Risk_Sub_Category_Table[[#This Row],[B4. Risk Type:]]&\"/\"&B4_Risk_Sub_Category_Table[[#This Row],[B4. Risk Category]]","v":"Other/Administrative"},"Access & Services Delivery",{"$f":"B4_Risk_Sub_Category_Table[[#This Row],[B4. Risk Type:]]&\"/\"&B4_Risk_Sub_Category_Table[[#This Row],[B4. Risk Category]]&\"/\"&B4_Risk_Sub_Category_Table[[#This Row],[B4. Risk Sub-Category]]","v":"Other/Administrative/Access & Services Delivery"},null,null,null,null,null,null,null,null,"Internal","Administrative","Poor Inventory Handling",{"$f":"B5_Risk_Sub_Category_Type_Table[[#This Row],[B5. Risk Type:]]&\"/\"&B5_Risk_Sub_Category_Type_Table[[#This Row],[B5. Risk Category]]&\"/\"&B5_Risk_Sub_Category_Type_Table[[#This Row],[B5. Risk Sub-Category]]","v":"Internal/Administrative/Poor Inventory Handling"},"Other",{"$f":"B5_Risk_Sub_Category_Type_Table[[#This Row],[B5. Risk Type:]]&\"/\"&B5_Risk_Sub_Category_Type_Table[[#This Row],[B5. Risk Category]]&\"/\"&B5_Risk_Sub_Category_Type_Table[[#This Row],[B5. Risk Sub-Category]]&\"/\"&B5_Risk_Sub_Category_Type_Table[[#This Row],[B5. Risk Sub-Category Type]]","v":"Internal/Administrative/Poor Inventory Handling/Other"},null,null,null,null,null,null,null,null,null,null,null,null,null,null,null,null,null,"Protection_Mine_Action","Survey and/or removal of explosive hazards",{"$f":"CC2_Cluster_Activity_Table[[#This Row],[C2. Cluster (affected):]]&\"/\"&CC2_Cluster_Activity_Table[[#This Row],[C2. Cluster Activity:]]","v":"Protection_Mine_Action/Survey and/or removal of explosive hazards"}]
[null,null,null,null,null,null,null,null,null,null,null,null,null,null,null,null,null,null,null,null,null,null,null,null,null,null,"Other","Administrative",{"$f":"B4_Risk_Sub_Category_Table[[#This Row],[B4. Risk Type:]]&\"/\"&B4_Risk_Sub_Category_Table[[#This Row],[B4. Risk Category]]","v":"Other/Administrative"},"Coordination and Partnership",{"$f":"B4_Risk_Sub_Category_Table[[#This Row],[B4. Risk Type:]]&\"/\"&B4_Risk_Sub_Category_Table[[#This Row],[B4. Risk Category]]&\"/\"&B4_Risk_Sub_Category_Table[[#This Row],[B4. Risk Sub-Category]]","v":"Other/Administrative/Coordination and Partnership"},null,null,null,null,null,null,null,null,"Internal","Administrative","Quality, Accountability and AAP",{"$f":"B5_Risk_Sub_Category_Type_Table[[#This Row],[B5. Risk Type:]]&\"/\"&B5_Risk_Sub_Category_Type_Table[[#This Row],[B5. Risk Category]]&\"/\"&B5_Risk_Sub_Category_Type_Table[[#This Row],[B5. Risk Sub-Category]]","v":"Internal/Administrative/Quality, Accountability and AAP"},"Other",{"$f":"B5_Risk_Sub_Category_Type_Table[[#This Row],[B5. Risk Type:]]&\"/\"&B5_Risk_Sub_Category_Type_Table[[#This Row],[B5. Risk Category]]&\"/\"&B5_Risk_Sub_Category_Type_Table[[#This Row],[B5. Risk Sub-Category]]&\"/\"&B5_Risk_Sub_Category_Type_Table[[#This Row],[B5. Risk Sub-Category Type]]","v":"Internal/Administrative/Quality, Accountability and AAP/Other"},null,null,null,null,null,null,null,null,null,null,null,null,null,null,null,null,null,"Protection_Mine_Action","Victim assistance",{"$f":"CC2_Cluster_Activity_Table[[#This Row],[C2. Cluster (affected):]]&\"/\"&CC2_Cluster_Activity_Table[[#This Row],[C2. Cluster Activity:]]","v":"Protection_Mine_Action/Victim assistance"}]
[null,null,null,null,null,null,null,null,null,null,null,null,null,null,null,null,null,null,null,null,null,null,null,null,null,null,"Other","Administrative",{"$f":"B4_Risk_Sub_Category_Table[[#This Row],[B4. Risk Type:]]&\"/\"&B4_Risk_Sub_Category_Table[[#This Row],[B4. Risk Category]]","v":"Other/Administrative"},"Governance & Management",{"$f":"B4_Risk_Sub_Category_Table[[#This Row],[B4. Risk Type:]]&\"/\"&B4_Risk_Sub_Category_Table[[#This Row],[B4. Risk Category]]&\"/\"&B4_Risk_Sub_Category_Table[[#This Row],[B4. Risk Sub-Category]]","v":"Other/Administrative/Governance & Management"},null,null,null,null,null,null,null,null,"Internal","Administrative","Other",{"$f":"B5_Risk_Sub_Category_Type_Table[[#This Row],[B5. Risk Type:]]&\"/\"&B5_Risk_Sub_Category_Type_Table[[#This Row],[B5. Risk Category]]&\"/\"&B5_Risk_Sub_Category_Type_Table[[#This Row],[B5. Risk Sub-Category]]","v":"Internal/Administrative/Other"},"Other",{"$f":"B5_Risk_Sub_Category_Type_Table[[#This Row],[B5. Risk Type:]]&\"/\"&B5_Risk_Sub_Category_Type_Table[[#This Row],[B5. Risk Category]]&\"/\"&B5_Risk_Sub_Category_Type_Table[[#This Row],[B5. Risk Sub-Category]]&\"/\"&B5_Risk_Sub_Category_Type_Table[[#This Row],[B5. Risk Sub-Category Type]]","v":"Internal/Administrative/Other/Other"},null,null,null,null,null,null,null,null,null,null,null,null,null,null,null,null,null,"Protection_Mine_Action","Other",{"$f":"CC2_Cluster_Activity_Table[[#This Row],[C2. Cluster (affected):]]&\"/\"&CC2_Cluster_Activity_Table[[#This Row],[C2. Cluster Activity:]]","v":"Protection_Mine_Action/Other"}]
[null,null,null,null,null,null,null,null,null,null,null,null,null,null,null,null,null,null,null,null,null,null,null,null,null,null,"Other","Administrative",{"$f":"B4_Risk_Sub_Category_Table[[#This Row],[B4. Risk Type:]]&\"/\"&B4_Risk_Sub_Category_Table[[#This Row],[B4. Risk Category]]","v":"Other/Administrative"},"Safety & Security",{"$f":"B4_Risk_Sub_Category_Table[[#This Row],[B4. Risk Type:]]&\"/\"&B4_Risk_Sub_Category_Table[[#This Row],[B4. Risk Category]]&\"/\"&B4_Risk_Sub_Category_Table[[#This Row],[B4. Risk Sub-Category]]","v":"Other/Administrative/Safety & Security"},null,null,null,null,null,null,null,null,"Internal","Financial","Absence of/Improper Segregation of Duties",{"$f":"B5_Risk_Sub_Category_Type_Table[[#This Row],[B5. Risk Type:]]&\"/\"&B5_Risk_Sub_Category_Type_Table[[#This Row],[B5. Risk Category]]&\"/\"&B5_Risk_Sub_Category_Type_Table[[#This Row],[B5. Risk Sub-Category]]","v":"Internal/Financial/Absence of/Improper Segregation of Duties"},"Other",{"$f":"B5_Risk_Sub_Category_Type_Table[[#This Row],[B5. Risk Type:]]&\"/\"&B5_Risk_Sub_Category_Type_Table[[#This Row],[B5. Risk Category]]&\"/\"&B5_Risk_Sub_Category_Type_Table[[#This Row],[B5. Risk Sub-Category]]&\"/\"&B5_Risk_Sub_Category_Type_Table[[#This Row],[B5. Risk Sub-Category Type]]","v":"Internal/Financial/Absence of/Improper Segregation of Duties/Other"},null,null,null,null,null,null,null,null,null,null,null,null,null,null,null,null,null,"Refugee_Multi_Sector_RMS","RMS coordination",{"$f":"CC2_Cluster_Activity_Table[[#This Row],[C2. Cluster (affected):]]&\"/\"&CC2_Cluster_Activity_Table[[#This Row],[C2. Cluster Activity:]]","v":"Refugee_Multi_Sector_RMS/RMS coordination"}]
[null,null,null,null,null,null,null,null,null,null,null,null,null,null,null,null,null,null,null,null,null,null,null,null,null,null,"Other","Administrative",{"$f":"B4_Risk_Sub_Category_Table[[#This Row],[B4. Risk Type:]]&\"/\"&B4_Risk_Sub_Category_Table[[#This Row],[B4. Risk Category]]","v":"Other/Administrative"},"Other",{"$f":"B4_Risk_Sub_Category_Table[[#This Row],[B4. Risk Type:]]&\"/\"&B4_Risk_Sub_Category_Table[[#This Row],[B4. Risk Category]]&\"/\"&B4_Risk_Sub_Category_Table[[#This Row],[B4. Risk Sub-Category]]","v":"Other/Administrative/Other"},null,null,null,null,null,null,null,null,"Internal","Financial","Audit Quality of Reports Not Optimal and to Expected Standards",{"$f":"B5_Risk_Sub_Category_Type_Table[[#This Row],[B5. Risk Type:]]&\"/\"&B5_Risk_Sub_Category_Type_Table[[#This Row],[B5. Risk Category]]&\"/\"&B5_Risk_Sub_Category_Type_Table[[#This Row],[B5. Risk Sub-Category]]","v":"Internal/Financial/Audit Quality of Reports Not Optimal and to Expected Standards"},"Other",{"$f":"B5_Risk_Sub_Category_Type_Table[[#This Row],[B5. Risk Type:]]&\"/\"&B5_Risk_Sub_Category_Type_Table[[#This Row],[B5. Risk Category]]&\"/\"&B5_Risk_Sub_Category_Type_Table[[#This Row],[B5. Risk Sub-Category]]&\"/\"&B5_Risk_Sub_Category_Type_Table[[#This Row],[B5. Risk Sub-Category Type]]","v":"Internal/Financial/Audit Quality of Reports Not Optimal and to Expected Standards/Other"},null,null,null,null,null,null,null,null,null,null,null,null,null,null,null,null,null,"Refugee_Multi_Sector_RMS","Other",{"$f":"CC2_Cluster_Activity_Table[[#This Row],[C2. Cluster (affected):]]&\"/\"&CC2_Cluster_Activity_Table[[#This Row],[C2. Cluster Activity:]]","v":"Refugee_Multi_Sector_RMS/Other"}]
[null,null,null,null,null,null,null,null,null,null,null,null,null,null,null,null,null,null,null,null,null,null,null,null,null,null,"Other","Aid Diversion",{"$f":"B4_Risk_Sub_Category_Table[[#This Row],[B4. Risk Type:]]&\"/\"&B4_Risk_Sub_Category_Table[[#This Row],[B4. Risk Category]]","v":"Other/Aid Diversion"},"Denial of Humanitarian Needs",{"$f":"B4_Risk_Sub_Category_Table[[#This Row],[B4. Risk Type:]]&\"/\"&B4_Risk_Sub_Category_Table[[#This Row],[B4. Risk Category]]&\"/\"&B4_Risk_Sub_Category_Table[[#This Row],[B4. Risk Sub-Category]]","v":"Other/Aid Diversion/Denial of Humanitarian Needs"},null,null,null,null,null,null,null,null,"Internal","Financial","Delays of Disbursement/Liquidation of Funds due to poor/improper Internal Payment Procedures",{"$f":"B5_Risk_Sub_Category_Type_Table[[#This Row],[B5. Risk Type:]]&\"/\"&B5_Risk_Sub_Category_Type_Table[[#This Row],[B5. Risk Category]]&\"/\"&B5_Risk_Sub_Category_Type_Table[[#This Row],[B5. Risk Sub-Category]]","v":"Internal/Financial/Delays of Disbursement/Liquidation of Funds due to poor/improper Internal Payment Procedures"},"Other",{"$f":"B5_Risk_Sub_Category_Type_Table[[#This Row],[B5. Risk Type:]]&\"/\"&B5_Risk_Sub_Category_Type_Table[[#This Row],[B5. Risk Category]]&\"/\"&B5_Risk_Sub_Category_Type_Table[[#This Row],[B5. Risk Sub-Category]]&\"/\"&B5_Risk_Sub_Category_Type_Table[[#This Row],[B5. Risk Sub-Category Type]]","v":"Internal/Financial/Delays of Disbursement/Liquidation of Funds due to poor/improper Internal Payment Procedures/Other"},null,null,null,null,null,null,null,null,null,null,null,null,null,null,null,null,null,"Return_Reintegration_Recovery_RRR","RRR coordination",{"$f":"CC2_Cluster_Activity_Table[[#This Row],[C2. Cluster (affected):]]&\"/\"&CC2_Cluster_Activity_Table[[#This Row],[C2. Cluster Activity:]]","v":"Return_Reintegration_Recovery_RRR/RRR coordination"}]
[null,null,null,null,null,null,null,null,null,null,null,null,null,null,null,null,null,null,null,null,null,null,null,null,null,null,"Other","Aid Diversion",{"$f":"B4_Risk_Sub_Category_Table[[#This Row],[B4. Risk Type:]]&\"/\"&B4_Risk_Sub_Category_Table[[#This Row],[B4. Risk Category]]","v":"Other/Aid Diversion"},"Diversion of Aid",{"$f":"B4_Risk_Sub_Category_Table[[#This Row],[B4. Risk Type:]]&\"/\"&B4_Risk_Sub_Category_Table[[#This Row],[B4. Risk Category]]&\"/\"&B4_Risk_Sub_Category_Table[[#This Row],[B4. Risk Sub-Category]]","v":"Other/Aid Diversion/Diversion of Aid"},null,null,null,null,null,null,null,null,"Internal","Financial","Donor Fatigue and Lack of Interest in Funding",{"$f":"B5_Risk_Sub_Category_Type_Table[[#This Row],[B5. Risk Type:]]&\"/\"&B5_Risk_Sub_Category_Type_Table[[#This Row],[B5. Risk Category]]&\"/\"&B5_Risk_Sub_Category_Type_Table[[#This Row],[B5. Risk Sub-Category]]","v":"Internal/Financial/Donor Fatigue and Lack of Interest in Funding"},"Other",{"$f":"B5_Risk_Sub_Category_Type_Table[[#This Row],[B5. Risk Type:]]&\"/\"&B5_Risk_Sub_Category_Type_Table[[#This Row],[B5. Risk Category]]&\"/\"&B5_Risk_Sub_Category_Type_Table[[#This Row],[B5. Risk Sub-Category]]&\"/\"&B5_Risk_Sub_Category_Type_Table[[#This Row],[B5. Risk Sub-Category Type]]","v":"Internal/Financial/Donor Fatigue and Lack of Interest in Funding/Other"},null,null,null,null,null,null,null,null,null,null,null,null,null,null,null,null,null,"Return_Reintegration_Recovery_RRR","Other",{"$f":"CC2_Cluster_Activity_Table[[#This Row],[C2. Cluster (affected):]]&\"/\"&CC2_Cluster_Activity_Table[[#This Row],[C2. Cluster Activity:]]","v":"Return_Reintegration_Recovery_RRR/Other"}]
[null,null,null,null,null,null,null,null,null,null,null,null,null,null,null,null,null,null,null,null,null,null,null,null,null,null,"Other","Aid Diversion",{"$f":"B4_Risk_Sub_Category_Table[[#This Row],[B4. Risk Type:]]&\"/\"&B4_Risk_Sub_Category_Table[[#This Row],[B4. Risk Category]]","v":"Other/Aid Diversion"},"Interference in Implementation",{"$f":"B4_Risk_Sub_Category_Table[[#This Row],[B4. Risk Type:]]&\"/\"&B4_Risk_Sub_Category_Table[[#This Row],[B4. Risk Category]]&\"/\"&B4_Risk_Sub_Category_Table[[#This Row],[B4. Risk Sub-Category]]","v":"Other/Aid Diversion/Interference in Implementation"},null,null,null,null,null,null,null,null,"Internal","Financial","Fraud/Corruption, and Theft or Diversion of Goods/Services",{"$f":"B5_Risk_Sub_Category_Type_Table[[#This Row],[B5. Risk Type:]]&\"/\"&B5_Risk_Sub_Category_Type_Table[[#This Row],[B5. Risk Category]]&\"/\"&B5_Risk_Sub_Category_Type_Table[[#This Row],[B5. Risk Sub-Category]]","v":"Internal/Financial/Fraud/Corruption, and Theft or Diversion of Goods/Services"},"Other",{"$f":"B5_Risk_Sub_Category_Type_Table[[#This Row],[B5. Risk Type:]]&\"/\"&B5_Risk_Sub_Category_Type_Table[[#This Row],[B5. Risk Category]]&\"/\"&B5_Risk_Sub_Category_Type_Table[[#This Row],[B5. Risk Sub-Category]]&\"/\"&B5_Risk_Sub_Category_Type_Table[[#This Row],[B5. Risk Sub-Category Type]]","v":"Internal/Financial/Fraud/Corruption, and Theft or Diversion of Goods/Services/Other"},null,null,null,null,null,null,null,null,null,null,null,null,null,null,null,null,null,"Water_Sanitation_Hygiene_WASH","Cash assistance for WASH services",{"$f":"CC2_Cluster_Activity_Table[[#This Row],[C2. Cluster (affected):]]&\"/\"&CC2_Cluster_Activity_Table[[#This Row],[C2. Cluster Activity:]]","v":"Water_Sanitation_Hygiene_WASH/Cash assistance for WASH services"}]
[null,null,null,null,null,null,null,null,null,null,null,null,null,null,null,null,null,null,null,null,null,null,null,null,null,null,"Other","Aid Diversion",{"$f":"B4_Risk_Sub_Category_Table[[#This Row],[B4. Risk Type:]]&\"/\"&B4_Risk_Sub_Category_Table[[#This Row],[B4. Risk Category]]","v":"Other/Aid Diversion"},"Other",{"$f":"B4_Risk_Sub_Category_Table[[#This Row],[B4. Risk Type:]]&\"/\"&B4_Risk_Sub_Category_Table[[#This Row],[B4. Risk Category]]&\"/\"&B4_Risk_Sub_Category_Table[[#This Row],[B4. Risk Sub-Category]]","v":"Other/Aid Diversion/Other"},null,null,null,null,null,null,null,null,"Internal","Financial","Lack of Proper and/or Insufficient Internal Controls",{"$f":"B5_Risk_Sub_Category_Type_Table[[#This Row],[B5. Risk Type:]]&\"/\"&B5_Risk_Sub_Category_Type_Table[[#This Row],[B5. Risk Category]]&\"/\"&B5_Risk_Sub_Category_Type_Table[[#This Row],[B5. Risk Sub-Category]]","v":"Internal/Financial/Lack of Proper and/or Insufficient Internal Controls"},"Other",{"$f":"B5_Risk_Sub_Category_Type_Table[[#This Row],[B5. Risk Type:]]&\"/\"&B5_Risk_Sub_Category_Type_Table[[#This Row],[B5. Risk Category]]&\"/\"&B5_Risk_Sub_Category_Type_Table[[#This Row],[B5. Risk Sub-Category]]&\"/\"&B5_Risk_Sub_Category_Type_Table[[#This Row],[B5. Risk Sub-Category Type]]","v":"Internal/Financial/Lack of Proper and/or Insufficient Internal Controls/Other"},null,null,null,null,null,null,null,null,null,null,null,null,null,null,null,null,null,"Water_Sanitation_Hygiene_WASH","Distribution of WASH NFIs",{"$f":"CC2_Cluster_Activity_Table[[#This Row],[C2. Cluster (affected):]]&\"/\"&CC2_Cluster_Activity_Table[[#This Row],[C2. Cluster Activity:]]","v":"Water_Sanitation_Hygiene_WASH/Distribution of WASH NFIs"}]
[null,null,null,null,null,null,null,null,null,null,null,null,null,null,null,null,null,null,null,null,null,null,null,null,null,null,"Other","Environment",{"$f":"B4_Risk_Sub_Category_Table[[#This Row],[B4. Risk Type:]]&\"/\"&B4_Risk_Sub_Category_Table[[#This Row],[B4. Risk Category]]","v":"Other/Environment"},"Climatic Conditions",{"$f":"B4_Risk_Sub_Category_Table[[#This Row],[B4. Risk Type:]]&\"/\"&B4_Risk_Sub_Category_Table[[#This Row],[B4. Risk Category]]&\"/\"&B4_Risk_Sub_Category_Table[[#This Row],[B4. Risk Sub-Category]]","v":"Other/Environment/Climatic Conditions"},null,null,null,null,null,null,null,null,"Internal","Financial","Poor and/or Insufficient Financial Controlling and Reporting Mechanisms",{"$f":"B5_Risk_Sub_Category_Type_Table[[#This Row],[B5. Risk Type:]]&\"/\"&B5_Risk_Sub_Category_Type_Table[[#This Row],[B5. Risk Category]]&\"/\"&B5_Risk_Sub_Category_Type_Table[[#This Row],[B5. Risk Sub-Category]]","v":"Internal/Financial/Poor and/or Insufficient Financial Controlling and Reporting Mechanisms"},"Other",{"$f":"B5_Risk_Sub_Category_Type_Table[[#This Row],[B5. Risk Type:]]&\"/\"&B5_Risk_Sub_Category_Type_Table[[#This Row],[B5. Risk Category]]&\"/\"&B5_Risk_Sub_Category_Type_Table[[#This Row],[B5. Risk Sub-Category]]&\"/\"&B5_Risk_Sub_Category_Type_Table[[#This Row],[B5. Risk Sub-Category Type]]","v":"Internal/Financial/Poor and/or Insufficient Financial Controlling and Reporting Mechanisms/Other"},null,null,null,null,null,null,null,null,null,null,null,null,null,null,null,null,null,"Water_Sanitation_Hygiene_WASH","Establishment of water safety plans",{"$f":"CC2_Cluster_Activity_Table[[#This Row],[C2. Cluster (affected):]]&\"/\"&CC2_Cluster_Activity_Table[[#This Row],[C2. Cluster Activity:]]","v":"Water_Sanitation_Hygiene_WASH/Establishment of water safety plans"}]
[null,null,null,null,null,null,null,null,null,null,null,null,null,null,null,null,null,null,null,null,null,null,null,null,null,null,"Other","Environment",{"$f":"B4_Risk_Sub_Category_Table[[#This Row],[B4. Risk Type:]]&\"/\"&B4_Risk_Sub_Category_Table[[#This Row],[B4. Risk Category]]","v":"Other/Environment"},"Environmental Constraint",{"$f":"B4_Risk_Sub_Category_Table[[#This Row],[B4. Risk Type:]]&\"/\"&B4_Risk_Sub_Category_Table[[#This Row],[B4. Risk Category]]&\"/\"&B4_Risk_Sub_Category_Table[[#This Row],[B4. Risk Sub-Category]]","v":"Other/Environment/Environmental Constraint"},null,null,null,null,null,null,null,null,"Internal","Financial","Poor Financial Information and Data Quality",{"$f":"B5_Risk_Sub_Category_Type_Table[[#This Row],[B5. Risk Type:]]&\"/\"&B5_Risk_Sub_Category_Type_Table[[#This Row],[B5. Risk Category]]&\"/\"&B5_Risk_Sub_Category_Type_Table[[#This Row],[B5. Risk Sub-Category]]","v":"Internal/Financial/Poor Financial Information and Data Quality"},"Other",{"$f":"B5_Risk_Sub_Category_Type_Table[[#This Row],[B5. Risk Type:]]&\"/\"&B5_Risk_Sub_Category_Type_Table[[#This Row],[B5. Risk Category]]&\"/\"&B5_Risk_Sub_Category_Type_Table[[#This Row],[B5. Risk Sub-Category]]&\"/\"&B5_Risk_Sub_Category_Type_Table[[#This Row],[B5. Risk Sub-Category Type]]","v":"Internal/Financial/Poor Financial Information and Data Quality/Other"},null,null,null,null,null,null,null,null,null,null,null,null,null,null,null,null,null,"Water_Sanitation_Hygiene_WASH","Operation and maintenance of water facilities",{"$f":"CC2_Cluster_Activity_Table[[#This Row],[C2. Cluster (affected):]]&\"/\"&CC2_Cluster_Activity_Table[[#This Row],[C2. Cluster Activity:]]","v":"Water_Sanitation_Hygiene_WASH/Operation and maintenance of water facilities"}]
[null,null,null,null,null,null,null,null,null,null,null,null,null,null,null,null,null,null,null,null,null,null,null,null,null,null,"Other","Environment",{"$f":"B4_Risk_Sub_Category_Table[[#This Row],[B4. Risk Type:]]&\"/\"&B4_Risk_Sub_Category_Table[[#This Row],[B4. Risk Category]]","v":"Other/Environment"},"Other",{"$f":"B4_Risk_Sub_Category_Table[[#This Row],[B4. Risk Type:]]&\"/\"&B4_Risk_Sub_Category_Table[[#This Row],[B4. Risk Category]]&\"/\"&B4_Risk_Sub_Category_Table[[#This Row],[B4. Risk Sub-Category]]","v":"Other/Environment/Other"},null,null,null,null,null,null,null,null,"Internal","Financial","Poor Financial Management",{"$f":"B5_Risk_Sub_Category_Type_Table[[#This Row],[B5. Risk Type:]]&\"/\"&B5_Risk_Sub_Category_Type_Table[[#This Row],[B5. Risk Category]]&\"/\"&B5_Risk_Sub_Category_Type_Table[[#This Row],[B5. Risk Sub-Category]]","v":"Internal/Financial/Poor Financial Management"},"Other",{"$f":"B5_Risk_Sub_Category_Type_Table[[#This Row],[B5. Risk Type:]]&\"/\"&B5_Risk_Sub_Category_Type_Table[[#This Row],[B5. Risk Category]]&\"/\"&B5_Risk_Sub_Category_Type_Table[[#This Row],[B5. Risk Sub-Category]]&\"/\"&B5_Risk_Sub_Category_Type_Table[[#This Row],[B5. Risk Sub-Category Type]]","v":"Internal/Financial/Poor Financial Management/Other"},null,null,null,null,null,null,null,null,null,null,null,null,null,null,null,null,null,"Water_Sanitation_Hygiene_WASH","Repair/rehabilitation of water systems",{"$f":"CC2_Cluster_Activity_Table[[#This Row],[C2. Cluster (affected):]]&\"/\"&CC2_Cluster_Activity_Table[[#This Row],[C2. Cluster Activity:]]","v":"Water_Sanitation_Hygiene_WASH/Repair/rehabilitation of water systems"}]
[null,null,null,null,null,null,null,null,null,null,null,null,null,null,null,null,null,null,null,null,null,null,null,null,null,null,"Other","Financial",{"$f":"B4_Risk_Sub_Category_Table[[#This Row],[B4. Risk Type:]]&\"/\"&B4_Risk_Sub_Category_Table[[#This Row],[B4. Risk Category]]","v":"Other/Financial"},"Access & Services Delivery",{"$f":"B4_Risk_Sub_Category_Table[[#This Row],[B4. Risk Type:]]&\"/\"&B4_Risk_Sub_Category_Table[[#This Row],[B4. Risk Category]]&\"/\"&B4_Risk_Sub_Category_Table[[#This Row],[B4. Risk Sub-Category]]","v":"Other/Financial/Access & Services Delivery"},null,null,null,null,null,null,null,null,"Internal","Financial","Quality, Accountability and AAP",{"$f":"B5_Risk_Sub_Category_Type_Table[[#This Row],[B5. Risk Type:]]&\"/\"&B5_Risk_Sub_Category_Type_Table[[#This Row],[B5. Risk Category]]&\"/\"&B5_Risk_Sub_Category_Type_Table[[#This Row],[B5. Risk Sub-Category]]","v":"Internal/Financial/Quality, Accountability and AAP"},"Other",{"$f":"B5_Risk_Sub_Category_Type_Table[[#This Row],[B5. Risk Type:]]&\"/\"&B5_Risk_Sub_Category_Type_Table[[#This Row],[B5. Risk Category]]&\"/\"&B5_Risk_Sub_Category_Type_Table[[#This Row],[B5. Risk Sub-Category]]&\"/\"&B5_Risk_Sub_Category_Type_Table[[#This Row],[B5. Risk Sub-Category Type]]","v":"Internal/Financial/Quality, Accountability and AAP/Other"},null,null,null,null,null,null,null,null,null,null,null,null,null,null,null,null,null,"Water_Sanitation_Hygiene_WASH","Support to sewage and solid waste management systems",{"$f":"CC2_Cluster_Activity_Table[[#This Row],[C2. Cluster (affected):]]&\"/\"&CC2_Cluster_Activity_Table[[#This Row],[C2. Cluster Activity:]]","v":"Water_Sanitation_Hygiene_WASH/Support to sewage and solid waste management systems"}]
[null,null,null,null,null,null,null,null,null,null,null,null,null,null,null,null,null,null,null,null,null,null,null,null,null,null,"Other","Financial",{"$f":"B4_Risk_Sub_Category_Table[[#This Row],[B4. Risk Type:]]&\"/\"&B4_Risk_Sub_Category_Table[[#This Row],[B4. Risk Category]]","v":"Other/Financial"},"Coordination and Partnership",{"$f":"B4_Risk_Sub_Category_Table[[#This Row],[B4. Risk Type:]]&\"/\"&B4_Risk_Sub_Category_Table[[#This Row],[B4. Risk Category]]&\"/\"&B4_Risk_Sub_Category_Table[[#This Row],[B4. Risk Sub-Category]]","v":"Other/Financial/Coordination and Partnership"},null,null,null,null,null,null,null,null,"Internal","Financial","Significant Delay in Compilation of Financial Report or Refunding Unspent Balances",{"$f":"B5_Risk_Sub_Category_Type_Table[[#This Row],[B5. Risk Type:]]&\"/\"&B5_Risk_Sub_Category_Type_Table[[#This Row],[B5. Risk Category]]&\"/\"&B5_Risk_Sub_Category_Type_Table[[#This Row],[B5. Risk Sub-Category]]","v":"Internal/Financial/Significant Delay in Compilation of Financial Report or Refunding Unspent Balances"},"Other",{"$f":"B5_Risk_Sub_Category_Type_Table[[#This Row],[B5. Risk Type:]]&\"/\"&B5_Risk_Sub_Category_Type_Table[[#This Row],[B5. Risk Category]]&\"/\"&B5_Risk_Sub_Category_Type_Table[[#This Row],[B5. Risk Sub-Category]]&\"/\"&B5_Risk_Sub_Category_Type_Table[[#This Row],[B5. Risk Sub-Category Type]]","v":"Internal/Financial/Significant Delay in Compilation of Financial Report or Refunding Unspent Balances/Other"},null,null,null,null,null,null,null,null,null,null,null,null,null,null,null,null,null,"Water_Sanitation_Hygiene_WASH","Other",{"$f":"CC2_Cluster_Activity_Table[[#This Row],[C2. Cluster (affected):]]&\"/\"&CC2_Cluster_Activity_Table[[#This Row],[C2. Cluster Activity:]]","v":"Water_Sanitation_Hygiene_WASH/Other"}]
[null,null,null,null,null,null,null,null,null,null,null,null,null,null,null,null,null,null,null,null,null,null,null,null,null,null,"Other","Financial",{"$f":"B4_Risk_Sub_Category_Table[[#This Row],[B4. Risk Type:]]&\"/\"&B4_Risk_Sub_Category_Table[[#This Row],[B4. Risk Category]]","v":"Other/Financial"},"Governance & Management",{"$f":"B4_Risk_Sub_Category_Table[[#This Row],[B4. Risk Type:]]&\"/\"&B4_Risk_Sub_Category_Table[[#This Row],[B4. Risk Category]]&\"/\"&B4_Risk_Sub_Category_Table[[#This Row],[B4. Risk Sub-Category]]","v":"Other/Financial/Governance & Management"},null,null,null,null,null,null,null,null,"Internal","Financial","Other",{"$f":"B5_Risk_Sub_Category_Type_Table[[#This Row],[B5. Risk Type:]]&\"/\"&B5_Risk_Sub_Category_Type_Table[[#This Row],[B5. Risk Category]]&\"/\"&B5_Risk_Sub_Category_Type_Table[[#This Row],[B5. Risk Sub-Category]]","v":"Internal/Financial/Other"},"Other",{"$f":"B5_Risk_Sub_Category_Type_Table[[#This Row],[B5. Risk Type:]]&\"/\"&B5_Risk_Sub_Category_Type_Table[[#This Row],[B5. Risk Category]]&\"/\"&B5_Risk_Sub_Category_Type_Table[[#This Row],[B5. Risk Sub-Category]]&\"/\"&B5_Risk_Sub_Category_Type_Table[[#This Row],[B5. Risk Sub-Category Type]]","v":"Internal/Financial/Other/Other"},null,null,null,null,null,null,null,null,null,null,null,null,null,null,null,null,null,"Multi_Cluster","Multiple Activities",{"$f":"CC2_Cluster_Activity_Table[[#This Row],[C2. Cluster (affected):]]&\"/\"&CC2_Cluster_Activity_Table[[#This Row],[C2. Cluster Activity:]]","v":"Multi_Cluster/Multiple Activities"}]
[null,null,null,null,null,null,null,null,null,null,null,null,null,null,null,null,null,null,null,null,null,null,null,null,null,null,"Other","Financial",{"$f":"B4_Risk_Sub_Category_Table[[#This Row],[B4. Risk Type:]]&\"/\"&B4_Risk_Sub_Category_Table[[#This Row],[B4. Risk Category]]","v":"Other/Financial"},"Quality, Accountability and AAP",{"$f":"B4_Risk_Sub_Category_Table[[#This Row],[B4. Risk Type:]]&\"/\"&B4_Risk_Sub_Category_Table[[#This Row],[B4. Risk Category]]&\"/\"&B4_Risk_Sub_Category_Table[[#This Row],[B4. Risk Sub-Category]]","v":"Other/Financial/Quality, Accountability and AAP"},null,null,null,null,null,null,null,null,"Internal","Human Resources","Absence of Code of Conduct",{"$f":"B5_Risk_Sub_Category_Type_Table[[#This Row],[B5. Risk Type:]]&\"/\"&B5_Risk_Sub_Category_Type_Table[[#This Row],[B5. Risk Category]]&\"/\"&B5_Risk_Sub_Category_Type_Table[[#This Row],[B5. Risk Sub-Category]]","v":"Internal/Human Resources/Absence of Code of Conduct"},"Other",{"$f":"B5_Risk_Sub_Category_Type_Table[[#This Row],[B5. Risk Type:]]&\"/\"&B5_Risk_Sub_Category_Type_Table[[#This Row],[B5. Risk Category]]&\"/\"&B5_Risk_Sub_Category_Type_Table[[#This Row],[B5. Risk Sub-Category]]&\"/\"&B5_Risk_Sub_Category_Type_Table[[#This Row],[B5. Risk Sub-Category Type]]","v":"Internal/Human Resources/Absence of Code of Conduct/Other"}]
[null,null,null,null,null,null,null,null,null,null,null,null,null,null,null,null,null,null,null,null,null,null,null,null,null,null,"Other","Financial",{"$f":"B4_Risk_Sub_Category_Table[[#This Row],[B4. Risk Type:]]&\"/\"&B4_Risk_Sub_Category_Table[[#This Row],[B4. Risk Category]]","v":"Other/Financial"},"Safety & Security",{"$f":"B4_Risk_Sub_Category_Table[[#This Row],[B4. Risk Type:]]&\"/\"&B4_Risk_Sub_Category_Table[[#This Row],[B4. Risk Category]]&\"/\"&B4_Risk_Sub_Category_Table[[#This Row],[B4. Risk Sub-Category]]","v":"Other/Financial/Safety & Security"},null,null,null,null,null,null,null,null,"Internal","Human Resources","Duty of Care",{"$f":"B5_Risk_Sub_Category_Type_Table[[#This Row],[B5. Risk Type:]]&\"/\"&B5_Risk_Sub_Category_Type_Table[[#This Row],[B5. Risk Category]]&\"/\"&B5_Risk_Sub_Category_Type_Table[[#This Row],[B5. Risk Sub-Category]]","v":"Internal/Human Resources/Duty of Care"},"Other",{"$f":"B5_Risk_Sub_Category_Type_Table[[#This Row],[B5. Risk Type:]]&\"/\"&B5_Risk_Sub_Category_Type_Table[[#This Row],[B5. Risk Category]]&\"/\"&B5_Risk_Sub_Category_Type_Table[[#This Row],[B5. Risk Sub-Category]]&\"/\"&B5_Risk_Sub_Category_Type_Table[[#This Row],[B5. Risk Sub-Category Type]]","v":"Internal/Human Resources/Duty of Care/Other"}]
[null,null,null,null,null,null,null,null,null,null,null,null,null,null,null,null,null,null,null,null,null,null,null,null,null,null,"Other","Financial",{"$f":"B4_Risk_Sub_Category_Table[[#This Row],[B4. Risk Type:]]&\"/\"&B4_Risk_Sub_Category_Table[[#This Row],[B4. Risk Category]]","v":"Other/Financial"},"Strategic",{"$f":"B4_Risk_Sub_Category_Table[[#This Row],[B4. Risk Type:]]&\"/\"&B4_Risk_Sub_Category_Table[[#This Row],[B4. Risk Category]]&\"/\"&B4_Risk_Sub_Category_Table[[#This Row],[B4. Risk Sub-Category]]","v":"Other/Financial/Strategic"},null,null,null,null,null,null,null,null,"Internal","Human Resources","Ghost Employees",{"$f":"B5_Risk_Sub_Category_Type_Table[[#This Row],[B5. Risk Type:]]&\"/\"&B5_Risk_Sub_Category_Type_Table[[#This Row],[B5. Risk Category]]&\"/\"&B5_Risk_Sub_Category_Type_Table[[#This Row],[B5. Risk Sub-Category]]","v":"Internal/Human Resources/Ghost Employees"},"Other",{"$f":"B5_Risk_Sub_Category_Type_Table[[#This Row],[B5. Risk Type:]]&\"/\"&B5_Risk_Sub_Category_Type_Table[[#This Row],[B5. Risk Category]]&\"/\"&B5_Risk_Sub_Category_Type_Table[[#This Row],[B5. Risk Sub-Category]]&\"/\"&B5_Risk_Sub_Category_Type_Table[[#This Row],[B5. Risk Sub-Category Type]]","v":"Internal/Human Resources/Ghost Employees/Other"}]
[null,null,null,null,null,null,null,null,null,null,null,null,null,null,null,null,null,null,null,null,null,null,null,null,null,null,"Other","Financial",{"$f":"B4_Risk_Sub_Category_Table[[#This Row],[B4. Risk Type:]]&\"/\"&B4_Risk_Sub_Category_Table[[#This Row],[B4. Risk Category]]","v":"Other/Financial"},"Other",{"$f":"B4_Risk_Sub_Category_Table[[#This Row],[B4. Risk Type:]]&\"/\"&B4_Risk_Sub_Category_Table[[#This Row],[B4. Risk Category]]&\"/\"&B4_Risk_Sub_Category_Table[[#This Row],[B4. Risk Sub-Category]]","v":"Other/Financial/Other"},null,null,null,null,null,null,null,null,"Internal","Human Resources","Lack of Proper and/or Insufficient Policies/Systems",{"$f":"B5_Risk_Sub_Category_Type_Table[[#This Row],[B5. Risk Type:]]&\"/\"&B5_Risk_Sub_Category_Type_Table[[#This Row],[B5. Risk Category]]&\"/\"&B5_Risk_Sub_Category_Type_Table[[#This Row],[B5. Risk Sub-Category]]","v":"Internal/Human Resources/Lack of Proper and/or Insufficient Policies/Systems"},"Other",{"$f":"B5_Risk_Sub_Category_Type_Table[[#This Row],[B5. Risk Type:]]&\"/\"&B5_Risk_Sub_Category_Type_Table[[#This Row],[B5. Risk Category]]&\"/\"&B5_Risk_Sub_Category_Type_Table[[#This Row],[B5. Risk Sub-Category]]&\"/\"&B5_Risk_Sub_Category_Type_Table[[#This Row],[B5. Risk Sub-Category Type]]","v":"Internal/Human Resources/Lack of Proper and/or Insufficient Policies/Systems/Other"}]
[null,null,null,null,null,null,null,null,null,null,null,null,null,null,null,null,null,null,null,null,null,null,null,null,null,null,"Other","Human Resources",{"$f":"B4_Risk_Sub_Category_Table[[#This Row],[B4. Risk Type:]]&\"/\"&B4_Risk_Sub_Category_Table[[#This Row],[B4. Risk Category]]","v":"Other/Human Resources"},"Coordination and Partnership",{"$f":"B4_Risk_Sub_Category_Table[[#This Row],[B4. Risk Type:]]&\"/\"&B4_Risk_Sub_Category_Table[[#This Row],[B4. Risk Category]]&\"/\"&B4_Risk_Sub_Category_Table[[#This Row],[B4. Risk Sub-Category]]","v":"Other/Human Resources/Coordination and Partnership"},null,null,null,null,null,null,null,null,"Internal","Human Resources","Lack of Proper and/or Insufficient Standard Operating Procedures",{"$f":"B5_Risk_Sub_Category_Type_Table[[#This Row],[B5. Risk Type:]]&\"/\"&B5_Risk_Sub_Category_Type_Table[[#This Row],[B5. Risk Category]]&\"/\"&B5_Risk_Sub_Category_Type_Table[[#This Row],[B5. Risk Sub-Category]]","v":"Internal/Human Resources/Lack of Proper and/or Insufficient Standard Operating Procedures"},"Other",{"$f":"B5_Risk_Sub_Category_Type_Table[[#This Row],[B5. Risk Type:]]&\"/\"&B5_Risk_Sub_Category_Type_Table[[#This Row],[B5. Risk Category]]&\"/\"&B5_Risk_Sub_Category_Type_Table[[#This Row],[B5. Risk Sub-Category]]&\"/\"&B5_Risk_Sub_Category_Type_Table[[#This Row],[B5. Risk Sub-Category Type]]","v":"Internal/Human Resources/Lack of Proper and/or Insufficient Standard Operating Procedures/Other"}]
[null,null,null,null,null,null,null,null,null,null,null,null,null,null,null,null,null,null,null,null,null,null,null,null,null,null,"Other","Human Resources",{"$f":"B4_Risk_Sub_Category_Table[[#This Row],[B4. Risk Type:]]&\"/\"&B4_Risk_Sub_Category_Table[[#This Row],[B4. Risk Category]]","v":"Other/Human Resources"},"Governance & Management",{"$f":"B4_Risk_Sub_Category_Table[[#This Row],[B4. Risk Type:]]&\"/\"&B4_Risk_Sub_Category_Table[[#This Row],[B4. Risk Category]]&\"/\"&B4_Risk_Sub_Category_Table[[#This Row],[B4. Risk Sub-Category]]","v":"Other/Human Resources/Governance & Management"},null,null,null,null,null,null,null,null,"Internal","Human Resources","Obscure Hiring System",{"$f":"B5_Risk_Sub_Category_Type_Table[[#This Row],[B5. Risk Type:]]&\"/\"&B5_Risk_Sub_Category_Type_Table[[#This Row],[B5. Risk Category]]&\"/\"&B5_Risk_Sub_Category_Type_Table[[#This Row],[B5. Risk Sub-Category]]","v":"Internal/Human Resources/Obscure Hiring System"},"Other",{"$f":"B5_Risk_Sub_Category_Type_Table[[#This Row],[B5. Risk Type:]]&\"/\"&B5_Risk_Sub_Category_Type_Table[[#This Row],[B5. Risk Category]]&\"/\"&B5_Risk_Sub_Category_Type_Table[[#This Row],[B5. Risk Sub-Category]]&\"/\"&B5_Risk_Sub_Category_Type_Table[[#This Row],[B5. Risk Sub-Category Type]]","v":"Internal/Human Resources/Obscure Hiring System/Other"}]
[null,null,null,null,null,null,null,null,null,null,null,null,null,null,null,null,null,null,null,null,null,null,null,null,null,null,"Other","Human Resources",{"$f":"B4_Risk_Sub_Category_Table[[#This Row],[B4. Risk Type:]]&\"/\"&B4_Risk_Sub_Category_Table[[#This Row],[B4. Risk Category]]","v":"Other/Human Resources"},"Quality, Accountability and AAP",{"$f":"B4_Risk_Sub_Category_Table[[#This Row],[B4. Risk Type:]]&\"/\"&B4_Risk_Sub_Category_Table[[#This Row],[B4. Risk Category]]&\"/\"&B4_Risk_Sub_Category_Table[[#This Row],[B4. Risk Sub-Category]]","v":"Other/Human Resources/Quality, Accountability and AAP"},null,null,null,null,null,null,null,null,"Internal","Human Resources","Poor Administrative Efficiency of Human Resource Management",{"$f":"B5_Risk_Sub_Category_Type_Table[[#This Row],[B5. Risk Type:]]&\"/\"&B5_Risk_Sub_Category_Type_Table[[#This Row],[B5. Risk Category]]&\"/\"&B5_Risk_Sub_Category_Type_Table[[#This Row],[B5. Risk Sub-Category]]","v":"Internal/Human Resources/Poor Administrative Efficiency of Human Resource Management"},"Other",{"$f":"B5_Risk_Sub_Category_Type_Table[[#This Row],[B5. Risk Type:]]&\"/\"&B5_Risk_Sub_Category_Type_Table[[#This Row],[B5. Risk Category]]&\"/\"&B5_Risk_Sub_Category_Type_Table[[#This Row],[B5. Risk Sub-Category]]&\"/\"&B5_Risk_Sub_Category_Type_Table[[#This Row],[B5. Risk Sub-Category Type]]","v":"Internal/Human Resources/Poor Administrative Efficiency of Human Resource Management/Other"}]
[null,null,null,null,null,null,null,null,null,null,null,null,null,null,null,null,null,null,null,null,null,null,null,null,null,null,"Other","Human Resources",{"$f":"B4_Risk_Sub_Category_Table[[#This Row],[B4. Risk Type:]]&\"/\"&B4_Risk_Sub_Category_Table[[#This Row],[B4. Risk Category]]","v":"Other/Human Resources"},"Safety & Security",{"$f":"B4_Risk_Sub_Category_Table[[#This Row],[B4. Risk Type:]]&\"/\"&B4_Risk_Sub_Category_Table[[#This Row],[B4. Risk Category]]&\"/\"&B4_Risk_Sub_Category_Table[[#This Row],[B4. Risk Sub-Category]]","v":"Other/Human Resources/Safety & Security"},null,null,null,null,null,null,null,null,"Internal","Human Resources","Quality, Accountability and AAP",{"$f":"B5_Risk_Sub_Category_Type_Table[[#This Row],[B5. Risk Type:]]&\"/\"&B5_Risk_Sub_Category_Type_Table[[#This Row],[B5. Risk Category]]&\"/\"&B5_Risk_Sub_Category_Type_Table[[#This Row],[B5. Risk Sub-Category]]","v":"Internal/Human Resources/Quality, Accountability and AAP"},"Other",{"$f":"B5_Risk_Sub_Category_Type_Table[[#This Row],[B5. Risk Type:]]&\"/\"&B5_Risk_Sub_Category_Type_Table[[#This Row],[B5. Risk Category]]&\"/\"&B5_Risk_Sub_Category_Type_Table[[#This Row],[B5. Risk Sub-Category]]&\"/\"&B5_Risk_Sub_Category_Type_Table[[#This Row],[B5. Risk Sub-Category Type]]","v":"Internal/Human Resources/Quality, Accountability and AAP/Other"}]
[null,null,null,null,null,null,null,null,null,null,null,null,null,null,null,null,null,null,null,null,null,null,null,null,null,null,"Other","Human Resources",{"$f":"B4_Risk_Sub_Category_Table[[#This Row],[B4. Risk Type:]]&\"/\"&B4_Risk_Sub_Category_Table[[#This Row],[B4. Risk Category]]","v":"Other/Human Resources"},"Strategic",{"$f":"B4_Risk_Sub_Category_Table[[#This Row],[B4. Risk Type:]]&\"/\"&B4_Risk_Sub_Category_Table[[#This Row],[B4. Risk Category]]&\"/\"&B4_Risk_Sub_Category_Table[[#This Row],[B4. Risk Sub-Category]]","v":"Other/Human Resources/Strategic"},null,null,null,null,null,null,null,null,"Internal","Human Resources","Other",{"$f":"B5_Risk_Sub_Category_Type_Table[[#This Row],[B5. Risk Type:]]&\"/\"&B5_Risk_Sub_Category_Type_Table[[#This Row],[B5. Risk Category]]&\"/\"&B5_Risk_Sub_Category_Type_Table[[#This Row],[B5. Risk Sub-Category]]","v":"Internal/Human Resources/Other"},"Other",{"$f":"B5_Risk_Sub_Category_Type_Table[[#This Row],[B5. Risk Type:]]&\"/\"&B5_Risk_Sub_Category_Type_Table[[#This Row],[B5. Risk Category]]&\"/\"&B5_Risk_Sub_Category_Type_Table[[#This Row],[B5. Risk Sub-Category]]&\"/\"&B5_Risk_Sub_Category_Type_Table[[#This Row],[B5. Risk Sub-Category Type]]","v":"Internal/Human Resources/Other/Other"}]
[null,null,null,null,null,null,null,null,null,null,null,null,null,null,null,null,null,null,null,null,null,null,null,null,null,null,"Other","Human Resources",{"$f":"B4_Risk_Sub_Category_Table[[#This Row],[B4. Risk Type:]]&\"/\"&B4_Risk_Sub_Category_Table[[#This Row],[B4. Risk Category]]","v":"Other/Human Resources"},"Other",{"$f":"B4_Risk_Sub_Category_Table[[#This Row],[B4. Risk Type:]]&\"/\"&B4_Risk_Sub_Category_Table[[#This Row],[B4. Risk Category]]&\"/\"&B4_Risk_Sub_Category_Table[[#This Row],[B4. Risk Sub-Category]]","v":"Other/Human Resources/Other"},null,null,null,null,null,null,null,null,"Internal","Logistics Procurement","Absence of Code of Conduct",{"$f":"B5_Risk_Sub_Category_Type_Table[[#This Row],[B5. Risk Type:]]&\"/\"&B5_Risk_Sub_Category_Type_Table[[#This Row],[B5. Risk Category]]&\"/\"&B5_Risk_Sub_Category_Type_Table[[#This Row],[B5. Risk Sub-Category]]","v":"Internal/Logistics Procurement/Absence of Code of Conduct"},"Other",{"$f":"B5_Risk_Sub_Category_Type_Table[[#This Row],[B5. Risk Type:]]&\"/\"&B5_Risk_Sub_Category_Type_Table[[#This Row],[B5. Risk Category]]&\"/\"&B5_Risk_Sub_Category_Type_Table[[#This Row],[B5. Risk Sub-Category]]&\"/\"&B5_Risk_Sub_Category_Type_Table[[#This Row],[B5. Risk Sub-Category Type]]","v":"Internal/Logistics Procurement/Absence of Code of Conduct/Other"}]
[null,null,null,null,null,null,null,null,null,null,null,null,null,null,null,null,null,null,null,null,null,null,null,null,null,null,"Other","Logistics Procurement",{"$f":"B4_Risk_Sub_Category_Table[[#This Row],[B4. Risk Type:]]&\"/\"&B4_Risk_Sub_Category_Table[[#This Row],[B4. Risk Category]]","v":"Other/Logistics Procurement"},"Access & Services Delivery",{"$f":"B4_Risk_Sub_Category_Table[[#This Row],[B4. Risk Type:]]&\"/\"&B4_Risk_Sub_Category_Table[[#This Row],[B4. Risk Category]]&\"/\"&B4_Risk_Sub_Category_Table[[#This Row],[B4. Risk Sub-Category]]","v":"Other/Logistics Procurement/Access & Services Delivery"},null,null,null,null,null,null,null,null,"Internal","Logistics Procurement","Donors' Strict Adherence to 'Zero Tolerance' and Compliance Policies",{"$f":"B5_Risk_Sub_Category_Type_Table[[#This Row],[B5. Risk Type:]]&\"/\"&B5_Risk_Sub_Category_Type_Table[[#This Row],[B5. Risk Category]]&\"/\"&B5_Risk_Sub_Category_Type_Table[[#This Row],[B5. Risk Sub-Category]]","v":"Internal/Logistics Procurement/Donors' Strict Adherence to 'Zero Tolerance' and Compliance Policies"},"Other",{"$f":"B5_Risk_Sub_Category_Type_Table[[#This Row],[B5. Risk Type:]]&\"/\"&B5_Risk_Sub_Category_Type_Table[[#This Row],[B5. Risk Category]]&\"/\"&B5_Risk_Sub_Category_Type_Table[[#This Row],[B5. Risk Sub-Category]]&\"/\"&B5_Risk_Sub_Category_Type_Table[[#This Row],[B5. Risk Sub-Category Type]]","v":"Internal/Logistics Procurement/Donors' Strict Adherence to 'Zero Tolerance' and Compliance Policies/Other"}]
[null,null,null,null,null,null,null,null,null,null,null,null,null,null,null,null,null,null,null,null,null,null,null,null,null,null,"Other","Logistics Procurement",{"$f":"B4_Risk_Sub_Category_Table[[#This Row],[B4. Risk Type:]]&\"/\"&B4_Risk_Sub_Category_Table[[#This Row],[B4. Risk Category]]","v":"Other/Logistics Procurement"},"Coordination and Partnership",{"$f":"B4_Risk_Sub_Category_Table[[#This Row],[B4. Risk Type:]]&\"/\"&B4_Risk_Sub_Category_Table[[#This Row],[B4. Risk Category]]&\"/\"&B4_Risk_Sub_Category_Table[[#This Row],[B4. Risk Sub-Category]]","v":"Other/Logistics Procurement/Coordination and Partnership"},null,null,null,null,null,null,null,null,"Internal","Logistics Procurement","Improper Management of Storage Facilities and/or Warehousing",{"$f":"B5_Risk_Sub_Category_Type_Table[[#This Row],[B5. Risk Type:]]&\"/\"&B5_Risk_Sub_Category_Type_Table[[#This Row],[B5. Risk Category]]&\"/\"&B5_Risk_Sub_Category_Type_Table[[#This Row],[B5. Risk Sub-Category]]","v":"Internal/Logistics Procurement/Improper Management of Storage Facilities and/or Warehousing"},"Other",{"$f":"B5_Risk_Sub_Category_Type_Table[[#This Row],[B5. Risk Type:]]&\"/\"&B5_Risk_Sub_Category_Type_Table[[#This Row],[B5. Risk Category]]&\"/\"&B5_Risk_Sub_Category_Type_Table[[#This Row],[B5. Risk Sub-Category]]&\"/\"&B5_Risk_Sub_Category_Type_Table[[#This Row],[B5. Risk Sub-Category Type]]","v":"Internal/Logistics Procurement/Improper Management of Storage Facilities and/or Warehousing/Other"}]
[null,null,null,null,null,null,null,null,null,null,null,null,null,null,null,null,null,null,null,null,null,null,null,null,null,null,"Other","Logistics Procurement",{"$f":"B4_Risk_Sub_Category_Table[[#This Row],[B4. Risk Type:]]&\"/\"&B4_Risk_Sub_Category_Table[[#This Row],[B4. Risk Category]]","v":"Other/Logistics Procurement"},"Governance & Management",{"$f":"B4_Risk_Sub_Category_Table[[#This Row],[B4. Risk Type:]]&\"/\"&B4_Risk_Sub_Category_Table[[#This Row],[B4. Risk Category]]&\"/\"&B4_Risk_Sub_Category_Table[[#This Row],[B4. Risk Sub-Category]]","v":"Other/Logistics Procurement/Governance & Management"},null,null,null,null,null,null,null,null,"Internal","Logistics Procurement","Insufficient Understanding of OFAC General License ",{"$f":"B5_Risk_Sub_Category_Type_Table[[#This Row],[B5. Risk Type:]]&\"/\"&B5_Risk_Sub_Category_Type_Table[[#This Row],[B5. Risk Category]]&\"/\"&B5_Risk_Sub_Category_Type_Table[[#This Row],[B5. Risk Sub-Category]]","v":"Internal/Logistics Procurement/Insufficient Understanding of OFAC General License "},"Other",{"$f":"B5_Risk_Sub_Category_Type_Table[[#This Row],[B5. Risk Type:]]&\"/\"&B5_Risk_Sub_Category_Type_Table[[#This Row],[B5. Risk Category]]&\"/\"&B5_Risk_Sub_Category_Type_Table[[#This Row],[B5. Risk Sub-Category]]&\"/\"&B5_Risk_Sub_Category_Type_Table[[#This Row],[B5. Risk Sub-Category Type]]","v":"Internal/Logistics Procurement/Insufficient Understanding of OFAC General License /Other"}]
[null,null,null,null,null,null,null,null,null,null,null,null,null,null,null,null,null,null,null,null,null,null,null,null,null,null,"Other","Logistics Procurement",{"$f":"B4_Risk_Sub_Category_Table[[#This Row],[B4. Risk Type:]]&\"/\"&B4_Risk_Sub_Category_Table[[#This Row],[B4. Risk Category]]","v":"Other/Logistics Procurement"},"Quality, Accountability and AAP",{"$f":"B4_Risk_Sub_Category_Table[[#This Row],[B4. Risk Type:]]&\"/\"&B4_Risk_Sub_Category_Table[[#This Row],[B4. Risk Category]]&\"/\"&B4_Risk_Sub_Category_Table[[#This Row],[B4. Risk Sub-Category]]","v":"Other/Logistics Procurement/Quality, Accountability and AAP"},null,null,null,null,null,null,null,null,"Internal","Logistics Procurement","Lack of Proper and/or Insufficient Policies/Systems",{"$f":"B5_Risk_Sub_Category_Type_Table[[#This Row],[B5. Risk Type:]]&\"/\"&B5_Risk_Sub_Category_Type_Table[[#This Row],[B5. Risk Category]]&\"/\"&B5_Risk_Sub_Category_Type_Table[[#This Row],[B5. Risk Sub-Category]]","v":"Internal/Logistics Procurement/Lack of Proper and/or Insufficient Policies/Systems"},"Other",{"$f":"B5_Risk_Sub_Category_Type_Table[[#This Row],[B5. Risk Type:]]&\"/\"&B5_Risk_Sub_Category_Type_Table[[#This Row],[B5. Risk Category]]&\"/\"&B5_Risk_Sub_Category_Type_Table[[#This Row],[B5. Risk Sub-Category]]&\"/\"&B5_Risk_Sub_Category_Type_Table[[#This Row],[B5. Risk Sub-Category Type]]","v":"Internal/Logistics Procurement/Lack of Proper and/or Insufficient Policies/Systems/Other"}]
[null,null,null,null,null,null,null,null,null,null,null,null,null,null,null,null,null,null,null,null,null,null,null,null,null,null,"Other","Logistics Procurement",{"$f":"B4_Risk_Sub_Category_Table[[#This Row],[B4. Risk Type:]]&\"/\"&B4_Risk_Sub_Category_Table[[#This Row],[B4. Risk Category]]","v":"Other/Logistics Procurement"},"Safety & Security",{"$f":"B4_Risk_Sub_Category_Table[[#This Row],[B4. Risk Type:]]&\"/\"&B4_Risk_Sub_Category_Table[[#This Row],[B4. Risk Category]]&\"/\"&B4_Risk_Sub_Category_Table[[#This Row],[B4. Risk Sub-Category]]","v":"Other/Logistics Procurement/Safety & Security"},null,null,null,null,null,null,null,null,"Internal","Logistics Procurement","Lack of Proper and/or Insufficient Standard Operating Procedures",{"$f":"B5_Risk_Sub_Category_Type_Table[[#This Row],[B5. Risk Type:]]&\"/\"&B5_Risk_Sub_Category_Type_Table[[#This Row],[B5. Risk Category]]&\"/\"&B5_Risk_Sub_Category_Type_Table[[#This Row],[B5. Risk Sub-Category]]","v":"Internal/Logistics Procurement/Lack of Proper and/or Insufficient Standard Operating Procedures"},"Other",{"$f":"B5_Risk_Sub_Category_Type_Table[[#This Row],[B5. Risk Type:]]&\"/\"&B5_Risk_Sub_Category_Type_Table[[#This Row],[B5. Risk Category]]&\"/\"&B5_Risk_Sub_Category_Type_Table[[#This Row],[B5. Risk Sub-Category]]&\"/\"&B5_Risk_Sub_Category_Type_Table[[#This Row],[B5. Risk Sub-Category Type]]","v":"Internal/Logistics Procurement/Lack of Proper and/or Insufficient Standard Operating Procedures/Other"}]
[null,null,null,null,null,null,null,null,null,null,null,null,null,null,null,null,null,null,null,null,null,null,null,null,null,null,"Other","Logistics Procurement",{"$f":"B4_Risk_Sub_Category_Table[[#This Row],[B4. Risk Type:]]&\"/\"&B4_Risk_Sub_Category_Table[[#This Row],[B4. Risk Category]]","v":"Other/Logistics Procurement"},"Strategic",{"$f":"B4_Risk_Sub_Category_Table[[#This Row],[B4. Risk Type:]]&\"/\"&B4_Risk_Sub_Category_Table[[#This Row],[B4. Risk Category]]&\"/\"&B4_Risk_Sub_Category_Table[[#This Row],[B4. Risk Sub-Category]]","v":"Other/Logistics Procurement/Strategic"},null,null,null,null,null,null,null,null,"Internal","Logistics Procurement","Obscure System for Outsourcing and/or Contracting",{"$f":"B5_Risk_Sub_Category_Type_Table[[#This Row],[B5. Risk Type:]]&\"/\"&B5_Risk_Sub_Category_Type_Table[[#This Row],[B5. Risk Category]]&\"/\"&B5_Risk_Sub_Category_Type_Table[[#This Row],[B5. Risk Sub-Category]]","v":"Internal/Logistics Procurement/Obscure System for Outsourcing and/or Contracting"},"Other",{"$f":"B5_Risk_Sub_Category_Type_Table[[#This Row],[B5. Risk Type:]]&\"/\"&B5_Risk_Sub_Category_Type_Table[[#This Row],[B5. Risk Category]]&\"/\"&B5_Risk_Sub_Category_Type_Table[[#This Row],[B5. Risk Sub-Category]]&\"/\"&B5_Risk_Sub_Category_Type_Table[[#This Row],[B5. Risk Sub-Category Type]]","v":"Internal/Logistics Procurement/Obscure System for Outsourcing and/or Contracting/Other"}]
[null,null,null,null,null,null,null,null,null,null,null,null,null,null,null,null,null,null,null,null,null,null,null,null,null,null,"Other","Logistics Procurement",{"$f":"B4_Risk_Sub_Category_Table[[#This Row],[B4. Risk Type:]]&\"/\"&B4_Risk_Sub_Category_Table[[#This Row],[B4. Risk Category]]","v":"Other/Logistics Procurement"},"Other",{"$f":"B4_Risk_Sub_Category_Table[[#This Row],[B4. Risk Type:]]&\"/\"&B4_Risk_Sub_Category_Table[[#This Row],[B4. Risk Category]]&\"/\"&B4_Risk_Sub_Category_Table[[#This Row],[B4. Risk Sub-Category]]","v":"Other/Logistics Procurement/Other"},null,null,null,null,null,null,null,null,"Internal","Logistics Procurement","Obscure System for Vendors' Vetting and Selection",{"$f":"B5_Risk_Sub_Category_Type_Table[[#This Row],[B5. Risk Type:]]&\"/\"&B5_Risk_Sub_Category_Type_Table[[#This Row],[B5. Risk Category]]&\"/\"&B5_Risk_Sub_Category_Type_Table[[#This Row],[B5. Risk Sub-Category]]","v":"Internal/Logistics Procurement/Obscure System for Vendors' Vetting and Selection"},"Other",{"$f":"B5_Risk_Sub_Category_Type_Table[[#This Row],[B5. Risk Type:]]&\"/\"&B5_Risk_Sub_Category_Type_Table[[#This Row],[B5. Risk Category]]&\"/\"&B5_Risk_Sub_Category_Type_Table[[#This Row],[B5. Risk Sub-Category]]&\"/\"&B5_Risk_Sub_Category_Type_Table[[#This Row],[B5. Risk Sub-Category Type]]","v":"Internal/Logistics Procurement/Obscure System for Vendors' Vetting and Selection/Other"}]
[null,null,null,null,null,null,null,null,null,null,null,null,null,null,null,null,null,null,null,null,null,null,null,null,null,null,"Other","Operational",{"$f":"B4_Risk_Sub_Category_Table[[#This Row],[B4. Risk Type:]]&\"/\"&B4_Risk_Sub_Category_Table[[#This Row],[B4. Risk Category]]","v":"Other/Operational"},"Access & Services Delivery",{"$f":"B4_Risk_Sub_Category_Table[[#This Row],[B4. Risk Type:]]&\"/\"&B4_Risk_Sub_Category_Table[[#This Row],[B4. Risk Category]]&\"/\"&B4_Risk_Sub_Category_Table[[#This Row],[B4. Risk Sub-Category]]","v":"Other/Operational/Access & Services Delivery"},null,null,null,null,null,null,null,null,"Internal","Logistics Procurement","Quality, Accountability and AAP",{"$f":"B5_Risk_Sub_Category_Type_Table[[#This Row],[B5. Risk Type:]]&\"/\"&B5_Risk_Sub_Category_Type_Table[[#This Row],[B5. Risk Category]]&\"/\"&B5_Risk_Sub_Category_Type_Table[[#This Row],[B5. Risk Sub-Category]]","v":"Internal/Logistics Procurement/Quality, Accountability and AAP"},"Other",{"$f":"B5_Risk_Sub_Category_Type_Table[[#This Row],[B5. Risk Type:]]&\"/\"&B5_Risk_Sub_Category_Type_Table[[#This Row],[B5. Risk Category]]&\"/\"&B5_Risk_Sub_Category_Type_Table[[#This Row],[B5. Risk Sub-Category]]&\"/\"&B5_Risk_Sub_Category_Type_Table[[#This Row],[B5. Risk Sub-Category Type]]","v":"Internal/Logistics Procurement/Quality, Accountability and AAP/Other"}]
[null,null,null,null,null,null,null,null,null,null,null,null,null,null,null,null,null,null,null,null,null,null,null,null,null,null,"Other","Operational",{"$f":"B4_Risk_Sub_Category_Table[[#This Row],[B4. Risk Type:]]&\"/\"&B4_Risk_Sub_Category_Table[[#This Row],[B4. Risk Category]]","v":"Other/Operational"},"Coordination and Partnership",{"$f":"B4_Risk_Sub_Category_Table[[#This Row],[B4. Risk Type:]]&\"/\"&B4_Risk_Sub_Category_Table[[#This Row],[B4. Risk Category]]&\"/\"&B4_Risk_Sub_Category_Table[[#This Row],[B4. Risk Sub-Category]]","v":"Other/Operational/Coordination and Partnership"},null,null,null,null,null,null,null,null,"Internal","Logistics Procurement","Other",{"$f":"B5_Risk_Sub_Category_Type_Table[[#This Row],[B5. Risk Type:]]&\"/\"&B5_Risk_Sub_Category_Type_Table[[#This Row],[B5. Risk Category]]&\"/\"&B5_Risk_Sub_Category_Type_Table[[#This Row],[B5. Risk Sub-Category]]","v":"Internal/Logistics Procurement/Other"},"Other",{"$f":"B5_Risk_Sub_Category_Type_Table[[#This Row],[B5. Risk Type:]]&\"/\"&B5_Risk_Sub_Category_Type_Table[[#This Row],[B5. Risk Category]]&\"/\"&B5_Risk_Sub_Category_Type_Table[[#This Row],[B5. Risk Sub-Category]]&\"/\"&B5_Risk_Sub_Category_Type_Table[[#This Row],[B5. Risk Sub-Category Type]]","v":"Internal/Logistics Procurement/Other/Other"}]
[null,null,null,null,null,null,null,null,null,null,null,null,null,null,null,null,null,null,null,null,null,null,null,null,null,null,"Other","Operational",{"$f":"B4_Risk_Sub_Category_Table[[#This Row],[B4. Risk Type:]]&\"/\"&B4_Risk_Sub_Category_Table[[#This Row],[B4. Risk Category]]","v":"Other/Operational"},"Governance & Management",{"$f":"B4_Risk_Sub_Category_Table[[#This Row],[B4. Risk Type:]]&\"/\"&B4_Risk_Sub_Category_Table[[#This Row],[B4. Risk Category]]&\"/\"&B4_Risk_Sub_Category_Table[[#This Row],[B4. Risk Sub-Category]]","v":"Other/Operational/Governance & Management"},null,null,null,null,null,null,null,null,"Internal","Operational","Absence of Code of Conduct",{"$f":"B5_Risk_Sub_Category_Type_Table[[#This Row],[B5. Risk Type:]]&\"/\"&B5_Risk_Sub_Category_Type_Table[[#This Row],[B5. Risk Category]]&\"/\"&B5_Risk_Sub_Category_Type_Table[[#This Row],[B5. Risk Sub-Category]]","v":"Internal/Operational/Absence of Code of Conduct"},"Other",{"$f":"B5_Risk_Sub_Category_Type_Table[[#This Row],[B5. Risk Type:]]&\"/\"&B5_Risk_Sub_Category_Type_Table[[#This Row],[B5. Risk Category]]&\"/\"&B5_Risk_Sub_Category_Type_Table[[#This Row],[B5. Risk Sub-Category]]&\"/\"&B5_Risk_Sub_Category_Type_Table[[#This Row],[B5. Risk Sub-Category Type]]","v":"Internal/Operational/Absence of Code of Conduct/Other"}]
[null,null,null,null,null,null,null,null,null,null,null,null,null,null,null,null,null,null,null,null,null,null,null,null,null,null,"Other","Operational",{"$f":"B4_Risk_Sub_Category_Table[[#This Row],[B4. Risk Type:]]&\"/\"&B4_Risk_Sub_Category_Table[[#This Row],[B4. Risk Category]]","v":"Other/Operational"},"Safety & Security",{"$f":"B4_Risk_Sub_Category_Table[[#This Row],[B4. Risk Type:]]&\"/\"&B4_Risk_Sub_Category_Table[[#This Row],[B4. Risk Category]]&\"/\"&B4_Risk_Sub_Category_Table[[#This Row],[B4. Risk Sub-Category]]","v":"Other/Operational/Safety & Security"},null,null,null,null,null,null,null,null,"Internal","Operational","Excessive use of cash transactions at the operational level",{"$f":"B5_Risk_Sub_Category_Type_Table[[#This Row],[B5. Risk Type:]]&\"/\"&B5_Risk_Sub_Category_Type_Table[[#This Row],[B5. Risk Category]]&\"/\"&B5_Risk_Sub_Category_Type_Table[[#This Row],[B5. Risk Sub-Category]]","v":"Internal/Operational/Excessive use of cash transactions at the operational level"},"Other",{"$f":"B5_Risk_Sub_Category_Type_Table[[#This Row],[B5. Risk Type:]]&\"/\"&B5_Risk_Sub_Category_Type_Table[[#This Row],[B5. Risk Category]]&\"/\"&B5_Risk_Sub_Category_Type_Table[[#This Row],[B5. Risk Sub-Category]]&\"/\"&B5_Risk_Sub_Category_Type_Table[[#This Row],[B5. Risk Sub-Category Type]]","v":"Internal/Operational/Excessive use of cash transactions at the operational level/Other"}]
[null,null,null,null,null,null,null,null,null,null,null,null,null,null,null,null,null,null,null,null,null,null,null,null,null,null,"Other","Operational",{"$f":"B4_Risk_Sub_Category_Table[[#This Row],[B4. Risk Type:]]&\"/\"&B4_Risk_Sub_Category_Table[[#This Row],[B4. Risk Category]]","v":"Other/Operational"},"Strategic",{"$f":"B4_Risk_Sub_Category_Table[[#This Row],[B4. Risk Type:]]&\"/\"&B4_Risk_Sub_Category_Table[[#This Row],[B4. Risk Category]]&\"/\"&B4_Risk_Sub_Category_Table[[#This Row],[B4. Risk Sub-Category]]","v":"Other/Operational/Strategic"},null,null,null,null,null,null,null,null,"Internal","Operational","Lack of interest for Support Staff Capacity Building",{"$f":"B5_Risk_Sub_Category_Type_Table[[#This Row],[B5. Risk Type:]]&\"/\"&B5_Risk_Sub_Category_Type_Table[[#This Row],[B5. Risk Category]]&\"/\"&B5_Risk_Sub_Category_Type_Table[[#This Row],[B5. Risk Sub-Category]]","v":"Internal/Operational/Lack of interest for Support Staff Capacity Building"},"Other",{"$f":"B5_Risk_Sub_Category_Type_Table[[#This Row],[B5. Risk Type:]]&\"/\"&B5_Risk_Sub_Category_Type_Table[[#This Row],[B5. Risk Category]]&\"/\"&B5_Risk_Sub_Category_Type_Table[[#This Row],[B5. Risk Sub-Category]]&\"/\"&B5_Risk_Sub_Category_Type_Table[[#This Row],[B5. Risk Sub-Category Type]]","v":"Internal/Operational/Lack of interest for Support Staff Capacity Building/Other"}]
[null,null,null,null,null,null,null,null,null,null,null,null,null,null,null,null,null,null,null,null,null,null,null,null,null,null,"Other","Operational",{"$f":"B4_Risk_Sub_Category_Table[[#This Row],[B4. Risk Type:]]&\"/\"&B4_Risk_Sub_Category_Table[[#This Row],[B4. Risk Category]]","v":"Other/Operational"},"Other",{"$f":"B4_Risk_Sub_Category_Table[[#This Row],[B4. Risk Type:]]&\"/\"&B4_Risk_Sub_Category_Table[[#This Row],[B4. Risk Category]]&\"/\"&B4_Risk_Sub_Category_Table[[#This Row],[B4. Risk Sub-Category]]","v":"Other/Operational/Other"},null,null,null,null,null,null,null,null,"Internal","Operational","Lack of Proper and/or Insufficient Policies/Systems",{"$f":"B5_Risk_Sub_Category_Type_Table[[#This Row],[B5. Risk Type:]]&\"/\"&B5_Risk_Sub_Category_Type_Table[[#This Row],[B5. Risk Category]]&\"/\"&B5_Risk_Sub_Category_Type_Table[[#This Row],[B5. Risk Sub-Category]]","v":"Internal/Operational/Lack of Proper and/or Insufficient Policies/Systems"},"Other",{"$f":"B5_Risk_Sub_Category_Type_Table[[#This Row],[B5. Risk Type:]]&\"/\"&B5_Risk_Sub_Category_Type_Table[[#This Row],[B5. Risk Category]]&\"/\"&B5_Risk_Sub_Category_Type_Table[[#This Row],[B5. Risk Sub-Category]]&\"/\"&B5_Risk_Sub_Category_Type_Table[[#This Row],[B5. Risk Sub-Category Type]]","v":"Internal/Operational/Lack of Proper and/or Insufficient Policies/Systems/Other"}]
[null,null,null,null,null,null,null,null,null,null,null,null,null,null,null,null,null,null,null,null,null,null,null,null,null,null,"Other","Programmatic",{"$f":"B4_Risk_Sub_Category_Table[[#This Row],[B4. Risk Type:]]&\"/\"&B4_Risk_Sub_Category_Table[[#This Row],[B4. Risk Category]]","v":"Other/Programmatic"},"Access & Services Delivery",{"$f":"B4_Risk_Sub_Category_Table[[#This Row],[B4. Risk Type:]]&\"/\"&B4_Risk_Sub_Category_Table[[#This Row],[B4. Risk Category]]&\"/\"&B4_Risk_Sub_Category_Table[[#This Row],[B4. Risk Sub-Category]]","v":"Other/Programmatic/Access & Services Delivery"},null,null,null,null,null,null,null,null,"Internal","Operational","Lack of Proper and/or Insufficient Standard Operating Procedures",{"$f":"B5_Risk_Sub_Category_Type_Table[[#This Row],[B5. Risk Type:]]&\"/\"&B5_Risk_Sub_Category_Type_Table[[#This Row],[B5. Risk Category]]&\"/\"&B5_Risk_Sub_Category_Type_Table[[#This Row],[B5. Risk Sub-Category]]","v":"Internal/Operational/Lack of Proper and/or Insufficient Standard Operating Procedures"},"Other",{"$f":"B5_Risk_Sub_Category_Type_Table[[#This Row],[B5. Risk Type:]]&\"/\"&B5_Risk_Sub_Category_Type_Table[[#This Row],[B5. Risk Category]]&\"/\"&B5_Risk_Sub_Category_Type_Table[[#This Row],[B5. Risk Sub-Category]]&\"/\"&B5_Risk_Sub_Category_Type_Table[[#This Row],[B5. Risk Sub-Category Type]]","v":"Internal/Operational/Lack of Proper and/or Insufficient Standard Operating Procedures/Other"}]
[null,null,null,null,null,null,null,null,null,null,null,null,null,null,null,null,null,null,null,null,null,null,null,null,null,null,"Other","Programmatic",{"$f":"B4_Risk_Sub_Category_Table[[#This Row],[B4. Risk Type:]]&\"/\"&B4_Risk_Sub_Category_Table[[#This Row],[B4. Risk Category]]","v":"Other/Programmatic"},"Coordination and Partnership",{"$f":"B4_Risk_Sub_Category_Table[[#This Row],[B4. Risk Type:]]&\"/\"&B4_Risk_Sub_Category_Table[[#This Row],[B4. Risk Category]]&\"/\"&B4_Risk_Sub_Category_Table[[#This Row],[B4. Risk Sub-Category]]","v":"Other/Programmatic/Coordination and Partnership"},null,null,null,null,null,null,null,null,"Internal","Operational","Poor Capacity of Support Staff on Safety & Security Management",{"$f":"B5_Risk_Sub_Category_Type_Table[[#This Row],[B5. Risk Type:]]&\"/\"&B5_Risk_Sub_Category_Type_Table[[#This Row],[B5. Risk Category]]&\"/\"&B5_Risk_Sub_Category_Type_Table[[#This Row],[B5. Risk Sub-Category]]","v":"Internal/Operational/Poor Capacity of Support Staff on Safety & Security Management"},"Other",{"$f":"B5_Risk_Sub_Category_Type_Table[[#This Row],[B5. Risk Type:]]&\"/\"&B5_Risk_Sub_Category_Type_Table[[#This Row],[B5. Risk Category]]&\"/\"&B5_Risk_Sub_Category_Type_Table[[#This Row],[B5. Risk Sub-Category]]&\"/\"&B5_Risk_Sub_Category_Type_Table[[#This Row],[B5. Risk Sub-Category Type]]","v":"Internal/Operational/Poor Capacity of Support Staff on Safety & Security Management/Other"}]
[null,null,null,null,null,null,null,null,null,null,null,null,null,null,null,null,null,null,null,null,null,null,null,null,null,null,"Other","Programmatic",{"$f":"B4_Risk_Sub_Category_Table[[#This Row],[B4. Risk Type:]]&\"/\"&B4_Risk_Sub_Category_Table[[#This Row],[B4. Risk Category]]","v":"Other/Programmatic"},"Governance & Management",{"$f":"B4_Risk_Sub_Category_Table[[#This Row],[B4. Risk Type:]]&\"/\"&B4_Risk_Sub_Category_Table[[#This Row],[B4. Risk Category]]&\"/\"&B4_Risk_Sub_Category_Table[[#This Row],[B4. Risk Sub-Category]]","v":"Other/Programmatic/Governance & Management"},null,null,null,null,null,null,null,null,"Internal","Operational","Quality, Accountability and AAP",{"$f":"B5_Risk_Sub_Category_Type_Table[[#This Row],[B5. Risk Type:]]&\"/\"&B5_Risk_Sub_Category_Type_Table[[#This Row],[B5. Risk Category]]&\"/\"&B5_Risk_Sub_Category_Type_Table[[#This Row],[B5. Risk Sub-Category]]","v":"Internal/Operational/Quality, Accountability and AAP"},"Other",{"$f":"B5_Risk_Sub_Category_Type_Table[[#This Row],[B5. Risk Type:]]&\"/\"&B5_Risk_Sub_Category_Type_Table[[#This Row],[B5. Risk Category]]&\"/\"&B5_Risk_Sub_Category_Type_Table[[#This Row],[B5. Risk Sub-Category]]&\"/\"&B5_Risk_Sub_Category_Type_Table[[#This Row],[B5. Risk Sub-Category Type]]","v":"Internal/Operational/Quality, Accountability and AAP/Other"}]
[null,null,null,null,null,null,null,null,null,null,null,null,null,null,null,null,null,null,null,null,null,null,null,null,null,null,"Other","Programmatic",{"$f":"B4_Risk_Sub_Category_Table[[#This Row],[B4. Risk Type:]]&\"/\"&B4_Risk_Sub_Category_Table[[#This Row],[B4. Risk Category]]","v":"Other/Programmatic"},"Quality, Accountability and AAP",{"$f":"B4_Risk_Sub_Category_Table[[#This Row],[B4. Risk Type:]]&\"/\"&B4_Risk_Sub_Category_Table[[#This Row],[B4. Risk Category]]&\"/\"&B4_Risk_Sub_Category_Table[[#This Row],[B4. Risk Sub-Category]]","v":"Other/Programmatic/Quality, Accountability and AAP"},null,null,null,null,null,null,null,null,"Internal","Operational","Other",{"$f":"B5_Risk_Sub_Category_Type_Table[[#This Row],[B5. Risk Type:]]&\"/\"&B5_Risk_Sub_Category_Type_Table[[#This Row],[B5. Risk Category]]&\"/\"&B5_Risk_Sub_Category_Type_Table[[#This Row],[B5. Risk Sub-Category]]","v":"Internal/Operational/Other"},"Other",{"$f":"B5_Risk_Sub_Category_Type_Table[[#This Row],[B5. Risk Type:]]&\"/\"&B5_Risk_Sub_Category_Type_Table[[#This Row],[B5. Risk Category]]&\"/\"&B5_Risk_Sub_Category_Type_Table[[#This Row],[B5. Risk Sub-Category]]&\"/\"&B5_Risk_Sub_Category_Type_Table[[#This Row],[B5. Risk Sub-Category Type]]","v":"Internal/Operational/Other/Other"}]
[null,null,null,null,null,null,null,null,null,null,null,null,null,null,null,null,null,null,null,null,null,null,null,null,null,null,"Other","Programmatic",{"$f":"B4_Risk_Sub_Category_Table[[#This Row],[B4. Risk Type:]]&\"/\"&B4_Risk_Sub_Category_Table[[#This Row],[B4. Risk Category]]","v":"Other/Programmatic"},"Safety & Security",{"$f":"B4_Risk_Sub_Category_Table[[#This Row],[B4. Risk Type:]]&\"/\"&B4_Risk_Sub_Category_Table[[#This Row],[B4. Risk Category]]&\"/\"&B4_Risk_Sub_Category_Table[[#This Row],[B4. Risk Sub-Category]]","v":"Other/Programmatic/Safety & Security"},null,null,null,null,null,null,null,null,"Internal","Programmatic","Insufficient Coherence Between Identification, prioritization of needs and Program Design",{"$f":"B5_Risk_Sub_Category_Type_Table[[#This Row],[B5. Risk Type:]]&\"/\"&B5_Risk_Sub_Category_Type_Table[[#This Row],[B5. Risk Category]]&\"/\"&B5_Risk_Sub_Category_Type_Table[[#This Row],[B5. Risk Sub-Category]]","v":"Internal/Programmatic/Insufficient Coherence Between Identification, prioritization of needs and Program Design"},"Other",{"$f":"B5_Risk_Sub_Category_Type_Table[[#This Row],[B5. Risk Type:]]&\"/\"&B5_Risk_Sub_Category_Type_Table[[#This Row],[B5. Risk Category]]&\"/\"&B5_Risk_Sub_Category_Type_Table[[#This Row],[B5. Risk Sub-Category]]&\"/\"&B5_Risk_Sub_Category_Type_Table[[#This Row],[B5. Risk Sub-Category Type]]","v":"Internal/Programmatic/Insufficient Coherence Between Identification, prioritization of needs and Program Design/Other"}]
[null,null,null,null,null,null,null,null,null,null,null,null,null,null,null,null,null,null,null,null,null,null,null,null,null,null,"Other","Programmatic",{"$f":"B4_Risk_Sub_Category_Table[[#This Row],[B4. Risk Type:]]&\"/\"&B4_Risk_Sub_Category_Table[[#This Row],[B4. Risk Category]]","v":"Other/Programmatic"},"Strategic",{"$f":"B4_Risk_Sub_Category_Table[[#This Row],[B4. Risk Type:]]&\"/\"&B4_Risk_Sub_Category_Table[[#This Row],[B4. Risk Category]]&\"/\"&B4_Risk_Sub_Category_Table[[#This Row],[B4. Risk Sub-Category]]","v":"Other/Programmatic/Strategic"},null,null,null,null,null,null,null,null,"Internal","Programmatic","Lack Humanitarian Program Cycle and/or Project Management Cycle",{"$f":"B5_Risk_Sub_Category_Type_Table[[#This Row],[B5. Risk Type:]]&\"/\"&B5_Risk_Sub_Category_Type_Table[[#This Row],[B5. Risk Category]]&\"/\"&B5_Risk_Sub_Category_Type_Table[[#This Row],[B5. Risk Sub-Category]]","v":"Internal/Programmatic/Lack Humanitarian Program Cycle and/or Project Management Cycle"},"Other",{"$f":"B5_Risk_Sub_Category_Type_Table[[#This Row],[B5. Risk Type:]]&\"/\"&B5_Risk_Sub_Category_Type_Table[[#This Row],[B5. Risk Category]]&\"/\"&B5_Risk_Sub_Category_Type_Table[[#This Row],[B5. Risk Sub-Category]]&\"/\"&B5_Risk_Sub_Category_Type_Table[[#This Row],[B5. Risk Sub-Category Type]]","v":"Internal/Programmatic/Lack Humanitarian Program Cycle and/or Project Management Cycle/Other"}]
[null,null,null,null,null,null,null,null,null,null,null,null,null,null,null,null,null,null,null,null,null,null,null,null,null,null,"Other","Programmatic",{"$f":"B4_Risk_Sub_Category_Table[[#This Row],[B4. Risk Type:]]&\"/\"&B4_Risk_Sub_Category_Table[[#This Row],[B4. Risk Category]]","v":"Other/Programmatic"},"Other",{"$f":"B4_Risk_Sub_Category_Table[[#This Row],[B4. Risk Type:]]&\"/\"&B4_Risk_Sub_Category_Table[[#This Row],[B4. Risk Category]]&\"/\"&B4_Risk_Sub_Category_Table[[#This Row],[B4. Risk Sub-Category]]","v":"Other/Programmatic/Other"},null,null,null,null,null,null,null,null,"Internal","Programmatic","Lack of Appropriate Compliance to Donor Policies/Requirements ",{"$f":"B5_Risk_Sub_Category_Type_Table[[#This Row],[B5. Risk Type:]]&\"/\"&B5_Risk_Sub_Category_Type_Table[[#This Row],[B5. Risk Category]]&\"/\"&B5_Risk_Sub_Category_Type_Table[[#This Row],[B5. Risk Sub-Category]]","v":"Internal/Programmatic/Lack of Appropriate Compliance to Donor Policies/Requirements "},"Other",{"$f":"B5_Risk_Sub_Category_Type_Table[[#This Row],[B5. Risk Type:]]&\"/\"&B5_Risk_Sub_Category_Type_Table[[#This Row],[B5. Risk Category]]&\"/\"&B5_Risk_Sub_Category_Type_Table[[#This Row],[B5. Risk Sub-Category]]&\"/\"&B5_Risk_Sub_Category_Type_Table[[#This Row],[B5. Risk Sub-Category Type]]","v":"Internal/Programmatic/Lack of Appropriate Compliance to Donor Policies/Requirements /Other"}]
[null,null,null,null,null,null,null,null,null,null,null,null,null,null,null,null,null,null,null,null,null,null,null,null,null,null,"Other","Quality, Accountability and AAP",{"$f":"B4_Risk_Sub_Category_Table[[#This Row],[B4. Risk Type:]]&\"/\"&B4_Risk_Sub_Category_Table[[#This Row],[B4. Risk Category]]","v":"Other/Quality, Accountability and AAP"},"Accountability System and Practices",{"$f":"B4_Risk_Sub_Category_Table[[#This Row],[B4. Risk Type:]]&\"/\"&B4_Risk_Sub_Category_Table[[#This Row],[B4. Risk Category]]&\"/\"&B4_Risk_Sub_Category_Table[[#This Row],[B4. Risk Sub-Category]]","v":"Other/Quality, Accountability and AAP/Accountability System and Practices"},null,null,null,null,null,null,null,null,"Internal","Programmatic","Lack of Appropriate Reporting to the Relevant Bodies/Donors",{"$f":"B5_Risk_Sub_Category_Type_Table[[#This Row],[B5. Risk Type:]]&\"/\"&B5_Risk_Sub_Category_Type_Table[[#This Row],[B5. Risk Category]]&\"/\"&B5_Risk_Sub_Category_Type_Table[[#This Row],[B5. Risk Sub-Category]]","v":"Internal/Programmatic/Lack of Appropriate Reporting to the Relevant Bodies/Donors"},"Other",{"$f":"B5_Risk_Sub_Category_Type_Table[[#This Row],[B5. Risk Type:]]&\"/\"&B5_Risk_Sub_Category_Type_Table[[#This Row],[B5. Risk Category]]&\"/\"&B5_Risk_Sub_Category_Type_Table[[#This Row],[B5. Risk Sub-Category]]&\"/\"&B5_Risk_Sub_Category_Type_Table[[#This Row],[B5. Risk Sub-Category Type]]","v":"Internal/Programmatic/Lack of Appropriate Reporting to the Relevant Bodies/Donors/Other"}]
[null,null,null,null,null,null,null,null,null,null,null,null,null,null,null,null,null,null,null,null,null,null,null,null,null,null,"Other","Quality, Accountability and AAP",{"$f":"B4_Risk_Sub_Category_Table[[#This Row],[B4. Risk Type:]]&\"/\"&B4_Risk_Sub_Category_Table[[#This Row],[B4. Risk Category]]","v":"Other/Quality, Accountability and AAP"},"Accountability to Affected Populations",{"$f":"B4_Risk_Sub_Category_Table[[#This Row],[B4. Risk Type:]]&\"/\"&B4_Risk_Sub_Category_Table[[#This Row],[B4. Risk Category]]&\"/\"&B4_Risk_Sub_Category_Table[[#This Row],[B4. Risk Sub-Category]]","v":"Other/Quality, Accountability and AAP/Accountability to Affected Populations"},null,null,null,null,null,null,null,null,"Internal","Programmatic","Lack of Effectiveness of the Humanitarian Coordination System",{"$f":"B5_Risk_Sub_Category_Type_Table[[#This Row],[B5. Risk Type:]]&\"/\"&B5_Risk_Sub_Category_Type_Table[[#This Row],[B5. Risk Category]]&\"/\"&B5_Risk_Sub_Category_Type_Table[[#This Row],[B5. Risk Sub-Category]]","v":"Internal/Programmatic/Lack of Effectiveness of the Humanitarian Coordination System"},"Other",{"$f":"B5_Risk_Sub_Category_Type_Table[[#This Row],[B5. Risk Type:]]&\"/\"&B5_Risk_Sub_Category_Type_Table[[#This Row],[B5. Risk Category]]&\"/\"&B5_Risk_Sub_Category_Type_Table[[#This Row],[B5. Risk Sub-Category]]&\"/\"&B5_Risk_Sub_Category_Type_Table[[#This Row],[B5. Risk Sub-Category Type]]","v":"Internal/Programmatic/Lack of Effectiveness of the Humanitarian Coordination System/Other"}]
[null,null,null,null,null,null,null,null,null,null,null,null,null,null,null,null,null,null,null,null,null,null,null,null,null,null,"Other","Quality, Accountability and AAP",{"$f":"B4_Risk_Sub_Category_Table[[#This Row],[B4. Risk Type:]]&\"/\"&B4_Risk_Sub_Category_Table[[#This Row],[B4. Risk Category]]","v":"Other/Quality, Accountability and AAP"},"Coordination Partnership",{"$f":"B4_Risk_Sub_Category_Table[[#This Row],[B4. Risk Type:]]&\"/\"&B4_Risk_Sub_Category_Table[[#This Row],[B4. Risk Category]]&\"/\"&B4_Risk_Sub_Category_Table[[#This Row],[B4. Risk Sub-Category]]","v":"Other/Quality, Accountability and AAP/Coordination Partnership"},null,null,null,null,null,null,null,null,"Internal","Programmatic","Lack of Proper Risk Management System",{"$f":"B5_Risk_Sub_Category_Type_Table[[#This Row],[B5. Risk Type:]]&\"/\"&B5_Risk_Sub_Category_Type_Table[[#This Row],[B5. Risk Category]]&\"/\"&B5_Risk_Sub_Category_Type_Table[[#This Row],[B5. Risk Sub-Category]]","v":"Internal/Programmatic/Lack of Proper Risk Management System"},"Other",{"$f":"B5_Risk_Sub_Category_Type_Table[[#This Row],[B5. Risk Type:]]&\"/\"&B5_Risk_Sub_Category_Type_Table[[#This Row],[B5. Risk Category]]&\"/\"&B5_Risk_Sub_Category_Type_Table[[#This Row],[B5. Risk Sub-Category]]&\"/\"&B5_Risk_Sub_Category_Type_Table[[#This Row],[B5. Risk Sub-Category Type]]","v":"Internal/Programmatic/Lack of Proper Risk Management System/Other"}]
[null,null,null,null,null,null,null,null,null,null,null,null,null,null,null,null,null,null,null,null,null,null,null,null,null,null,"Other","Quality, Accountability and AAP",{"$f":"B4_Risk_Sub_Category_Table[[#This Row],[B4. Risk Type:]]&\"/\"&B4_Risk_Sub_Category_Table[[#This Row],[B4. Risk Category]]","v":"Other/Quality, Accountability and AAP"},"Quality of Service Delivery",{"$f":"B4_Risk_Sub_Category_Table[[#This Row],[B4. Risk Type:]]&\"/\"&B4_Risk_Sub_Category_Table[[#This Row],[B4. Risk Category]]&\"/\"&B4_Risk_Sub_Category_Table[[#This Row],[B4. Risk Sub-Category]]","v":"Other/Quality, Accountability and AAP/Quality of Service Delivery"},null,null,null,null,null,null,null,null,"Internal","Programmatic","Poor Information and Data Quality and/or Poor Needs Assessment",{"$f":"B5_Risk_Sub_Category_Type_Table[[#This Row],[B5. Risk Type:]]&\"/\"&B5_Risk_Sub_Category_Type_Table[[#This Row],[B5. Risk Category]]&\"/\"&B5_Risk_Sub_Category_Type_Table[[#This Row],[B5. Risk Sub-Category]]","v":"Internal/Programmatic/Poor Information and Data Quality and/or Poor Needs Assessment"},"Other",{"$f":"B5_Risk_Sub_Category_Type_Table[[#This Row],[B5. Risk Type:]]&\"/\"&B5_Risk_Sub_Category_Type_Table[[#This Row],[B5. Risk Category]]&\"/\"&B5_Risk_Sub_Category_Type_Table[[#This Row],[B5. Risk Sub-Category]]&\"/\"&B5_Risk_Sub_Category_Type_Table[[#This Row],[B5. Risk Sub-Category Type]]","v":"Internal/Programmatic/Poor Information and Data Quality and/or Poor Needs Assessment/Other"}]
[null,null,null,null,null,null,null,null,null,null,null,null,null,null,null,null,null,null,null,null,null,null,null,null,null,null,"Other","Quality, Accountability and AAP",{"$f":"B4_Risk_Sub_Category_Table[[#This Row],[B4. Risk Type:]]&\"/\"&B4_Risk_Sub_Category_Table[[#This Row],[B4. Risk Category]]","v":"Other/Quality, Accountability and AAP"},"Other",{"$f":"B4_Risk_Sub_Category_Table[[#This Row],[B4. Risk Type:]]&\"/\"&B4_Risk_Sub_Category_Table[[#This Row],[B4. Risk Category]]&\"/\"&B4_Risk_Sub_Category_Table[[#This Row],[B4. Risk Sub-Category]]","v":"Other/Quality, Accountability and AAP/Other"},null,null,null,null,null,null,null,null,"Internal","Programmatic","Poor or Insufficient Capacity on Program Design and Development  ",{"$f":"B5_Risk_Sub_Category_Type_Table[[#This Row],[B5. Risk Type:]]&\"/\"&B5_Risk_Sub_Category_Type_Table[[#This Row],[B5. Risk Category]]&\"/\"&B5_Risk_Sub_Category_Type_Table[[#This Row],[B5. Risk Sub-Category]]","v":"Internal/Programmatic/Poor or Insufficient Capacity on Program Design and Development  "},"Other",{"$f":"B5_Risk_Sub_Category_Type_Table[[#This Row],[B5. Risk Type:]]&\"/\"&B5_Risk_Sub_Category_Type_Table[[#This Row],[B5. Risk Category]]&\"/\"&B5_Risk_Sub_Category_Type_Table[[#This Row],[B5. Risk Sub-Category]]&\"/\"&B5_Risk_Sub_Category_Type_Table[[#This Row],[B5. Risk Sub-Category Type]]","v":"Internal/Programmatic/Poor or Insufficient Capacity on Program Design and Development  /Other"}]
[null,null,null,null,null,null,null,null,null,null,null,null,null,null,null,null,null,null,null,null,null,null,null,null,null,null,"Other","Safety & Security",{"$f":"B4_Risk_Sub_Category_Table[[#This Row],[B4. Risk Type:]]&\"/\"&B4_Risk_Sub_Category_Table[[#This Row],[B4. Risk Category]]","v":"Other/Safety & Security"},"Safety Security of Affected Populations",{"$f":"B4_Risk_Sub_Category_Table[[#This Row],[B4. Risk Type:]]&\"/\"&B4_Risk_Sub_Category_Table[[#This Row],[B4. Risk Category]]&\"/\"&B4_Risk_Sub_Category_Table[[#This Row],[B4. Risk Sub-Category]]","v":"Other/Safety & Security/Safety Security of Affected Populations"},null,null,null,null,null,null,null,null,"Internal","Programmatic","Poor or Insufficient Monitoring, Reporting and Documentation of both Program and Financial Resources and Controlling Mechanisms",{"$f":"B5_Risk_Sub_Category_Type_Table[[#This Row],[B5. Risk Type:]]&\"/\"&B5_Risk_Sub_Category_Type_Table[[#This Row],[B5. Risk Category]]&\"/\"&B5_Risk_Sub_Category_Type_Table[[#This Row],[B5. Risk Sub-Category]]","v":"Internal/Programmatic/Poor or Insufficient Monitoring, Reporting and Documentation of both Program and Financial Resources and Controlling Mechanisms"},"Other",{"$f":"B5_Risk_Sub_Category_Type_Table[[#This Row],[B5. Risk Type:]]&\"/\"&B5_Risk_Sub_Category_Type_Table[[#This Row],[B5. Risk Category]]&\"/\"&B5_Risk_Sub_Category_Type_Table[[#This Row],[B5. Risk Sub-Category]]&\"/\"&B5_Risk_Sub_Category_Type_Table[[#This Row],[B5. Risk Sub-Category Type]]","v":"Internal/Programmatic/Poor or Insufficient Monitoring, Reporting and Documentation of both Program and Financial Resources and Controlling Mechanisms/Other"}]
[null,null,null,null,null,null,null,null,null,null,null,null,null,null,null,null,null,null,null,null,null,null,null,null,null,null,"Other","Safety & Security",{"$f":"B4_Risk_Sub_Category_Table[[#This Row],[B4. Risk Type:]]&\"/\"&B4_Risk_Sub_Category_Table[[#This Row],[B4. Risk Category]]","v":"Other/Safety & Security"},"Safety Security of NGOs Personnel Assets Infrastructure Facilities",{"$f":"B4_Risk_Sub_Category_Table[[#This Row],[B4. Risk Type:]]&\"/\"&B4_Risk_Sub_Category_Table[[#This Row],[B4. Risk Category]]&\"/\"&B4_Risk_Sub_Category_Table[[#This Row],[B4. Risk Sub-Category]]","v":"Other/Safety & Security/Safety Security of NGOs Personnel Assets Infrastructure Facilities"},null,null,null,null,null,null,null,null,"Internal","Programmatic","Poor Program Management",{"$f":"B5_Risk_Sub_Category_Type_Table[[#This Row],[B5. Risk Type:]]&\"/\"&B5_Risk_Sub_Category_Type_Table[[#This Row],[B5. Risk Category]]&\"/\"&B5_Risk_Sub_Category_Type_Table[[#This Row],[B5. Risk Sub-Category]]","v":"Internal/Programmatic/Poor Program Management"},"Other",{"$f":"B5_Risk_Sub_Category_Type_Table[[#This Row],[B5. Risk Type:]]&\"/\"&B5_Risk_Sub_Category_Type_Table[[#This Row],[B5. Risk Category]]&\"/\"&B5_Risk_Sub_Category_Type_Table[[#This Row],[B5. Risk Sub-Category]]&\"/\"&B5_Risk_Sub_Category_Type_Table[[#This Row],[B5. Risk Sub-Category Type]]","v":"Internal/Programmatic/Poor Program Management/Other"}]
[null,null,null,null,null,null,null,null,null,null,null,null,null,null,null,null,null,null,null,null,null,null,null,null,null,null,"Other","Safety & Security",{"$f":"B4_Risk_Sub_Category_Table[[#This Row],[B4. Risk Type:]]&\"/\"&B4_Risk_Sub_Category_Table[[#This Row],[B4. Risk Category]]","v":"Other/Safety & Security"},"Other",{"$f":"B4_Risk_Sub_Category_Table[[#This Row],[B4. Risk Type:]]&\"/\"&B4_Risk_Sub_Category_Table[[#This Row],[B4. Risk Category]]&\"/\"&B4_Risk_Sub_Category_Table[[#This Row],[B4. Risk Sub-Category]]","v":"Other/Safety & Security/Other"},null,null,null,null,null,null,null,null,"Internal","Programmatic","Quality, Accountability and AAP",{"$f":"B5_Risk_Sub_Category_Type_Table[[#This Row],[B5. Risk Type:]]&\"/\"&B5_Risk_Sub_Category_Type_Table[[#This Row],[B5. Risk Category]]&\"/\"&B5_Risk_Sub_Category_Type_Table[[#This Row],[B5. Risk Sub-Category]]","v":"Internal/Programmatic/Quality, Accountability and AAP"},"Other",{"$f":"B5_Risk_Sub_Category_Type_Table[[#This Row],[B5. Risk Type:]]&\"/\"&B5_Risk_Sub_Category_Type_Table[[#This Row],[B5. Risk Category]]&\"/\"&B5_Risk_Sub_Category_Type_Table[[#This Row],[B5. Risk Sub-Category]]&\"/\"&B5_Risk_Sub_Category_Type_Table[[#This Row],[B5. Risk Sub-Category Type]]","v":"Internal/Programmatic/Quality, Accountability and AAP/Other"}]
[null,null,null,null,null,null,null,null,null,null,null,null,null,null,null,null,null,null,null,null,null,null,null,null,null,null,"Other","Other",{"$f":"B4_Risk_Sub_Category_Table[[#This Row],[B4. Risk Type:]]&\"/\"&B4_Risk_Sub_Category_Table[[#This Row],[B4. Risk Category]]","v":"Other/Other"},"Other",{"$f":"B4_Risk_Sub_Category_Table[[#This Row],[B4. Risk Type:]]&\"/\"&B4_Risk_Sub_Category_Table[[#This Row],[B4. Risk Category]]&\"/\"&B4_Risk_Sub_Category_Table[[#This Row],[B4. Risk Sub-Category]]","v":"Other/Other/Other"},null,null,null,null,null,null,null,null,"Internal","Programmatic","Other",{"$f":"B5_Risk_Sub_Category_Type_Table[[#This Row],[B5. Risk Type:]]&\"/\"&B5_Risk_Sub_Category_Type_Table[[#This Row],[B5. Risk Category]]&\"/\"&B5_Risk_Sub_Category_Type_Table[[#This Row],[B5. Risk Sub-Category]]","v":"Internal/Programmatic/Other"},"Other",{"$f":"B5_Risk_Sub_Category_Type_Table[[#This Row],[B5. Risk Type:]]&\"/\"&B5_Risk_Sub_Category_Type_Table[[#This Row],[B5. Risk Category]]&\"/\"&B5_Risk_Sub_Category_Type_Table[[#This Row],[B5. Risk Sub-Category]]&\"/\"&B5_Risk_Sub_Category_Type_Table[[#This Row],[B5. Risk Sub-Category Type]]","v":"Internal/Programmatic/Other/Other"}]
[null,null,null,null,null,null,null,null,null,null,null,null,null,null,null,null,null,null,null,null,null,null,null,null,null,null,null,null,null,null,null,null,null,null,null,null,null,null,null,"Internal","Other","Other",{"$f":"B5_Risk_Sub_Category_Type_Table[[#This Row],[B5. Risk Type:]]&\"/\"&B5_Risk_Sub_Category_Type_Table[[#This Row],[B5. Risk Category]]&\"/\"&B5_Risk_Sub_Category_Type_Table[[#This Row],[B5. Risk Sub-Category]]","v":"Internal/Other/Other"},"Other",{"$f":"B5_Risk_Sub_Category_Type_Table[[#This Row],[B5. Risk Type:]]&\"/\"&B5_Risk_Sub_Category_Type_Table[[#This Row],[B5. Risk Category]]&\"/\"&B5_Risk_Sub_Category_Type_Table[[#This Row],[B5. Risk Sub-Category]]&\"/\"&B5_Risk_Sub_Category_Type_Table[[#This Row],[B5. Risk Sub-Category Type]]","v":"Internal/Other/Other/Other"}]
[null,null,null,null,null,null,null,null,null,null,null,null,null,null,null,null,null,null,null,null,null,null,null,null,null,null,null,null,null,null,null,null,null,null,null,null,null,null,null,"Strategic","Change in Government Policy(s)","Other",{"$f":"B5_Risk_Sub_Category_Type_Table[[#This Row],[B5. Risk Type:]]&\"/\"&B5_Risk_Sub_Category_Type_Table[[#This Row],[B5. Risk Category]]&\"/\"&B5_Risk_Sub_Category_Type_Table[[#This Row],[B5. Risk Sub-Category]]","v":"Strategic/Change in Government Policy(s)/Other"},"Other",{"$f":"B5_Risk_Sub_Category_Type_Table[[#This Row],[B5. Risk Type:]]&\"/\"&B5_Risk_Sub_Category_Type_Table[[#This Row],[B5. Risk Category]]&\"/\"&B5_Risk_Sub_Category_Type_Table[[#This Row],[B5. Risk Sub-Category]]&\"/\"&B5_Risk_Sub_Category_Type_Table[[#This Row],[B5. Risk Sub-Category Type]]","v":"Strategic/Change in Government Policy(s)/Other/Other"}]
[null,null,null,null,null,null,null,null,null,null,null,null,null,null,null,null,null,null,null,null,null,null,null,null,null,null,null,null,null,null,null,null,null,null,null,null,null,null,null,"Strategic","Demographic Change(s)","Other",{"$f":"B5_Risk_Sub_Category_Type_Table[[#This Row],[B5. Risk Type:]]&\"/\"&B5_Risk_Sub_Category_Type_Table[[#This Row],[B5. Risk Category]]&\"/\"&B5_Risk_Sub_Category_Type_Table[[#This Row],[B5. Risk Sub-Category]]","v":"Strategic/Demographic Change(s)/Other"},"Other",{"$f":"B5_Risk_Sub_Category_Type_Table[[#This Row],[B5. Risk Type:]]&\"/\"&B5_Risk_Sub_Category_Type_Table[[#This Row],[B5. Risk Category]]&\"/\"&B5_Risk_Sub_Category_Type_Table[[#This Row],[B5. Risk Sub-Category]]&\"/\"&B5_Risk_Sub_Category_Type_Table[[#This Row],[B5. Risk Sub-Category Type]]","v":"Strategic/Demographic Change(s)/Other/Other"}]
[null,null,null,null,null,null,null,null,null,null,null,null,null,null,null,null,null,null,null,null,null,null,null,null,null,null,null,null,null,null,null,null,null,null,null,null,null,null,null,"Strategic","Duty of Care","Other",{"$f":"B5_Risk_Sub_Category_Type_Table[[#This Row],[B5. Risk Type:]]&\"/\"&B5_Risk_Sub_Category_Type_Table[[#This Row],[B5. Risk Category]]&\"/\"&B5_Risk_Sub_Category_Type_Table[[#This Row],[B5. Risk Sub-Category]]","v":"Strategic/Duty of Care/Other"},"Other",{"$f":"B5_Risk_Sub_Category_Type_Table[[#This Row],[B5. Risk Type:]]&\"/\"&B5_Risk_Sub_Category_Type_Table[[#This Row],[B5. Risk Category]]&\"/\"&B5_Risk_Sub_Category_Type_Table[[#This Row],[B5. Risk Sub-Category]]&\"/\"&B5_Risk_Sub_Category_Type_Table[[#This Row],[B5. Risk Sub-Category Type]]","v":"Strategic/Duty of Care/Other/Other"}]
[null,null,null,null,null,null,null,null,null,null,null,null,null,null,null,null,null,null,null,null,null,null,null,null,null,null,null,null,null,null,null,null,null,null,null,null,null,null,null,"Strategic","Fluctuation of Exchange Rates","Other",{"$f":"B5_Risk_Sub_Category_Type_Table[[#This Row],[B5. Risk Type:]]&\"/\"&B5_Risk_Sub_Category_Type_Table[[#This Row],[B5. Risk Category]]&\"/\"&B5_Risk_Sub_Category_Type_Table[[#This Row],[B5. Risk Sub-Category]]","v":"Strategic/Fluctuation of Exchange Rates/Other"},"Other",{"$f":"B5_Risk_Sub_Category_Type_Table[[#This Row],[B5. Risk Type:]]&\"/\"&B5_Risk_Sub_Category_Type_Table[[#This Row],[B5. Risk Category]]&\"/\"&B5_Risk_Sub_Category_Type_Table[[#This Row],[B5. Risk Sub-Category]]&\"/\"&B5_Risk_Sub_Category_Type_Table[[#This Row],[B5. Risk Sub-Category Type]]","v":"Strategic/Fluctuation of Exchange Rates/Other/Other"}]
[null,null,null,null,null,null,null,null,null,null,null,null,null,null,null,null,null,null,null,null,null,null,null,null,null,null,null,null,null,null,null,null,null,null,null,null,null,null,null,"Strategic","GBV","Other",{"$f":"B5_Risk_Sub_Category_Type_Table[[#This Row],[B5. Risk Type:]]&\"/\"&B5_Risk_Sub_Category_Type_Table[[#This Row],[B5. Risk Category]]&\"/\"&B5_Risk_Sub_Category_Type_Table[[#This Row],[B5. Risk Sub-Category]]","v":"Strategic/GBV/Other"},"Other",{"$f":"B5_Risk_Sub_Category_Type_Table[[#This Row],[B5. Risk Type:]]&\"/\"&B5_Risk_Sub_Category_Type_Table[[#This Row],[B5. Risk Category]]&\"/\"&B5_Risk_Sub_Category_Type_Table[[#This Row],[B5. Risk Sub-Category]]&\"/\"&B5_Risk_Sub_Category_Type_Table[[#This Row],[B5. Risk Sub-Category Type]]","v":"Strategic/GBV/Other/Other"}]
[null,null,null,null,null,null,null,null,null,null,null,null,null,null,null,null,null,null,null,null,null,null,null,null,null,null,null,null,null,null,null,null,null,null,null,null,null,null,null,"Strategic","Human Rights Violations","Other",{"$f":"B5_Risk_Sub_Category_Type_Table[[#This Row],[B5. Risk Type:]]&\"/\"&B5_Risk_Sub_Category_Type_Table[[#This Row],[B5. Risk Category]]&\"/\"&B5_Risk_Sub_Category_Type_Table[[#This Row],[B5. Risk Sub-Category]]","v":"Strategic/Human Rights Violations/Other"},"Other",{"$f":"B5_Risk_Sub_Category_Type_Table[[#This Row],[B5. Risk Type:]]&\"/\"&B5_Risk_Sub_Category_Type_Table[[#This Row],[B5. Risk Category]]&\"/\"&B5_Risk_Sub_Category_Type_Table[[#This Row],[B5. Risk Sub-Category]]&\"/\"&B5_Risk_Sub_Category_Type_Table[[#This Row],[B5. Risk Sub-Category Type]]","v":"Strategic/Human Rights Violations/Other/Other"}]
[null,null,null,null,null,null,null,null,null,null,null,null,null,null,null,null,null,null,null,null,null,null,null,null,null,null,null,null,null,null,null,null,null,null,null,null,null,null,null,"Strategic","Laws/Regulations Imposed Requirements","Other",{"$f":"B5_Risk_Sub_Category_Type_Table[[#This Row],[B5. Risk Type:]]&\"/\"&B5_Risk_Sub_Category_Type_Table[[#This Row],[B5. Risk Category]]&\"/\"&B5_Risk_Sub_Category_Type_Table[[#This Row],[B5. Risk Sub-Category]]","v":"Strategic/Laws/Regulations Imposed Requirements/Other"},"Other",{"$f":"B5_Risk_Sub_Category_Type_Table[[#This Row],[B5. Risk Type:]]&\"/\"&B5_Risk_Sub_Category_Type_Table[[#This Row],[B5. Risk Category]]&\"/\"&B5_Risk_Sub_Category_Type_Table[[#This Row],[B5. Risk Sub-Category]]&\"/\"&B5_Risk_Sub_Category_Type_Table[[#This Row],[B5. Risk Sub-Category Type]]","v":"Strategic/Laws/Regulations Imposed Requirements/Other/Other"}]
[null,null,null,null,null,null,null,null,null,null,null,null,null,null,null,null,null,null,null,null,null,null,null,null,null,null,null,null,null,null,null,null,null,null,null,null,null,null,null,"Strategic","Major Macroeconomic Shifts","Other",{"$f":"B5_Risk_Sub_Category_Type_Table[[#This Row],[B5. Risk Type:]]&\"/\"&B5_Risk_Sub_Category_Type_Table[[#This Row],[B5. Risk Category]]&\"/\"&B5_Risk_Sub_Category_Type_Table[[#This Row],[B5. Risk Sub-Category]]","v":"Strategic/Major Macroeconomic Shifts/Other"},"Other",{"$f":"B5_Risk_Sub_Category_Type_Table[[#This Row],[B5. Risk Type:]]&\"/\"&B5_Risk_Sub_Category_Type_Table[[#This Row],[B5. Risk Category]]&\"/\"&B5_Risk_Sub_Category_Type_Table[[#This Row],[B5. Risk Sub-Category]]&\"/\"&B5_Risk_Sub_Category_Type_Table[[#This Row],[B5. Risk Sub-Category Type]]","v":"Strategic/Major Macroeconomic Shifts/Other/Other"}]
[null,null,null,null,null,null,null,null,null,null,null,null,null,null,null,null,null,null,null,null,null,null,null,null,null,null,null,null,null,null,null,null,null,null,null,null,null,null,null,"Strategic","Major Shift in Power","Other",{"$f":"B5_Risk_Sub_Category_Type_Table[[#This Row],[B5. Risk Type:]]&\"/\"&B5_Risk_Sub_Category_Type_Table[[#This Row],[B5. Risk Category]]&\"/\"&B5_Risk_Sub_Category_Type_Table[[#This Row],[B5. Risk Sub-Category]]","v":"Strategic/Major Shift in Power/Other"},"Other",{"$f":"B5_Risk_Sub_Category_Type_Table[[#This Row],[B5. Risk Type:]]&\"/\"&B5_Risk_Sub_Category_Type_Table[[#This Row],[B5. Risk Category]]&\"/\"&B5_Risk_Sub_Category_Type_Table[[#This Row],[B5. Risk Sub-Category]]&\"/\"&B5_Risk_Sub_Category_Type_Table[[#This Row],[B5. Risk Sub-Category Type]]","v":"Strategic/Major Shift in Power/Other/Other"}]
[null,null,null,null,null,null,null,null,null,null,null,null,null,null,null,null,null,null,null,null,null,null,null,null,null,null,null,null,null,null,null,null,null,null,null,null,null,null,null,"Strategic","Manmade Disasters/Crisis","Other",{"$f":"B5_Risk_Sub_Category_Type_Table[[#This Row],[B5. Risk Type:]]&\"/\"&B5_Risk_Sub_Category_Type_Table[[#This Row],[B5. Risk Category]]&\"/\"&B5_Risk_Sub_Category_Type_Table[[#This Row],[B5. Risk Sub-Category]]","v":"Strategic/Manmade Disasters/Crisis/Other"},"Other",{"$f":"B5_Risk_Sub_Category_Type_Table[[#This Row],[B5. Risk Type:]]&\"/\"&B5_Risk_Sub_Category_Type_Table[[#This Row],[B5. Risk Category]]&\"/\"&B5_Risk_Sub_Category_Type_Table[[#This Row],[B5. Risk Sub-Category]]&\"/\"&B5_Risk_Sub_Category_Type_Table[[#This Row],[B5. Risk Sub-Category Type]]","v":"Strategic/Manmade Disasters/Crisis/Other/Other"}]
[null,null,null,null,null,null,null,null,null,null,null,null,null,null,null,null,null,null,null,null,null,null,null,null,null,null,null,null,null,null,null,null,null,null,null,null,null,null,null,"Strategic","Natural Disasters","Other",{"$f":"B5_Risk_Sub_Category_Type_Table[[#This Row],[B5. Risk Type:]]&\"/\"&B5_Risk_Sub_Category_Type_Table[[#This Row],[B5. Risk Category]]&\"/\"&B5_Risk_Sub_Category_Type_Table[[#This Row],[B5. Risk Sub-Category]]","v":"Strategic/Natural Disasters/Other"},"Other",{"$f":"B5_Risk_Sub_Category_Type_Table[[#This Row],[B5. Risk Type:]]&\"/\"&B5_Risk_Sub_Category_Type_Table[[#This Row],[B5. Risk Category]]&\"/\"&B5_Risk_Sub_Category_Type_Table[[#This Row],[B5. Risk Sub-Category]]&\"/\"&B5_Risk_Sub_Category_Type_Table[[#This Row],[B5. Risk Sub-Category Type]]","v":"Strategic/Natural Disasters/Other/Other"}]
[null,null,null,null,null,null,null,null,null,null,null,null,null,null,null,null,null,null,null,null,null,null,null,null,null,null,null,null,null,null,null,null,null,null,null,null,null,null,null,"Strategic","Obsolescence of Current Systems","Other",{"$f":"B5_Risk_Sub_Category_Type_Table[[#This Row],[B5. Risk Type:]]&\"/\"&B5_Risk_Sub_Category_Type_Table[[#This Row],[B5. Risk Category]]&\"/\"&B5_Risk_Sub_Category_Type_Table[[#This Row],[B5. Risk Sub-Category]]","v":"Strategic/Obsolescence of Current Systems/Other"},"Other",{"$f":"B5_Risk_Sub_Category_Type_Table[[#This Row],[B5. Risk Type:]]&\"/\"&B5_Risk_Sub_Category_Type_Table[[#This Row],[B5. Risk Category]]&\"/\"&B5_Risk_Sub_Category_Type_Table[[#This Row],[B5. Risk Sub-Category]]&\"/\"&B5_Risk_Sub_Category_Type_Table[[#This Row],[B5. Risk Sub-Category Type]]","v":"Strategic/Obsolescence of Current Systems/Other/Other"}]
[null,null,null,null,null,null,null,null,null,null,null,null,null,null,null,null,null,null,null,null,null,null,null,null,null,null,null,null,null,null,null,null,null,null,null,null,null,null,null,"Strategic","Political Disaster/Crisis","Other",{"$f":"B5_Risk_Sub_Category_Type_Table[[#This Row],[B5. Risk Type:]]&\"/\"&B5_Risk_Sub_Category_Type_Table[[#This Row],[B5. Risk Category]]&\"/\"&B5_Risk_Sub_Category_Type_Table[[#This Row],[B5. Risk Sub-Category]]","v":"Strategic/Political Disaster/Crisis/Other"},"Other",{"$f":"B5_Risk_Sub_Category_Type_Table[[#This Row],[B5. Risk Type:]]&\"/\"&B5_Risk_Sub_Category_Type_Table[[#This Row],[B5. Risk Category]]&\"/\"&B5_Risk_Sub_Category_Type_Table[[#This Row],[B5. Risk Sub-Category]]&\"/\"&B5_Risk_Sub_Category_Type_Table[[#This Row],[B5. Risk Sub-Category Type]]","v":"Strategic/Political Disaster/Crisis/Other/Other"}]
[null,null,null,null,null,null,null,null,null,null,null,null,null,null,null,null,null,null,null,null,null,null,null,null,null,null,null,null,null,null,null,null,null,null,null,null,null,null,null,"Strategic","Political Instability","Other",{"$f":"B5_Risk_Sub_Category_Type_Table[[#This Row],[B5. Risk Type:]]&\"/\"&B5_Risk_Sub_Category_Type_Table[[#This Row],[B5. Risk Category]]&\"/\"&B5_Risk_Sub_Category_Type_Table[[#This Row],[B5. Risk Sub-Category]]","v":"Strategic/Political Instability/Other"},"Other",{"$f":"B5_Risk_Sub_Category_Type_Table[[#This Row],[B5. Risk Type:]]&\"/\"&B5_Risk_Sub_Category_Type_Table[[#This Row],[B5. Risk Category]]&\"/\"&B5_Risk_Sub_Category_Type_Table[[#This Row],[B5. Risk Sub-Category]]&\"/\"&B5_Risk_Sub_Category_Type_Table[[#This Row],[B5. Risk Sub-Category Type]]","v":"Strategic/Political Instability/Other/Other"}]
[null,null,null,null,null,null,null,null,null,null,null,null,null,null,null,null,null,null,null,null,null,null,null,null,null,null,null,null,null,null,null,null,null,null,null,null,null,null,null,"Strategic","PSEA","Other",{"$f":"B5_Risk_Sub_Category_Type_Table[[#This Row],[B5. Risk Type:]]&\"/\"&B5_Risk_Sub_Category_Type_Table[[#This Row],[B5. Risk Category]]&\"/\"&B5_Risk_Sub_Category_Type_Table[[#This Row],[B5. Risk Sub-Category]]","v":"Strategic/PSEA/Other"},"Other",{"$f":"B5_Risk_Sub_Category_Type_Table[[#This Row],[B5. Risk Type:]]&\"/\"&B5_Risk_Sub_Category_Type_Table[[#This Row],[B5. Risk Category]]&\"/\"&B5_Risk_Sub_Category_Type_Table[[#This Row],[B5. Risk Sub-Category]]&\"/\"&B5_Risk_Sub_Category_Type_Table[[#This Row],[B5. Risk Sub-Category Type]]","v":"Strategic/PSEA/Other/Other"}]
[null,null,null,null,null,null,null,null,null,null,null,null,null,null,null,null,null,null,null,null,null,null,null,null,null,null,null,null,null,null,null,null,null,null,null,null,null,null,null,"Strategic","Sudden Onset of Large Scale Emergency","Other",{"$f":"B5_Risk_Sub_Category_Type_Table[[#This Row],[B5. Risk Type:]]&\"/\"&B5_Risk_Sub_Category_Type_Table[[#This Row],[B5. Risk Category]]&\"/\"&B5_Risk_Sub_Category_Type_Table[[#This Row],[B5. Risk Sub-Category]]","v":"Strategic/Sudden Onset of Large Scale Emergency/Other"},"Other",{"$f":"B5_Risk_Sub_Category_Type_Table[[#This Row],[B5. Risk Type:]]&\"/\"&B5_Risk_Sub_Category_Type_Table[[#This Row],[B5. Risk Category]]&\"/\"&B5_Risk_Sub_Category_Type_Table[[#This Row],[B5. Risk Sub-Category]]&\"/\"&B5_Risk_Sub_Category_Type_Table[[#This Row],[B5. Risk Sub-Category Type]]","v":"Strategic/Sudden Onset of Large Scale Emergency/Other/Other"}]
[null,null,null,null,null,null,null,null,null,null,null,null,null,null,null,null,null,null,null,null,null,null,null,null,null,null,null,null,null,null,null,null,null,null,null,null,null,null,null,"Strategic","Under Engagement with Government due to Lack of Understanding of the Cross-border Operation","Other",{"$f":"B5_Risk_Sub_Category_Type_Table[[#This Row],[B5. Risk Type:]]&\"/\"&B5_Risk_Sub_Category_Type_Table[[#This Row],[B5. Risk Category]]&\"/\"&B5_Risk_Sub_Category_Type_Table[[#This Row],[B5. Risk Sub-Category]]","v":"Strategic/Under Engagement with Government due to Lack of Understanding of the Cross-border Operation/Other"},"Other",{"$f":"B5_Risk_Sub_Category_Type_Table[[#This Row],[B5. Risk Type:]]&\"/\"&B5_Risk_Sub_Category_Type_Table[[#This Row],[B5. Risk Category]]&\"/\"&B5_Risk_Sub_Category_Type_Table[[#This Row],[B5. Risk Sub-Category]]&\"/\"&B5_Risk_Sub_Category_Type_Table[[#This Row],[B5. Risk Sub-Category Type]]","v":"Strategic/Under Engagement with Government due to Lack of Understanding of the Cross-border Operation/Other/Other"}]
[null,null,null,null,null,null,null,null,null,null,null,null,null,null,null,null,null,null,null,null,null,null,null,null,null,null,null,null,null,null,null,null,null,null,null,null,null,null,null,"Strategic","Other","Other",{"$f":"B5_Risk_Sub_Category_Type_Table[[#This Row],[B5. Risk Type:]]&\"/\"&B5_Risk_Sub_Category_Type_Table[[#This Row],[B5. Risk Category]]&\"/\"&B5_Risk_Sub_Category_Type_Table[[#This Row],[B5. Risk Sub-Category]]","v":"Strategic/Other/Other"},"Other",{"$f":"B5_Risk_Sub_Category_Type_Table[[#This Row],[B5. Risk Type:]]&\"/\"&B5_Risk_Sub_Category_Type_Table[[#This Row],[B5. Risk Category]]&\"/\"&B5_Risk_Sub_Category_Type_Table[[#This Row],[B5. Risk Sub-Category]]&\"/\"&B5_Risk_Sub_Category_Type_Table[[#This Row],[B5. Risk Sub-Category Type]]","v":"Strategic/Other/Other/Other"}]
[null,null,null,null,null,null,null,null,null,null,null,null,null,null,null,null,null,null,null,null,null,null,null,null,null,null,null,null,null,null,null,null,null,null,null,null,null,null,null,"Other","Access","Denial of Access",{"$f":"B5_Risk_Sub_Category_Type_Table[[#This Row],[B5. Risk Type:]]&\"/\"&B5_Risk_Sub_Category_Type_Table[[#This Row],[B5. Risk Category]]&\"/\"&B5_Risk_Sub_Category_Type_Table[[#This Row],[B5. Risk Sub-Category]]","v":"Other/Access/Denial of Access"},"Affected populations' access to humanitarian services/assistance",{"$f":"B5_Risk_Sub_Category_Type_Table[[#This Row],[B5. Risk Type:]]&\"/\"&B5_Risk_Sub_Category_Type_Table[[#This Row],[B5. Risk Category]]&\"/\"&B5_Risk_Sub_Category_Type_Table[[#This Row],[B5. Risk Sub-Category]]&\"/\"&B5_Risk_Sub_Category_Type_Table[[#This Row],[B5. Risk Sub-Category Type]]","v":"Other/Access/Denial of Access/Affected populations' access to humanitarian services/assistance"}]
[null,null,null,null,null,null,null,null,null,null,null,null,null,null,null,null,null,null,null,null,null,null,null,null,null,null,null,null,null,null,null,null,null,null,null,null,null,null,null,"Other","Access","Denial of Access",{"$f":"B5_Risk_Sub_Category_Type_Table[[#This Row],[B5. Risk Type:]]&\"/\"&B5_Risk_Sub_Category_Type_Table[[#This Row],[B5. Risk Category]]&\"/\"&B5_Risk_Sub_Category_Type_Table[[#This Row],[B5. Risk Sub-Category]]","v":"Other/Access/Denial of Access"},"Denial of population movement to location of assistance",{"$f":"B5_Risk_Sub_Category_Type_Table[[#This Row],[B5. Risk Type:]]&\"/\"&B5_Risk_Sub_Category_Type_Table[[#This Row],[B5. Risk Category]]&\"/\"&B5_Risk_Sub_Category_Type_Table[[#This Row],[B5. Risk Sub-Category]]&\"/\"&B5_Risk_Sub_Category_Type_Table[[#This Row],[B5. Risk Sub-Category Type]]","v":"Other/Access/Denial of Access/Denial of population movement to location of assistance"}]
[null,null,null,null,null,null,null,null,null,null,null,null,null,null,null,null,null,null,null,null,null,null,null,null,null,null,null,null,null,null,null,null,null,null,null,null,null,null,null,"Other","Access","Denial of Access",{"$f":"B5_Risk_Sub_Category_Type_Table[[#This Row],[B5. Risk Type:]]&\"/\"&B5_Risk_Sub_Category_Type_Table[[#This Row],[B5. Risk Category]]&\"/\"&B5_Risk_Sub_Category_Type_Table[[#This Row],[B5. Risk Sub-Category]]","v":"Other/Access/Denial of Access"},"Denied of assistance to certain population groups",{"$f":"B5_Risk_Sub_Category_Type_Table[[#This Row],[B5. Risk Type:]]&\"/\"&B5_Risk_Sub_Category_Type_Table[[#This Row],[B5. Risk Category]]&\"/\"&B5_Risk_Sub_Category_Type_Table[[#This Row],[B5. Risk Sub-Category]]&\"/\"&B5_Risk_Sub_Category_Type_Table[[#This Row],[B5. Risk Sub-Category Type]]","v":"Other/Access/Denial of Access/Denied of assistance to certain population groups"}]
[null,null,null,null,null,null,null,null,null,null,null,null,null,null,null,null,null,null,null,null,null,null,null,null,null,null,null,null,null,null,null,null,null,null,null,null,null,null,null,"Other","Access","Denial of Access",{"$f":"B5_Risk_Sub_Category_Type_Table[[#This Row],[B5. Risk Type:]]&\"/\"&B5_Risk_Sub_Category_Type_Table[[#This Row],[B5. Risk Category]]&\"/\"&B5_Risk_Sub_Category_Type_Table[[#This Row],[B5. Risk Sub-Category]]","v":"Other/Access/Denial of Access"},"Forced movement of population away from location of assistance",{"$f":"B5_Risk_Sub_Category_Type_Table[[#This Row],[B5. Risk Type:]]&\"/\"&B5_Risk_Sub_Category_Type_Table[[#This Row],[B5. Risk Category]]&\"/\"&B5_Risk_Sub_Category_Type_Table[[#This Row],[B5. Risk Sub-Category]]&\"/\"&B5_Risk_Sub_Category_Type_Table[[#This Row],[B5. Risk Sub-Category Type]]","v":"Other/Access/Denial of Access/Forced movement of population away from location of assistance"}]
[null,null,null,null,null,null,null,null,null,null,null,null,null,null,null,null,null,null,null,null,null,null,null,null,null,null,null,null,null,null,null,null,null,null,null,null,null,null,null,"Other","Access","Denial of Access",{"$f":"B5_Risk_Sub_Category_Type_Table[[#This Row],[B5. Risk Type:]]&\"/\"&B5_Risk_Sub_Category_Type_Table[[#This Row],[B5. Risk Category]]&\"/\"&B5_Risk_Sub_Category_Type_Table[[#This Row],[B5. Risk Sub-Category]]","v":"Other/Access/Denial of Access"},"General restriction on population movement",{"$f":"B5_Risk_Sub_Category_Type_Table[[#This Row],[B5. Risk Type:]]&\"/\"&B5_Risk_Sub_Category_Type_Table[[#This Row],[B5. Risk Category]]&\"/\"&B5_Risk_Sub_Category_Type_Table[[#This Row],[B5. Risk Sub-Category]]&\"/\"&B5_Risk_Sub_Category_Type_Table[[#This Row],[B5. Risk Sub-Category Type]]","v":"Other/Access/Denial of Access/General restriction on population movement"}]
[null,null,null,null,null,null,null,null,null,null,null,null,null,null,null,null,null,null,null,null,null,null,null,null,null,null,null,null,null,null,null,null,null,null,null,null,null,null,null,"Other","Access","Denial of Access",{"$f":"B5_Risk_Sub_Category_Type_Table[[#This Row],[B5. Risk Type:]]&\"/\"&B5_Risk_Sub_Category_Type_Table[[#This Row],[B5. Risk Category]]&\"/\"&B5_Risk_Sub_Category_Type_Table[[#This Row],[B5. Risk Sub-Category]]","v":"Other/Access/Denial of Access"},"Humanitarian workers' access to affected area",{"$f":"B5_Risk_Sub_Category_Type_Table[[#This Row],[B5. Risk Type:]]&\"/\"&B5_Risk_Sub_Category_Type_Table[[#This Row],[B5. Risk Category]]&\"/\"&B5_Risk_Sub_Category_Type_Table[[#This Row],[B5. Risk Sub-Category]]&\"/\"&B5_Risk_Sub_Category_Type_Table[[#This Row],[B5. Risk Sub-Category Type]]","v":"Other/Access/Denial of Access/Humanitarian workers' access to affected area"}]
[null,null,null,null,null,null,null,null,null,null,null,null,null,null,null,null,null,null,null,null,null,null,null,null,null,null,null,null,null,null,null,null,null,null,null,null,null,null,null,"Other","Access","Denial of Access",{"$f":"B5_Risk_Sub_Category_Type_Table[[#This Row],[B5. Risk Type:]]&\"/\"&B5_Risk_Sub_Category_Type_Table[[#This Row],[B5. Risk Category]]&\"/\"&B5_Risk_Sub_Category_Type_Table[[#This Row],[B5. Risk Sub-Category]]","v":"Other/Access/Denial of Access"},"Humanitarian workers' access to affected communities",{"$f":"B5_Risk_Sub_Category_Type_Table[[#This Row],[B5. Risk Type:]]&\"/\"&B5_Risk_Sub_Category_Type_Table[[#This Row],[B5. Risk Category]]&\"/\"&B5_Risk_Sub_Category_Type_Table[[#This Row],[B5. Risk Sub-Category]]&\"/\"&B5_Risk_Sub_Category_Type_Table[[#This Row],[B5. Risk Sub-Category Type]]","v":"Other/Access/Denial of Access/Humanitarian workers' access to affected communities"}]
[null,null,null,null,null,null,null,null,null,null,null,null,null,null,null,null,null,null,null,null,null,null,null,null,null,null,null,null,null,null,null,null,null,null,null,null,null,null,null,"Other","Access","Denial of Access",{"$f":"B5_Risk_Sub_Category_Type_Table[[#This Row],[B5. Risk Type:]]&\"/\"&B5_Risk_Sub_Category_Type_Table[[#This Row],[B5. Risk Category]]&\"/\"&B5_Risk_Sub_Category_Type_Table[[#This Row],[B5. Risk Sub-Category]]","v":"Other/Access/Denial of Access"},"Humanitarian workers' access to affected infrastructure",{"$f":"B5_Risk_Sub_Category_Type_Table[[#This Row],[B5. Risk Type:]]&\"/\"&B5_Risk_Sub_Category_Type_Table[[#This Row],[B5. Risk Category]]&\"/\"&B5_Risk_Sub_Category_Type_Table[[#This Row],[B5. Risk Sub-Category]]&\"/\"&B5_Risk_Sub_Category_Type_Table[[#This Row],[B5. Risk Sub-Category Type]]","v":"Other/Access/Denial of Access/Humanitarian workers' access to affected infrastructure"}]
[null,null,null,null,null,null,null,null,null,null,null,null,null,null,null,null,null,null,null,null,null,null,null,null,null,null,null,null,null,null,null,null,null,null,null,null,null,null,null,"Other","Access","Denial of Access",{"$f":"B5_Risk_Sub_Category_Type_Table[[#This Row],[B5. Risk Type:]]&\"/\"&B5_Risk_Sub_Category_Type_Table[[#This Row],[B5. Risk Category]]&\"/\"&B5_Risk_Sub_Category_Type_Table[[#This Row],[B5. Risk Sub-Category]]","v":"Other/Access/Denial of Access"},"Humanitarian workers' access to government officials",{"$f":"B5_Risk_Sub_Category_Type_Table[[#This Row],[B5. Risk Type:]]&\"/\"&B5_Risk_Sub_Category_Type_Table[[#This Row],[B5. Risk Category]]&\"/\"&B5_Risk_Sub_Category_Type_Table[[#This Row],[B5. Risk Sub-Category]]&\"/\"&B5_Risk_Sub_Category_Type_Table[[#This Row],[B5. Risk Sub-Category Type]]","v":"Other/Access/Denial of Access/Humanitarian workers' access to government officials"}]
[null,null,null,null,null,null,null,null,null,null,null,null,null,null,null,null,null,null,null,null,null,null,null,null,null,null,null,null,null,null,null,null,null,null,null,null,null,null,null,"Other","Access","Denial of Access",{"$f":"B5_Risk_Sub_Category_Type_Table[[#This Row],[B5. Risk Type:]]&\"/\"&B5_Risk_Sub_Category_Type_Table[[#This Row],[B5. Risk Category]]&\"/\"&B5_Risk_Sub_Category_Type_Table[[#This Row],[B5. Risk Sub-Category]]","v":"Other/Access/Denial of Access"},"Humanitarian workers' access to information/data/reports",{"$f":"B5_Risk_Sub_Category_Type_Table[[#This Row],[B5. Risk Type:]]&\"/\"&B5_Risk_Sub_Category_Type_Table[[#This Row],[B5. Risk Category]]&\"/\"&B5_Risk_Sub_Category_Type_Table[[#This Row],[B5. Risk Sub-Category]]&\"/\"&B5_Risk_Sub_Category_Type_Table[[#This Row],[B5. Risk Sub-Category Type]]","v":"Other/Access/Denial of Access/Humanitarian workers' access to information/data/reports"}]
[null,null,null,null,null,null,null,null,null,null,null,null,null,null,null,null,null,null,null,null,null,null,null,null,null,null,null,null,null,null,null,null,null,null,null,null,null,null,null,"Other","Access","Denial of Access",{"$f":"B5_Risk_Sub_Category_Type_Table[[#This Row],[B5. Risk Type:]]&\"/\"&B5_Risk_Sub_Category_Type_Table[[#This Row],[B5. Risk Category]]&\"/\"&B5_Risk_Sub_Category_Type_Table[[#This Row],[B5. Risk Sub-Category]]","v":"Other/Access/Denial of Access"},"Manipulating community's perceptions regarding their actual needs",{"$f":"B5_Risk_Sub_Category_Type_Table[[#This Row],[B5. Risk Type:]]&\"/\"&B5_Risk_Sub_Category_Type_Table[[#This Row],[B5. Risk Category]]&\"/\"&B5_Risk_Sub_Category_Type_Table[[#This Row],[B5. Risk Sub-Category]]&\"/\"&B5_Risk_Sub_Category_Type_Table[[#This Row],[B5. Risk Sub-Category Type]]","v":"Other/Access/Denial of Access/Manipulating community's perceptions regarding their actual needs"}]
[null,null,null,null,null,null,null,null,null,null,null,null,null,null,null,null,null,null,null,null,null,null,null,null,null,null,null,null,null,null,null,null,null,null,null,null,null,null,null,"Other","Access","Denial of Access",{"$f":"B5_Risk_Sub_Category_Type_Table[[#This Row],[B5. Risk Type:]]&\"/\"&B5_Risk_Sub_Category_Type_Table[[#This Row],[B5. Risk Category]]&\"/\"&B5_Risk_Sub_Category_Type_Table[[#This Row],[B5. Risk Sub-Category]]","v":"Other/Access/Denial of Access"},"Prevention of use of services/assistance",{"$f":"B5_Risk_Sub_Category_Type_Table[[#This Row],[B5. Risk Type:]]&\"/\"&B5_Risk_Sub_Category_Type_Table[[#This Row],[B5. Risk Category]]&\"/\"&B5_Risk_Sub_Category_Type_Table[[#This Row],[B5. Risk Sub-Category]]&\"/\"&B5_Risk_Sub_Category_Type_Table[[#This Row],[B5. Risk Sub-Category Type]]","v":"Other/Access/Denial of Access/Prevention of use of services/assistance"}]
[null,null,null,null,null,null,null,null,null,null,null,null,null,null,null,null,null,null,null,null,null,null,null,null,null,null,null,null,null,null,null,null,null,null,null,null,null,null,null,"Other","Access","Denial of Access",{"$f":"B5_Risk_Sub_Category_Type_Table[[#This Row],[B5. Risk Type:]]&\"/\"&B5_Risk_Sub_Category_Type_Table[[#This Row],[B5. Risk Category]]&\"/\"&B5_Risk_Sub_Category_Type_Table[[#This Row],[B5. Risk Sub-Category]]","v":"Other/Access/Denial of Access"},"Other",{"$f":"B5_Risk_Sub_Category_Type_Table[[#This Row],[B5. Risk Type:]]&\"/\"&B5_Risk_Sub_Category_Type_Table[[#This Row],[B5. Risk Category]]&\"/\"&B5_Risk_Sub_Category_Type_Table[[#This Row],[B5. Risk Sub-Category]]&\"/\"&B5_Risk_Sub_Category_Type_Table[[#This Row],[B5. Risk Sub-Category Type]]","v":"Other/Access/Denial of Access/Other"}]
[null,null,null,null,null,null,null,null,null,null,null,null,null,null,null,null,null,null,null,null,null,null,null,null,null,null,null,null,null,null,null,null,null,null,null,null,null,null,null,"Other","Access","Poor Infrastructure",{"$f":"B5_Risk_Sub_Category_Type_Table[[#This Row],[B5. Risk Type:]]&\"/\"&B5_Risk_Sub_Category_Type_Table[[#This Row],[B5. Risk Category]]&\"/\"&B5_Risk_Sub_Category_Type_Table[[#This Row],[B5. Risk Sub-Category]]","v":"Other/Access/Poor Infrastructure"},"Non-functional state of infrastructure",{"$f":"B5_Risk_Sub_Category_Type_Table[[#This Row],[B5. Risk Type:]]&\"/\"&B5_Risk_Sub_Category_Type_Table[[#This Row],[B5. Risk Category]]&\"/\"&B5_Risk_Sub_Category_Type_Table[[#This Row],[B5. Risk Sub-Category]]&\"/\"&B5_Risk_Sub_Category_Type_Table[[#This Row],[B5. Risk Sub-Category Type]]","v":"Other/Access/Poor Infrastructure/Non-functional state of infrastructure"}]
[null,null,null,null,null,null,null,null,null,null,null,null,null,null,null,null,null,null,null,null,null,null,null,null,null,null,null,null,null,null,null,null,null,null,null,null,null,null,null,"Other","Access","Poor Infrastructure",{"$f":"B5_Risk_Sub_Category_Type_Table[[#This Row],[B5. Risk Type:]]&\"/\"&B5_Risk_Sub_Category_Type_Table[[#This Row],[B5. Risk Category]]&\"/\"&B5_Risk_Sub_Category_Type_Table[[#This Row],[B5. Risk Sub-Category]]","v":"Other/Access/Poor Infrastructure"},"Other",{"$f":"B5_Risk_Sub_Category_Type_Table[[#This Row],[B5. Risk Type:]]&\"/\"&B5_Risk_Sub_Category_Type_Table[[#This Row],[B5. Risk Category]]&\"/\"&B5_Risk_Sub_Category_Type_Table[[#This Row],[B5. Risk Sub-Category]]&\"/\"&B5_Risk_Sub_Category_Type_Table[[#This Row],[B5. Risk Sub-Category Type]]","v":"Other/Access/Poor Infrastructure/Other"}]
[null,null,null,null,null,null,null,null,null,null,null,null,null,null,null,null,null,null,null,null,null,null,null,null,null,null,null,null,null,null,null,null,null,null,null,null,null,null,null,"Other","Access","Restriction of Movement",{"$f":"B5_Risk_Sub_Category_Type_Table[[#This Row],[B5. Risk Type:]]&\"/\"&B5_Risk_Sub_Category_Type_Table[[#This Row],[B5. Risk Category]]&\"/\"&B5_Risk_Sub_Category_Type_Table[[#This Row],[B5. Risk Sub-Category]]","v":"Other/Access/Restriction of Movement"},"Bureaucratic impediments from local civilian authorities e.g. MoU",{"$f":"B5_Risk_Sub_Category_Type_Table[[#This Row],[B5. Risk Type:]]&\"/\"&B5_Risk_Sub_Category_Type_Table[[#This Row],[B5. Risk Category]]&\"/\"&B5_Risk_Sub_Category_Type_Table[[#This Row],[B5. Risk Sub-Category]]&\"/\"&B5_Risk_Sub_Category_Type_Table[[#This Row],[B5. Risk Sub-Category Type]]","v":"Other/Access/Restriction of Movement/Bureaucratic impediments from local civilian authorities e.g. MoU"}]
[null,null,null,null,null,null,null,null,null,null,null,null,null,null,null,null,null,null,null,null,null,null,null,null,null,null,null,null,null,null,null,null,null,null,null,null,null,null,null,"Other","Access","Restriction of Movement",{"$f":"B5_Risk_Sub_Category_Type_Table[[#This Row],[B5. Risk Type:]]&\"/\"&B5_Risk_Sub_Category_Type_Table[[#This Row],[B5. Risk Category]]&\"/\"&B5_Risk_Sub_Category_Type_Table[[#This Row],[B5. Risk Sub-Category]]","v":"Other/Access/Restriction of Movement"},"Checkpoints prohibiting/affecting movement",{"$f":"B5_Risk_Sub_Category_Type_Table[[#This Row],[B5. Risk Type:]]&\"/\"&B5_Risk_Sub_Category_Type_Table[[#This Row],[B5. Risk Category]]&\"/\"&B5_Risk_Sub_Category_Type_Table[[#This Row],[B5. Risk Sub-Category]]&\"/\"&B5_Risk_Sub_Category_Type_Table[[#This Row],[B5. Risk Sub-Category Type]]","v":"Other/Access/Restriction of Movement/Checkpoints prohibiting/affecting movement"}]
[null,null,null,null,null,null,null,null,null,null,null,null,null,null,null,null,null,null,null,null,null,null,null,null,null,null,null,null,null,null,null,null,null,null,null,null,null,null,null,"Other","Access","Restriction of Movement",{"$f":"B5_Risk_Sub_Category_Type_Table[[#This Row],[B5. Risk Type:]]&\"/\"&B5_Risk_Sub_Category_Type_Table[[#This Row],[B5. Risk Category]]&\"/\"&B5_Risk_Sub_Category_Type_Table[[#This Row],[B5. Risk Sub-Category]]","v":"Other/Access/Restriction of Movement"},"Curfew(s) imposed  by government or local civilian authorities",{"$f":"B5_Risk_Sub_Category_Type_Table[[#This Row],[B5. Risk Type:]]&\"/\"&B5_Risk_Sub_Category_Type_Table[[#This Row],[B5. Risk Category]]&\"/\"&B5_Risk_Sub_Category_Type_Table[[#This Row],[B5. Risk Sub-Category]]&\"/\"&B5_Risk_Sub_Category_Type_Table[[#This Row],[B5. Risk Sub-Category Type]]","v":"Other/Access/Restriction of Movement/Curfew(s) imposed  by government or local civilian authorities"}]
[null,null,null,null,null,null,null,null,null,null,null,null,null,null,null,null,null,null,null,null,null,null,null,null,null,null,null,null,null,null,null,null,null,null,null,null,null,null,null,"Other","Access","Restriction of Movement",{"$f":"B5_Risk_Sub_Category_Type_Table[[#This Row],[B5. Risk Type:]]&\"/\"&B5_Risk_Sub_Category_Type_Table[[#This Row],[B5. Risk Category]]&\"/\"&B5_Risk_Sub_Category_Type_Table[[#This Row],[B5. Risk Sub-Category]]","v":"Other/Access/Restriction of Movement"},"Delay/denial for staff crossing list at border crossings",{"$f":"B5_Risk_Sub_Category_Type_Table[[#This Row],[B5. Risk Type:]]&\"/\"&B5_Risk_Sub_Category_Type_Table[[#This Row],[B5. Risk Category]]&\"/\"&B5_Risk_Sub_Category_Type_Table[[#This Row],[B5. Risk Sub-Category]]&\"/\"&B5_Risk_Sub_Category_Type_Table[[#This Row],[B5. Risk Sub-Category Type]]","v":"Other/Access/Restriction of Movement/Delay/denial for staff crossing list at border crossings"}]
[null,null,null,null,null,null,null,null,null,null,null,null,null,null,null,null,null,null,null,null,null,null,null,null,null,null,null,null,null,null,null,null,null,null,null,null,null,null,null,"Other","Access","Restriction of Movement",{"$f":"B5_Risk_Sub_Category_Type_Table[[#This Row],[B5. Risk Type:]]&\"/\"&B5_Risk_Sub_Category_Type_Table[[#This Row],[B5. Risk Category]]&\"/\"&B5_Risk_Sub_Category_Type_Table[[#This Row],[B5. Risk Sub-Category]]","v":"Other/Access/Restriction of Movement"},"Delay/denial in official registration of a humanitarian organization in Turkey",{"$f":"B5_Risk_Sub_Category_Type_Table[[#This Row],[B5. Risk Type:]]&\"/\"&B5_Risk_Sub_Category_Type_Table[[#This Row],[B5. Risk Category]]&\"/\"&B5_Risk_Sub_Category_Type_Table[[#This Row],[B5. Risk Sub-Category]]&\"/\"&B5_Risk_Sub_Category_Type_Table[[#This Row],[B5. Risk Sub-Category Type]]","v":"Other/Access/Restriction of Movement/Delay/denial in official registration of a humanitarian organization in Turkey"}]
[null,null,null,null,null,null,null,null,null,null,null,null,null,null,null,null,null,null,null,null,null,null,null,null,null,null,null,null,null,null,null,null,null,null,null,null,null,null,null,"Other","Access","Restriction of Movement",{"$f":"B5_Risk_Sub_Category_Type_Table[[#This Row],[B5. Risk Type:]]&\"/\"&B5_Risk_Sub_Category_Type_Table[[#This Row],[B5. Risk Category]]&\"/\"&B5_Risk_Sub_Category_Type_Table[[#This Row],[B5. Risk Sub-Category]]","v":"Other/Access/Restriction of Movement"},"Delay/denial of permission to operate in NW Syria",{"$f":"B5_Risk_Sub_Category_Type_Table[[#This Row],[B5. Risk Type:]]&\"/\"&B5_Risk_Sub_Category_Type_Table[[#This Row],[B5. Risk Category]]&\"/\"&B5_Risk_Sub_Category_Type_Table[[#This Row],[B5. Risk Sub-Category]]&\"/\"&B5_Risk_Sub_Category_Type_Table[[#This Row],[B5. Risk Sub-Category Type]]","v":"Other/Access/Restriction of Movement/Delay/denial of permission to operate in NW Syria"}]
[null,null,null,null,null,null,null,null,null,null,null,null,null,null,null,null,null,null,null,null,null,null,null,null,null,null,null,null,null,null,null,null,null,null,null,null,null,null,null,"Other","Access","Restriction of Movement",{"$f":"B5_Risk_Sub_Category_Type_Table[[#This Row],[B5. Risk Type:]]&\"/\"&B5_Risk_Sub_Category_Type_Table[[#This Row],[B5. Risk Category]]&\"/\"&B5_Risk_Sub_Category_Type_Table[[#This Row],[B5. Risk Sub-Category]]","v":"Other/Access/Restriction of Movement"},"Demonstrations by local communities",{"$f":"B5_Risk_Sub_Category_Type_Table[[#This Row],[B5. Risk Type:]]&\"/\"&B5_Risk_Sub_Category_Type_Table[[#This Row],[B5. Risk Category]]&\"/\"&B5_Risk_Sub_Category_Type_Table[[#This Row],[B5. Risk Sub-Category]]&\"/\"&B5_Risk_Sub_Category_Type_Table[[#This Row],[B5. Risk Sub-Category Type]]","v":"Other/Access/Restriction of Movement/Demonstrations by local communities"}]
[null,null,null,null,null,null,null,null,null,null,null,null,null,null,null,null,null,null,null,null,null,null,null,null,null,null,null,null,null,null,null,null,null,null,null,null,null,null,null,"Other","Access","Restriction of Movement",{"$f":"B5_Risk_Sub_Category_Type_Table[[#This Row],[B5. Risk Type:]]&\"/\"&B5_Risk_Sub_Category_Type_Table[[#This Row],[B5. Risk Category]]&\"/\"&B5_Risk_Sub_Category_Type_Table[[#This Row],[B5. Risk Sub-Category]]","v":"Other/Access/Restriction of Movement"},"Fear of/presence of IEDs/UXOs/mines in the area",{"$f":"B5_Risk_Sub_Category_Type_Table[[#This Row],[B5. Risk Type:]]&\"/\"&B5_Risk_Sub_Category_Type_Table[[#This Row],[B5. Risk Category]]&\"/\"&B5_Risk_Sub_Category_Type_Table[[#This Row],[B5. Risk Sub-Category]]&\"/\"&B5_Risk_Sub_Category_Type_Table[[#This Row],[B5. Risk Sub-Category Type]]","v":"Other/Access/Restriction of Movement/Fear of/presence of IEDs/UXOs/mines in the area"}]
[null,null,null,null,null,null,null,null,null,null,null,null,null,null,null,null,null,null,null,null,null,null,null,null,null,null,null,null,null,null,null,null,null,null,null,null,null,null,null,"Other","Access","Restriction of Movement",{"$f":"B5_Risk_Sub_Category_Type_Table[[#This Row],[B5. Risk Type:]]&\"/\"&B5_Risk_Sub_Category_Type_Table[[#This Row],[B5. Risk Category]]&\"/\"&B5_Risk_Sub_Category_Type_Table[[#This Row],[B5. Risk Sub-Category]]","v":"Other/Access/Restriction of Movement"},"Military Operations",{"$f":"B5_Risk_Sub_Category_Type_Table[[#This Row],[B5. Risk Type:]]&\"/\"&B5_Risk_Sub_Category_Type_Table[[#This Row],[B5. Risk Category]]&\"/\"&B5_Risk_Sub_Category_Type_Table[[#This Row],[B5. Risk Sub-Category]]&\"/\"&B5_Risk_Sub_Category_Type_Table[[#This Row],[B5. Risk Sub-Category Type]]","v":"Other/Access/Restriction of Movement/Military Operations"}]
[null,null,null,null,null,null,null,null,null,null,null,null,null,null,null,null,null,null,null,null,null,null,null,null,null,null,null,null,null,null,null,null,null,null,null,null,null,null,null,"Other","Access","Restriction of Movement",{"$f":"B5_Risk_Sub_Category_Type_Table[[#This Row],[B5. Risk Type:]]&\"/\"&B5_Risk_Sub_Category_Type_Table[[#This Row],[B5. Risk Category]]&\"/\"&B5_Risk_Sub_Category_Type_Table[[#This Row],[B5. Risk Sub-Category]]","v":"Other/Access/Restriction of Movement"},"New regulation for vehicle registration",{"$f":"B5_Risk_Sub_Category_Type_Table[[#This Row],[B5. Risk Type:]]&\"/\"&B5_Risk_Sub_Category_Type_Table[[#This Row],[B5. Risk Category]]&\"/\"&B5_Risk_Sub_Category_Type_Table[[#This Row],[B5. Risk Sub-Category]]&\"/\"&B5_Risk_Sub_Category_Type_Table[[#This Row],[B5. Risk Sub-Category Type]]","v":"Other/Access/Restriction of Movement/New regulation for vehicle registration"}]
[null,null,null,null,null,null,null,null,null,null,null,null,null,null,null,null,null,null,null,null,null,null,null,null,null,null,null,null,null,null,null,null,null,null,null,null,null,null,null,"Other","Access","Restriction of Movement",{"$f":"B5_Risk_Sub_Category_Type_Table[[#This Row],[B5. Risk Type:]]&\"/\"&B5_Risk_Sub_Category_Type_Table[[#This Row],[B5. Risk Category]]&\"/\"&B5_Risk_Sub_Category_Type_Table[[#This Row],[B5. Risk Sub-Category]]","v":"Other/Access/Restriction of Movement"},"Ongoing Hostilities",{"$f":"B5_Risk_Sub_Category_Type_Table[[#This Row],[B5. Risk Type:]]&\"/\"&B5_Risk_Sub_Category_Type_Table[[#This Row],[B5. Risk Category]]&\"/\"&B5_Risk_Sub_Category_Type_Table[[#This Row],[B5. Risk Sub-Category]]&\"/\"&B5_Risk_Sub_Category_Type_Table[[#This Row],[B5. Risk Sub-Category Type]]","v":"Other/Access/Restriction of Movement/Ongoing Hostilities"}]
[null,null,null,null,null,null,null,null,null,null,null,null,null,null,null,null,null,null,null,null,null,null,null,null,null,null,null,null,null,null,null,null,null,null,null,null,null,null,null,"Other","Access","Restriction of Movement",{"$f":"B5_Risk_Sub_Category_Type_Table[[#This Row],[B5. Risk Type:]]&\"/\"&B5_Risk_Sub_Category_Type_Table[[#This Row],[B5. Risk Category]]&\"/\"&B5_Risk_Sub_Category_Type_Table[[#This Row],[B5. Risk Sub-Category]]","v":"Other/Access/Restriction of Movement"},"Restriction of Movement (cross border)",{"$f":"B5_Risk_Sub_Category_Type_Table[[#This Row],[B5. Risk Type:]]&\"/\"&B5_Risk_Sub_Category_Type_Table[[#This Row],[B5. Risk Category]]&\"/\"&B5_Risk_Sub_Category_Type_Table[[#This Row],[B5. Risk Sub-Category]]&\"/\"&B5_Risk_Sub_Category_Type_Table[[#This Row],[B5. Risk Sub-Category Type]]","v":"Other/Access/Restriction of Movement/Restriction of Movement (cross border)"}]
[null,null,null,null,null,null,null,null,null,null,null,null,null,null,null,null,null,null,null,null,null,null,null,null,null,null,null,null,null,null,null,null,null,null,null,null,null,null,null,"Other","Access","Restriction of Movement",{"$f":"B5_Risk_Sub_Category_Type_Table[[#This Row],[B5. Risk Type:]]&\"/\"&B5_Risk_Sub_Category_Type_Table[[#This Row],[B5. Risk Category]]&\"/\"&B5_Risk_Sub_Category_Type_Table[[#This Row],[B5. Risk Sub-Category]]","v":"Other/Access/Restriction of Movement"},"Restriction of Movement (within NW Syria)",{"$f":"B5_Risk_Sub_Category_Type_Table[[#This Row],[B5. Risk Type:]]&\"/\"&B5_Risk_Sub_Category_Type_Table[[#This Row],[B5. Risk Category]]&\"/\"&B5_Risk_Sub_Category_Type_Table[[#This Row],[B5. Risk Sub-Category]]&\"/\"&B5_Risk_Sub_Category_Type_Table[[#This Row],[B5. Risk Sub-Category Type]]","v":"Other/Access/Restriction of Movement/Restriction of Movement (within NW Syria)"}]
[null,null,null,null,null,null,null,null,null,null,null,null,null,null,null,null,null,null,null,null,null,null,null,null,null,null,null,null,null,null,null,null,null,null,null,null,null,null,null,"Other","Access","Restriction of Movement",{"$f":"B5_Risk_Sub_Category_Type_Table[[#This Row],[B5. Risk Type:]]&\"/\"&B5_Risk_Sub_Category_Type_Table[[#This Row],[B5. Risk Category]]&\"/\"&B5_Risk_Sub_Category_Type_Table[[#This Row],[B5. Risk Sub-Category]]","v":"Other/Access/Restriction of Movement"},"Restriction on movement of female staff, and access to affected females in the population",{"$f":"B5_Risk_Sub_Category_Type_Table[[#This Row],[B5. Risk Type:]]&\"/\"&B5_Risk_Sub_Category_Type_Table[[#This Row],[B5. Risk Category]]&\"/\"&B5_Risk_Sub_Category_Type_Table[[#This Row],[B5. Risk Sub-Category]]&\"/\"&B5_Risk_Sub_Category_Type_Table[[#This Row],[B5. Risk Sub-Category Type]]","v":"Other/Access/Restriction of Movement/Restriction on movement of female staff, and access to affected females in the population"}]
[null,null,null,null,null,null,null,null,null,null,null,null,null,null,null,null,null,null,null,null,null,null,null,null,null,null,null,null,null,null,null,null,null,null,null,null,null,null,null,"Other","Access","Restriction of Movement",{"$f":"B5_Risk_Sub_Category_Type_Table[[#This Row],[B5. Risk Type:]]&\"/\"&B5_Risk_Sub_Category_Type_Table[[#This Row],[B5. Risk Category]]&\"/\"&B5_Risk_Sub_Category_Type_Table[[#This Row],[B5. Risk Sub-Category]]","v":"Other/Access/Restriction of Movement"},"Other",{"$f":"B5_Risk_Sub_Category_Type_Table[[#This Row],[B5. Risk Type:]]&\"/\"&B5_Risk_Sub_Category_Type_Table[[#This Row],[B5. Risk Category]]&\"/\"&B5_Risk_Sub_Category_Type_Table[[#This Row],[B5. Risk Sub-Category]]&\"/\"&B5_Risk_Sub_Category_Type_Table[[#This Row],[B5. Risk Sub-Category Type]]","v":"Other/Access/Restriction of Movement/Other"}]
[null,null,null,null,null,null,null,null,null,null,null,null,null,null,null,null,null,null,null,null,null,null,null,null,null,null,null,null,null,null,null,null,null,null,null,null,null,null,null,"Other","Access","Other",{"$f":"B5_Risk_Sub_Category_Type_Table[[#This Row],[B5. Risk Type:]]&\"/\"&B5_Risk_Sub_Category_Type_Table[[#This Row],[B5. Risk Category]]&\"/\"&B5_Risk_Sub_Category_Type_Table[[#This Row],[B5. Risk Sub-Category]]","v":"Other/Access/Other"},"Other",{"$f":"B5_Risk_Sub_Category_Type_Table[[#This Row],[B5. Risk Type:]]&\"/\"&B5_Risk_Sub_Category_Type_Table[[#This Row],[B5. Risk Category]]&\"/\"&B5_Risk_Sub_Category_Type_Table[[#This Row],[B5. Risk Sub-Category]]&\"/\"&B5_Risk_Sub_Category_Type_Table[[#This Row],[B5. Risk Sub-Category Type]]","v":"Other/Access/Other/Other"}]
[null,null,null,null,null,null,null,null,null,null,null,null,null,null,null,null,null,null,null,null,null,null,null,null,null,null,null,null,null,null,null,null,null,null,null,null,null,null,null,"Other","Aid Diversion","Denial of Humanitarian Needs",{"$f":"B5_Risk_Sub_Category_Type_Table[[#This Row],[B5. Risk Type:]]&\"/\"&B5_Risk_Sub_Category_Type_Table[[#This Row],[B5. Risk Category]]&\"/\"&B5_Risk_Sub_Category_Type_Table[[#This Row],[B5. Risk Sub-Category]]","v":"Other/Aid Diversion/Denial of Humanitarian Needs"},"Affected communities' entitlement to humanitarian assistance",{"$f":"B5_Risk_Sub_Category_Type_Table[[#This Row],[B5. Risk Type:]]&\"/\"&B5_Risk_Sub_Category_Type_Table[[#This Row],[B5. Risk Category]]&\"/\"&B5_Risk_Sub_Category_Type_Table[[#This Row],[B5. Risk Sub-Category]]&\"/\"&B5_Risk_Sub_Category_Type_Table[[#This Row],[B5. Risk Sub-Category Type]]","v":"Other/Aid Diversion/Denial of Humanitarian Needs/Affected communities' entitlement to humanitarian assistance"}]
[null,null,null,null,null,null,null,null,null,null,null,null,null,null,null,null,null,null,null,null,null,null,null,null,null,null,null,null,null,null,null,null,null,null,null,null,null,null,null,"Other","Aid Diversion","Denial of Humanitarian Needs",{"$f":"B5_Risk_Sub_Category_Type_Table[[#This Row],[B5. Risk Type:]]&\"/\"&B5_Risk_Sub_Category_Type_Table[[#This Row],[B5. Risk Category]]&\"/\"&B5_Risk_Sub_Category_Type_Table[[#This Row],[B5. Risk Sub-Category]]","v":"Other/Aid Diversion/Denial of Humanitarian Needs"},"Anticipated humanitarian needs (due to sudden displacement)",{"$f":"B5_Risk_Sub_Category_Type_Table[[#This Row],[B5. Risk Type:]]&\"/\"&B5_Risk_Sub_Category_Type_Table[[#This Row],[B5. Risk Category]]&\"/\"&B5_Risk_Sub_Category_Type_Table[[#This Row],[B5. Risk Sub-Category]]&\"/\"&B5_Risk_Sub_Category_Type_Table[[#This Row],[B5. Risk Sub-Category Type]]","v":"Other/Aid Diversion/Denial of Humanitarian Needs/Anticipated humanitarian needs (due to sudden displacement)"}]
[null,null,null,null,null,null,null,null,null,null,null,null,null,null,null,null,null,null,null,null,null,null,null,null,null,null,null,null,null,null,null,null,null,null,null,null,null,null,null,"Other","Aid Diversion","Denial of Humanitarian Needs",{"$f":"B5_Risk_Sub_Category_Type_Table[[#This Row],[B5. Risk Type:]]&\"/\"&B5_Risk_Sub_Category_Type_Table[[#This Row],[B5. Risk Category]]&\"/\"&B5_Risk_Sub_Category_Type_Table[[#This Row],[B5. Risk Sub-Category]]","v":"Other/Aid Diversion/Denial of Humanitarian Needs"},"Cultural challenges, such as language issues or belief systems that inhibit receiving aid",{"$f":"B5_Risk_Sub_Category_Type_Table[[#This Row],[B5. Risk Type:]]&\"/\"&B5_Risk_Sub_Category_Type_Table[[#This Row],[B5. Risk Category]]&\"/\"&B5_Risk_Sub_Category_Type_Table[[#This Row],[B5. Risk Sub-Category]]&\"/\"&B5_Risk_Sub_Category_Type_Table[[#This Row],[B5. Risk Sub-Category Type]]","v":"Other/Aid Diversion/Denial of Humanitarian Needs/Cultural challenges, such as language issues or belief systems that inhibit receiving aid"}]
[null,null,null,null,null,null,null,null,null,null,null,null,null,null,null,null,null,null,null,null,null,null,null,null,null,null,null,null,null,null,null,null,null,null,null,null,null,null,null,"Other","Aid Diversion","Denial of Humanitarian Needs",{"$f":"B5_Risk_Sub_Category_Type_Table[[#This Row],[B5. Risk Type:]]&\"/\"&B5_Risk_Sub_Category_Type_Table[[#This Row],[B5. Risk Category]]&\"/\"&B5_Risk_Sub_Category_Type_Table[[#This Row],[B5. Risk Sub-Category]]","v":"Other/Aid Diversion/Denial of Humanitarian Needs"},"Data collection for assessments",{"$f":"B5_Risk_Sub_Category_Type_Table[[#This Row],[B5. Risk Type:]]&\"/\"&B5_Risk_Sub_Category_Type_Table[[#This Row],[B5. Risk Category]]&\"/\"&B5_Risk_Sub_Category_Type_Table[[#This Row],[B5. Risk Sub-Category]]&\"/\"&B5_Risk_Sub_Category_Type_Table[[#This Row],[B5. Risk Sub-Category Type]]","v":"Other/Aid Diversion/Denial of Humanitarian Needs/Data collection for assessments"}]
[null,null,null,null,null,null,null,null,null,null,null,null,null,null,null,null,null,null,null,null,null,null,null,null,null,null,null,null,null,null,null,null,null,null,null,null,null,null,null,"Other","Aid Diversion","Denial of Humanitarian Needs",{"$f":"B5_Risk_Sub_Category_Type_Table[[#This Row],[B5. Risk Type:]]&\"/\"&B5_Risk_Sub_Category_Type_Table[[#This Row],[B5. Risk Category]]&\"/\"&B5_Risk_Sub_Category_Type_Table[[#This Row],[B5. Risk Sub-Category]]","v":"Other/Aid Diversion/Denial of Humanitarian Needs"},"Existing humanitarian needs",{"$f":"B5_Risk_Sub_Category_Type_Table[[#This Row],[B5. Risk Type:]]&\"/\"&B5_Risk_Sub_Category_Type_Table[[#This Row],[B5. Risk Category]]&\"/\"&B5_Risk_Sub_Category_Type_Table[[#This Row],[B5. Risk Sub-Category]]&\"/\"&B5_Risk_Sub_Category_Type_Table[[#This Row],[B5. Risk Sub-Category Type]]","v":"Other/Aid Diversion/Denial of Humanitarian Needs/Existing humanitarian needs"}]
[null,null,null,null,null,null,null,null,null,null,null,null,null,null,null,null,null,null,null,null,null,null,null,null,null,null,null,null,null,null,null,null,null,null,null,null,null,null,null,"Other","Aid Diversion","Denial of Humanitarian Needs",{"$f":"B5_Risk_Sub_Category_Type_Table[[#This Row],[B5. Risk Type:]]&\"/\"&B5_Risk_Sub_Category_Type_Table[[#This Row],[B5. Risk Category]]&\"/\"&B5_Risk_Sub_Category_Type_Table[[#This Row],[B5. Risk Sub-Category]]","v":"Other/Aid Diversion/Denial of Humanitarian Needs"},"Influence to change/manipulate the needs of affected communities",{"$f":"B5_Risk_Sub_Category_Type_Table[[#This Row],[B5. Risk Type:]]&\"/\"&B5_Risk_Sub_Category_Type_Table[[#This Row],[B5. Risk Category]]&\"/\"&B5_Risk_Sub_Category_Type_Table[[#This Row],[B5. Risk Sub-Category]]&\"/\"&B5_Risk_Sub_Category_Type_Table[[#This Row],[B5. Risk Sub-Category Type]]","v":"Other/Aid Diversion/Denial of Humanitarian Needs/Influence to change/manipulate the needs of affected communities"}]
[null,null,null,null,null,null,null,null,null,null,null,null,null,null,null,null,null,null,null,null,null,null,null,null,null,null,null,null,null,null,null,null,null,null,null,null,null,null,null,"Other","Aid Diversion","Denial of Humanitarian Needs",{"$f":"B5_Risk_Sub_Category_Type_Table[[#This Row],[B5. Risk Type:]]&\"/\"&B5_Risk_Sub_Category_Type_Table[[#This Row],[B5. Risk Category]]&\"/\"&B5_Risk_Sub_Category_Type_Table[[#This Row],[B5. Risk Sub-Category]]","v":"Other/Aid Diversion/Denial of Humanitarian Needs"},"People involuntarily forced/encouraged into an area in order to receive assistance",{"$f":"B5_Risk_Sub_Category_Type_Table[[#This Row],[B5. Risk Type:]]&\"/\"&B5_Risk_Sub_Category_Type_Table[[#This Row],[B5. Risk Category]]&\"/\"&B5_Risk_Sub_Category_Type_Table[[#This Row],[B5. Risk Sub-Category]]&\"/\"&B5_Risk_Sub_Category_Type_Table[[#This Row],[B5. Risk Sub-Category Type]]","v":"Other/Aid Diversion/Denial of Humanitarian Needs/People involuntarily forced/encouraged into an area in order to receive assistance"}]
[null,null,null,null,null,null,null,null,null,null,null,null,null,null,null,null,null,null,null,null,null,null,null,null,null,null,null,null,null,null,null,null,null,null,null,null,null,null,null,"Other","Aid Diversion","Denial of Humanitarian Needs",{"$f":"B5_Risk_Sub_Category_Type_Table[[#This Row],[B5. Risk Type:]]&\"/\"&B5_Risk_Sub_Category_Type_Table[[#This Row],[B5. Risk Category]]&\"/\"&B5_Risk_Sub_Category_Type_Table[[#This Row],[B5. Risk Sub-Category]]","v":"Other/Aid Diversion/Denial of Humanitarian Needs"},"Other",{"$f":"B5_Risk_Sub_Category_Type_Table[[#This Row],[B5. Risk Type:]]&\"/\"&B5_Risk_Sub_Category_Type_Table[[#This Row],[B5. Risk Category]]&\"/\"&B5_Risk_Sub_Category_Type_Table[[#This Row],[B5. Risk Sub-Category]]&\"/\"&B5_Risk_Sub_Category_Type_Table[[#This Row],[B5. Risk Sub-Category Type]]","v":"Other/Aid Diversion/Denial of Humanitarian Needs/Other"}]
[null,null,null,null,null,null,null,null,null,null,null,null,null,null,null,null,null,null,null,null,null,null,null,null,null,null,null,null,null,null,null,null,null,null,null,null,null,null,null,"Other","Aid Diversion","Diversion of Aid",{"$f":"B5_Risk_Sub_Category_Type_Table[[#This Row],[B5. Risk Type:]]&\"/\"&B5_Risk_Sub_Category_Type_Table[[#This Row],[B5. Risk Category]]&\"/\"&B5_Risk_Sub_Category_Type_Table[[#This Row],[B5. Risk Sub-Category]]","v":"Other/Aid Diversion/Diversion of Aid"},"Asking a portion or %age of humanitarian assistance",{"$f":"B5_Risk_Sub_Category_Type_Table[[#This Row],[B5. Risk Type:]]&\"/\"&B5_Risk_Sub_Category_Type_Table[[#This Row],[B5. Risk Category]]&\"/\"&B5_Risk_Sub_Category_Type_Table[[#This Row],[B5. Risk Sub-Category]]&\"/\"&B5_Risk_Sub_Category_Type_Table[[#This Row],[B5. Risk Sub-Category Type]]","v":"Other/Aid Diversion/Diversion of Aid/Asking a portion or %age of humanitarian assistance"}]
[null,null,null,null,null,null,null,null,null,null,null,null,null,null,null,null,null,null,null,null,null,null,null,null,null,null,null,null,null,null,null,null,null,null,null,null,null,null,null,"Other","Aid Diversion","Diversion of Aid",{"$f":"B5_Risk_Sub_Category_Type_Table[[#This Row],[B5. Risk Type:]]&\"/\"&B5_Risk_Sub_Category_Type_Table[[#This Row],[B5. Risk Category]]&\"/\"&B5_Risk_Sub_Category_Type_Table[[#This Row],[B5. Risk Sub-Category]]","v":"Other/Aid Diversion/Diversion of Aid"},"Diverting assistance to certain community",{"$f":"B5_Risk_Sub_Category_Type_Table[[#This Row],[B5. Risk Type:]]&\"/\"&B5_Risk_Sub_Category_Type_Table[[#This Row],[B5. Risk Category]]&\"/\"&B5_Risk_Sub_Category_Type_Table[[#This Row],[B5. Risk Sub-Category]]&\"/\"&B5_Risk_Sub_Category_Type_Table[[#This Row],[B5. Risk Sub-Category Type]]","v":"Other/Aid Diversion/Diversion of Aid/Diverting assistance to certain community"}]
[null,null,null,null,null,null,null,null,null,null,null,null,null,null,null,null,null,null,null,null,null,null,null,null,null,null,null,null,null,null,null,null,null,null,null,null,null,null,null,"Other","Aid Diversion","Diversion of Aid",{"$f":"B5_Risk_Sub_Category_Type_Table[[#This Row],[B5. Risk Type:]]&\"/\"&B5_Risk_Sub_Category_Type_Table[[#This Row],[B5. Risk Category]]&\"/\"&B5_Risk_Sub_Category_Type_Table[[#This Row],[B5. Risk Sub-Category]]","v":"Other/Aid Diversion/Diversion of Aid"},"Diverting assistance to certain geographic area",{"$f":"B5_Risk_Sub_Category_Type_Table[[#This Row],[B5. Risk Type:]]&\"/\"&B5_Risk_Sub_Category_Type_Table[[#This Row],[B5. Risk Category]]&\"/\"&B5_Risk_Sub_Category_Type_Table[[#This Row],[B5. Risk Sub-Category]]&\"/\"&B5_Risk_Sub_Category_Type_Table[[#This Row],[B5. Risk Sub-Category Type]]","v":"Other/Aid Diversion/Diversion of Aid/Diverting assistance to certain geographic area"}]
[null,null,null,null,null,null,null,null,null,null,null,null,null,null,null,null,null,null,null,null,null,null,null,null,null,null,null,null,null,null,null,null,null,null,null,null,null,null,null,"Other","Aid Diversion","Diversion of Aid",{"$f":"B5_Risk_Sub_Category_Type_Table[[#This Row],[B5. Risk Type:]]&\"/\"&B5_Risk_Sub_Category_Type_Table[[#This Row],[B5. Risk Category]]&\"/\"&B5_Risk_Sub_Category_Type_Table[[#This Row],[B5. Risk Sub-Category]]","v":"Other/Aid Diversion/Diversion of Aid"},"Diverting assistance to certain thematic area",{"$f":"B5_Risk_Sub_Category_Type_Table[[#This Row],[B5. Risk Type:]]&\"/\"&B5_Risk_Sub_Category_Type_Table[[#This Row],[B5. Risk Category]]&\"/\"&B5_Risk_Sub_Category_Type_Table[[#This Row],[B5. Risk Sub-Category]]&\"/\"&B5_Risk_Sub_Category_Type_Table[[#This Row],[B5. Risk Sub-Category Type]]","v":"Other/Aid Diversion/Diversion of Aid/Diverting assistance to certain thematic area"}]
[null,null,null,null,null,null,null,null,null,null,null,null,null,null,null,null,null,null,null,null,null,null,null,null,null,null,null,null,null,null,null,null,null,null,null,null,null,null,null,"Other","Aid Diversion","Diversion of Aid",{"$f":"B5_Risk_Sub_Category_Type_Table[[#This Row],[B5. Risk Type:]]&\"/\"&B5_Risk_Sub_Category_Type_Table[[#This Row],[B5. Risk Category]]&\"/\"&B5_Risk_Sub_Category_Type_Table[[#This Row],[B5. Risk Sub-Category]]","v":"Other/Aid Diversion/Diversion of Aid"},"Other",{"$f":"B5_Risk_Sub_Category_Type_Table[[#This Row],[B5. Risk Type:]]&\"/\"&B5_Risk_Sub_Category_Type_Table[[#This Row],[B5. Risk Category]]&\"/\"&B5_Risk_Sub_Category_Type_Table[[#This Row],[B5. Risk Sub-Category]]&\"/\"&B5_Risk_Sub_Category_Type_Table[[#This Row],[B5. Risk Sub-Category Type]]","v":"Other/Aid Diversion/Diversion of Aid/Other"}]
[null,null,null,null,null,null,null,null,null,null,null,null,null,null,null,null,null,null,null,null,null,null,null,null,null,null,null,null,null,null,null,null,null,null,null,null,null,null,null,"Other","Aid Diversion","Interference in Implementation",{"$f":"B5_Risk_Sub_Category_Type_Table[[#This Row],[B5. Risk Type:]]&\"/\"&B5_Risk_Sub_Category_Type_Table[[#This Row],[B5. Risk Category]]&\"/\"&B5_Risk_Sub_Category_Type_Table[[#This Row],[B5. Risk Sub-Category]]","v":"Other/Aid Diversion/Interference in Implementation"},"Contracting and outsourcing",{"$f":"B5_Risk_Sub_Category_Type_Table[[#This Row],[B5. Risk Type:]]&\"/\"&B5_Risk_Sub_Category_Type_Table[[#This Row],[B5. Risk Category]]&\"/\"&B5_Risk_Sub_Category_Type_Table[[#This Row],[B5. Risk Sub-Category]]&\"/\"&B5_Risk_Sub_Category_Type_Table[[#This Row],[B5. Risk Sub-Category Type]]","v":"Other/Aid Diversion/Interference in Implementation/Contracting and outsourcing"}]
[null,null,null,null,null,null,null,null,null,null,null,null,null,null,null,null,null,null,null,null,null,null,null,null,null,null,null,null,null,null,null,null,null,null,null,null,null,null,null,"Other","Aid Diversion","Interference in Implementation",{"$f":"B5_Risk_Sub_Category_Type_Table[[#This Row],[B5. Risk Type:]]&\"/\"&B5_Risk_Sub_Category_Type_Table[[#This Row],[B5. Risk Category]]&\"/\"&B5_Risk_Sub_Category_Type_Table[[#This Row],[B5. Risk Sub-Category]]","v":"Other/Aid Diversion/Interference in Implementation"},"Delay/denial for import of goods through border crossing",{"$f":"B5_Risk_Sub_Category_Type_Table[[#This Row],[B5. Risk Type:]]&\"/\"&B5_Risk_Sub_Category_Type_Table[[#This Row],[B5. Risk Category]]&\"/\"&B5_Risk_Sub_Category_Type_Table[[#This Row],[B5. Risk Sub-Category]]&\"/\"&B5_Risk_Sub_Category_Type_Table[[#This Row],[B5. Risk Sub-Category Type]]","v":"Other/Aid Diversion/Interference in Implementation/Delay/denial for import of goods through border crossing"}]
[null,null,null,null,null,null,null,null,null,null,null,null,null,null,null,null,null,null,null,null,null,null,null,null,null,null,null,null,null,null,null,null,null,null,null,null,null,null,null,"Other","Aid Diversion","Interference in Implementation",{"$f":"B5_Risk_Sub_Category_Type_Table[[#This Row],[B5. Risk Type:]]&\"/\"&B5_Risk_Sub_Category_Type_Table[[#This Row],[B5. Risk Category]]&\"/\"&B5_Risk_Sub_Category_Type_Table[[#This Row],[B5. Risk Sub-Category]]","v":"Other/Aid Diversion/Interference in Implementation"},"Inappropriate taxation on humanitarian goods or services",{"$f":"B5_Risk_Sub_Category_Type_Table[[#This Row],[B5. Risk Type:]]&\"/\"&B5_Risk_Sub_Category_Type_Table[[#This Row],[B5. Risk Category]]&\"/\"&B5_Risk_Sub_Category_Type_Table[[#This Row],[B5. Risk Sub-Category]]&\"/\"&B5_Risk_Sub_Category_Type_Table[[#This Row],[B5. Risk Sub-Category Type]]","v":"Other/Aid Diversion/Interference in Implementation/Inappropriate taxation on humanitarian goods or services"}]
[null,null,null,null,null,null,null,null,null,null,null,null,null,null,null,null,null,null,null,null,null,null,null,null,null,null,null,null,null,null,null,null,null,null,null,null,null,null,null,"Other","Aid Diversion","Interference in Implementation",{"$f":"B5_Risk_Sub_Category_Type_Table[[#This Row],[B5. Risk Type:]]&\"/\"&B5_Risk_Sub_Category_Type_Table[[#This Row],[B5. Risk Category]]&\"/\"&B5_Risk_Sub_Category_Type_Table[[#This Row],[B5. Risk Sub-Category]]","v":"Other/Aid Diversion/Interference in Implementation"},"Information Sharing and Reporting",{"$f":"B5_Risk_Sub_Category_Type_Table[[#This Row],[B5. Risk Type:]]&\"/\"&B5_Risk_Sub_Category_Type_Table[[#This Row],[B5. Risk Category]]&\"/\"&B5_Risk_Sub_Category_Type_Table[[#This Row],[B5. Risk Sub-Category]]&\"/\"&B5_Risk_Sub_Category_Type_Table[[#This Row],[B5. Risk Sub-Category Type]]","v":"Other/Aid Diversion/Interference in Implementation/Information Sharing and Reporting"}]
[null,null,null,null,null,null,null,null,null,null,null,null,null,null,null,null,null,null,null,null,null,null,null,null,null,null,null,null,null,null,null,null,null,null,null,null,null,null,null,"Other","Aid Diversion","Interference in Implementation",{"$f":"B5_Risk_Sub_Category_Type_Table[[#This Row],[B5. Risk Type:]]&\"/\"&B5_Risk_Sub_Category_Type_Table[[#This Row],[B5. Risk Category]]&\"/\"&B5_Risk_Sub_Category_Type_Table[[#This Row],[B5. Risk Sub-Category]]","v":"Other/Aid Diversion/Interference in Implementation"},"Lack of documentation preventing people from receiving assistance (ID cards)",{"$f":"B5_Risk_Sub_Category_Type_Table[[#This Row],[B5. Risk Type:]]&\"/\"&B5_Risk_Sub_Category_Type_Table[[#This Row],[B5. Risk Category]]&\"/\"&B5_Risk_Sub_Category_Type_Table[[#This Row],[B5. Risk Sub-Category]]&\"/\"&B5_Risk_Sub_Category_Type_Table[[#This Row],[B5. Risk Sub-Category Type]]","v":"Other/Aid Diversion/Interference in Implementation/Lack of documentation preventing people from receiving assistance (ID cards)"}]
[null,null,null,null,null,null,null,null,null,null,null,null,null,null,null,null,null,null,null,null,null,null,null,null,null,null,null,null,null,null,null,null,null,null,null,null,null,null,null,"Other","Aid Diversion","Interference in Implementation",{"$f":"B5_Risk_Sub_Category_Type_Table[[#This Row],[B5. Risk Type:]]&\"/\"&B5_Risk_Sub_Category_Type_Table[[#This Row],[B5. Risk Category]]&\"/\"&B5_Risk_Sub_Category_Type_Table[[#This Row],[B5. Risk Sub-Category]]","v":"Other/Aid Diversion/Interference in Implementation"},"Manipulation of beneficiaries' list (directly or indirectly)",{"$f":"B5_Risk_Sub_Category_Type_Table[[#This Row],[B5. Risk Type:]]&\"/\"&B5_Risk_Sub_Category_Type_Table[[#This Row],[B5. Risk Category]]&\"/\"&B5_Risk_Sub_Category_Type_Table[[#This Row],[B5. Risk Sub-Category]]&\"/\"&B5_Risk_Sub_Category_Type_Table[[#This Row],[B5. Risk Sub-Category Type]]","v":"Other/Aid Diversion/Interference in Implementation/Manipulation of beneficiaries' list (directly or indirectly)"}]
[null,null,null,null,null,null,null,null,null,null,null,null,null,null,null,null,null,null,null,null,null,null,null,null,null,null,null,null,null,null,null,null,null,null,null,null,null,null,null,"Other","Aid Diversion","Interference in Implementation",{"$f":"B5_Risk_Sub_Category_Type_Table[[#This Row],[B5. Risk Type:]]&\"/\"&B5_Risk_Sub_Category_Type_Table[[#This Row],[B5. Risk Category]]&\"/\"&B5_Risk_Sub_Category_Type_Table[[#This Row],[B5. Risk Sub-Category]]","v":"Other/Aid Diversion/Interference in Implementation"},"Organization's internal operations/processes",{"$f":"B5_Risk_Sub_Category_Type_Table[[#This Row],[B5. Risk Type:]]&\"/\"&B5_Risk_Sub_Category_Type_Table[[#This Row],[B5. Risk Category]]&\"/\"&B5_Risk_Sub_Category_Type_Table[[#This Row],[B5. Risk Sub-Category]]&\"/\"&B5_Risk_Sub_Category_Type_Table[[#This Row],[B5. Risk Sub-Category Type]]","v":"Other/Aid Diversion/Interference in Implementation/Organization's internal operations/processes"}]
[null,null,null,null,null,null,null,null,null,null,null,null,null,null,null,null,null,null,null,null,null,null,null,null,null,null,null,null,null,null,null,null,null,null,null,null,null,null,null,"Other","Aid Diversion","Interference in Implementation",{"$f":"B5_Risk_Sub_Category_Type_Table[[#This Row],[B5. Risk Type:]]&\"/\"&B5_Risk_Sub_Category_Type_Table[[#This Row],[B5. Risk Category]]&\"/\"&B5_Risk_Sub_Category_Type_Table[[#This Row],[B5. Risk Sub-Category]]","v":"Other/Aid Diversion/Interference in Implementation"},"Procurement/logistics processes",{"$f":"B5_Risk_Sub_Category_Type_Table[[#This Row],[B5. Risk Type:]]&\"/\"&B5_Risk_Sub_Category_Type_Table[[#This Row],[B5. Risk Category]]&\"/\"&B5_Risk_Sub_Category_Type_Table[[#This Row],[B5. Risk Sub-Category]]&\"/\"&B5_Risk_Sub_Category_Type_Table[[#This Row],[B5. Risk Sub-Category Type]]","v":"Other/Aid Diversion/Interference in Implementation/Procurement/logistics processes"}]
[null,null,null,null,null,null,null,null,null,null,null,null,null,null,null,null,null,null,null,null,null,null,null,null,null,null,null,null,null,null,null,null,null,null,null,null,null,null,null,"Other","Aid Diversion","Interference in Implementation",{"$f":"B5_Risk_Sub_Category_Type_Table[[#This Row],[B5. Risk Type:]]&\"/\"&B5_Risk_Sub_Category_Type_Table[[#This Row],[B5. Risk Category]]&\"/\"&B5_Risk_Sub_Category_Type_Table[[#This Row],[B5. Risk Sub-Category]]","v":"Other/Aid Diversion/Interference in Implementation"},"Prohibition of utilization of certain electronic equipment e.g. notepads for assessments and M&E",{"$f":"B5_Risk_Sub_Category_Type_Table[[#This Row],[B5. Risk Type:]]&\"/\"&B5_Risk_Sub_Category_Type_Table[[#This Row],[B5. Risk Category]]&\"/\"&B5_Risk_Sub_Category_Type_Table[[#This Row],[B5. Risk Sub-Category]]&\"/\"&B5_Risk_Sub_Category_Type_Table[[#This Row],[B5. Risk Sub-Category Type]]","v":"Other/Aid Diversion/Interference in Implementation/Prohibition of utilization of certain electronic equipment e.g. notepads for assessments and M&E"}]
[null,null,null,null,null,null,null,null,null,null,null,null,null,null,null,null,null,null,null,null,null,null,null,null,null,null,null,null,null,null,null,null,null,null,null,null,null,null,null,"Other","Aid Diversion","Interference in Implementation",{"$f":"B5_Risk_Sub_Category_Type_Table[[#This Row],[B5. Risk Type:]]&\"/\"&B5_Risk_Sub_Category_Type_Table[[#This Row],[B5. Risk Category]]&\"/\"&B5_Risk_Sub_Category_Type_Table[[#This Row],[B5. Risk Sub-Category]]","v":"Other/Aid Diversion/Interference in Implementation"},"Project/program planned implementation ",{"$f":"B5_Risk_Sub_Category_Type_Table[[#This Row],[B5. Risk Type:]]&\"/\"&B5_Risk_Sub_Category_Type_Table[[#This Row],[B5. Risk Category]]&\"/\"&B5_Risk_Sub_Category_Type_Table[[#This Row],[B5. Risk Sub-Category]]&\"/\"&B5_Risk_Sub_Category_Type_Table[[#This Row],[B5. Risk Sub-Category Type]]","v":"Other/Aid Diversion/Interference in Implementation/Project/program planned implementation "}]
[null,null,null,null,null,null,null,null,null,null,null,null,null,null,null,null,null,null,null,null,null,null,null,null,null,null,null,null,null,null,null,null,null,null,null,null,null,null,null,"Other","Aid Diversion","Interference in Implementation",{"$f":"B5_Risk_Sub_Category_Type_Table[[#This Row],[B5. Risk Type:]]&\"/\"&B5_Risk_Sub_Category_Type_Table[[#This Row],[B5. Risk Category]]&\"/\"&B5_Risk_Sub_Category_Type_Table[[#This Row],[B5. Risk Sub-Category]]","v":"Other/Aid Diversion/Interference in Implementation"},"Publicizing/claiming NGO activities through social media",{"$f":"B5_Risk_Sub_Category_Type_Table[[#This Row],[B5. Risk Type:]]&\"/\"&B5_Risk_Sub_Category_Type_Table[[#This Row],[B5. Risk Category]]&\"/\"&B5_Risk_Sub_Category_Type_Table[[#This Row],[B5. Risk Sub-Category]]&\"/\"&B5_Risk_Sub_Category_Type_Table[[#This Row],[B5. Risk Sub-Category Type]]","v":"Other/Aid Diversion/Interference in Implementation/Publicizing/claiming NGO activities through social media"}]
[null,null,null,null,null,null,null,null,null,null,null,null,null,null,null,null,null,null,null,null,null,null,null,null,null,null,null,null,null,null,null,null,null,null,null,null,null,null,null,"Other","Aid Diversion","Interference in Implementation",{"$f":"B5_Risk_Sub_Category_Type_Table[[#This Row],[B5. Risk Type:]]&\"/\"&B5_Risk_Sub_Category_Type_Table[[#This Row],[B5. Risk Category]]&\"/\"&B5_Risk_Sub_Category_Type_Table[[#This Row],[B5. Risk Sub-Category]]","v":"Other/Aid Diversion/Interference in Implementation"},"Staff recruitment process",{"$f":"B5_Risk_Sub_Category_Type_Table[[#This Row],[B5. Risk Type:]]&\"/\"&B5_Risk_Sub_Category_Type_Table[[#This Row],[B5. Risk Category]]&\"/\"&B5_Risk_Sub_Category_Type_Table[[#This Row],[B5. Risk Sub-Category]]&\"/\"&B5_Risk_Sub_Category_Type_Table[[#This Row],[B5. Risk Sub-Category Type]]","v":"Other/Aid Diversion/Interference in Implementation/Staff recruitment process"}]
[null,null,null,null,null,null,null,null,null,null,null,null,null,null,null,null,null,null,null,null,null,null,null,null,null,null,null,null,null,null,null,null,null,null,null,null,null,null,null,"Other","Aid Diversion","Interference in Implementation",{"$f":"B5_Risk_Sub_Category_Type_Table[[#This Row],[B5. Risk Type:]]&\"/\"&B5_Risk_Sub_Category_Type_Table[[#This Row],[B5. Risk Category]]&\"/\"&B5_Risk_Sub_Category_Type_Table[[#This Row],[B5. Risk Sub-Category]]","v":"Other/Aid Diversion/Interference in Implementation"},"Other",{"$f":"B5_Risk_Sub_Category_Type_Table[[#This Row],[B5. Risk Type:]]&\"/\"&B5_Risk_Sub_Category_Type_Table[[#This Row],[B5. Risk Category]]&\"/\"&B5_Risk_Sub_Category_Type_Table[[#This Row],[B5. Risk Sub-Category]]&\"/\"&B5_Risk_Sub_Category_Type_Table[[#This Row],[B5. Risk Sub-Category Type]]","v":"Other/Aid Diversion/Interference in Implementation/Other"}]
[null,null,null,null,null,null,null,null,null,null,null,null,null,null,null,null,null,null,null,null,null,null,null,null,null,null,null,null,null,null,null,null,null,null,null,null,null,null,null,"Other","Aid Diversion","Other",{"$f":"B5_Risk_Sub_Category_Type_Table[[#This Row],[B5. Risk Type:]]&\"/\"&B5_Risk_Sub_Category_Type_Table[[#This Row],[B5. Risk Category]]&\"/\"&B5_Risk_Sub_Category_Type_Table[[#This Row],[B5. Risk Sub-Category]]","v":"Other/Aid Diversion/Other"},"Other",{"$f":"B5_Risk_Sub_Category_Type_Table[[#This Row],[B5. Risk Type:]]&\"/\"&B5_Risk_Sub_Category_Type_Table[[#This Row],[B5. Risk Category]]&\"/\"&B5_Risk_Sub_Category_Type_Table[[#This Row],[B5. Risk Sub-Category]]&\"/\"&B5_Risk_Sub_Category_Type_Table[[#This Row],[B5. Risk Sub-Category Type]]","v":"Other/Aid Diversion/Other/Other"}]
[null,null,null,null,null,null,null,null,null,null,null,null,null,null,null,null,null,null,null,null,null,null,null,null,null,null,null,null,null,null,null,null,null,null,null,null,null,null,null,"Other","Environment","Climatic Conditions",{"$f":"B5_Risk_Sub_Category_Type_Table[[#This Row],[B5. Risk Type:]]&\"/\"&B5_Risk_Sub_Category_Type_Table[[#This Row],[B5. Risk Category]]&\"/\"&B5_Risk_Sub_Category_Type_Table[[#This Row],[B5. Risk Sub-Category]]","v":"Other/Environment/Climatic Conditions"},"Extreme climatic conditions",{"$f":"B5_Risk_Sub_Category_Type_Table[[#This Row],[B5. Risk Type:]]&\"/\"&B5_Risk_Sub_Category_Type_Table[[#This Row],[B5. Risk Category]]&\"/\"&B5_Risk_Sub_Category_Type_Table[[#This Row],[B5. Risk Sub-Category]]&\"/\"&B5_Risk_Sub_Category_Type_Table[[#This Row],[B5. Risk Sub-Category Type]]","v":"Other/Environment/Climatic Conditions/Extreme climatic conditions"}]
[null,null,null,null,null,null,null,null,null,null,null,null,null,null,null,null,null,null,null,null,null,null,null,null,null,null,null,null,null,null,null,null,null,null,null,null,null,null,null,"Other","Environment","Climatic Conditions",{"$f":"B5_Risk_Sub_Category_Type_Table[[#This Row],[B5. Risk Type:]]&\"/\"&B5_Risk_Sub_Category_Type_Table[[#This Row],[B5. Risk Category]]&\"/\"&B5_Risk_Sub_Category_Type_Table[[#This Row],[B5. Risk Sub-Category]]","v":"Other/Environment/Climatic Conditions"},"Flooding",{"$f":"B5_Risk_Sub_Category_Type_Table[[#This Row],[B5. Risk Type:]]&\"/\"&B5_Risk_Sub_Category_Type_Table[[#This Row],[B5. Risk Category]]&\"/\"&B5_Risk_Sub_Category_Type_Table[[#This Row],[B5. Risk Sub-Category]]&\"/\"&B5_Risk_Sub_Category_Type_Table[[#This Row],[B5. Risk Sub-Category Type]]","v":"Other/Environment/Climatic Conditions/Flooding"}]
[null,null,null,null,null,null,null,null,null,null,null,null,null,null,null,null,null,null,null,null,null,null,null,null,null,null,null,null,null,null,null,null,null,null,null,null,null,null,null,"Other","Environment","Climatic Conditions",{"$f":"B5_Risk_Sub_Category_Type_Table[[#This Row],[B5. Risk Type:]]&\"/\"&B5_Risk_Sub_Category_Type_Table[[#This Row],[B5. Risk Category]]&\"/\"&B5_Risk_Sub_Category_Type_Table[[#This Row],[B5. Risk Sub-Category]]","v":"Other/Environment/Climatic Conditions"},"Other",{"$f":"B5_Risk_Sub_Category_Type_Table[[#This Row],[B5. Risk Type:]]&\"/\"&B5_Risk_Sub_Category_Type_Table[[#This Row],[B5. Risk Category]]&\"/\"&B5_Risk_Sub_Category_Type_Table[[#This Row],[B5. Risk Sub-Category]]&\"/\"&B5_Risk_Sub_Category_Type_Table[[#This Row],[B5. Risk Sub-Category Type]]","v":"Other/Environment/Climatic Conditions/Other"}]
[null,null,null,null,null,null,null,null,null,null,null,null,null,null,null,null,null,null,null,null,null,null,null,null,null,null,null,null,null,null,null,null,null,null,null,null,null,null,null,"Other","Environment","Environmental Constraint",{"$f":"B5_Risk_Sub_Category_Type_Table[[#This Row],[B5. Risk Type:]]&\"/\"&B5_Risk_Sub_Category_Type_Table[[#This Row],[B5. Risk Category]]&\"/\"&B5_Risk_Sub_Category_Type_Table[[#This Row],[B5. Risk Sub-Category]]","v":"Other/Environment/Environmental Constraint"},"Improper waste disposal",{"$f":"B5_Risk_Sub_Category_Type_Table[[#This Row],[B5. Risk Type:]]&\"/\"&B5_Risk_Sub_Category_Type_Table[[#This Row],[B5. Risk Category]]&\"/\"&B5_Risk_Sub_Category_Type_Table[[#This Row],[B5. Risk Sub-Category]]&\"/\"&B5_Risk_Sub_Category_Type_Table[[#This Row],[B5. Risk Sub-Category Type]]","v":"Other/Environment/Environmental Constraint/Improper waste disposal"}]
[null,null,null,null,null,null,null,null,null,null,null,null,null,null,null,null,null,null,null,null,null,null,null,null,null,null,null,null,null,null,null,null,null,null,null,null,null,null,null,"Other","Environment","Environmental Constraint",{"$f":"B5_Risk_Sub_Category_Type_Table[[#This Row],[B5. Risk Type:]]&\"/\"&B5_Risk_Sub_Category_Type_Table[[#This Row],[B5. Risk Category]]&\"/\"&B5_Risk_Sub_Category_Type_Table[[#This Row],[B5. Risk Sub-Category]]","v":"Other/Environment/Environmental Constraint"},"Poor Water Safety Planning",{"$f":"B5_Risk_Sub_Category_Type_Table[[#This Row],[B5. Risk Type:]]&\"/\"&B5_Risk_Sub_Category_Type_Table[[#This Row],[B5. Risk Category]]&\"/\"&B5_Risk_Sub_Category_Type_Table[[#This Row],[B5. Risk Sub-Category]]&\"/\"&B5_Risk_Sub_Category_Type_Table[[#This Row],[B5. Risk Sub-Category Type]]","v":"Other/Environment/Environmental Constraint/Poor Water Safety Planning"}]
[null,null,null,null,null,null,null,null,null,null,null,null,null,null,null,null,null,null,null,null,null,null,null,null,null,null,null,null,null,null,null,null,null,null,null,null,null,null,null,"Other","Environment","Environmental Constraint",{"$f":"B5_Risk_Sub_Category_Type_Table[[#This Row],[B5. Risk Type:]]&\"/\"&B5_Risk_Sub_Category_Type_Table[[#This Row],[B5. Risk Category]]&\"/\"&B5_Risk_Sub_Category_Type_Table[[#This Row],[B5. Risk Sub-Category]]","v":"Other/Environment/Environmental Constraint"},"Other",{"$f":"B5_Risk_Sub_Category_Type_Table[[#This Row],[B5. Risk Type:]]&\"/\"&B5_Risk_Sub_Category_Type_Table[[#This Row],[B5. Risk Category]]&\"/\"&B5_Risk_Sub_Category_Type_Table[[#This Row],[B5. Risk Sub-Category]]&\"/\"&B5_Risk_Sub_Category_Type_Table[[#This Row],[B5. Risk Sub-Category Type]]","v":"Other/Environment/Environmental Constraint/Other"}]
[null,null,null,null,null,null,null,null,null,null,null,null,null,null,null,null,null,null,null,null,null,null,null,null,null,null,null,null,null,null,null,null,null,null,null,null,null,null,null,"Other","Environment","Other",{"$f":"B5_Risk_Sub_Category_Type_Table[[#This Row],[B5. Risk Type:]]&\"/\"&B5_Risk_Sub_Category_Type_Table[[#This Row],[B5. Risk Category]]&\"/\"&B5_Risk_Sub_Category_Type_Table[[#This Row],[B5. Risk Sub-Category]]","v":"Other/Environment/Other"},"Other",{"$f":"B5_Risk_Sub_Category_Type_Table[[#This Row],[B5. Risk Type:]]&\"/\"&B5_Risk_Sub_Category_Type_Table[[#This Row],[B5. Risk Category]]&\"/\"&B5_Risk_Sub_Category_Type_Table[[#This Row],[B5. Risk Sub-Category]]&\"/\"&B5_Risk_Sub_Category_Type_Table[[#This Row],[B5. Risk Sub-Category Type]]","v":"Other/Environment/Other/Other"}]
[null,null,null,null,null,null,null,null,null,null,null,null,null,null,null,null,null,null,null,null,null,null,null,null,null,null,null,null,null,null,null,null,null,null,null,null,null,null,null,"Other","Quality, Accountability and AAP","Accountability to Affected Populations",{"$f":"B5_Risk_Sub_Category_Type_Table[[#This Row],[B5. Risk Type:]]&\"/\"&B5_Risk_Sub_Category_Type_Table[[#This Row],[B5. Risk Category]]&\"/\"&B5_Risk_Sub_Category_Type_Table[[#This Row],[B5. Risk Sub-Category]]","v":"Other/Quality, Accountability and AAP/Accountability to Affected Populations"},"AAP Commitments",{"$f":"B5_Risk_Sub_Category_Type_Table[[#This Row],[B5. Risk Type:]]&\"/\"&B5_Risk_Sub_Category_Type_Table[[#This Row],[B5. Risk Category]]&\"/\"&B5_Risk_Sub_Category_Type_Table[[#This Row],[B5. Risk Sub-Category]]&\"/\"&B5_Risk_Sub_Category_Type_Table[[#This Row],[B5. Risk Sub-Category Type]]","v":"Other/Quality, Accountability and AAP/Accountability to Affected Populations/AAP Commitments"}]
[null,null,null,null,null,null,null,null,null,null,null,null,null,null,null,null,null,null,null,null,null,null,null,null,null,null,null,null,null,null,null,null,null,null,null,null,null,null,null,"Other","Quality, Accountability and AAP","Accountability to Affected Populations",{"$f":"B5_Risk_Sub_Category_Type_Table[[#This Row],[B5. Risk Type:]]&\"/\"&B5_Risk_Sub_Category_Type_Table[[#This Row],[B5. Risk Category]]&\"/\"&B5_Risk_Sub_Category_Type_Table[[#This Row],[B5. Risk Sub-Category]]","v":"Other/Quality, Accountability and AAP/Accountability to Affected Populations"},"Other",{"$f":"B5_Risk_Sub_Category_Type_Table[[#This Row],[B5. Risk Type:]]&\"/\"&B5_Risk_Sub_Category_Type_Table[[#This Row],[B5. Risk Category]]&\"/\"&B5_Risk_Sub_Category_Type_Table[[#This Row],[B5. Risk Sub-Category]]&\"/\"&B5_Risk_Sub_Category_Type_Table[[#This Row],[B5. Risk Sub-Category Type]]","v":"Other/Quality, Accountability and AAP/Accountability to Affected Populations/Other"}]
[null,null,null,null,null,null,null,null,null,null,null,null,null,null,null,null,null,null,null,null,null,null,null,null,null,null,null,null,null,null,null,null,null,null,null,null,null,null,null,"Other","Quality, Accountability and AAP","Coordination Partnership",{"$f":"B5_Risk_Sub_Category_Type_Table[[#This Row],[B5. Risk Type:]]&\"/\"&B5_Risk_Sub_Category_Type_Table[[#This Row],[B5. Risk Category]]&\"/\"&B5_Risk_Sub_Category_Type_Table[[#This Row],[B5. Risk Sub-Category]]","v":"Other/Quality, Accountability and AAP/Coordination Partnership"},"Coordination with donors",{"$f":"B5_Risk_Sub_Category_Type_Table[[#This Row],[B5. Risk Type:]]&\"/\"&B5_Risk_Sub_Category_Type_Table[[#This Row],[B5. Risk Category]]&\"/\"&B5_Risk_Sub_Category_Type_Table[[#This Row],[B5. Risk Sub-Category]]&\"/\"&B5_Risk_Sub_Category_Type_Table[[#This Row],[B5. Risk Sub-Category Type]]","v":"Other/Quality, Accountability and AAP/Coordination Partnership/Coordination with donors"}]
[null,null,null,null,null,null,null,null,null,null,null,null,null,null,null,null,null,null,null,null,null,null,null,null,null,null,null,null,null,null,null,null,null,null,null,null,null,null,null,"Other","Quality, Accountability and AAP","Coordination Partnership",{"$f":"B5_Risk_Sub_Category_Type_Table[[#This Row],[B5. Risk Type:]]&\"/\"&B5_Risk_Sub_Category_Type_Table[[#This Row],[B5. Risk Category]]&\"/\"&B5_Risk_Sub_Category_Type_Table[[#This Row],[B5. Risk Sub-Category]]","v":"Other/Quality, Accountability and AAP/Coordination Partnership"},"Coordination with line ministries",{"$f":"B5_Risk_Sub_Category_Type_Table[[#This Row],[B5. Risk Type:]]&\"/\"&B5_Risk_Sub_Category_Type_Table[[#This Row],[B5. Risk Category]]&\"/\"&B5_Risk_Sub_Category_Type_Table[[#This Row],[B5. Risk Sub-Category]]&\"/\"&B5_Risk_Sub_Category_Type_Table[[#This Row],[B5. Risk Sub-Category Type]]","v":"Other/Quality, Accountability and AAP/Coordination Partnership/Coordination with line ministries"}]
[null,null,null,null,null,null,null,null,null,null,null,null,null,null,null,null,null,null,null,null,null,null,null,null,null,null,null,null,null,null,null,null,null,null,null,null,null,null,null,"Other","Quality, Accountability and AAP","Coordination Partnership",{"$f":"B5_Risk_Sub_Category_Type_Table[[#This Row],[B5. Risk Type:]]&\"/\"&B5_Risk_Sub_Category_Type_Table[[#This Row],[B5. Risk Category]]&\"/\"&B5_Risk_Sub_Category_Type_Table[[#This Row],[B5. Risk Sub-Category]]","v":"Other/Quality, Accountability and AAP/Coordination Partnership"},"Coordination with local authorities",{"$f":"B5_Risk_Sub_Category_Type_Table[[#This Row],[B5. Risk Type:]]&\"/\"&B5_Risk_Sub_Category_Type_Table[[#This Row],[B5. Risk Category]]&\"/\"&B5_Risk_Sub_Category_Type_Table[[#This Row],[B5. Risk Sub-Category]]&\"/\"&B5_Risk_Sub_Category_Type_Table[[#This Row],[B5. Risk Sub-Category Type]]","v":"Other/Quality, Accountability and AAP/Coordination Partnership/Coordination with local authorities"}]
[null,null,null,null,null,null,null,null,null,null,null,null,null,null,null,null,null,null,null,null,null,null,null,null,null,null,null,null,null,null,null,null,null,null,null,null,null,null,null,"Other","Quality, Accountability and AAP","Coordination Partnership",{"$f":"B5_Risk_Sub_Category_Type_Table[[#This Row],[B5. Risk Type:]]&\"/\"&B5_Risk_Sub_Category_Type_Table[[#This Row],[B5. Risk Category]]&\"/\"&B5_Risk_Sub_Category_Type_Table[[#This Row],[B5. Risk Sub-Category]]","v":"Other/Quality, Accountability and AAP/Coordination Partnership"},"Coordination with NGO network(s)",{"$f":"B5_Risk_Sub_Category_Type_Table[[#This Row],[B5. Risk Type:]]&\"/\"&B5_Risk_Sub_Category_Type_Table[[#This Row],[B5. Risk Category]]&\"/\"&B5_Risk_Sub_Category_Type_Table[[#This Row],[B5. Risk Sub-Category]]&\"/\"&B5_Risk_Sub_Category_Type_Table[[#This Row],[B5. Risk Sub-Category Type]]","v":"Other/Quality, Accountability and AAP/Coordination Partnership/Coordination with NGO network(s)"}]
[null,null,null,null,null,null,null,null,null,null,null,null,null,null,null,null,null,null,null,null,null,null,null,null,null,null,null,null,null,null,null,null,null,null,null,null,null,null,null,"Other","Quality, Accountability and AAP","Coordination Partnership",{"$f":"B5_Risk_Sub_Category_Type_Table[[#This Row],[B5. Risk Type:]]&\"/\"&B5_Risk_Sub_Category_Type_Table[[#This Row],[B5. Risk Category]]&\"/\"&B5_Risk_Sub_Category_Type_Table[[#This Row],[B5. Risk Sub-Category]]","v":"Other/Quality, Accountability and AAP/Coordination Partnership"},"Coordination with other INGOs",{"$f":"B5_Risk_Sub_Category_Type_Table[[#This Row],[B5. Risk Type:]]&\"/\"&B5_Risk_Sub_Category_Type_Table[[#This Row],[B5. Risk Category]]&\"/\"&B5_Risk_Sub_Category_Type_Table[[#This Row],[B5. Risk Sub-Category]]&\"/\"&B5_Risk_Sub_Category_Type_Table[[#This Row],[B5. Risk Sub-Category Type]]","v":"Other/Quality, Accountability and AAP/Coordination Partnership/Coordination with other INGOs"}]
[null,null,null,null,null,null,null,null,null,null,null,null,null,null,null,null,null,null,null,null,null,null,null,null,null,null,null,null,null,null,null,null,null,null,null,null,null,null,null,"Other","Quality, Accountability and AAP","Coordination Partnership",{"$f":"B5_Risk_Sub_Category_Type_Table[[#This Row],[B5. Risk Type:]]&\"/\"&B5_Risk_Sub_Category_Type_Table[[#This Row],[B5. Risk Category]]&\"/\"&B5_Risk_Sub_Category_Type_Table[[#This Row],[B5. Risk Sub-Category]]","v":"Other/Quality, Accountability and AAP/Coordination Partnership"},"Coordination with other NGOs",{"$f":"B5_Risk_Sub_Category_Type_Table[[#This Row],[B5. Risk Type:]]&\"/\"&B5_Risk_Sub_Category_Type_Table[[#This Row],[B5. Risk Category]]&\"/\"&B5_Risk_Sub_Category_Type_Table[[#This Row],[B5. Risk Sub-Category]]&\"/\"&B5_Risk_Sub_Category_Type_Table[[#This Row],[B5. Risk Sub-Category Type]]","v":"Other/Quality, Accountability and AAP/Coordination Partnership/Coordination with other NGOs"}]
[null,null,null,null,null,null,null,null,null,null,null,null,null,null,null,null,null,null,null,null,null,null,null,null,null,null,null,null,null,null,null,null,null,null,null,null,null,null,null,"Other","Quality, Accountability and AAP","Coordination Partnership",{"$f":"B5_Risk_Sub_Category_Type_Table[[#This Row],[B5. Risk Type:]]&\"/\"&B5_Risk_Sub_Category_Type_Table[[#This Row],[B5. Risk Category]]&\"/\"&B5_Risk_Sub_Category_Type_Table[[#This Row],[B5. Risk Sub-Category]]","v":"Other/Quality, Accountability and AAP/Coordination Partnership"},"Coordination with UN agencies",{"$f":"B5_Risk_Sub_Category_Type_Table[[#This Row],[B5. Risk Type:]]&\"/\"&B5_Risk_Sub_Category_Type_Table[[#This Row],[B5. Risk Category]]&\"/\"&B5_Risk_Sub_Category_Type_Table[[#This Row],[B5. Risk Sub-Category]]&\"/\"&B5_Risk_Sub_Category_Type_Table[[#This Row],[B5. Risk Sub-Category Type]]","v":"Other/Quality, Accountability and AAP/Coordination Partnership/Coordination with UN agencies"}]
[null,null,null,null,null,null,null,null,null,null,null,null,null,null,null,null,null,null,null,null,null,null,null,null,null,null,null,null,null,null,null,null,null,null,null,null,null,null,null,"Other","Quality, Accountability and AAP","Coordination Partnership",{"$f":"B5_Risk_Sub_Category_Type_Table[[#This Row],[B5. Risk Type:]]&\"/\"&B5_Risk_Sub_Category_Type_Table[[#This Row],[B5. Risk Category]]&\"/\"&B5_Risk_Sub_Category_Type_Table[[#This Row],[B5. Risk Sub-Category]]","v":"Other/Quality, Accountability and AAP/Coordination Partnership"},"Partnership with donors",{"$f":"B5_Risk_Sub_Category_Type_Table[[#This Row],[B5. Risk Type:]]&\"/\"&B5_Risk_Sub_Category_Type_Table[[#This Row],[B5. Risk Category]]&\"/\"&B5_Risk_Sub_Category_Type_Table[[#This Row],[B5. Risk Sub-Category]]&\"/\"&B5_Risk_Sub_Category_Type_Table[[#This Row],[B5. Risk Sub-Category Type]]","v":"Other/Quality, Accountability and AAP/Coordination Partnership/Partnership with donors"}]
[null,null,null,null,null,null,null,null,null,null,null,null,null,null,null,null,null,null,null,null,null,null,null,null,null,null,null,null,null,null,null,null,null,null,null,null,null,null,null,"Other","Quality, Accountability and AAP","Coordination Partnership",{"$f":"B5_Risk_Sub_Category_Type_Table[[#This Row],[B5. Risk Type:]]&\"/\"&B5_Risk_Sub_Category_Type_Table[[#This Row],[B5. Risk Category]]&\"/\"&B5_Risk_Sub_Category_Type_Table[[#This Row],[B5. Risk Sub-Category]]","v":"Other/Quality, Accountability and AAP/Coordination Partnership"},"Partnership with other INGOs",{"$f":"B5_Risk_Sub_Category_Type_Table[[#This Row],[B5. Risk Type:]]&\"/\"&B5_Risk_Sub_Category_Type_Table[[#This Row],[B5. Risk Category]]&\"/\"&B5_Risk_Sub_Category_Type_Table[[#This Row],[B5. Risk Sub-Category]]&\"/\"&B5_Risk_Sub_Category_Type_Table[[#This Row],[B5. Risk Sub-Category Type]]","v":"Other/Quality, Accountability and AAP/Coordination Partnership/Partnership with other INGOs"}]
[null,null,null,null,null,null,null,null,null,null,null,null,null,null,null,null,null,null,null,null,null,null,null,null,null,null,null,null,null,null,null,null,null,null,null,null,null,null,null,"Other","Quality, Accountability and AAP","Coordination Partnership",{"$f":"B5_Risk_Sub_Category_Type_Table[[#This Row],[B5. Risk Type:]]&\"/\"&B5_Risk_Sub_Category_Type_Table[[#This Row],[B5. Risk Category]]&\"/\"&B5_Risk_Sub_Category_Type_Table[[#This Row],[B5. Risk Sub-Category]]","v":"Other/Quality, Accountability and AAP/Coordination Partnership"},"Partnership with other NGOs",{"$f":"B5_Risk_Sub_Category_Type_Table[[#This Row],[B5. Risk Type:]]&\"/\"&B5_Risk_Sub_Category_Type_Table[[#This Row],[B5. Risk Category]]&\"/\"&B5_Risk_Sub_Category_Type_Table[[#This Row],[B5. Risk Sub-Category]]&\"/\"&B5_Risk_Sub_Category_Type_Table[[#This Row],[B5. Risk Sub-Category Type]]","v":"Other/Quality, Accountability and AAP/Coordination Partnership/Partnership with other NGOs"}]
[null,null,null,null,null,null,null,null,null,null,null,null,null,null,null,null,null,null,null,null,null,null,null,null,null,null,null,null,null,null,null,null,null,null,null,null,null,null,null,"Other","Quality, Accountability and AAP","Coordination Partnership",{"$f":"B5_Risk_Sub_Category_Type_Table[[#This Row],[B5. Risk Type:]]&\"/\"&B5_Risk_Sub_Category_Type_Table[[#This Row],[B5. Risk Category]]&\"/\"&B5_Risk_Sub_Category_Type_Table[[#This Row],[B5. Risk Sub-Category]]","v":"Other/Quality, Accountability and AAP/Coordination Partnership"},"Partnership with UN agencies",{"$f":"B5_Risk_Sub_Category_Type_Table[[#This Row],[B5. Risk Type:]]&\"/\"&B5_Risk_Sub_Category_Type_Table[[#This Row],[B5. Risk Category]]&\"/\"&B5_Risk_Sub_Category_Type_Table[[#This Row],[B5. Risk Sub-Category]]&\"/\"&B5_Risk_Sub_Category_Type_Table[[#This Row],[B5. Risk Sub-Category Type]]","v":"Other/Quality, Accountability and AAP/Coordination Partnership/Partnership with UN agencies"}]
[null,null,null,null,null,null,null,null,null,null,null,null,null,null,null,null,null,null,null,null,null,null,null,null,null,null,null,null,null,null,null,null,null,null,null,null,null,null,null,"Other","Quality, Accountability and AAP","Coordination Partnership",{"$f":"B5_Risk_Sub_Category_Type_Table[[#This Row],[B5. Risk Type:]]&\"/\"&B5_Risk_Sub_Category_Type_Table[[#This Row],[B5. Risk Category]]&\"/\"&B5_Risk_Sub_Category_Type_Table[[#This Row],[B5. Risk Sub-Category]]","v":"Other/Quality, Accountability and AAP/Coordination Partnership"},"Other",{"$f":"B5_Risk_Sub_Category_Type_Table[[#This Row],[B5. Risk Type:]]&\"/\"&B5_Risk_Sub_Category_Type_Table[[#This Row],[B5. Risk Category]]&\"/\"&B5_Risk_Sub_Category_Type_Table[[#This Row],[B5. Risk Sub-Category]]&\"/\"&B5_Risk_Sub_Category_Type_Table[[#This Row],[B5. Risk Sub-Category Type]]","v":"Other/Quality, Accountability and AAP/Coordination Partnership/Other"}]
[null,null,null,null,null,null,null,null,null,null,null,null,null,null,null,null,null,null,null,null,null,null,null,null,null,null,null,null,null,null,null,null,null,null,null,null,null,null,null,"Other","Quality, Accountability and AAP","Other",{"$f":"B5_Risk_Sub_Category_Type_Table[[#This Row],[B5. Risk Type:]]&\"/\"&B5_Risk_Sub_Category_Type_Table[[#This Row],[B5. Risk Category]]&\"/\"&B5_Risk_Sub_Category_Type_Table[[#This Row],[B5. Risk Sub-Category]]","v":"Other/Quality, Accountability and AAP/Other"},"Other",{"$f":"B5_Risk_Sub_Category_Type_Table[[#This Row],[B5. Risk Type:]]&\"/\"&B5_Risk_Sub_Category_Type_Table[[#This Row],[B5. Risk Category]]&\"/\"&B5_Risk_Sub_Category_Type_Table[[#This Row],[B5. Risk Sub-Category]]&\"/\"&B5_Risk_Sub_Category_Type_Table[[#This Row],[B5. Risk Sub-Category Type]]","v":"Other/Quality, Accountability and AAP/Other/Other"}]
[null,null,null,null,null,null,null,null,null,null,null,null,null,null,null,null,null,null,null,null,null,null,null,null,null,null,null,null,null,null,null,null,null,null,null,null,null,null,null,"Other","Safety & Security","Safety Security of Affected Populations",{"$f":"B5_Risk_Sub_Category_Type_Table[[#This Row],[B5. Risk Type:]]&\"/\"&B5_Risk_Sub_Category_Type_Table[[#This Row],[B5. Risk Category]]&\"/\"&B5_Risk_Sub_Category_Type_Table[[#This Row],[B5. Risk Sub-Category]]","v":"Other/Safety & Security/Safety Security of Affected Populations"},"Involuntary return to place of origin",{"$f":"B5_Risk_Sub_Category_Type_Table[[#This Row],[B5. Risk Type:]]&\"/\"&B5_Risk_Sub_Category_Type_Table[[#This Row],[B5. Risk Category]]&\"/\"&B5_Risk_Sub_Category_Type_Table[[#This Row],[B5. Risk Sub-Category]]&\"/\"&B5_Risk_Sub_Category_Type_Table[[#This Row],[B5. Risk Sub-Category Type]]","v":"Other/Safety & Security/Safety Security of Affected Populations/Involuntary return to place of origin"}]
[null,null,null,null,null,null,null,null,null,null,null,null,null,null,null,null,null,null,null,null,null,null,null,null,null,null,null,null,null,null,null,null,null,null,null,null,null,null,null,"Other","Safety & Security","Safety Security of Affected Populations",{"$f":"B5_Risk_Sub_Category_Type_Table[[#This Row],[B5. Risk Type:]]&\"/\"&B5_Risk_Sub_Category_Type_Table[[#This Row],[B5. Risk Category]]&\"/\"&B5_Risk_Sub_Category_Type_Table[[#This Row],[B5. Risk Sub-Category]]","v":"Other/Safety & Security/Safety Security of Affected Populations"},"People involuntarily forced/encouraged into an area in order to receive assistance",{"$f":"B5_Risk_Sub_Category_Type_Table[[#This Row],[B5. Risk Type:]]&\"/\"&B5_Risk_Sub_Category_Type_Table[[#This Row],[B5. Risk Category]]&\"/\"&B5_Risk_Sub_Category_Type_Table[[#This Row],[B5. Risk Sub-Category]]&\"/\"&B5_Risk_Sub_Category_Type_Table[[#This Row],[B5. Risk Sub-Category Type]]","v":"Other/Safety & Security/Safety Security of Affected Populations/People involuntarily forced/encouraged into an area in order to receive assistance"}]
[null,null,null,null,null,null,null,null,null,null,null,null,null,null,null,null,null,null,null,null,null,null,null,null,null,null,null,null,null,null,null,null,null,null,null,null,null,null,null,"Other","Safety & Security","Safety Security of Affected Populations",{"$f":"B5_Risk_Sub_Category_Type_Table[[#This Row],[B5. Risk Type:]]&\"/\"&B5_Risk_Sub_Category_Type_Table[[#This Row],[B5. Risk Category]]&\"/\"&B5_Risk_Sub_Category_Type_Table[[#This Row],[B5. Risk Sub-Category]]","v":"Other/Safety & Security/Safety Security of Affected Populations"},"Presence of IEDs/UXOs/mines in the area",{"$f":"B5_Risk_Sub_Category_Type_Table[[#This Row],[B5. Risk Type:]]&\"/\"&B5_Risk_Sub_Category_Type_Table[[#This Row],[B5. Risk Category]]&\"/\"&B5_Risk_Sub_Category_Type_Table[[#This Row],[B5. Risk Sub-Category]]&\"/\"&B5_Risk_Sub_Category_Type_Table[[#This Row],[B5. Risk Sub-Category Type]]","v":"Other/Safety & Security/Safety Security of Affected Populations/Presence of IEDs/UXOs/mines in the area"}]
[null,null,null,null,null,null,null,null,null,null,null,null,null,null,null,null,null,null,null,null,null,null,null,null,null,null,null,null,null,null,null,null,null,null,null,null,null,null,null,"Other","Safety & Security","Safety Security of Affected Populations",{"$f":"B5_Risk_Sub_Category_Type_Table[[#This Row],[B5. Risk Type:]]&\"/\"&B5_Risk_Sub_Category_Type_Table[[#This Row],[B5. Risk Category]]&\"/\"&B5_Risk_Sub_Category_Type_Table[[#This Row],[B5. Risk Sub-Category]]","v":"Other/Safety & Security/Safety Security of Affected Populations"},"Other",{"$f":"B5_Risk_Sub_Category_Type_Table[[#This Row],[B5. Risk Type:]]&\"/\"&B5_Risk_Sub_Category_Type_Table[[#This Row],[B5. Risk Category]]&\"/\"&B5_Risk_Sub_Category_Type_Table[[#This Row],[B5. Risk Sub-Category]]&\"/\"&B5_Risk_Sub_Category_Type_Table[[#This Row],[B5. Risk Sub-Category Type]]","v":"Other/Safety & Security/Safety Security of Affected Populations/Other"}]
[null,null,null,null,null,null,null,null,null,null,null,null,null,null,null,null,null,null,null,null,null,null,null,null,null,null,null,null,null,null,null,null,null,null,null,null,null,null,null,"Other","Safety & Security","Safety Security of NGOs Personnel Assets Infrastructure Facilities",{"$f":"B5_Risk_Sub_Category_Type_Table[[#This Row],[B5. Risk Type:]]&\"/\"&B5_Risk_Sub_Category_Type_Table[[#This Row],[B5. Risk Category]]&\"/\"&B5_Risk_Sub_Category_Type_Table[[#This Row],[B5. Risk Sub-Category]]","v":"Other/Safety & Security/Safety Security of NGOs Personnel Assets Infrastructure Facilities"},"Confiscation/theft/looting of goods",{"$f":"B5_Risk_Sub_Category_Type_Table[[#This Row],[B5. Risk Type:]]&\"/\"&B5_Risk_Sub_Category_Type_Table[[#This Row],[B5. Risk Category]]&\"/\"&B5_Risk_Sub_Category_Type_Table[[#This Row],[B5. Risk Sub-Category]]&\"/\"&B5_Risk_Sub_Category_Type_Table[[#This Row],[B5. Risk Sub-Category Type]]","v":"Other/Safety & Security/Safety Security of NGOs Personnel Assets Infrastructure Facilities/Confiscation/theft/looting of goods"}]
[null,null,null,null,null,null,null,null,null,null,null,null,null,null,null,null,null,null,null,null,null,null,null,null,null,null,null,null,null,null,null,null,null,null,null,null,null,null,null,"Other","Safety & Security","Safety Security of NGOs Personnel Assets Infrastructure Facilities",{"$f":"B5_Risk_Sub_Category_Type_Table[[#This Row],[B5. Risk Type:]]&\"/\"&B5_Risk_Sub_Category_Type_Table[[#This Row],[B5. Risk Category]]&\"/\"&B5_Risk_Sub_Category_Type_Table[[#This Row],[B5. Risk Sub-Category]]","v":"Other/Safety & Security/Safety Security of NGOs Personnel Assets Infrastructure Facilities"},"Detention or arrest of humanitarian staff",{"$f":"B5_Risk_Sub_Category_Type_Table[[#This Row],[B5. Risk Type:]]&\"/\"&B5_Risk_Sub_Category_Type_Table[[#This Row],[B5. Risk Category]]&\"/\"&B5_Risk_Sub_Category_Type_Table[[#This Row],[B5. Risk Sub-Category]]&\"/\"&B5_Risk_Sub_Category_Type_Table[[#This Row],[B5. Risk Sub-Category Type]]","v":"Other/Safety & Security/Safety Security of NGOs Personnel Assets Infrastructure Facilities/Detention or arrest of humanitarian staff"}]
[null,null,null,null,null,null,null,null,null,null,null,null,null,null,null,null,null,null,null,null,null,null,null,null,null,null,null,null,null,null,null,null,null,null,null,null,null,null,null,"Other","Safety & Security","Safety Security of NGOs Personnel Assets Infrastructure Facilities",{"$f":"B5_Risk_Sub_Category_Type_Table[[#This Row],[B5. Risk Type:]]&\"/\"&B5_Risk_Sub_Category_Type_Table[[#This Row],[B5. Risk Category]]&\"/\"&B5_Risk_Sub_Category_Type_Table[[#This Row],[B5. Risk Sub-Category]]","v":"Other/Safety & Security/Safety Security of NGOs Personnel Assets Infrastructure Facilities"},"IED attacks against infrastructure and staff",{"$f":"B5_Risk_Sub_Category_Type_Table[[#This Row],[B5. Risk Type:]]&\"/\"&B5_Risk_Sub_Category_Type_Table[[#This Row],[B5. Risk Category]]&\"/\"&B5_Risk_Sub_Category_Type_Table[[#This Row],[B5. Risk Sub-Category]]&\"/\"&B5_Risk_Sub_Category_Type_Table[[#This Row],[B5. Risk Sub-Category Type]]","v":"Other/Safety & Security/Safety Security of NGOs Personnel Assets Infrastructure Facilities/IED attacks against infrastructure and staff"}]
[null,null,null,null,null,null,null,null,null,null,null,null,null,null,null,null,null,null,null,null,null,null,null,null,null,null,null,null,null,null,null,null,null,null,null,null,null,null,null,"Other","Safety & Security","Safety Security of NGOs Personnel Assets Infrastructure Facilities",{"$f":"B5_Risk_Sub_Category_Type_Table[[#This Row],[B5. Risk Type:]]&\"/\"&B5_Risk_Sub_Category_Type_Table[[#This Row],[B5. Risk Category]]&\"/\"&B5_Risk_Sub_Category_Type_Table[[#This Row],[B5. Risk Sub-Category]]","v":"Other/Safety & Security/Safety Security of NGOs Personnel Assets Infrastructure Facilities"},"Intimidation of/or threats to staff",{"$f":"B5_Risk_Sub_Category_Type_Table[[#This Row],[B5. Risk Type:]]&\"/\"&B5_Risk_Sub_Category_Type_Table[[#This Row],[B5. Risk Category]]&\"/\"&B5_Risk_Sub_Category_Type_Table[[#This Row],[B5. Risk Sub-Category]]&\"/\"&B5_Risk_Sub_Category_Type_Table[[#This Row],[B5. Risk Sub-Category Type]]","v":"Other/Safety & Security/Safety Security of NGOs Personnel Assets Infrastructure Facilities/Intimidation of/or threats to staff"}]
[null,null,null,null,null,null,null,null,null,null,null,null,null,null,null,null,null,null,null,null,null,null,null,null,null,null,null,null,null,null,null,null,null,null,null,null,null,null,null,"Other","Safety & Security","Safety Security of NGOs Personnel Assets Infrastructure Facilities",{"$f":"B5_Risk_Sub_Category_Type_Table[[#This Row],[B5. Risk Type:]]&\"/\"&B5_Risk_Sub_Category_Type_Table[[#This Row],[B5. Risk Category]]&\"/\"&B5_Risk_Sub_Category_Type_Table[[#This Row],[B5. Risk Sub-Category]]","v":"Other/Safety & Security/Safety Security of NGOs Personnel Assets Infrastructure Facilities"},"Kidnapping/detention of staff or their family members",{"$f":"B5_Risk_Sub_Category_Type_Table[[#This Row],[B5. Risk Type:]]&\"/\"&B5_Risk_Sub_Category_Type_Table[[#This Row],[B5. Risk Category]]&\"/\"&B5_Risk_Sub_Category_Type_Table[[#This Row],[B5. Risk Sub-Category]]&\"/\"&B5_Risk_Sub_Category_Type_Table[[#This Row],[B5. Risk Sub-Category Type]]","v":"Other/Safety & Security/Safety Security of NGOs Personnel Assets Infrastructure Facilities/Kidnapping/detention of staff or their family members"}]
[null,null,null,null,null,null,null,null,null,null,null,null,null,null,null,null,null,null,null,null,null,null,null,null,null,null,null,null,null,null,null,null,null,null,null,null,null,null,null,"Other","Safety & Security","Safety Security of NGOs Personnel Assets Infrastructure Facilities",{"$f":"B5_Risk_Sub_Category_Type_Table[[#This Row],[B5. Risk Type:]]&\"/\"&B5_Risk_Sub_Category_Type_Table[[#This Row],[B5. Risk Category]]&\"/\"&B5_Risk_Sub_Category_Type_Table[[#This Row],[B5. Risk Sub-Category]]","v":"Other/Safety & Security/Safety Security of NGOs Personnel Assets Infrastructure Facilities"},"Killing or physical injury of staff",{"$f":"B5_Risk_Sub_Category_Type_Table[[#This Row],[B5. Risk Type:]]&\"/\"&B5_Risk_Sub_Category_Type_Table[[#This Row],[B5. Risk Category]]&\"/\"&B5_Risk_Sub_Category_Type_Table[[#This Row],[B5. Risk Sub-Category]]&\"/\"&B5_Risk_Sub_Category_Type_Table[[#This Row],[B5. Risk Sub-Category Type]]","v":"Other/Safety & Security/Safety Security of NGOs Personnel Assets Infrastructure Facilities/Killing or physical injury of staff"}]
[null,null,null,null,null,null,null,null,null,null,null,null,null,null,null,null,null,null,null,null,null,null,null,null,null,null,null,null,null,null,null,null,null,null,null,null,null,null,null,"Other","Safety & Security","Safety Security of NGOs Personnel Assets Infrastructure Facilities",{"$f":"B5_Risk_Sub_Category_Type_Table[[#This Row],[B5. Risk Type:]]&\"/\"&B5_Risk_Sub_Category_Type_Table[[#This Row],[B5. Risk Category]]&\"/\"&B5_Risk_Sub_Category_Type_Table[[#This Row],[B5. Risk Sub-Category]]","v":"Other/Safety & Security/Safety Security of NGOs Personnel Assets Infrastructure Facilities"},"Occupation of humanitarian facilities",{"$f":"B5_Risk_Sub_Category_Type_Table[[#This Row],[B5. Risk Type:]]&\"/\"&B5_Risk_Sub_Category_Type_Table[[#This Row],[B5. Risk Category]]&\"/\"&B5_Risk_Sub_Category_Type_Table[[#This Row],[B5. Risk Sub-Category]]&\"/\"&B5_Risk_Sub_Category_Type_Table[[#This Row],[B5. Risk Sub-Category Type]]","v":"Other/Safety & Security/Safety Security of NGOs Personnel Assets Infrastructure Facilities/Occupation of humanitarian facilities"}]
[null,null,null,null,null,null,null,null,null,null,null,null,null,null,null,null,null,null,null,null,null,null,null,null,null,null,null,null,null,null,null,null,null,null,null,null,null,null,null,"Other","Safety & Security","Safety Security of NGOs Personnel Assets Infrastructure Facilities",{"$f":"B5_Risk_Sub_Category_Type_Table[[#This Row],[B5. Risk Type:]]&\"/\"&B5_Risk_Sub_Category_Type_Table[[#This Row],[B5. Risk Category]]&\"/\"&B5_Risk_Sub_Category_Type_Table[[#This Row],[B5. Risk Sub-Category]]","v":"Other/Safety & Security/Safety Security of NGOs Personnel Assets Infrastructure Facilities"},"Post-distribution looting or confiscation of aid/relief items",{"$f":"B5_Risk_Sub_Category_Type_Table[[#This Row],[B5. Risk Type:]]&\"/\"&B5_Risk_Sub_Category_Type_Table[[#This Row],[B5. Risk Category]]&\"/\"&B5_Risk_Sub_Category_Type_Table[[#This Row],[B5. Risk Sub-Category]]&\"/\"&B5_Risk_Sub_Category_Type_Table[[#This Row],[B5. Risk Sub-Category Type]]","v":"Other/Safety & Security/Safety Security of NGOs Personnel Assets Infrastructure Facilities/Post-distribution looting or confiscation of aid/relief items"}]
[null,null,null,null,null,null,null,null,null,null,null,null,null,null,null,null,null,null,null,null,null,null,null,null,null,null,null,null,null,null,null,null,null,null,null,null,null,null,null,"Other","Safety & Security","Safety Security of NGOs Personnel Assets Infrastructure Facilities",{"$f":"B5_Risk_Sub_Category_Type_Table[[#This Row],[B5. Risk Type:]]&\"/\"&B5_Risk_Sub_Category_Type_Table[[#This Row],[B5. Risk Category]]&\"/\"&B5_Risk_Sub_Category_Type_Table[[#This Row],[B5. Risk Sub-Category]]","v":"Other/Safety & Security/Safety Security of NGOs Personnel Assets Infrastructure Facilities"},"Requesting staff list and demands to share personal details (contact details, salary etc.)",{"$f":"B5_Risk_Sub_Category_Type_Table[[#This Row],[B5. Risk Type:]]&\"/\"&B5_Risk_Sub_Category_Type_Table[[#This Row],[B5. Risk Category]]&\"/\"&B5_Risk_Sub_Category_Type_Table[[#This Row],[B5. Risk Sub-Category]]&\"/\"&B5_Risk_Sub_Category_Type_Table[[#This Row],[B5. Risk Sub-Category Type]]","v":"Other/Safety & Security/Safety Security of NGOs Personnel Assets Infrastructure Facilities/Requesting staff list and demands to share personal details (contact details, salary etc.)"}]
[null,null,null,null,null,null,null,null,null,null,null,null,null,null,null,null,null,null,null,null,null,null,null,null,null,null,null,null,null,null,null,null,null,null,null,null,null,null,null,"Other","Safety & Security","Safety Security of NGOs Personnel Assets Infrastructure Facilities",{"$f":"B5_Risk_Sub_Category_Type_Table[[#This Row],[B5. Risk Type:]]&\"/\"&B5_Risk_Sub_Category_Type_Table[[#This Row],[B5. Risk Category]]&\"/\"&B5_Risk_Sub_Category_Type_Table[[#This Row],[B5. Risk Sub-Category]]","v":"Other/Safety & Security/Safety Security of NGOs Personnel Assets Infrastructure Facilities"},"Violence against personnel, assets and facilities",{"$f":"B5_Risk_Sub_Category_Type_Table[[#This Row],[B5. Risk Type:]]&\"/\"&B5_Risk_Sub_Category_Type_Table[[#This Row],[B5. Risk Category]]&\"/\"&B5_Risk_Sub_Category_Type_Table[[#This Row],[B5. Risk Sub-Category]]&\"/\"&B5_Risk_Sub_Category_Type_Table[[#This Row],[B5. Risk Sub-Category Type]]","v":"Other/Safety & Security/Safety Security of NGOs Personnel Assets Infrastructure Facilities/Violence against personnel, assets and facilities"}]
[null,null,null,null,null,null,null,null,null,null,null,null,null,null,null,null,null,null,null,null,null,null,null,null,null,null,null,null,null,null,null,null,null,null,null,null,null,null,null,"Other","Safety & Security","Safety Security of NGOs Personnel Assets Infrastructure Facilities",{"$f":"B5_Risk_Sub_Category_Type_Table[[#This Row],[B5. Risk Type:]]&\"/\"&B5_Risk_Sub_Category_Type_Table[[#This Row],[B5. Risk Category]]&\"/\"&B5_Risk_Sub_Category_Type_Table[[#This Row],[B5. Risk Sub-Category]]","v":"Other/Safety & Security/Safety Security of NGOs Personnel Assets Infrastructure Facilities"},"Other",{"$f":"B5_Risk_Sub_Category_Type_Table[[#This Row],[B5. Risk Type:]]&\"/\"&B5_Risk_Sub_Category_Type_Table[[#This Row],[B5. Risk Category]]&\"/\"&B5_Risk_Sub_Category_Type_Table[[#This Row],[B5. Risk Sub-Category]]&\"/\"&B5_Risk_Sub_Category_Type_Table[[#This Row],[B5. Risk Sub-Category Type]]","v":"Other/Safety & Security/Safety Security of NGOs Personnel Assets Infrastructure Facilities/Other"}]
[null,null,null,null,null,null,null,null,null,null,null,null,null,null,null,null,null,null,null,null,null,null,null,null,null,null,null,null,null,null,null,null,null,null,null,null,null,null,null,"Other","Other","Other",{"$f":"B5_Risk_Sub_Category_Type_Table[[#This Row],[B5. Risk Type:]]&\"/\"&B5_Risk_Sub_Category_Type_Table[[#This Row],[B5. Risk Category]]&\"/\"&B5_Risk_Sub_Category_Type_Table[[#This Row],[B5. Risk Sub-Category]]","v":"Other/Other/Other"},"Other",{"$f":"B5_Risk_Sub_Category_Type_Table[[#This Row],[B5. Risk Type:]]&\"/\"&B5_Risk_Sub_Category_Type_Table[[#This Row],[B5. Risk Category]]&\"/\"&B5_Risk_Sub_Category_Type_Table[[#This Row],[B5. Risk Sub-Category]]&\"/\"&B5_Risk_Sub_Category_Type_Table[[#This Row],[B5. Risk Sub-Category Type]]","v":"Other/Other/Other/Other"}]

{"sheet":"Settings","index":1,"n_rows":43,"n_cols":4,"rows_kept":43,"cut":false,"hidden":true,"merged":[]}
[]
["Risk tools","Risk Register","Title","Sheet"]
["AL8","A","Index","Risk Analysis Tool"]
["AL9","C","Entry Date","Risk Analysis Tool"]
["K8","D","A1. Organization ID","Risk Analysis Tool"]
["K11","E","A2. Organization Type","Risk Analysis Tool"]
["T11","F","A2. Organization Type_Other","Risk Analysis Tool"]
["K14","G","B1. Risk ID","Risk Analysis Tool"]
["K17","H","B2. Risk Type","Risk Analysis Tool"]
["Z17","I","B2. Risk Type_Other","Risk Analysis Tool"]
["K20","J","B3. Risk Category","Risk Analysis Tool"]
["Z20","K","B3. Risk Category_Other","Risk Analysis Tool"]
["K23","L","B4. Risk Sub-Category","Risk Analysis Tool"]
["Z23","M","B4. Risk Sub-Category_Other","Risk Analysis Tool"]
["K26","N","B5. Sub-Category Type","Risk Analysis Tool"]
["Z26","O","B5. Sub-Category Type_Other","Risk Analysis Tool"]
["K29","P","C1. Cluster (affected)","Risk Analysis Tool"]
["Z29","Q","C1. Cluster (affected)_Multi-Cluster","Risk Analysis Tool"]
["K32","R","C2. Cluster Activity","Risk Analysis Tool"]
["Z32","S","C2. Cluster Activity_Other","Risk Analysis Tool"]
["B38","T","D1. Risk Description","Risk Analysis Tool"]
["K45","U","D2. Impact","Risk Analysis Tool"]
["K48","W","D3. Likelihood","Risk Analysis Tool"]
["K51","X","D5. Risk Driver","Risk Analysis Tool"]
["T51","Y","D5. Risk Driver_Other","Risk Analysis Tool"]
["B60","Z","F1. Mitigation Outcomes","Risk Analysis Tool"]
["K67","AA","F2. Notes/Commetns","Risk Analysis Tool"]
["K73","AC","G1. Residual Risk","Risk Analysis Tool"]
["K76","AD","G2. Impact","Risk Analysis Tool"]
["K79","AE","G3. Likelihood","Risk Analysis Tool"]
["K8","AG","E1. Risk Context Established","Risk Mitigation Strategy"]
["K13","AH","E2. Risk Analyzed","Risk Mitigation Strategy"]
["C23","AI","E3. Risk Evaluation","Risk Mitigation Strategy"]
["C34","AJ","E4. Risk Mitigation Approach","Risk Mitigation Strategy"]
["B37","AK","E5. Risk Mitigation Measures","Risk Mitigation Strategy"]
["B46","AL","E5.1. Resources Needed/Internally","Risk Mitigation Strategy"]
["W46","AM","E5.1. Resources Needed/Externally","Risk Mitigation Strategy"]
["B56","AN","E5.2. Gaps","Risk Mitigation Strategy"]
["B64","AO","E5.3. Controls","Risk Mitigation Strategy"]
["B72","AP","E5.4. Strategy Owner(s)","Risk Mitigation Strategy"]
["B80","AQ","E6. Monitoring and Review","Risk Mitigation Strategy"]
["B88","AR","E7. Communication and Coordination:","Risk Mitigation Strategy"]
["K94","AS","E8. Next Review Date","Risk Mitigation Strategy"]

{"sheet":"Risk Analysis Tool","index":2,"n_rows":96,"n_cols":40,"rows_kept":96,"cut":false,"hidden":false,"merged":[[34,1,35,9],[28,1,29,9],[13,1,14,9],[25,1,26,9],[22,1,23,9],[16,10,17,24],[7,10,8,29],[10,19,11,29],[34,10,35,42],[25,10,26,24],[19,25,20,42],[28,25,29,42],[7,37,7,42],[8,37,8,42],[7,1,8,9],[7,31,7,36],[8,31,8,36],[22,10,23,24],[19,1,20,9],[10,1,11,9],[10,10,11,18],[95,1,98,31],[13,10,14,29],[22,25,23,42],[25,25,26,42],[28,10,29,24],[31,10,32,24],[31,25,32,42],[66,1,67,9],[66,10,67,42],[50,19,51,42],[53,1,54,9],[50,1,51,9],[50,10,51,18],[95,33,98,42],[16,1,17,9],[44,10,45,18],[92,35,92,38],[92,39,92,42],[90,22,91,22],[82,22,83,22],[86,39,87,42],[90,23,91,26],[90,27,91,30],[90,31,91,34],[1,24,3,42],[47,10,48,18],[45,21,47,29],[45,30,47,42],[31,1,32,9],[84,27,85,30],[72,1,73,9],[82,21,91,21],[56,1,57,9],[59,1,64,42],[88,39,89,42],[53,10,54,42],[47,1,48,9],[80,22,81,42],[84,39,85,42],[4,25,5,42],[81,1,93,20],[1,1,5,23],[11,39,12,42],[92,31,92,34],[37,1,42,42],[16,25,17,42],[19,10,20,24],[44,1,45,9],[90,35,91,38],[90,39,91,42],[82,23,83,26],[82,27,83,30],[82,31,83,34],[82,35,83,38],[84,23,85,26],[69,1,70,9],[69,10,70,42],[93,23,93,42],[72,10,73,18],[75,1,76,9],[75,10,76,18],[76,21,78,29],[76,30,78,42],[78,1,79,9],[78,10,79,18],[84,31,85,34],[84,35,85,38],[86,23,87,26],[86,27,87,30],[86,31,87,34],[86,35,87,38],[88,23,89,26],[88,27,89,30],[84,22,85,22],[86,22,87,22],[88,22,89,22],[88,35,89,38],[88,31,89,34],[82,39,83,42],[92,23,92,26],[92,27,92,30]]}
[]
[null,"Syria Crisis\nCross-Border Response from Turkey",null,null,null,null,null,null,null,null,null,null,null,null,null,null,null,null,null,null,null,null,null,null,"Risk Analysis Tool\nInterface"]
[]
[]
[]
[]
[]
[null,"A1. Data Entry ID:",null,null,null,null,null,null,null,null,"test",null,null,null,null,null,null,null,null,null,null,null,null,null,null,null,null,null,null,null,null,"Record Index          :",null,null,null,null,null,5]
[null,null,null,null,null,null,null,null,null,null,null,null,null,null,null,null,null,null,null,null,null,null,null,null,null,null,null,null,null,null,null,"Creation Date/Time:",null,null,null,null,null,"2020-02-13T12:00:36"]
[]
[null,"A2. Organization Type:"]
[]
[]
[null,"B1. Risk ID:"]
[]
[]
[null,"B2. Risk Type:"]
[]
[]
[null,"B3. Risk Category:"]
[]
[]
[null,"B4. Risk Sub-Category:"]
[]
[]
[null,"B5. Sub-Category Type:"]
[]
[]
[null,"C1. Cluster (affected):"]
[]
[]
[null,"C2. Cluster Activity:"]
[]
[]
[null,"D1. Risk Description:"]
[]
[]
[]
[]
[]
[]
[]
[]
[]
[null,"D2. Impact:"]
[null,null,null,null,null,null,null,null,null,null,null,null,null,null,null,null,null,null,null,null,null,"D4. Inherent Risk Rating:",null,null,null,null,null,null,null,null,{"$f":"Risk_Rating_Field","v":""}]
[]
[null,"D3. Likelihood:"]
[]
[]
[null,"D5. Risk Driver:"]
[]
[]
[null,"E. Mitigation Strategies:",null,null,null,null,null,null,null,null,"Click here to view/developing 'Risk Mitigation Strategy'"]
[]
[]
[null,"F1. Mitigation Outcomes:"]
[]
[]
[]
[]
[]
[]
[]
[]
[]
[null,"F2. Follow-up Notes:"]
[]
[]
[null,"F3. Next Review Date:",null,null,null,null,null,null,null,null,{"$f":"NextReviewDate_Field","v":""}]
[]
[]
[null,"G1. Residual Risk:"]
[]
[]
[null,"G2. Impact:"]
[null,null,null,null,null,null,null,null,null,null,null,null,null,null,null,null,null,null,null,null,null,"G4. Residual Risk Rating:",null,null,null,null,null,null,null,null,{"$f":"Inherent_Risk_Rating_Field","v":""}]
[]
[null,"G3. Likelihood:"]
[]
[]
[null,"Notes/Comments:\n- To start the data entry process, please enable the ‘Macro’ from the above 'YELLOW BAR'.\n- When ‘Other’ is selected, an empty box appears next to it to provide details.\n- Any in correct entry/data will be highlighted in ‘RED’ color.\n- The entire tool has systematic logical constrains and cascading, therefore, the data need to be entered in the right sequence, i.e. starting from the top first field.\n- Once the complete data is entered, then the tool will be able to generate the report. Therefore, please avoid any discrepancy in the data.\n- Due to the program script running in the background, there is a slight pause after each entry.\n"]
[null,null,null,null,null,null,null,null,null,null,null,null,null,null,null,null,null,null,null,null,null,"E2. Impact",5,{"$f":"$W83*X$93","v":5},null,null,null,{"$f":"$W83*AB$93","v":10},null,null,null,{"$f":"$W83*AF$93","v":15},null,null,null,{"$f":"$W83*AJ$93","v":20},null,null,null,{"$f":"$W83*AN$93","v":25}]
[]
[null,null,null,null,null,null,null,null,null,null,null,null,null,null,null,null,null,null,null,null,null,null,4,{"$f":"$W85*X$93","v":4},null,null,null,{"$f":"$W85*AB$93","v":8},null,null,null,{"$f":"$W85*AF$93","v":12},null,null,null,{"$f":"$W85*AJ$93","v":16},null,null,null,{"$f":"$W85*AN$93","v":20}]
[]
[null,null,null,null,null,null,null,null,null,null,null,null,null,null,null,null,null,null,null,null,null,null,3,{"$f":"$W87*X$93","v":3},null,null,null,{"$f":"$W87*AB$93","v":6},null,null,null,{"$f":"$W87*AF$93","v":9},null,null,null,{"$f":"$W87*AJ$93","v":12},null,null,null,{"$f":"$W87*AN$93","v":15}]
[]
[null,null,null,null,null,null,null,null,null,null,null,null,null,null,null,null,null,null,null,null,null,null,2,{"$f":"$W89*X$93","v":2},null,null,null,{"$f":"$W89*AB$93","v":4},null,null,null,{"$f":"$W89*AF$93","v":6},null,null,null,{"$f":"$W89*AJ$93","v":8},null,null,null,{"$f":"$W89*AN$93","v":10}]
[]
[null,null,null,null,null,null,null,null,null,null,null,null,null,null,null,null,null,null,null,null,null,null,1,{"$f":"$W91*X$93","v":1},null,null,null,{"$f":"$W91*AB$93","v":2},null,null,null,{"$f":"$W91*AF$93","v":3},null,null,null,{"$f":"$W91*AJ$93","v":4},null,null,null,{"$f":"$W91*AN$93","v":5}]
[]
[null,null,null,null,null,null,null,null,null,null,null,null,null,null,null,null,null,null,null,null,null,{"$f":"VALUE(LEFT(K48,1))+0.5","v":{"$error":"#VALUE!"}},{"$f":"VALUE(LEFT(K45,1))+0.5","v":{"$error":"#VALUE!"}},1,null,null,null,2,null,null,null,3,null,null,null,4,null,null,null,5]
[null,null,null,null,null,null,null,null,null,null,null,null,null,null,null,null,null,null,null,null,null,{"$f":"VALUE(LEFT(K79,1))+0.5","v":{"$error":"#VALUE!"}},{"$f":"VALUE(LEFT(K76,1))+0.5","v":{"$error":"#VALUE!"}},"E3. Likelihood"]
[]
[null,"The purpose of risk analysis tool is to identify possible risks and their likelihood and impact on resources. The objective of the risk management process is to create a system and processes to protect people and resources of value. The risk management process does not focus upon risk avoidance but on the identification and management of an acceptable level of risk to strengthen the project management through adequate forward planning of potential risks. The best system aims to mitigate and prevent the impact. ",null,null,null,null,null,null,null,null,null,null,null,null,null,null,null,null,null,null,null,null,null,null,null,null,null,null,null,null,null,null,null,"Creation date: 25-Feb-2020\nDraft version: V1.03\nTo share Risk Register:\nrisk-register@un.org"]

{"sheet":"Risk Mitigation Strategy","index":3,"n_rows":98,"n_cols":43,"rows_kept":98,"cut":false,"hidden":false,"merged":[[93,1,94,9],[93,10,94,42],[45,22,51,42],[55,1,59,42],[61,1,62,42],[63,1,67,42],[69,1,70,42],[71,1,75,42],[27,23,28,29],[29,23,30,29],[23,30,23,36],[24,30,24,36],[25,30,26,36],[27,30,28,36],[29,30,30,36],[36,1,40,42],[25,1,26,9],[27,1,28,9],[29,1,30,9],[31,1,32,9],[25,10,26,15],[27,10,28,15],[29,10,30,15],[31,10,32,15],[25,16,26,22],[27,37,28,42],[29,37,30,42],[31,16,32,22],[29,16,30,22],[27,16,28,22],[31,37,32,42],[25,37,26,42],[18,10,20,18],[18,29,20,42],[18,19,20,28],[34,1,35,42],[23,37,23,42],[23,10,23,15],[24,37,24,42],[24,10,24,15],[24,16,24,22],[31,23,32,29],[31,30,32,36],[23,16,23,22],[23,23,23,29],[24,23,24,29],[25,23,26,29],[17,10,17,18],[17,19,17,28],[17,29,17,42],[96,1,96,42],[97,1,97,42],[87,1,91,42],[77,1,78,42],[79,1,83,42],[85,1,86,42],[53,1,54,42],[42,1,43,42],[44,1,44,21],[44,22,44,42],[45,1,51,21],[17,1,21,9],[23,1,24,9],[1,1,5,28],[1,29,5,42],[7,1,10,9],[7,10,10,42],[12,1,15,9],[12,10,15,42]]}
[]
[null,"Syria Crisis\nCross-Border Response from Turkey",null,null,null,null,null,null,null,null,null,null,null,null,null,null,null,null,null,null,null,null,null,null,null,null,null,null,null,"Risk Analysis Tool\nRisk Mitigation Strategy"]
[]
[]
[]
[]
[]
[null,"E1. Risk Context Established:"]
[]
[]
[]
[]
[null,"E2. Risk Analyzed:"]
[]
[]
[]
[]
[null,"E3. Risk Evaluation:"]
[null,null,null,null,null,null,null,null,null,null,"Acceptable Risk\nInherent Risk Rating 1~5\nHeat Map Color Green (Dark to Light) ",null,null,null,null,null,null,null,null,"Manageable Risk\nInherent Risk Rating 6~10\nHeat Map Color Amber (Light to Dark)",null,null,null,null,null,null,null,null,null,"Unacceptable Risk\nInherent Risk Rating 11~25\nHeat Map Color Red (Light to Dark)"]
[]
[]
[null,null,null,null,null,null,null,null,null,null,null,null,1,2,3,4,5,null,null,null,null,6,7,8,9,10,11,null,null,12,13,14,15,16,17,18,19,20,21,22,23,24,25]
[null,null,1]
[null,"E4. Risk Mitigation Approach:"]
[null,null,null,null,null,null,null,null,null,null,"Tolerate",null,null,null,null,null,"Tolerate\nand/or\nTreat",null,null,null,null,null,null,"Treat\nand/or\nTransfer",null,null,null,null,null,null,"Treat\nand/or Transfer \nand/or Terminate",null,null,null,null,null,null,"Terminate"]
[null,"Tolerate:"]
[]
[null,"Treat:"]
[]
[null,"Transfer:"]
[]
[null,"Terminate:"]
[]
[null,null,1]
[null,"E5. Risk Mitigation Measures:"]
[]
[]
[]
[]
[]
[]
[]
[null,"E5.1 Resources Needed:"]
[]
[null,"Internally:",null,null,null,null,null,null,null,null,null,null,null,null,null,null,null,null,null,null,null,null,"Externally:"]
[]
[]
[]
[]
[]
[]
[]
[]
[null,"E5.2 Gaps:"]
[]
[]
[]
[]
[]
[]
[]
[null,"E5.3 Controls:"]
[]
[]
[]
[]
[]
[]
[]
[null,"E5.4 Strategy Owner:"]
[]
[]
[]
[]
[]
[]
[]
[null,"E6. Monitoring and Review:"]
[]
[]
[]
[]
[]
[]
[]
[null,"E7. Communication and Coordination:"]
[]
[]
[]
[]
[]
[]
[]
[null,"E8. Next Review Date:"]
[]
[]
[null,"Please click here to go back to ‘Risk Analysis Tool’"]
[null,"Systematic management of risk at all levels of the ‘Organization’ and at each stage of ‘Programming cycle’ improves planning efficiency and service delivery and allows better and more reliable decision-making, as well as strengthen the overall governance and accountability. Therefore, Risk Management is an integral part of strategic planning and results-based management."]

{"sheet":"Risk Register","index":4,"n_rows":124,"n_cols":45,"rows_kept":124,"cut":false,"hidden":false,"merged":[[2,32,2,44],[2,3,2,5],[2,25,2,27],[2,28,2,31],[2,6,2,14],[2,15,2,18],[0,19,2,24]]}
[null,null,null,null,null,null,null,null,null,null,null,null,null,null,null,null,null,null,null,"D. Risk Analysis"]
[]
[null,null,null,"A. Profile",null,null,"B. Risk Classification",null,null,null,null,null,null,null,null,"C. Cluster Data",null,null,null,null,null,null,null,null,null,"F. Mitigation Performance",null,null,"G. Residual Risk",null,null,null,"E. Risk Mitigation"]
["Serial number","Unique ID","Date","Text","Drop_List","Text_other","Drop_List","Text_other",null,null,"Drop_List","Text_other","Drop_List","Text_other","Drop_List","Text_other",null,"Drop_List","Drop_List","Text_other","Text","Drop_List","Drop_List","Calculated","Drop_List","Text",null,"Text","Drop_List","Drop_List","Drop_List","Calculated",null,null,null,null,null,"Text_other","Text","Text","Text"]
["Index","Data Entry ID","Entry Date","A1. Data Entry ID","A2. Organization Type","A2. Organization Type_Other","B1. Risk ID","B2. Risk Type","B2. Risk Type_Other","B3. Risk Category","B3. Risk Category_Other","B4. Risk Sub-Category","B4. Risk Sub-Category_Other","B5. Sub-Category Type","B5. Sub-Category Type_Other","C1. Cluster (affected)","C1. Cluster (affected)_Multi-Cluster","C2. Cluster Activity","C2. Cluster Activity_Other","D1. Risk Description","D2. Impact","D3. Likelihood","D4. Inherent Risk Rating","D5. Risk Driver","D5. Risk Driver_Other","F1. Mitigation Outcomes","F2. Follow-up Notes","F3. Next Review Date","G1. Residual Risk","G2. Impact","G3. Likelihood","G4. Rating","E1. Risk Context Established","E2. Risk Analyzed","E3. Risk Evaluation","E4. Risk Mitigation Approach","E5. Risk Mitigation Measures","E5.1  Resources Needed/Internally","E5.1  Resources Needed/Externally","E5.2. Gaps","E5.3. Controls","E5.4. Strategy Owner(s)","E6. Monitoring and Review","E7. Communication and Coordination","E8. Next Review Date"]
[1,null,null,"A1_1","Coordination Body (network, forum, platform, cluster)",null,"B1_2","External",null,"Access",null,"Denial of Access",null,"Other","B5_Other_1","Protection_Housing_Land_Property",null,"Other (please specify);",null,"D1_1","4: High",null,"2: Unlikely","Border Management at Bab Al Hawa - Syrian Side",null,"F1_1","F2_1",null,"Yes","2: Low","2: Unlikely",{"$f":"IF(AND(NOT(ISBLANK(AD6)),NOT(ISBLANK(AE6))),VALUE(LEFT(AD6,1))*VALUE(LEFT(AE6,1)),\"\")","v":4},"E1_1","E2_1",1,1,"E5_1","E5.1_Internally_1","E5.1_Exterally_1","E5.2_1","E5.3_1","E5.4_1","E6_1","E7_1","2020-02-12"]
[2,null,"2019-11-19T17:15:38","A1_2","Donor",null,"B1_2","Internal",null,"Financial",null,"Audit Quality of Reports Not Optimal and to Expected Standards",null,"Other","B5_Other_2","Coordination_Common_Services_CCS",null,"Coordination of Humanitarian Response",null,"D1_2","2: Low",null,"2: Unlikely","Other","D5_Other_2","F1_2","F2_2",null,"Yes","2: Low","1: Very unlikely",{"$f":"IF(AND(NOT(ISBLANK(AD7)),NOT(ISBLANK(AE7))),VALUE(LEFT(AD7,1))*VALUE(LEFT(AE7,1)),\"\")","v":2},"E1_2\naaaaaaaaaaaaaaaaaaaaaaaaaaaaaaaaaaaaaaaaaaaaaaaaaaaaaaaaaaaaaaaaaaaaaaaaaaaaaaaaaaaaaaaaaaaaaaaaaaaaaaaaaaaaaaaaaaaaaaaaaaaaaaaaaaaaaaaaaaaa","E2_2",2,2,"E5_2","E51_Internally_2","E51_Externally_2","E52_2","E53_2","E54_2","E6. Monitoring and Review:","E7. Communication and Coordination:","2020-02-12"]
[3,null,"2019-11-19T17:15:46",null,null,null,null,null,null,null,null,null,null,null,null,null,null,null,null,null,null,null,{"$f":"IF(AND(NOT(ISBLANK(U8)),NOT(ISBLANK(V8))),VALUE(LEFT(U8,1))*VALUE(LEFT(V8,1)),\"\")","v":""},null,null,null,null,null,null,null,null,""]
[4,null,"2020-02-13T12:00:36","test",null,null,null,null,null,null,null,null,null,null,null,null,null,null,null,null,null,null,null,null,null,null,null,null,null,null,null,""]
[5,null,"2020-02-13T12:00:36","test",null,null,null,null,null,null,null,null,null,null,null,null,null,null,null,null,null,null,null,null,null,null,null,null,null,null,null,"",null,null,1,1]
[null,null,null,null,null,null,null,null,null,null,null,null,null,null,null,null,null,null,null,null,null,null,"",null,null,null,null,null,null,null,null,""]
[null,null,null,null,null,null,null,null,null,null,null,null,null,null,null,null,null,null,null,null,null,null,"",null,null,null,null,null,null,null,null,""]
[null,null,null,null,null,null,null,null,null,null,null,null,null,null,null,null,null,null,null,null,null,null,"",null,null,null,null,null,null,null,null,""]
[null,null,null,null,null,null,null,null,null,null,null,null,null,null,null,null,null,null,null,null,null,null,"",null,null,null,null,null,null,null,null,""]
[null,null,null,null,null,null,null,null,null,null,null,null,null,null,null,null,null,null,null,null,null,null,"",null,null,null,null,null,null,null,null,""]
[null,null,null,null,null,null,null,null,null,null,null,null,null,null,null,null,null,null,null,null,null,null,"",null,null,null,null,null,null,null,null,""]
[null,null,null,null,null,null,null,null,null,null,null,null,null,null,null,null,null,null,null,null,null,null,"",null,null,null,null,null,null,null,null,""]
[null,null,null,null,null,null,null,null,null,null,null,null,null,null,null,null,null,null,null,null,null,null,"",null,null,null,null,null,null,null,null,""]
[null,null,null,null,null,null,null,null,null,null,null,null,null,null,null,null,null,null,null,null,null,null,"",null,null,null,null,null,null,null,null,""]
[null,null,null,null,null,null,null,null,null,null,null,null,null,null,null,null,null,null,null,null,null,null,"",null,null,null,null,null,null,null,null,""]
[null,null,null,null,null,null,null,null,null,null,null,null,null,null,null,null,null,null,null,null,null,null,"",null,null,null,null,null,null,null,null,""]
[null,null,null,null,null,null,null,null,null,null,null,null,null,null,null,null,null,null,null,null,null,null,"",null,null,null,null,null,null,null,null,""]
[null,null,null,null,null,null,null,null,null,null,null,null,null,null,null,null,null,null,null,null,null,null,"",null,null,null,null,null,null,null,null,""]
[null,null,null,null,null,null,null,null,null,null,null,null,null,null,null,null,null,null,null,null,null,null,"",null,null,null,null,null,null,null,null,""]
[null,null,null,null,null,null,null,null,null,null,null,null,null,null,null,null,null,null,null,null,null,null,"",null,null,null,null,null,null,null,null,""]
[null,null,null,null,null,null,null,null,null,null,null,null,null,null,null,null,null,null,null,null,null,null,"",null,null,null,null,null,null,null,null,""]
[null,null,null,null,null,null,null,null,null,null,null,null,null,null,null,null,null,null,null,null,null,null,"",null,null,null,null,null,null,null,null,""]
[null,null,null,null,null,null,null,null,null,null,null,null,null,null,null,null,null,null,null,null,null,null,"",null,null,null,null,null,null,null,null,""]
[null,null,null,null,null,null,null,null,null,null,null,null,null,null,null,null,null,null,null,null,null,null,"",null,null,null,null,null,null,null,null,""]
[null,null,null,null,null,null,null,null,null,null,null,null,null,null,null,null,null,null,null,null,null,null,"",null,null,null,null,null,null,null,null,""]
[null,null,null,null,null,null,null,null,null,null,null,null,null,null,null,null,null,null,null,null,null,null,"",null,null,null,null,null,null,null,null,""]
[null,null,null,null,null,null,null,null,null,null,null,null,null,null,null,null,null,null,null,null,null,null,"",null,null,null,null,null,null,null,null,""]
[null,null,null,null,null,null,null,null,null,null,null,null,null,null,null,null,null,null,null,null,null,null,"",null,null,null,null,null,null,null,null,""]
[null,null,null,null,null,null,null,null,null,null,null,null,null,null,null,null,null,null,null,null,null,null,"",null,null,null,null,null,null,null,null,""]
[null,null,null,null,null,null,null,null,null,null,null,null,null,null,null,null,null,null,null,null,null,null,"",null,null,null,null,null,null,null,null,""]
[null,null,null,null,null,null,null,null,null,null,null,null,null,null,null,null,null,null,null,null,null,null,"",null,null,null,null,null,null,null,null,""]
[null,null,null,null,null,null,null,null,null,null,null,null,null,null,null,null,null,null,null,null,null,null,"",null,null,null,null,null,null,null,null,""]
[null,null,null,null,null,null,null,null,null,null,null,null,null,null,null,null,null,null,null,null,null,null,"",null,null,null,null,null,null,null,null,""]
[null,null,null,null,null,null,null,null,null,null,null,null,null,null,null,null,null,null,null,null,null,null,"",null,null,null,null,null,null,null,null,""]
[null,null,null,null,null,null,null,null,null,null,null,null,null,null,null,null,null,null,null,null,null,null,"",null,null,null,null,null,null,null,null,""]
[null,null,null,null,null,null,null,null,null,null,null,null,null,null,null,null,null,null,null,null,null,null,"",null,null,null,null,null,null,null,null,""]
[null,null,null,null,null,null,null,null,null,null,null,null,null,null,null,null,null,null,null,null,null,null,"",null,null,null,null,null,null,null,null,""]
[null,null,null,null,null,null,null,null,null,null,null,null,null,null,null,null,null,null,null,null,null,null,"",null,null,null,null,null,null,null,null,""]
[null,null,null,null,null,null,null,null,null,null,null,null,null,null,null,null,null,null,null,null,null,null,"",null,null,null,null,null,null,null,null,""]
[null,null,null,null,null,null,null,null,null,null,null,null,null,null,null,null,null,null,null,null,null,null,"",null,null,null,null,null,null,null,null,""]
[null,null,null,null,null,null,null,null,null,null,null,null,null,null,null,null,null,null,null,null,null,null,"",null,null,null,null,null,null,null,null,""]
[null,null,null,null,null,null,null,null,null,null,null,null,null,null,null,null,null,null,null,null,null,null,"",null,null,null,null,null,null,null,null,""]
[null,null,null,null,null,null,null,null,null,null,null,null,null,null,null,null,null,null,null,null,null,null,"",null,null,null,null,null,null,null,null,""]
[null,null,null,null,null,null,null,null,null,null,null,null,null,null,null,null,null,null,null,null,null,null,"",null,null,null,null,null,null,null,null,""]
[null,null,null,null,null,null,null,null,null,null,null,null,null,null,null,null,null,null,null,null,null,null,"",null,null,null,null,null,null,null,null,""]
[null,null,null,null,null,null,null,null,null,null,null,null,null,null,null,null,null,null,null,null,null,null,"",null,null,null,null,null,null,null,null,""]
[null,null,null,null,null,null,null,null,null,null,null,null,null,null,null,null,null,null,null,null,null,null,"",null,null,null,null,null,null,null,null,""]
[null,null,null,null,null,null,null,null,null,null,null,null,null,null,null,null,null,null,null,null,null,null,"",null,null,null,null,null,null,null,null,""]
[null,null,null,null,null,null,null,null,null,null,null,null,null,null,null,null,null,null,null,null,null,null,"",null,null,null,null,null,null,null,null,""]
[null,null,null,null,null,null,null,null,null,null,null,null,null,null,null,null,null,null,null,null,null,null,"",null,null,null,null,null,null,null,null,""]
[null,null,null,null,null,null,null,null,null,null,null,null,null,null,null,null,null,null,null,null,null,null,"",null,null,null,null,null,null,null,null,""]
[null,null,null,null,null,null,null,null,null,null,null,null,null,null,null,null,null,null,null,null,null,null,"",null,null,null,null,null,null,null,null,""]
[null,null,null,null,null,null,null,null,null,null,null,null,null,null,null,null,null,null,null,null,null,null,"",null,null,null,null,null,null,null,null,""]
[null,null,null,null,null,null,null,null,null,null,null,null,null,null,null,null,null,null,null,null,null,null,"",null,null,null,null,null,null,null,null,""]
[null,null,null,null,null,null,null,null,null,null,null,null,null,null,null,null,null,null,null,null,null,null,"",null,null,null,null,null,null,null,null,""]
[null,null,null,null,null,null,null,null,null,null,null,null,null,null,null,null,null,null,null,null,null,null,{"$f":"IF(AND(NOT(ISBLANK(U61)),NOT(ISBLANK(V61))),VALUE(LEFT(U61,1))*VALUE(LEFT(V61,1)),\"\")","v":""},null,null,null,null,null,null,null,null,{"$f":"IF(AND(NOT(ISBLANK(AD61)),NOT(ISBLANK(AE61))),VALUE(LEFT(AD61,1))*VALUE(LEFT(AE61,1)),\"\")","v":""}]
[null,null,null,null,null,null,null,null,null,null,null,null,null,null,null,null,null,null,null,null,null,null,"",null,null,null,null,null,null,null,null,""]
[null,null,null,null,null,null,null,null,null,null,null,null,null,null,null,null,null,null,null,null,null,null,"",null,null,null,null,null,null,null,null,""]
[null,null,null,null,null,null,null,null,null,null,null,null,null,null,null,null,null,null,null,null,null,null,"",null,null,null,null,null,null,null,null,""]
[null,null,null,null,null,null,null,null,null,null,null,null,null,null,null,null,null,null,null,null,null,null,"",null,null,null,null,null,null,null,null,""]
[null,null,null,null,null,null,null,null,null,null,null,null,null,null,null,null,null,null,null,null,null,null,"",null,null,null,null,null,null,null,null,""]
[null,null,null,null,null,null,null,null,null,null,null,null,null,null,null,null,null,null,null,null,null,null,"",null,null,null,null,null,null,null,null,""]
[null,null,null,null,null,null,null,null,null,null,null,null,null,null,null,null,null,null,null,null,null,null,"",null,null,null,null,null,null,null,null,""]
[null,null,null,null,null,null,null,null,null,null,null,null,null,null,null,null,null,null,null,null,null,null,"",null,null,null,null,null,null,null,null,""]
[null,null,null,null,null,null,null,null,null,null,null,null,null,null,null,null,null,null,null,null,null,null,"",null,null,null,null,null,null,null,null,""]
[null,null,null,null,null,null,null,null,null,null,null,null,null,null,null,null,null,null,null,null,null,null,"",null,null,null,null,null,null,null,null,""]
[null,null,null,null,null,null,null,null,null,null,null,null,null,null,null,null,null,null,null,null,null,null,"",null,null,null,null,null,null,null,null,""]
[null,null,null,null,null,null,null,null,null,null,null,null,null,null,null,null,null,null,null,null,null,null,"",null,null,null,null,null,null,null,null,""]
[null,null,null,null,null,null,null,null,null,null,null,null,null,null,null,null,null,null,null,null,null,null,"",null,null,null,null,null,null,null,null,""]
[null,null,null,null,null,null,null,null,null,null,null,null,null,null,null,null,null,null,null,null,null,null,"",null,null,null,null,null,null,null,null,""]
[null,null,null,null,null,null,null,null,null,null,null,null,null,null,null,null,null,null,null,null,null,null,"",null,null,null,null,null,null,null,null,""]
[null,null,null,null,null,null,null,null,null,null,null,null,null,null,null,null,null,null,null,null,null,null,"",null,null,null,null,null,null,null,null,""]
[null,null,null,null,null,null,null,null,null,null,null,null,null,null,null,null,null,null,null,null,null,null,"",null,null,null,null,null,null,null,null,""]
[null,null,null,null,null,null,null,null,null,null,null,null,null,null,null,null,null,null,null,null,null,null,"",null,null,null,null,null,null,null,null,""]
[null,null,null,null,null,null,null,null,null,null,null,null,null,null,null,null,null,null,null,null,null,null,"",null,null,null,null,null,null,null,null,""]
[null,null,null,null,null,null,null,null,null,null,null,null,null,null,null,null,null,null,null,null,null,null,"",null,null,null,null,null,null,null,null,""]
[null,null,null,null,null,null,null,null,null,null,null,null,null,null,null,null,null,null,null,null,null,null,"",null,null,null,null,null,null,null,null,""]
[null,null,null,null,null,null,null,null,null,null,null,null,null,null,null,null,null,null,null,null,null,null,"",null,null,null,null,null,null,null,null,""]
[null,null,null,null,null,null,null,null,null,null,null,null,null,null,null,null,null,null,null,null,null,null,"",null,null,null,null,null,null,null,null,""]
[null,null,null,null,null,null,null,null,null,null,null,null,null,null,null,null,null,null,null,null,null,null,"",null,null,null,null,null,null,null,null,""]
[null,null,null,null,null,null,null,null,null,null,null,null,null,null,null,null,null,null,null,null,null,null,"",null,null,null,null,null,null,null,null,""]
[null,null,null,null,null,null,null,null,null,null,null,null,null,null,null,null,null,null,null,null,null,null,"",null,null,null,null,null,null,null,null,""]
[null,null,null,null,null,null,null,null,null,null,null,null,null,null,null,null,null,null,null,null,null,null,"",null,null,null,null,null,null,null,null,""]
[null,null,null,null,null,null,null,null,null,null,null,null,null,null,null,null,null,null,null,null,null,null,"",null,null,null,null,null,null,null,null,""]
[null,null,null,null,null,null,null,null,null,null,null,null,null,null,null,null,null,null,null,null,null,null,"",null,null,null,null,null,null,null,null,""]
[null,null,null,null,null,null,null,null,null,null,null,null,null,null,null,null,null,null,null,null,null,null,"",null,null,null,null,null,null,null,null,""]
[null,null,null,null,null,null,null,null,null,null,null,null,null,null,null,null,null,null,null,null,null,null,"",null,null,null,null,null,null,null,null,""]
[null,null,null,null,null,null,null,null,null,null,null,null,null,null,null,null,null,null,null,null,null,null,"",null,null,null,null,null,null,null,null,""]
[null,null,null,null,null,null,null,null,null,null,null,null,null,null,null,null,null,null,null,null,null,null,"",null,null,null,null,null,null,null,null,""]
[null,null,null,null,null,null,null,null,null,null,null,null,null,null,null,null,null,null,null,null,null,null,"",null,null,null,null,null,null,null,null,""]
[null,null,null,null,null,null,null,null,null,null,null,null,null,null,null,null,null,null,null,null,null,null,"",null,null,null,null,null,null,null,null,""]
[null,null,null,null,null,null,null,null,null,null,null,null,null,null,null,null,null,null,null,null,null,null,"",null,null,null,null,null,null,null,null,""]
[null,null,null,null,null,null,null,null,null,null,null,null,null,null,null,null,null,null,null,null,null,null,"",null,null,null,null,null,null,null,null,""]
[null,null,null,null,null,null,null,null,null,null,null,null,null,null,null,null,null,null,null,null,null,null,"",null,null,null,null,null,null,null,null,""]
[null,null,null,null,null,null,null,null,null,null,null,null,null,null,null,null,null,null,null,null,null,null,"",null,null,null,null,null,null,null,null,""]
[null,null,null,null,null,null,null,null,null,null,null,null,null,null,null,null,null,null,null,null,null,null,"",null,null,null,null,null,null,null,null,""]
[null,null,null,null,null,null,null,null,null,null,null,null,null,null,null,null,null,null,null,null,null,null,"",null,null,null,null,null,null,null,null,""]
[null,null,null,null,null,null,null,null,null,null,null,null,null,null,null,null,null,null,null,null,null,null,"",null,null,null,null,null,null,null,null,""]
[null,null,null,null,null,null,null,null,null,null,null,null,null,null,null,null,null,null,null,null,null,null,"",null,null,null,null,null,null,null,null,""]
[null,null,null,null,null,null,null,null,null,null,null,null,null,null,null,null,null,null,null,null,null,null,"",null,null,null,null,null,null,null,null,""]
[null,null,null,null,null,null,null,null,null,null,null,null,null,null,null,null,null,null,null,null,null,null,"",null,null,null,null,null,null,null,null,""]
[null,null,null,null,null,null,null,null,null,null,null,null,null,null,null,null,null,null,null,null,null,null,"",null,null,null,null,null,null,null,null,""]
[null,null,null,null,null,null,null,null,null,null,null,null,null,null,null,null,null,null,null,null,null,null,"",null,null,null,null,null,null,null,null,""]
[null,null,null,null,null,null,null,null,null,null,null,null,null,null,null,null,null,null,null,null,null,null,"",null,null,null,null,null,null,null,null,""]
[null,null,null,null,null,null,null,null,null,null,null,null,null,null,null,null,null,null,null,null,null,null,"",null,null,null,null,null,null,null,null,""]
[null,null,null,null,null,null,null,null,null,null,null,null,null,null,null,null,null,null,null,null,null,null,"",null,null,null,null,null,null,null,null,""]
[null,null,null,null,null,null,null,null,null,null,null,null,null,null,null,null,null,null,null,null,null,null,"",{"$f":"IF(AND(NOT(ISBLANK(V112)),NOT(ISBLANK(W112))),VALUE(LEFT(V112,1))*VALUE(LEFT(W112,1)),\"\")","v":""},null,null,null,null,null,null,null,""]
[null,null,null,null,null,null,null,null,null,null,null,null,null,null,null,null,null,null,null,null,null,null,"","",null,null,null,null,null,null,null,""]
[null,null,null,null,null,null,null,null,null,null,null,null,null,null,null,null,null,null,null,null,null,null,"","",null,null,null,null,null,null,null,""]
[null,null,null,null,null,null,null,null,null,null,null,null,null,null,null,null,null,null,null,null,null,null,"","",null,null,null,null,null,null,null,""]
[null,null,null,null,null,null,null,null,null,null,null,null,null,null,null,null,null,null,null,null,null,null,"","",null,null,null,null,null,null,null,""]
[null,null,null,null,null,null,null,null,null,null,null,null,null,null,null,null,null,null,null,null,null,null,"","",null,null,null,null,null,null,null,""]
[null,null,null,null,null,null,null,null,null,null,null,null,null,null,null,null,null,null,null,null,null,null,"","",null,null,null,null,null,null,null,""]
[null,null,null,null,null,null,null,null,null,null,null,null,null,null,null,null,null,null,null,null,null,null,"","",null,null,null,null,null,null,null,""]
[null,null,null,null,null,null,null,null,null,null,null,null,null,null,null,null,null,null,null,null,null,null,"","",null,null,null,null,null,null,null,""]
[null,null,null,null,null,null,null,null,null,null,null,null,null,null,null,null,null,null,null,null,null,null,"","",null,null,null,null,null,null,null,""]
[null,null,null,null,null,null,null,null,null,null,null,null,null,null,null,null,null,null,null,null,null,null,"","",null,null,null,null,null,null,null,""]
[null,null,null,null,null,null,null,null,null,null,null,null,null,null,null,null,null,null,null,null,null,null,"","",null,null,null,null,null,null,null,""]
[null,null,null,null,null,null,null,null,null,null,null,null,null,null,null,null,null,null,null,null,null,null,"","",null,null,null,null,null,null,null,""]